Workbook

Sheet M1
C1: 0 | D1: 0.5 | E1: 1 | F1: 1.5 | G1: 2 | H1: 2.5 | I1: 3 | J1: 3.5 | K1: 4 | N1: 0 | O1: 0.1 | P1: 0.2 | Q1: 0.3 | R1: 0.4 | S1: 0.5 | T1: 0.6 | U1: 0.7 | V1: 0.8 | W1: 0.9 | X1: 1 | Y1: 1.1 | Z1: 1.2 | AA1: 1.3 | AB1: 1.4 | AC1: 1.5 | AD1: 1.6 | AE1: 1.7 | AF1: 1.8 | AG1: 1.9 | AH1: 2 | AI1: 2.1 | AJ1: 2.2 | AK1: 2.3 | AL1: 2.4 | AM1: 2.5 | AN1: 2.6 | AO1: 2.7 | AP1: 2.8 | AQ1: 2.9 | AR1: 3 | AS1: 3.1 | AT1: 3.2 | AU1: 3.3 | AV1: 3.4 | AW1: 3.5 | AX1: 3.6 | AY1: 3.7 | AZ1: 3.8 | BA1: 3.9 | BB1: 4 | BF1: 0 | BG1: 0.1 | BH1: 0.2 | BI1: 0.3 | BJ1: 0.4 | BK1: 0.5 | BL1: 0.6 | BM1: 0.7 | BN1: 0.8 | BO1: 0.9 | BP1: 1 | BQ1: 1.1 | BR1: 1.2 | BS1: 1.3 | BT1: 1.4 | BU1: 1.5 | BV1: 1.6 | BW1: 1.7 | BX1: 1.8 | BY1: 1.9 | BZ1: 2 | CA1: 2.1 | CB1: 2.2 | CC1: 2.3 | CD1: 2.4 | CE1: 2.5 | CF1: 2.6 | CG1: 2.7 | CH1: 2.8 | CI1: 2.9 | CJ1: 3 | CK1: 3.1 | CL1: 3.2 | CM1: 3.3 | CN1: 3.4 | CO1: 3.5 | CP1: 3.6 | CQ1: 3.7 | CR1: 3.8 | CS1: 3.9 | CT1: 4 | CY1: 0 | CZ1: 0.1 | DA1: 0.2 | DB1: 0.3 | DC1: 0.4 | DD1: 0.5 | DE1: 0.6 | DF1: 0.7 | DG1: 0.8 | DH1: 0.9 | DI1: 1 | DJ1: 1.1 | DK1: 1.2 | DL1: 1.3 | DM1: 1.4 | DN1: 1.5 | DO1: 1.6 | DP1: 1.7 | DQ1: 1.8 | DR1: 1.9 | DS1: 2 | DT1: 2.1 | DU1: 2.2 | DV1: 2.3 | DW1: 2.4 | DX1: 2.5 | DY1: 2.6 | DZ1: 2.7 | EA1: 2.8 | EB1: 2.9 | EC1: 3 | ED1: 3.1 | EE1: 3.2 | EF1: 3.3 | EG1: 3.4 | EH1: 3.5 | EI1: 3.6 | EJ1: 3.7 | EK1: 3.8 | EL1: 3.9 | EM1: 4 | ER1: =IF(ER2>0,ER2/10-0.1,"") -> 0 | ES1: =IF(ES2>0,ES2/10-0.1,"") -> 0.1 | ET1: 0.2 | EU1: 0.3 | EV1: 0.4 | EW1: 0.5 | EX1: 0.6 | EY1: 0.7 | EZ1: 0.8 | FA1: 0.9 | FB1: 1 | FC1: 1.1 | FD1: 1.2 | FE1: 1.3 | FF1: 1.4 | FG1: 1.5 | FH1: 1.6 | FI1: 1.7 | FJ1: 1.8 | FK1: 1.9 | FL1: 2 | FM1: 2 | FN1: 2.1 | FO1: 2.2 | FP1: 2.3 | FQ1: 2.4 | FR1: 2.5 | FS1: 2.6 | FT1: 2.7 | FU1: 2.8 | FV1: 2.9 | FW1: 3 | FX1: 3.1 | FY1: 3.2 | FZ1: 3.3 | GA1: 3.4 | GB1: 3.5 | GC1: 3.6 | GD1: 3.7 | GE1: 3.8 | GF1: 3.9 | GG1: 4 | GM1: 0 | GN1: 0.1 | GO1: 0.2 | GP1: 0.3 | GQ1: 0.4 | GR1: 0.5 | GS1: 0.6 | GT1: 0.7 | GU1: 0.8 | GV1: 0.9 | GW1: 1 | GX1: 1.1 | GY1: 1.2 | GZ1: 1.3 | HA1: 1.4 | HB1: 1.5 | HC1: 1.6 | HD1: 1.7 | HE1: 1.8 | HF1: 1.9 | HG1: 2 | HH1: 2 | HI1: 2.1 | HJ1: 2.2 | HK1: 2.3 | HL1: 2.4 | HM1: 2.5 | HN1: 2.6 | HO1: 2.7 | HP1: 2.8 | HQ1: 2.9 | HR1: 3 | HS1: 3.1 | HT1: 3.2 | HU1: 3.3 | HV1: 3.4 | HW1: 3.5 | HX1: 3.6 | HY1: 3.7 | HZ1: 3.8 | IA1: 3.9 | IB1: 4 | IH1: =IF(IH2>0,IH2/10-0.1,"") -> 0 | II1: 0.1 | IJ1: 0.2 | IK1: 0.3 | IL1: 0.4 | IM1: 0.5 | IN1: 0.6 | IO1: 0.7 | IP1: 0.8 | IQ1: 0.9 | IR1: 1 | IS1: 1.1 | IT1: 1.2 | IU1: 1.3 | IV1: 1.4 | IW1: 1.5 | IX1: 1.6 | IY1: 1.7 | IZ1: 1.8 | JA1: 1.9 | JB1: 2 | JC1: 2 | JD1: 2.1 | JE1: 2.2 | JF1: 2.3 | JG1: 2.4 | JH1: 2.5 | JI1: 2.6 | JJ1: 2.7 | JK1: 2.8 | JL1: 2.9 | JM1: 3 | JN1: 3.1 | JO1: 3.2 | JP1: 3.3 | JQ1: 3.4 | JR1: 3.5 | JS1: 3.6 | JT1: 3.7 | JU1: 3.8 | JV1: 3.9 | JW1: 4 | KF1: =IF(KF2>0,KF2/10-0.1,"") -> 0 | KG1: 0.1 | KH1: 0.2 | KI1: 0.3 | KJ1: 0.4 | KK1: 0.5 | KL1: 0.6 | KM1: 0.7 | KN1: 0.8 | KO1: 0.9 | KP1: 1 | KQ1: 1.1 | KR1: 1.2 | KS1: 1.3 | KT1: 1.4 | KU1: 1.5 | KV1: 1.6 | KW1: 1.7 | KX1: 1.8 | KY1: 1.9 | KZ1: 2 | LA1: 2 | LB1: 2.1 | LC1: 2.2 | LD1: 2.3 | LE1: 2.4 | LF1: 2.5 | LG1: 2.6 | LH1: 2.7 | LI1: 2.8 | LJ1: 2.9 | LK1: 3 | LL1: 3.1 | LM1: 3.2 | LN1: 3.3 | LO1: 3.4 | LP1: 3.5 | LQ1: 3.6 | LR1: 3.7 | LS1: 3.8 | LT1: 3.9 | LU1: 4 | ME1: =IF(ME2>0,ME2/10-0.1,"") -> 0 | MF1: =IF(MF2>0,MF2/10-0.1,"") -> 0.1 | MG1: 0.2 | MH1: 0.3 | MI1: 0.4 | MJ1: 0.5 | MK1: 0.6 | ML1: 0.7 | MM1: 0.8 | MN1: 0.9 | MO1: 1 | MP1: 1.1 | MQ1: 1.2 | MR1: 1.3 | MS1: 1.4 | MT1: 1.5 | MU1: 1.6 | MV1: 1.7 | MW1: 1.8 | MX1: 1.9 | MY1: 2 | MZ1: 2.1 | NA1: 2.2 | NB1: 2.3 | NC1: 2.4 | ND1: 2.5 | NE1: 2.6 | NF1: 2.7 | NG1: 2.8 | NH1: 2.9 | NI1: 3 | NJ1: 3.1 | NK1: 3.2 | NL1: 3.3 | NM1: 3.4 | NN1: 3.5 | NO1: 3.6 | NP1: 3.7 | NQ1: 3.8 | NR1: 3.9 | NW1: =IF(NW2>0,NW2/10-0.1,"") -> 0 | NX1: =IF(NX2>0,NX2/10-0.1,"") -> 0.1 | NY1: 0.2 | NZ1: 0.3 | OA1: 0.4 | OB1: 0.5 | OC1: 0.6 | OD1: 0.7 | OE1: 0.8 | OF1: 0.9 | OG1: 1 | OH1: 1.1 | OI1: 1.2 | OJ1: 1.3 | OK1: 1.4 | OL1: 1.5 | OM1: 1.6 | ON1: 1.7 | OO1: 1.8 | OP1: 1.9 | OQ1: 2 | OR1: 2.1 | OS1: 2.2 | OT1: 2.3 | OU1: 2.4 | OV1: 2.5 | OW1: 2.6 | OX1: 2.7 | OY1: 2.8 | OZ1: 2.9 | PA1: 3 | PB1: 3.1 | PC1: 3.2 | PD1: 3.3 | PE1: 3.4 | PF1: 3.5 | PG1: 3.6 | PH1: 3.7 | PI1: 3.8 | PJ1: 3.9 | PO1: =IF(PO2>0,PO2/10-0.1,"") -> 0 | PP1: =IF(PP2>0,PP2/10-0.1,"") -> 0.1 | PQ1: 0.2 | PR1: 0.3 | PS1: 0.4 | PT1: 0.5 | PU1: 0.6 | PV1: 0.7 | PW1: 0.8 | PX1: 0.9 | PY1: 1 | PZ1: 1.1 | QA1: 1.2 | QB1: 1.3 | QC1: 1.4 | QD1: 1.5 | QE1: 1.6 | QF1: 1.7 | QG1: 1.8 | QH1: 1.9 | QI1: 2 | QJ1: 2.1 | QK1: 2.2 | QL1: 2.3 | QM1: 2.4 | QN1: 2.5 | QO1: 2.6 | QP1: 2.7 | QQ1: 2.8 | QR1: 2.9 | QS1: 3 | QT1: 3.1 | QU1: 3.2 | QV1: 3.3 | QW1: 3.4 | QX1: 3.5 | QY1: 3.6 | QZ1: 3.7 | RA1: 3.8 | RB1: 3.9 | RG1: 0 | RH1: 0.1 | RI1: 0.2 | RJ1: 0.3 | RK1: 0.4 | RL1: 0.5 | RM1: 0.6 | RN1: 0.7 | RO1: 0.8 | RP1: 0.9 | RQ1: 1 | RR1: 1.1 | RS1: 1.2 | RT1: 1.3 | RU1: 1.4 | RV1: 1.5 | RW1: 1.6 | RX1: 1.7 | RY1: 1.8 | RZ1: 1.9 | SA1: 2 | SB1: 2.1 | SC1: 2.2 | SD1: 2.3 | SE1: 2.4 | SF1: 2.5 | SG1: 2.6 | SH1: 2.7 | SI1: 2.8 | SJ1: 2.9 | SK1: 3 | SL1: 3.1 | SM1: 3.2 | SN1: 3.3 | SO1: 3.4 | SP1: 3.5 | SQ1: 3.6 | SR1: 3.7 | SS1: 3.8 | ST1: 3.9 | SU1: 4 | SZ1: 0 | TA1: 0.1 | TB1: 0.2 | TC1: 0.3 | TD1: 0.4 | TE1: 0.5 | TF1: 0.6 | TG1: 0.7 | TH1: 0.8 | TI1: 0.9 | TJ1: 1 | TK1: 1.1 | TL1: 1.2 | TM1: 1.3 | TN1: 1.4 | TO1: 1.5 | TP1: 1.6 | TQ1: 1.7 | TR1: 1.8 | TS1: 1.9 | TT1: 2 | TU1: 2.1 | TV1: 2.2 | TW1: 2.3 | TX1: 2.4 | TY1: 2.5 | TZ1: 2.6 | UA1: 2.7 | UB1: 2.8 | UC1: 2.9 | UD1: 3 | UE1: 3.1 | UF1: 3.2 | UG1: 3.3 | UH1: 3.4 | UI1: 3.5 | UJ1: 3.6 | UK1: 3.7 | UL1: 3.8 | UM1: 3.9 | UN1: 4 | US1: 0 | UT1: 0.1 | UU1: 0.2 | UV1: 0.3 | UW1: 0.4 | UX1: 0.5 | UY1: 0.6 | UZ1: 0.7 | VA1: 0.8 | VB1: 0.9 | VC1: 1 | VD1: 1.1 | VE1: 1.2 | VF1: 1.3 | VG1: 1.4 | VH1: 1.5 | VI1: 1.6 | VJ1: 1.7 | VK1: 1.8 | VL1: 1.9 | VM1: 2 | VN1: 2.1 | VO1: 2.2 | VP1: 2.3 | VQ1: 2.4 | VR1: 2.5 | VS1: 2.6 | VT1: 2.7 | VU1: 2.8 | VV1: 2.9 | VW1: 3 | VX1: 3.1 | VY1: 3.2 | VZ1: 3.3 | WA1: 3.4 | WB1: 3.5 | WC1: 3.6 | WD1: 3.7 | WE1: 3.8 | WF1: 3.9 | WG1: 4 | WL1: 0 | WM1: 0.1 | WN1: 0.2 | WO1: 0.3 | WP1: 0.4 | WQ1: 0.5 | WR1: 0.6 | WS1: 0.7 | WT1: 0.8 | WU1: 0.9 | WV1: 1 | WW1: 1.1 | WX1: 1.2 | WY1: 1.3 | WZ1: 1.4 | XA1: 1.5 | XB1: 1.6 | XC1: 1.7 | XD1: 1.8 | XE1: 1.9 | XF1: 2 | XG1: 2.1 | XH1: 2.2 | XI1: 2.3 | XJ1: 2.4 | XK1: 2.5 | XL1: 2.6 | XM1: 2.7 | XN1: 2.8 | XO1: 2.9 | XP1: 3 | XQ1: 3.1 | XR1: 3.2 | XS1: 3.3 | XT1: 3.4 | XU1: 3.5 | XV1: 3.6 | XW1: 3.7 | XX1: 3.8 | XY1: 3.9 | XZ1: 4 | YE1: 0 | YF1: 0.1 | YG1: 0.2 | YH1: 0.3 | YI1: 0.4 | YJ1: 0.5 | YK1: 0.6 | YL1: 0.7 | YM1: 0.8 | YN1: 0.9 | YO1: 1 | YP1: 1.1 | YQ1: 1.2 | YR1: 1.3 | YS1: 1.4 | YT1: 1.5 | YU1: 1.6 | YV1: 1.7 | YW1: 1.8 | YX1: 1.9 | YY1: 2 | YZ1: 2 | ZA1: 2.1 | ZB1: 2.2 | ZC1: 2.3 | ZD1: 2.4 | ZE1: 2.5 | ZF1: 2.6 | ZG1: 2.7 | ZH1: 2.8 | ZI1: 2.9 | ZJ1: 3 | ZK1: 3.1 | ZL1: 3.2 | ZM1: 3.3 | ZN1: 3.4 | ZO1: 3.5 | ZP1: 3.6 | ZQ1: 3.7 | ZR1: 3.8 | ZS1: 3.9 | ZT1: 4 | ZY1: 0 | ZZ1: 0.1 | AAA1: 0.2 | AAB1: 0.3 | AAC1: 0.4 | AAD1: 0.5 | AAE1: 0.6 | AAF1: 0.7 | AAG1: 0.8 | AAH1: 0.9 | AAI1: 1 | AAJ1: 1.1 | AAK1: 1.2 | AAL1: 1.3 | AAM1: 1.4 | AAN1: 1.5 | AAO1: 1.6 | AAP1: 1.7 | AAQ1: 1.8 | AAR1: 1.9 | AAS1: 2 | AAT1: 2 | AAU1: 2.1 | AAV1: 2.2 | AAW1: 2.3 | AAX1: 2.4 | AAY1: 2.5 | AAZ1: 2.6 | ABA1: 2.7 | ABB1: 2.8 | ABC1: 2.9 | ABD1: 3 | ABE1: 3.1 | ABF1: 3.2 | ABG1: 3.3 | ABH1: 3.4 | ABI1: 3.5 | ABJ1: 3.6 | ABK1: 3.7 | ABL1: 3.8 | ABM1: 3.9 | ABN1: 4 | ABS1: 0 | ABT1: 0.1 | ABU1: 0.2 | ABV1: 0.3 | ABW1: 0.4 | ABX1: 0.5 | ABY1: 0.6 | ABZ1: 0.7 | ACA1: 0.8 | ACB1: 0.9 | ACC1: 1 | ACD1: 1.1 | ACE1: 1.2 | ACF1: 1.3 | ACG1: 1.4 | ACH1: 1.5 | ACI1: 1.6 | ACJ1: 1.7 | ACK1: 1.8 | ACL1: 1.9 | ACM1: 2 | ACN1: 2 | ACO1: 2.1 | ACP1: 2.2 | ACQ1: 2.3 | ACR1: 2.4 | ACS1: 2.5 | ACT1: 2.6 | ACU1: 2.7 | ACV1: 2.8 | ACW1: 2.9 | ACX1: 3 | ACY1: 3.1 | ACZ1: 3.2 | ADA1: 3.3 | ADB1: 3.4 | ADC1: 3.5 | ADD1: 3.6 | ADE1: 3.7 | ADF1: 3.8 | ADG1: 3.9 | ADH1: 4
A2: 1000 | C2: 1 | D2: 2 | E2: 3 | F2: 4 | G2: 5 | H2: 6 | I2: 7 | J2: 8 | K2: 9 | N2: 1 | O2: 1A | P2: 1B | Q2: 1C | R2: 1D | S2: 2 | T2: 2A | U2: 2B | V2: 2C | W2: 2D | X2: 3 | Y2: 3A | Z2: 3B | AA2: 3C | AB2: 3D | AC2: 4 | AD2: 4A | AE2: 4B | AF2: 4C | AG2: 4D | AH2: 5 | AI2: 5A | AJ2: 5B | AK2: 5C | AL2: 5D | AM2: 6 | AN2: 6A | AO2: 6B | AP2: 6C | AQ2: 6D | AR2: 7 | AS2: 7A | AT2: 7B | AU2: 7C | AV2: 7D | AW2: 8 | AX2: 8A | AY2: 8B | AZ2: 8C | BA2: 8D | BB2: 9 | BF2: 1 | BG2: 2 | BH2: 3 | BI2: 4 | BJ2: 5 | BK2: 6 | BL2: 7 | BM2: 8 | BN2: 9 | BO2: 10 | BP2: 11 | BQ2: 12 | BR2: 13 | BS2: 14 | BT2: 15 | BU2: 16 | BV2: 17 | BW2: 18 | BX2: 19 | BY2: 20 | BZ2: 21 | CA2: 22 | CB2: 23 | CC2: 24 | CD2: 25 | CE2: 26 | CF2: 27 | CG2: 28 | CH2: 29 | CI2: 30 | CJ2: 31 | CK2: 32 | CL2: 33 | CM2: 34 | CN2: 35 | CO2: 36 | CP2: 37 | CQ2: 38 | CR2: 39 | CS2: 40 | CT2: 41 | CY2: 1 | CZ2: 2 | DA2: 3 | DB2: 4 | DC2: 5 | DD2: 6 | DE2: 7 | DF2: 8 | DG2: 9 | DH2: 10 | DI2: 11 | DJ2: 12 | DK2: 13 | DL2: 14 | DM2: 15 | DN2: 16 | DO2: 17 | DP2: 18 | DQ2: 19 | DR2: 20 | DS2: 21 | DT2: 22 | DU2: 23 | DV2: 24 | DW2: 25 | DX2: 26 | DY2: 27 | DZ2: 28 | EA2: 29 | EB2: 30 | EC2: 31 | ED2: 32 | EE2: 33 | EF2: 34 | EG2: 35 | EH2: 36 | EI2: 37 | EJ2: 38 | EK2: 39 | EL2: 40 | EM2: 41 | ER2: 1 | ES2: 2 | ET2: 3 | EU2: 4 | EV2: 5 | EW2: 6 | EX2: 7 | EY2: 8 | EZ2: 9 | FA2: 10 | FB2: 11 | FC2: 12 | FD2: 13 | FE2: 14 | FF2: 15 | FG2: 16 | FH2: 17 | FI2: 18 | FJ2: 19 | FK2: 20 | FL2: 21 | FM2: 21 | FN2: 22 | FO2: 23 | FP2: 24 | FQ2: 25 | FR2: 26 | FS2: 27 | FT2: 28 | FU2: 29 | FV2: 30 | FW2: 31 | FX2: 32 | FY2: 33 | FZ2: 34 | GA2: 35 | GB2: 36 | GC2: 37 | GD2: 38 | GE2: 39 | GF2: 40 | GG2: 41 | GJ2: opěrných bodů | GK2: 3 | GM2: 1 | GN2: 2 | GO2: 3 | GP2: 4 | GQ2: 5 | GR2: 6 | GS2: 7 | GT2: 8 | GU2: 9 | GV2: 10 | GW2: 11 | GX2: 12 | GY2: 13 | GZ2: 14 | HA2: 15 | HB2: 16 | HC2: 17 | HD2: 18 | HE2: 19 | HF2: 20 | HG2: 21 | HH2: 21 | HI2: 22 | HJ2: 23 | HK2: 24 | HL2: 25 | HM2: 26 | HN2: 27 | HO2: 28 | HP2: 29 | HQ2: 30 | HR2: 31 | HS2: 32 | HT2: 33 | HU2: 34 | HV2: 35 | HW2: 36 | HX2: 37 | HY2: 38 | HZ2: 39 | IA2: 40 | IB2: 41 | IH2: =ER2 -> 1 | II2: 2 | IJ2: 3 | IK2: 4 | IL2: 5 | IM2: 6 | IN2: 7 | IO2: 8 | IP2: 9 | IQ2: 10 | IR2: 11 | IS2: 12 | IT2: 13 | IU2: 14 | IV2: 15 | IW2: 16 | IX2: 17 | IY2: 18 | IZ2: 19 | JA2: 20 | JB2: 21 | JC2: 21 | JD2: 22 | JE2: 23 | JF2: 24 | JG2: 25 | JH2: 26 | JI2: 27 | JJ2: 28 | JK2: 29 | JL2: 30 | JM2: 31 | JN2: 32 | JO2: 33 | JP2: 34 | JQ2: 35 | JR2: 36 | JS2: 37 | JT2: 38 | JU2: 39 | JV2: 40 | JW2: 41 | KF2: =IH2 -> 1 | KG2: =II2 -> 2 | KH2: 3 | KI2: 4 | KJ2: 5 | KK2: 6 | KL2: 7 | KM2: 8 | KN2: 9 | KO2: 10 | KP2: 11 | KQ2: 12 | KR2: 13 | KS2: 14 | KT2: 15 | KU2: 16 | KV2: 17 | KW2: 18 | KX2: 19 | KY2: 20 | KZ2: 21 | LA2: 21 | LB2: 22 | LC2: 23 | LD2: 24 | LE2: 25 | LF2: 26 | LG2: 27 | LH2: 28 | LI2: 29 | LJ2: 30 | LK2: 31 | LL2: 32 | LM2: 33 | LN2: 34 | LO2: 35 | LP2: 36 | LQ2: 37 | LR2: 38 | LS2: 39 | LT2: 40 | LU2: 41 | ME2: 1 | MF2: 2 | MG2: 3 | MH2: 4 | MI2: 5 | MJ2: 6 | MK2: 7 | ML2: 8 | MM2: 9 | MN2: 10 | MO2: 11 | MP2: 12 | MQ2: 13 | MR2: 14 | MS2: 15 | MT2: 16 | MU2: 17 | MV2: 18 | MW2: 19 | MX2: 20 | MY2: 21 | MZ2: 22 | NA2: 23 | NB2: 24 | NC2: 25 | ND2: 26 | NE2: 27 | NF2: 28 | NG2: 29 | NH2: 30 | NI2: 31 | NJ2: 32 | NK2: 33 | NL2: 34 | NM2: 35 | NN2: 36 | NO2: 37 | NP2: 38 | NQ2: 39 | NR2: 40 | NW2: 1 | NX2: 2 | NY2: 3 | NZ2: 4 | OA2: 5 | OB2: 6 | OC2: 7 | OD2: 8 | OE2: 9 | OF2: 10 | OG2: 11 | OH2: 12 | OI2: 13 | OJ2: 14 | OK2: 15 | OL2: 16 | OM2: 17 | ON2: 18 | OO2: 19 | OP2: 20 | OQ2: 21 | OR2: 22 | OS2: 23 | OT2: 24 | OU2: 25 | OV2: 26 | OW2: 27 | OX2: 28 | OY2: 29 | OZ2: 30 | PA2: 31 | PB2: 32 | PC2: 33 | PD2: 34 | PE2: 35 | PF2: 36 | PG2: 37 | PH2: 38 | PI2: 39 | PJ2: 40 | PO2: 1 | PP2: 2 | PQ2: 3 | PR2: 4 | PS2: 5 | PT2: 6 | PU2: 7 | PV2: 8 | PW2: 9 | PX2: 10 | PY2: 11 | PZ2: 12 | QA2: 13 | QB2: 14 | QC2: 15 | QD2: 16 | QE2: 17 | QF2: 18 | QG2: 19 | QH2: 20 | QI2: 21 | QJ2: 22 | QK2: 23 | QL2: 24 | QM2: 25 | QN2: 26 | QO2: 27 | QP2: 28 | QQ2: 29 | QR2: 30 | QS2: 31 | QT2: 32 | QU2: 33 | QV2: 34 | QW2: 35 | QX2: 36 | QY2: 37 | QZ2: 38 | RA2: 39 | RB2: 40 | RG2: 1 | RH2: 2 | RI2: 3 | RJ2: 4 | RK2: 5 | RL2: 6 | RM2: 7 | RN2: 8 | RO2: 9 | RP2: 10 | RQ2: 11 | RR2: 12 | RS2: 13 | RT2: 14 | RU2: 15 | RV2: 16 | RW2: 17 | RX2: 18 | RY2: 19 | RZ2: 20 | SA2: 21 | SB2: 22 | SC2: 23 | SD2: 24 | SE2: 25 | SF2: 26 | SG2: 27 | SH2: 28 | SI2: 29 | SJ2: 30 | SK2: 31 | SL2: 32 | SM2: 33 | SN2: 34 | SO2: 35 | SP2: 36 | SQ2: 37 | SR2: 38 | SS2: 39 | ST2: 40 | SU2: 41 | SZ2: 1 | TA2: 2 | TB2: 3 | TC2: 4 | TD2: 5 | TE2: 6 | TF2: 7 | TG2: 8 | TH2: 9 | TI2: 10 | TJ2: 11 | TK2: 12 | TL2: 13 | TM2: 14 | TN2: 15 | TO2: 16 | TP2: 17 | TQ2: 18 | TR2: 19 | TS2: 20 | TT2: 21 | TU2: 22 | TV2: 23 | TW2: 24 | TX2: 25 | TY2: 26 | TZ2: 27 | UA2: 28 | UB2: 29 | UC2: 30 | UD2: 31 | UE2: 32 | UF2: 33 | UG2: 34 | UH2: 35 | UI2: 36 | UJ2: 37 | UK2: 38 | UL2: 39 | UM2: 40 | UN2: 41 | US2: 1 | UT2: 2 | UU2: 3 | UV2: 4 | UW2: 5 | UX2: 6 | UY2: 7 | UZ2: 8 | VA2: 9 | VB2: 10 | VC2: 11 | VD2: 12 | VE2: 13 | VF2: 14 | VG2: 15 | VH2: 16 | VI2: 17 | VJ2: 18 | VK2: 19 | VL2: 20 | VM2: 21 | VN2: 22 | VO2: 23 | VP2: 24 | VQ2: 25 | VR2: 26 | VS2: 27 | VT2: 28 | VU2: 29 | VV2: 30 | VW2: 31 | VX2: 32 | VY2: 33 | VZ2: 34 | WA2: 35 | WB2: 36 | WC2: 37 | WD2: 38 | WE2: 39 | WF2: 40 | WG2: 41 | WL2: 1 | WM2: 2 | WN2: 3 | WO2: 4 | WP2: 5 | WQ2: 6 | WR2: 7 | WS2: 8 | WT2: 9 | WU2: 10 | WV2: 11 | WW2: 12 | WX2: 13 | WY2: 14 | WZ2: 15 | XA2: 16 | XB2: 17 | XC2: 18 | XD2: 19 | XE2: 20 | XF2: 21 | XG2: 22 | XH2: 23 | XI2: 24 | XJ2: 25 | XK2: 26 | XL2: 27 | XM2: 28 | XN2: 29 | XO2: 30 | XP2: 31 | XQ2: 32 | XR2: 33 | XS2: 34 | XT2: 35 | XU2: 36 | XV2: 37 | XW2: 38 | XX2: 39 | XY2: 40 | XZ2: 41 | YE2: 1 | YF2: 2 | YG2: 3 | YH2: 4 | YI2: 5 | YJ2: 6 | YK2: 7 | YL2: 8 | YM2: 9 | YN2: 10 | YO2: 11 | YP2: 12 | YQ2: 13 | YR2: 14 | YS2: 15 | YT2: 16 | YU2: 17 | YV2: 18 | YW2: 19 | YX2: 20 | YY2: 21 | YZ2: 21 | ZA2: 22 | ZB2: 23 | ZC2: 24 | ZD2: 25 | ZE2: 26 | ZF2: 27 | ZG2: 28 | ZH2: 29 | ZI2: 30 | ZJ2: 31 | ZK2: 32 | ZL2: 33 | ZM2: 34 | ZN2: 35 | ZO2: 36 | ZP2: 37 | ZQ2: 38 | ZR2: 39 | ZS2: 40 | ZT2: 41 | ZY2: 1 | ZZ2: 2 | AAA2: 3 | AAB2: 4 | AAC2: 5 | AAD2: 6 | AAE2: 7 | AAF2: 8 | AAG2: 9 | AAH2: 10 | AAI2: 11 | AAJ2: 12 | AAK2: 13 | AAL2: 14 | AAM2: 15 | AAN2: 16 | AAO2: 17 | AAP2: 18 | AAQ2: 19 | AAR2: 20 | AAS2: 21 | AAT2: 21 | AAU2: 22 | AAV2: 23 | AAW2: 24 | AAX2: 25 | AAY2: 26 | AAZ2: 27 | ABA2: 28 | ABB2: 29 | ABC2: 30 | ABD2: 31 | ABE2: 32 | ABF2: 33 | ABG2: 34 | ABH2: 35 | ABI2: 36 | ABJ2: 37 | ABK2: 38 | ABL2: 39 | ABM2: 40 | ABN2: 41 | ABS2: 1 | ABT2: 2 | ABU2: 3 | ABV2: 4 | ABW2: 5 | ABX2: 6 | ABY2: 7 | ABZ2: 8 | ACA2: 9 | ACB2: 10 | ACC2: 11 | ACD2: 12 | ACE2: 13 | ACF2: 14 | ACG2: 15 | ACH2: 16 | ACI2: 17 | ACJ2: 18 | ACK2: 19 | ACL2: 20 | ACM2: 21 | ACN2: 21 | ACO2: 22 | ACP2: 23 | ACQ2: 24 | ACR2: 25 | ACS2: 26 | ACT2: 27 | ACU2: 28 | ACV2: 29 | ACW2: 30 | ACX2: 31 | ACY2: 32 | ACZ2: 33 | ADA2: 34 | ADB2: 35 | ADC2: 36 | ADD2: 37 | ADE2: 38 | ADF2: 39 | ADG2: 40 | ADH2: 41
A3: 1 | B3: A | C3: 59 | D3: 64 | E3: 60 | F3: 65 | G3: 61 | H3: 63 | I3: 65 | J3: 71 | K3: 67 | M3: 1 | N3: =ROUND('3D Interpolace'!M4,2) -> 59 | O3: =ROUND('3D Interpolace'!N4,2) -> 60.72 | P3: =ROUND('3D Interpolace'!O4,2) -> 62.08 | Q3: =ROUND('3D Interpolace'!P4,2) -> 63.08 | R3: =ROUND('3D Interpolace'!Q4,2) -> 63.72 | S3: =ROUND('3D Interpolace'!R4,2) -> 64 | T3: =ROUND('3D Interpolace'!S4,2) -> 63.63 | U3: =ROUND('3D Interpolace'!T4,2) -> 62.62 | V3: =ROUND('3D Interpolace'!U4,2) -> 61.38 | W3: =ROUND('3D Interpolace'!V4,2) -> 60.37 | X3: =ROUND('3D Interpolace'!W4,2) -> 60 | Y3: =ROUND('3D Interpolace'!X4,2) -> 60.57 | Z3: =ROUND('3D Interpolace'!Y4,2) -> 61.78 | AA3: =ROUND('3D Interpolace'!Z4,2) -> 63.22 | AB3: =ROUND('3D Interpolace'!AA4,2) -> 64.43 | AC3: =ROUND('3D Interpolace'!AB4,2) -> 65 | AD3: =ROUND('3D Interpolace'!AC4,2) -> 64.68 | AE3: =ROUND('3D Interpolace'!AD4,2) -> 63.76 | AF3: =ROUND('3D Interpolace'!AE4,2) -> 62.6 | AG3: =ROUND('3D Interpolace'!AF4,2) -> 61.56 | AH3: =ROUND('3D Interpolace'!AG4,2) -> 61 | AI3: =ROUND('3D Interpolace'!AH4,2) -> 61.02 | AJ3: =ROUND('3D Interpolace'!AI4,2) -> 61.37 | AK3: =ROUND('3D Interpolace'!AJ4,2) -> 61.91 | AL3: =ROUND('3D Interpolace'!AK4,2) -> 62.5 | AM3: =ROUND('3D Interpolace'!AL4,2) -> 63 | AN3: =ROUND('3D Interpolace'!AM4,2) -> 63.34 | AO3: =ROUND('3D Interpolace'!AN4,2) -> 63.61 | AP3: =ROUND('3D Interpolace'!AO4,2) -> 63.91 | AQ3: =ROUND('3D Interpolace'!AP4,2) -> 64.34 | AR3: =ROUND('3D Interpolace'!AQ4,2) -> 65 | AS3: =ROUND('3D Interpolace'!AR4,2) -> 66.1 | AT3: =ROUND('3D Interpolace'!AS4,2) -> 67.59 | AU3: =ROUND('3D Interpolace'!AT4,2) -> 69.13 | AV3: =ROUND('3D Interpolace'!AU4,2) -> 70.38 | AW3: =ROUND('3D Interpolace'!AV4,2) -> 71 | AX3: =ROUND('3D Interpolace'!AW4,2) -> 71 | AY3: =ROUND('3D Interpolace'!AX4,2) -> 70.6 | AZ3: =ROUND('3D Interpolace'!AY4,2) -> 69.8 | BA3: =ROUND('3D Interpolace'!AZ4,2) -> 68.6 | BB3: =ROUND('3D Interpolace'!BA4,2) -> 67 | BD3: 0 | BE3: 1 | BK3: 4 | BL3: 4 | BT3: 4 | BU3: 4 | CC3: 4 | CD3: 4 | CL3: 4 | CM3: 4 | CU3: 0 | CW3: 0 | CX3: 1 | CY3: =N3+BF3 -> 59 | CZ3: 60.72 | DA3: 62.08 | DB3: 63.08 | DC3: 63.72 | DD3: 68 | DE3: =T3+BL3 -> 67.63 | DF3: =U3+BM3 -> 62.62 | DG3: =V3+BN3 -> 61.38 | DH3: 60.37 | DI3: 60 | DJ3: 60.57 | DK3: 61.78 | DL3: 63.22 | DM3: =AB3+BT3 -> 68.43 | DN3: =AC3+BU3 -> 69 | DO3: =AD3+BV3 -> 64.68 | DP3: 63.76 | DQ3: 62.6 | DR3: 61.56 | DS3: 61 | DT3: 61.02 | DU3: 61.37 | DV3: 65.91 | DW3: 66.5 | DX3: 63 | DY3: 63.34 | DZ3: 63.61 | EA3: 63.91 | EB3: 64.34 | EC3: 65 | ED3: 66.1 | EE3: 71.59 | EF3: 73.13 | EG3: 70.38 | EH3: 71 | EI3: 71 | EJ3: 70.6 | EK3: 69.8 | EL3: 68.6 | EM3: 67 | EN3: 0 | EP3: =IF(EQ3>0,EQ3/10-0.1,"") -> 0 | EQ3: 1 | ER3: =IF(ISNUMBER(INDEX(VstupniData,$EQ3,ER$2)),INDEX(VstupniData,$EQ3,ER$2),"") -> 59 | ES3: =IF(ISNUMBER(INDEX(VstupniData,$EQ3,ES$2)),INDEX(VstupniData,$EQ3,ES$2),"") -> 60.72 | ET3: 62.08 | EU3: 63.08 | EV3: 63.72 | EW3: 68 | EX3: 67.63 | EY3: 62.62 | EZ3: 61.38 | FA3: 60.37 | FB3: =IF(ISNUMBER(INDEX(VstupniData,$EQ3,FB$2)),INDEX(VstupniData,$EQ3,FB$2),"") -> 60 | FC3: 60.57 | FD3: 61.78 | FE3: 63.22 | FF3: 68.43 | FG3: 69 | FH3: 64.68 | FI3: 63.76 | FJ3: 62.6 | FK3: 61.56 | FL3: =IF(ISNUMBER(INDEX(VstupniData,$EQ3,FL$2)),INDEX(VstupniData,$EQ3,FL$2),"") -> 61 | FM3: 61 | FN3: 61.02 | FO3: 61.37 | FP3: 65.91 | FQ3: 66.5 | FR3: 63 | FS3: 63.34 | FT3: 63.61 | FU3: 63.91 | FV3: =IF(ISNUMBER(INDEX(VstupniData,$EQ3,FV$2)),INDEX(VstupniData,$EQ3,FV$2),"") -> 64.34 | FW3: 65 | FX3: 66.1 | FY3: 71.59 | FZ3: 73.13 | GA3: 70.38 | GB3: 71 | GC3: 71 | GD3: 70.6 | GE3: 69.8 | GF3: =IF(ISNUMBER(INDEX(VstupniData,$EQ3,GF$2)),INDEX(VstupniData,$EQ3,GF$2),"") -> 68.6 | GG3: 67 | GK3: 0 | GL3: 1 | GM3: =IF(OR(AND(INT(1000*GM$1/500)-1000*GM$1/500=0,INT(1000*$GK3/500)-1000*$GK3/500=0),ZY3>4),ER3,IF(AND(ZY3=4,OR(INT(1000*GM$1/500)-1000*GM$1/500=0,INT(1000*$GK3/500)-1000*$GK3/500=0)),ER3,0)) -> 59 | GN3: =IF(OR(AND(INT(1000*GN$1/500)-1000*GN$1/500=0,INT(1000*$GK3/500)-1000*$GK3/500=0),ZZ3>4),ES3,IF(AND(ZZ3=4,OR(INT(1000*GN$1/500)-1000*GN$1/500=0,INT(1000*$GK3/500)-1000*$GK3/500=0)),ES3,0)) -> 0 | GO3: =IF(OR(AND(INT(1000*GO$1/500)-1000*GO$1/500=0,INT(1000*$GK3/500)-1000*$GK3/500=0),AAA3>4),ET3,IF(AND(AAA3=4,OR(INT(1000*GO$1/500)-1000*GO$1/500=0,INT(1000*$GK3/500)-1000*$GK3/500=0)),ET3,0)) -> 0 | GP3: =IF(OR(AND(INT(1000*GP$1/500)-1000*GP$1/500=0,INT(1000*$GK3/500)-1000*$GK3/500=0),AAB3>4),EU3,IF(AND(AAB3=4,OR(INT(1000*GP$1/500)-1000*GP$1/500=0,INT(1000*$GK3/500)-1000*$GK3/500=0)),EU3,0)) -> 0 | GQ3: =IF(OR(AND(INT(1000*GQ$1/500)-1000*GQ$1/500=0,INT(1000*$GK3/500)-1000*$GK3/500=0),AAC3>4),EV3,IF(AND(AAC3=4,OR(INT(1000*GQ$1/500)-1000*GQ$1/500=0,INT(1000*$GK3/500)-1000*$GK3/500=0)),EV3,0)) -> 0 | GR3: =IF(OR(AND(INT(1000*GR$1/500)-1000*GR$1/500=0,INT(1000*$GK3/500)-1000*$GK3/500=0),AAD3>4),EW3,IF(AND(AAD3=4,OR(INT(1000*GR$1/500)-1000*GR$1/500=0,INT(1000*$GK3/500)-1000*$GK3/500=0)),EW3,0)) -> 68 | GS3: =IF(OR(AND(INT(1000*GS$1/500)-1000*GS$1/500=0,INT(1000*$GK3/500)-1000*$GK3/500=0),AAE3>4),EX3,IF(AND(AAE3=4,OR(INT(1000*GS$1/500)-1000*GS$1/500=0,INT(1000*$GK3/500)-1000*$GK3/500=0)),EX3,0)) -> 67.63 | GT3: =IF(OR(AND(INT(1000*GT$1/500)-1000*GT$1/500=0,INT(1000*$GK3/500)-1000*$GK3/500=0),AAF3>4),EY3,IF(AND(AAF3=4,OR(INT(1000*GT$1/500)-1000*GT$1/500=0,INT(1000*$GK3/500)-1000*$GK3/500=0)),EY3,0)) -> 0 | GU3: =IF(OR(AND(INT(1000*GU$1/500)-1000*GU$1/500=0,INT(1000*$GK3/500)-1000*$GK3/500=0),AAG3>4),EZ3,IF(AND(AAG3=4,OR(INT(1000*GU$1/500)-1000*GU$1/500=0,INT(1000*$GK3/500)-1000*$GK3/500=0)),EZ3,0)) -> 0 | GV3: =IF(OR(AND(INT(1000*GV$1/500)-1000*GV$1/500=0,INT(1000*$GK3/500)-1000*$GK3/500=0),AAH3>4),FA3,IF(AND(AAH3=4,OR(INT(1000*GV$1/500)-1000*GV$1/500=0,INT(1000*$GK3/500)-1000*$GK3/500=0)),FA3,0)) -> 0 | GW3: =IF(OR(AND(INT(1000*GW$1/500)-1000*GW$1/500=0,INT(1000*$GK3/500)-1000*$GK3/500=0),AAI3>4),FB3,IF(AND(AAI3=4,OR(INT(1000*GW$1/500)-1000*GW$1/500=0,INT(1000*$GK3/500)-1000*$GK3/500=0)),FB3,0)) -> 60 | GX3: =IF(OR(AND(INT(1000*GX$1/500)-1000*GX$1/500=0,INT(1000*$GK3/500)-1000*$GK3/500=0),AAJ3>4),FC3,IF(AND(AAJ3=4,OR(INT(1000*GX$1/500)-1000*GX$1/500=0,INT(1000*$GK3/500)-1000*$GK3/500=0)),FC3,0)) -> 0 | GY3: =IF(OR(AND(INT(1000*GY$1/500)-1000*GY$1/500=0,INT(1000*$GK3/500)-1000*$GK3/500=0),AAK3>4),FD3,IF(AND(AAK3=4,OR(INT(1000*GY$1/500)-1000*GY$1/500=0,INT(1000*$GK3/500)-1000*$GK3/500=0)),FD3,0)) -> 0 | GZ3: =IF(OR(AND(INT(1000*GZ$1/500)-1000*GZ$1/500=0,INT(1000*$GK3/500)-1000*$GK3/500=0),AAL3>4),FE3,IF(AND(AAL3=4,OR(INT(1000*GZ$1/500)-1000*GZ$1/500=0,INT(1000*$GK3/500)-1000*$GK3/500=0)),FE3,0)) -> 0 | HA3: =IF(OR(AND(INT(1000*HA$1/500)-1000*HA$1/500=0,INT(1000*$GK3/500)-1000*$GK3/500=0),AAM3>4),FF3,IF(AND(AAM3=4,OR(INT(1000*HA$1/500)-1000*HA$1/500=0,INT(1000*$GK3/500)-1000*$GK3/500=0)),FF3,0)) -> 68.43 | HB3: =IF(OR(AND(INT(1000*HB$1/500)-1000*HB$1/500=0,INT(1000*$GK3/500)-1000*$GK3/500=0),AAN3>4),FG3,IF(AND(AAN3=4,OR(INT(1000*HB$1/500)-1000*HB$1/500=0,INT(1000*$GK3/500)-1000*$GK3/500=0)),FG3,0)) -> 69 | HC3: =IF(OR(AND(INT(1000*HC$1/500)-1000*HC$1/500=0,INT(1000*$GK3/500)-1000*$GK3/500=0),AAO3>4),FH3,IF(AND(AAO3=4,OR(INT(1000*HC$1/500)-1000*HC$1/500=0,INT(1000*$GK3/500)-1000*$GK3/500=0)),FH3,0)) -> 0 | HD3: =IF(OR(AND(INT(1000*HD$1/500)-1000*HD$1/500=0,INT(1000*$GK3/500)-1000*$GK3/500=0),AAP3>4),FI3,IF(AND(AAP3=4,OR(INT(1000*HD$1/500)-1000*HD$1/500=0,INT(1000*$GK3/500)-1000*$GK3/500=0)),FI3,0)) -> 0 | HE3: =IF(OR(AND(INT(1000*HE$1/500)-1000*HE$1/500=0,INT(1000*$GK3/500)-1000*$GK3/500=0),AAQ3>4),FJ3,IF(AND(AAQ3=4,OR(INT(1000*HE$1/500)-1000*HE$1/500=0,INT(1000*$GK3/500)-1000*$GK3/500=0)),FJ3,0)) -> 0 | HF3: =IF(OR(AND(INT(1000*HF$1/500)-1000*HF$1/500=0,INT(1000*$GK3/500)-1000*$GK3/500=0),AAR3>4),FK3,IF(AND(AAR3=4,OR(INT(1000*HF$1/500)-1000*HF$1/500=0,INT(1000*$GK3/500)-1000*$GK3/500=0)),FK3,0)) -> 0 | HG3: =IF(OR(AND(INT(1000*HG$1/500)-1000*HG$1/500=0,INT(1000*$GK3/500)-1000*$GK3/500=0),AAS3>4),FL3,IF(AND(AAS3=4,OR(INT(1000*HG$1/500)-1000*HG$1/500=0,INT(1000*$GK3/500)-1000*$GK3/500=0)),FL3,0)) -> 61 | HH3: =IF(OR(AND(INT(1000*HH$1/500)-1000*HH$1/500=0,INT(1000*$GK3/500)-1000*$GK3/500=0),AAT3>4),FM3,IF(AND(AAT3=4,OR(INT(1000*HH$1/500)-1000*HH$1/500=0,INT(1000*$GK3/500)-1000*$GK3/500=0)),FM3,0)) -> 61 | HI3: =IF(OR(AND(INT(1000*HI$1/500)-1000*HI$1/500=0,INT(1000*$GK3/500)-1000*$GK3/500=0),AAU3>4),FN3,IF(AND(AAU3=4,OR(INT(1000*HI$1/500)-1000*HI$1/500=0,INT(1000*$GK3/500)-1000*$GK3/500=0)),FN3,0)) -> 0 | HJ3: =IF(OR(AND(INT(1000*HJ$1/500)-1000*HJ$1/500=0,INT(1000*$GK3/500)-1000*$GK3/500=0),AAV3>4),FO3,IF(AND(AAV3=4,OR(INT(1000*HJ$1/500)-1000*HJ$1/500=0,INT(1000*$GK3/500)-1000*$GK3/500=0)),FO3,0)) -> 0 | HK3: =IF(OR(AND(INT(1000*HK$1/500)-1000*HK$1/500=0,INT(1000*$GK3/500)-1000*$GK3/500=0),AAW3>4),FP3,IF(AND(AAW3=4,OR(INT(1000*HK$1/500)-1000*HK$1/500=0,INT(1000*$GK3/500)-1000*$GK3/500=0)),FP3,0)) -> 65.91 | HL3: =IF(OR(AND(INT(1000*HL$1/500)-1000*HL$1/500=0,INT(1000*$GK3/500)-1000*$GK3/500=0),AAX3>4),FQ3,IF(AND(AAX3=4,OR(INT(1000*HL$1/500)-1000*HL$1/500=0,INT(1000*$GK3/500)-1000*$GK3/500=0)),FQ3,0)) -> 66.5 | HM3: =IF(OR(AND(INT(1000*HM$1/500)-1000*HM$1/500=0,INT(1000*$GK3/500)-1000*$GK3/500=0),AAY3>4),FR3,IF(AND(AAY3=4,OR(INT(1000*HM$1/500)-1000*HM$1/500=0,INT(1000*$GK3/500)-1000*$GK3/500=0)),FR3,0)) -> 63 | HN3: =IF(OR(AND(INT(1000*HN$1/500)-1000*HN$1/500=0,INT(1000*$GK3/500)-1000*$GK3/500=0),AAZ3>4),FS3,IF(AND(AAZ3=4,OR(INT(1000*HN$1/500)-1000*HN$1/500=0,INT(1000*$GK3/500)-1000*$GK3/500=0)),FS3,0)) -> 0 | HO3: =IF(OR(AND(INT(1000*HO$1/500)-1000*HO$1/500=0,INT(1000*$GK3/500)-1000*$GK3/500=0),ABA3>4),FT3,IF(AND(ABA3=4,OR(INT(1000*HO$1/500)-1000*HO$1/500=0,INT(1000*$GK3/500)-1000*$GK3/500=0)),FT3,0)) -> 0 | HP3: =IF(OR(AND(INT(1000*HP$1/500)-1000*HP$1/500=0,INT(1000*$GK3/500)-1000*$GK3/500=0),ABB3>4),FU3,IF(AND(ABB3=4,OR(INT(1000*HP$1/500)-1000*HP$1/500=0,INT(1000*$GK3/500)-1000*$GK3/500=0)),FU3,0)) -> 0 | HQ3: =IF(OR(AND(INT(1000*HQ$1/500)-1000*HQ$1/500=0,INT(1000*$GK3/500)-1000*$GK3/500=0),ABC3>4),FV3,IF(AND(ABC3=4,OR(INT(1000*HQ$1/500)-1000*HQ$1/500=0,INT(1000*$GK3/500)-1000*$GK3/500=0)),FV3,0)) -> 0 | HR3: =IF(OR(AND(INT(1000*HR$1/500)-1000*HR$1/500=0,INT(1000*$GK3/500)-1000*$GK3/500=0),ABD3>4),FW3,IF(AND(ABD3=4,OR(INT(1000*HR$1/500)-1000*HR$1/500=0,INT(1000*$GK3/500)-1000*$GK3/500=0)),FW3,0)) -> 65 | HS3: =IF(OR(AND(INT(1000*HS$1/500)-1000*HS$1/500=0,INT(1000*$GK3/500)-1000*$GK3/500=0),ABE3>4),FX3,IF(AND(ABE3=4,OR(INT(1000*HS$1/500)-1000*HS$1/500=0,INT(1000*$GK3/500)-1000*$GK3/500=0)),FX3,0)) -> 0 | HT3: =IF(OR(AND(INT(1000*HT$1/500)-1000*HT$1/500=0,INT(1000*$GK3/500)-1000*$GK3/500=0),ABF3>4),FY3,IF(AND(ABF3=4,OR(INT(1000*HT$1/500)-1000*HT$1/500=0,INT(1000*$GK3/500)-1000*$GK3/500=0)),FY3,0)) -> 71.59 | HU3: =IF(OR(AND(INT(1000*HU$1/500)-1000*HU$1/500=0,INT(1000*$GK3/500)-1000*$GK3/500=0),ABG3>4),FZ3,IF(AND(ABG3=4,OR(INT(1000*HU$1/500)-1000*HU$1/500=0,INT(1000*$GK3/500)-1000*$GK3/500=0)),FZ3,0)) -> 73.13 | HV3: =IF(OR(AND(INT(1000*HV$1/500)-1000*HV$1/500=0,INT(1000*$GK3/500)-1000*$GK3/500=0),ABH3>4),GA3,IF(AND(ABH3=4,OR(INT(1000*HV$1/500)-1000*HV$1/500=0,INT(1000*$GK3/500)-1000*$GK3/500=0)),GA3,0)) -> 0 | HW3: =IF(OR(AND(INT(1000*HW$1/500)-1000*HW$1/500=0,INT(1000*$GK3/500)-1000*$GK3/500=0),ABI3>4),GB3,IF(AND(ABI3=4,OR(INT(1000*HW$1/500)-1000*HW$1/500=0,INT(1000*$GK3/500)-1000*$GK3/500=0)),GB3,0)) -> 71 | HX3: =IF(OR(AND(INT(1000*HX$1/500)-1000*HX$1/500=0,INT(1000*$GK3/500)-1000*$GK3/500=0),ABJ3>4),GC3,IF(AND(ABJ3=4,OR(INT(1000*HX$1/500)-1000*HX$1/500=0,INT(1000*$GK3/500)-1000*$GK3/500=0)),GC3,0)) -> 0 | HY3: =IF(OR(AND(INT(1000*HY$1/500)-1000*HY$1/500=0,INT(1000*$GK3/500)-1000*$GK3/500=0),ABK3>4),GD3,IF(AND(ABK3=4,OR(INT(1000*HY$1/500)-1000*HY$1/500=0,INT(1000*$GK3/500)-1000*$GK3/500=0)),GD3,0)) -> 0 | HZ3: =IF(OR(AND(INT(1000*HZ$1/500)-1000*HZ$1/500=0,INT(1000*$GK3/500)-1000*$GK3/500=0),ABL3>4),GE3,IF(AND(ABL3=4,OR(INT(1000*HZ$1/500)-1000*HZ$1/500=0,INT(1000*$GK3/500)-1000*$GK3/500=0)),GE3,0)) -> 0 | IA3: =IF(OR(AND(INT(1000*IA$1/500)-1000*IA$1/500=0,INT(1000*$GK3/500)-1000*$GK3/500=0),ABM3>4),GF3,IF(AND(ABM3=4,OR(INT(1000*IA$1/500)-1000*IA$1/500=0,INT(1000*$GK3/500)-1000*$GK3/500=0)),GF3,0)) -> 0 | IB3: =IF(OR(AND(INT(1000*IB$1/500)-1000*IB$1/500=0,INT(1000*$GK3/500)-1000*$GK3/500=0),ABN3>4),GG3,IF(AND(ABN3=4,OR(INT(1000*IB$1/500)-1000*IB$1/500=0,INT(1000*$GK3/500)-1000*$GK3/500=0)),GG3,0)) -> 67 | IC3: 0 | IG3: 1 | IH3: 67.5 | II3: 67.6 | IJ3: 67.7 | IK3: 67.8 | IL3: 67.9 | IM3: 68 | IN3: 68.1 | IO3: 68.2 | IP3: 68.3 | IQ3: 68.4 | IR3: 68.5 | IS3: 68.6 | IT3: 68.7 | IU3: 68.8 | IV3: 68.9 | IW3: 69 | IX3: 69.1 | IY3: 69.2 | IZ3: 69.3 | JA3: 69.4 | JB3: 69.5 | JC3: 63.9 | JD3: 64.6 | JE3: 65.3 | JF3: 66 | JG3: 66.7 | JH3: 67.4 | JI3: 68.1 | JJ3: 68.8 | JK3: 69.5 | JL3: 70.2 | JM3: 70.9 | JN3: 71.6 | JO3: 72.3 | JP3: 73 | JQ3: 73.7 | JR3: 74.4 | JS3: 75.1 | JT3: 75.8 | JU3: 76.5 | JV3: 77.2 | JW3: 77.9 | JX3: 0 | KD3: 0 | KE3: 1 | KF3: =IF(IH3-ER3>0.001,IH3-ER3,IF(IH3-ER3>-0.001,0,IH3-ER3)) -> 8.5 | KG3: =IF(II3-ES3>0.001,II3-ES3,IF(II3-ES3>-0.001,0,II3-ES3)) -> 6.88 | KH3: =IF(IJ3-ET3>0.001,IJ3-ET3,IF(IJ3-ET3>-0.001,0,IJ3-ET3)) -> 5.62 | KI3: =IF(IK3-EU3>0.001,IK3-EU3,IF(IK3-EU3>-0.001,0,IK3-EU3)) -> 4.72 | KJ3: =IF(IL3-EV3>0.001,IL3-EV3,IF(IL3-EV3>-0.001,0,IL3-EV3)) -> 4.18 | KK3: =IF(IM3-EW3>0.001,IM3-EW3,IF(IM3-EW3>-0.001,0,IM3-EW3)) -> 0 | KL3: =IF(IN3-EX3>0.001,IN3-EX3,IF(IN3-EX3>-0.001,0,IN3-EX3)) -> 0.47 | KM3: =IF(IO3-EY3>0.001,IO3-EY3,IF(IO3-EY3>-0.001,0,IO3-EY3)) -> 5.58 | KN3: =IF(IP3-EZ3>0.001,IP3-EZ3,IF(IP3-EZ3>-0.001,0,IP3-EZ3)) -> 6.92 | KO3: =IF(IQ3-FA3>0.001,IQ3-FA3,IF(IQ3-FA3>-0.001,0,IQ3-FA3)) -> 8.03 | KP3: =IF(IR3-FB3>0.001,IR3-FB3,IF(IR3-FB3>-0.001,0,IR3-FB3)) -> 8.5 | KQ3: =IF(IS3-FC3>0.001,IS3-FC3,IF(IS3-FC3>-0.001,0,IS3-FC3)) -> 8.03 | KR3: =IF(IT3-FD3>0.001,IT3-FD3,IF(IT3-FD3>-0.001,0,IT3-FD3)) -> 6.92 | KS3: =IF(IU3-FE3>0.001,IU3-FE3,IF(IU3-FE3>-0.001,0,IU3-FE3)) -> 5.58 | KT3: =IF(IV3-FF3>0.001,IV3-FF3,IF(IV3-FF3>-0.001,0,IV3-FF3)) -> 0.47 | KU3: =IF(IW3-FG3>0.001,IW3-FG3,IF(IW3-FG3>-0.001,0,IW3-FG3)) -> 0 | KV3: =IF(IX3-FH3>0.001,IX3-FH3,IF(IX3-FH3>-0.001,0,IX3-FH3)) -> 4.42 | KW3: =IF(IY3-FI3>0.001,IY3-FI3,IF(IY3-FI3>-0.001,0,IY3-FI3)) -> 5.44 | KX3: =IF(IZ3-FJ3>0.001,IZ3-FJ3,IF(IZ3-FJ3>-0.001,0,IZ3-FJ3)) -> 6.7 | KY3: =IF(JA3-FK3>0.001,JA3-FK3,IF(JA3-FK3>-0.001,0,JA3-FK3)) -> 7.84 | KZ3: =IF(JB3-FL3>0.001,JB3-FL3,IF(JB3-FL3>-0.001,0,JB3-FL3)) -> 8.5 | LA3: =IF(JC3-FM3>0.001,JC3-FM3,IF(JC3-FM3>-0.001,0,JC3-FM3)) -> 2.9 | LB3: =IF(JD3-FN3>0.001,JD3-FN3,IF(JD3-FN3>-0.001,0,JD3-FN3)) -> 3.58 | LC3: =IF(JE3-FO3>0.001,JE3-FO3,IF(JE3-FO3>-0.001,0,JE3-FO3)) -> 3.93 | LD3: =IF(JF3-FP3>0.001,JF3-FP3,IF(JF3-FP3>-0.001,0,JF3-FP3)) -> 0.09 | LE3: =IF(JG3-FQ3>0.001,JG3-FQ3,IF(JG3-FQ3>-0.001,0,JG3-FQ3)) -> 0.2 | LF3: =IF(JH3-FR3>0.001,JH3-FR3,IF(JH3-FR3>-0.001,0,JH3-FR3)) -> 4.4 | LG3: =IF(JI3-FS3>0.001,JI3-FS3,IF(JI3-FS3>-0.001,0,JI3-FS3)) -> 4.76 | LH3: =IF(JJ3-FT3>0.001,JJ3-FT3,IF(JJ3-FT3>-0.001,0,JJ3-FT3)) -> 5.19 | LI3: =IF(JK3-FU3>0.001,JK3-FU3,IF(JK3-FU3>-0.001,0,JK3-FU3)) -> 5.59 | LJ3: =IF(JL3-FV3>0.001,JL3-FV3,IF(JL3-FV3>-0.001,0,JL3-FV3)) -> 5.86 | LK3: =IF(JM3-FW3>0.001,JM3-FW3,IF(JM3-FW3>-0.001,0,JM3-FW3)) -> 5.9 | LL3: =IF(JN3-FX3>0.001,JN3-FX3,IF(JN3-FX3>-0.001,0,JN3-FX3)) -> 5.5 | LM3: =IF(JO3-FY3>0.001,JO3-FY3,IF(JO3-FY3>-0.001,0,JO3-FY3)) -> 0.71 | LN3: =IF(JP3-FZ3>0.001,JP3-FZ3,IF(JP3-FZ3>-0.001,0,JP3-FZ3)) -> -0.13 | LO3: =IF(JQ3-GA3>0.001,JQ3-GA3,IF(JQ3-GA3>-0.001,0,JQ3-GA3)) -> 3.32 | LP3: =IF(JR3-GB3>0.001,JR3-GB3,IF(JR3-GB3>-0.001,0,JR3-GB3)) -> 3.4 | LQ3: =IF(JS3-GC3>0.001,JS3-GC3,IF(JS3-GC3>-0.001,0,JS3-GC3)) -> 4.1 | LR3: =IF(JT3-GD3>0.001,JT3-GD3,IF(JT3-GD3>-0.001,0,JT3-GD3)) -> 5.2 | LS3: =IF(JU3-GE3>0.001,JU3-GE3,IF(JU3-GE3>-0.001,0,JU3-GE3)) -> 6.7 | LT3: =IF(JV3-GF3>0.001,JV3-GF3,IF(JV3-GF3>-0.001,0,JV3-GF3)) -> 8.6 | LU3: =IF(JW3-GG3>0.001,JW3-GG3,IF(JW3-GG3>-0.001,0,JW3-GG3)) -> 10.9 | MC3: =IF(MD3>0,MD3/10-0.1,"") -> 0 | MD3: 1 | ME3: =AVERAGE(KF3:KG4) -> 8.6925 | MF3: =AVERAGE(KG3:KH4) -> 7.255 | MG3: 6.13 | MH3: 5.3175 | MI3: 2.82 | MJ3: 0.7475 | MK3: 3.2075 | ML3: 6.04 | MM3: 6.91 | MN3: 7.48 | MO3: 7.48 | MP3: 6.91 | MQ3: 6.0425 | MR3: 3.2075 | MS3: 0.735 | MT3: 2.8925 | MU3: 5.675 | MV3: 6.815 | MW3: 7.995 | MX3: 8.9025 | MY3: =AVERAGE(LA3:LB4) -> 4.095 | MZ3: =AVERAGE(LB3:LC4) -> 4.74 | NA3: =AVERAGE(LC3:LD4) -> 3.15 | NB3: =AVERAGE(LD3:LE4) -> 1.4275 | NC3: =AVERAGE(LE3:LF4) -> 3.6725 | ND3: =AVERAGE(LF3:LG4) -> 5.955 | NE3: =AVERAGE(LG3:LH4) -> 6.255 | NF3: =AVERAGE(LH3:LI4) -> 6.5175 | NG3: =AVERAGE(LI3:LJ4) -> 6.7025 | NH3: =AVERAGE(LJ3:LK4) -> 6.765 | NI3: =AVERAGE(LK3:LL4) -> 6.6075 | NJ3: =AVERAGE(LL3:LM4) -> 4.165 | NK3: =AVERAGE(LM3:LN4) -> 1.5675 | NL3: =AVERAGE(LN3:LO4) -> 3.055 | NM3: =AVERAGE(LO3:LP4) -> 4.865 | NN3: =AVERAGE(LP3:LQ4) -> 5.115 | NO3: =AVERAGE(LQ3:LR4) -> 5.7275 | NP3: =AVERAGE(LR3:LS4) -> 6.6225 | NQ3: =AVERAGE(LS3:LT4) -> 7.8 | NR3: =AVERAGE(LT3:LU4) -> 9.26 | NU3: =IF(NV3>0,NV3/10-0.1,"") -> 0 | NV3: 1 | NW3: =IF(ME3<$C$34,$D$34,IF(ME3<$C$35,$D$35,IF(ME3<$C$36,$D$36,IF(ME3<$C$37,$D$37,IF(ME3<$C$38,$D$38,IF(ME3<$C$39,$D$39,IF(ME3<$C$40,$D$40,IF(ME3<$C$41,$D$41,0)))))))) -> 11.33 | NX3: =IF(MF3<$C$34,$D$34,IF(MF3<$C$35,$D$35,IF(MF3<$C$36,$D$36,IF(MF3<$C$37,$D$37,IF(MF3<$C$38,$D$38,IF(MF3<$C$39,$D$39,IF(MF3<$C$40,$D$40,IF(MF3<$C$41,$D$41,0)))))))) -> 11.98 | NY3: 11.98 | NZ3: 15.63 | OA3: 23.66 | OB3: 31.64 | OC3: 23.66 | OD3: 11.98 | OE3: 11.98 | OF3: 11.98 | OG3: 11.98 | OH3: 11.98 | OI3: 11.98 | OJ3: 23.66 | OK3: 31.64 | OL3: 23.66 | OM3: 15.63 | ON3: 11.98 | OO3: 11.98 | OP3: 11.33 | OQ3: 15.63 | OR3: 15.63 | OS3: 23.66 | OT3: 31.64 | OU3: 23.66 | OV3: 15.63 | OW3: 11.98 | OX3: 11.98 | OY3: 11.98 | OZ3: 11.98 | PA3: 11.98 | PB3: 15.63 | PC3: 31.64 | PD3: 23.66 | PE3: 15.63 | PF3: 15.63 | PG3: 15.63 | PH3: 11.98 | PI3: 11.98 | PJ3: 11.33 | PM3: =IF(PN3>0,PN3/10-0.1,"") -> 0 | PN3: 1 | PO3: =NW3-NW227 -> -20.31 | PP3: =NX3-NX227 -> -19.66 | PQ3: -19.66 | PR3: -8.03 | PS3: -7.98 | PT3: 0 | PU3: 8.03 | PV3: 4.08 | PW3: 5.88 | PX3: 7.27 | PY3: 7.27 | PZ3: 5.88 | QA3: 0.65 | QB3: 8.03 | QC3: 0 | QD3: -7.98 | QE3: -8.03 | QF3: -11.68 | QG3: -19.66 | QH3: -20.31 | QI3: 0 | QJ3: 0 | QK3: 0 | QL3: 0 | QM3: 0 | QN3: -8.03 | QO3: -11.68 | QP3: -11.68 | QQ3: -11.68 | QR3: -11.68 | QS3: -3.65 | QT3: -8.03 | QU3: 0 | QV3: 0 | QW3: 0 | QX3: 0 | QY3: 0 | QZ3: 0 | RA3: 0 | RB3: 0 | RE3: 0 | RF3: 1 | RG3: =IF(CY3=MAX(CY3:CZ4),CY3,0) -> 0 | RH3: =IF(CZ3=MAX(CY3:DA4),CZ3,0) -> 0 | RI3: 0 | RJ3: 0 | RK3: 0 | RL3: 68 | RM3: 0 | RN3: 0 | RO3: 0 | RP3: 0 | RQ3: 0 | RR3: 0 | RS3: 0 | RT3: 0 | RU3: 0 | RV3: 69 | RW3: 0 | RX3: 0 | RY3: 0 | RZ3: 0 | SA3: 0 | SB3: 0 | SC3: 0 | SD3: 0 | SE3: 66.5 | SF3: 0 | SG3: 0 | SH3: 0 | SI3: 0 | SJ3: 0 | SK3: 0 | SL3: 0 | SM3: 0 | SN3: 73.13 | SO3: 0 | SP3: 71 | SQ3: 71 | SR3: 0 | SS3: 0 | ST3: 0 | SU3: =IF(EM3=MAX(EL3:EM4),EM3,0) -> 0 | SV3: 0 | SX3: 0 | SY3: 1 | SZ3: =IF(AND(B18=2000,B19=1000),COUNTIF(RG3:SA13,">0"),IF(AND(B18=1000,B19=500),COUNTIF(RG3:RQ8,">0"),"Error")) -> 4 | TA3: =SZ3 -> 4 | TB3: 4 | TC3: 4 | TD3: 4 | TE3: 4 | TF3: 4 | TG3: 4 | TH3: 4 | TI3: 4 | TJ3: =IF(FB3=MAX(FA3:FC4),FB3,0) -> 0 | TK3: 0 | TL3: 0 | TM3: 0 | TN3: 0 | TO3: 69 | TP3: 0 | TQ3: 0 | TR3: 0 | TS3: 0 | TT3: 0 | TU3: 0 | TV3: 0 | TW3: 0 | TX3: 0 | TY3: 66.5 | TZ3: 0 | UA3: 0 | UB3: 0 | UC3: 0 | UD3: 0 | UE3: 0 | UF3: 0 | UG3: 0 | UH3: 73.13 | UI3: 0 | UJ3: 71 | UK3: 71 | UL3: 0 | UM3: 0 | UN3: =IF(GF3=MAX(GE3:GF4),GF3,0) -> 0 | UO3: 0 | UQ3: 0 | UR3: 1 | US3: 1 | UT3: 1 | UU3: 1 | UV3: 1 | UW3: 1 | UX3: 1 | UY3: 1 | UZ3: 1 | VA3: 1 | VB3: 1 | VC3: 1 | VD3: 1 | VE3: 1 | VF3: 1 | VG3: 1 | VH3: 1 | VI3: 1 | VJ3: 1 | VK3: 1 | VL3: 1 | VM3: 1 | VN3: 1 | VO3: 1 | VP3: 1 | VQ3: 1 | VR3: 1 | VS3: 1 | VT3: 1 | VU3: 1 | VV3: 1 | VW3: 1 | VX3: 1 | VY3: 1 | VZ3: 1 | WA3: 1 | WB3: 1 | WC3: 1 | WD3: 1 | WE3: 1 | WF3: 1 | WG3: 1 | WH3: 0 | WJ3: 0 | WK3: 1 | WL3: =IF(RG3>0,RG3,US3*CY3) -> 59 | WM3: =IF(RH3>0,RH3,UT3*CZ3) -> 60.72 | WN3: =IF(RI3>0,RI3,UU3*DA3) -> 62.08 | WO3: =IF(RJ3>0,RJ3,UV3*DB3) -> 63.08 | WP3: =IF(RK3>0,RK3,UW3*DC3) -> 63.72 | WQ3: =IF(RL3>0,RL3,UX3*DD3) -> 68 | WR3: =IF(RM3>0,RM3,UY3*DE3) -> 67.63 | WS3: =IF(RN3>0,RN3,UZ3*DF3) -> 62.62 | WT3: =IF(RO3>0,RO3,VA3*DG3) -> 61.38 | WU3: =IF(RP3>0,RP3,VB3*DH3) -> 60.37 | WV3: =IF(RQ3>0,RQ3,VC3*DI3) -> 60 | WW3: =IF(RR3>0,RR3,VD3*DJ3) -> 60.57 | WX3: =IF(RS3>0,RS3,VE3*DK3) -> 61.78 | WY3: =IF(RT3>0,RT3,VF3*DL3) -> 63.22 | WZ3: =IF(RU3>0,RU3,VG3*DM3) -> 68.43 | XA3: =IF(RV3>0,RV3,VH3*DN3) -> 69 | XB3: =IF(RW3>0,RW3,VI3*DO3) -> 64.68 | XC3: =IF(RX3>0,RX3,VJ3*DP3) -> 63.76 | XD3: =IF(RY3>0,RY3,VK3*DQ3) -> 62.6 | XE3: =IF(RZ3>0,RZ3,VL3*DR3) -> 61.56 | XF3: =IF(SA3>0,SA3,VM3*DS3) -> 61 | XG3: =IF(SB3>0,SB3,VN3*DT3) -> 61.02 | XH3: =IF(SC3>0,SC3,VO3*DU3) -> 61.37 | XI3: =IF(SD3>0,SD3,VP3*DV3) -> 65.91 | XJ3: =IF(SE3>0,SE3,VQ3*DW3) -> 66.5 | XK3: =IF(SF3>0,SF3,VR3*DX3) -> 63 | XL3: =IF(SG3>0,SG3,VS3*DY3) -> 63.34 | XM3: =IF(SH3>0,SH3,VT3*DZ3) -> 63.61 | XN3: =IF(SI3>0,SI3,VU3*EA3) -> 63.91 | XO3: =IF(SJ3>0,SJ3,VV3*EB3) -> 64.34 | XP3: =IF(SK3>0,SK3,VW3*EC3) -> 65 | XQ3: =IF(SL3>0,SL3,VX3*ED3) -> 66.1 | XR3: =IF(SM3>0,SM3,VY3*EE3) -> 71.59 | XS3: =IF(SN3>0,SN3,VZ3*EF3) -> 73.13 | XT3: =IF(SO3>0,SO3,WA3*EG3) -> 70.38 | XU3: =IF(SP3>0,SP3,WB3*EH3) -> 71 | XV3: =IF(SQ3>0,SQ3,WC3*EI3) -> 71 | XW3: =IF(SR3>0,SR3,WD3*EJ3) -> 70.6 | XX3: =IF(SS3>0,SS3,WE3*EK3) -> 69.8 | XY3: =IF(ST3>0,ST3,WF3*EL3) -> 68.6 | XZ3: =IF(SU3>0,SU3,WG3*EM3) -> 67 | YA3: 0 | YC3: 0 | YD3: 1 | YE3: =COUNTIF(RG3:SA13,">0") -> 4 | YF3: =YE3 -> 4 | YG3: =YF3 -> 4 | YH3: 4 | YI3: 4 | YJ3: 4 | YK3: 4 | YL3: 4 | YM3: 4 | YN3: 4 | YO3: 4 | YP3: 4 | YQ3: 4 | YR3: 4 | YS3: 4 | YT3: 4 | YU3: 4 | YV3: 4 | YW3: 4 | YX3: 4 | YY3: =YX3 -> 4 | YZ3: =COUNTIF(SA3:SU13,">0") -> 5 | ZA3: =YZ3 -> 5 | ZB3: =ZA3 -> 5 | ZC3: 5 | ZD3: 5 | ZE3: 5 | ZF3: 5 | ZG3: 5 | ZH3: 5 | ZI3: 5 | ZJ3: 5 | ZK3: 5 | ZL3: 5 | ZM3: 5 | ZN3: 5 | ZO3: 5 | ZP3: 5 | ZQ3: 5 | ZR3: 5 | ZS3: 5 | ZT3: =ZS3 -> 5 | ZU3: 0 | ZW3: 0 | ZX3: 1 | ZY3: =IF(ISNUMBER(INDEX(Asfalt,$ZX3,ZY$2)),INDEX(Asfalt,$ZX3,ZY$2),0) -> 0 | ZZ3: =IF(ISNUMBER(INDEX(Asfalt,$ZX3,ZZ$2)),INDEX(Asfalt,$ZX3,ZZ$2),0) -> 0 | AAA3: 0 | AAB3: 0 | AAC3: 0 | AAD3: 4 | AAE3: 4 | AAF3: 0 | AAG3: 0 | AAH3: 0 | AAI3: =IF(ISNUMBER(INDEX(Asfalt,$ZX3,AAI$2)),INDEX(Asfalt,$ZX3,AAI$2),0) -> 0 | AAJ3: 0 | AAK3: 0 | AAL3: 0 | AAM3: 4 | AAN3: 4 | AAO3: 0 | AAP3: 0 | AAQ3: 0 | AAR3: 0 | AAS3: =IF(ISNUMBER(INDEX(Asfalt,$ZX3,AAS$2)),INDEX(Asfalt,$ZX3,AAS$2),0) -> 0 | AAT3: 0 | AAU3: 0 | AAV3: 0 | AAW3: 4 | AAX3: 4 | AAY3: 0 | AAZ3: 0 | ABA3: 0 | ABB3: 0 | ABC3: =IF(ISNUMBER(INDEX(Asfalt,$ZX3,ABC$2)),INDEX(Asfalt,$ZX3,ABC$2),0) -> 0 | ABD3: 0 | ABE3: 0 | ABF3: 4 | ABG3: 4 | ABH3: 0 | ABI3: 0 | ABJ3: 0 | ABK3: 0 | ABL3: 0 | ABM3: 0 | ABN3: 0 | ABO3: 0 | ABQ3: 0 | ABR3: 1 | ABS3: =IF(BF3>1,N3,IF(AND(INT(1000*ABS$1/500)-1000*ABS$1/500=0,INT(1000*$UQ3/500)-1000*$UQ3/500=0),1,0)) -> 1 | ABT3: =IF(AND(INT(1000*ABT$1/500)-1000*ABT$1/500=0,INT(1000*$UQ3/500)-1000*$UQ3/500=0),1,0) -> 0 | ABU3: 0 | ABV3: 0 | ABW3: 0 | ABX3: 1 | ABY3: 0 | ABZ3: 0 | ACA3: 0 | ACB3: 0 | ACC3: 1 | ACD3: 0 | ACE3: 0 | ACF3: 0 | ACG3: 0 | ACH3: 1 | ACI3: 0 | ACJ3: 0 | ACK3: 0 | ACL3: 0 | ACM3: 1 | ACN3: =COUNTIF(VO3:WI13,">0") -> 57 | ACO3: =ACN3 -> 57 | ACP3: =ACO3 -> 57 | ACQ3: 57 | ACR3: 57 | ACS3: 57 | ACT3: 57 | ACU3: 57 | ACV3: 57 | ACW3: 57 | ACX3: 57 | ACY3: 57 | ACZ3: 57 | ADA3: 57 | ADB3: 57 | ADC3: 57 | ADD3: 57 | ADE3: 57 | ADF3: 57 | ADG3: 57 | ADH3: =ADG3 -> 57 | ADI3: 0
A4: 2 | B4: B | C4: 52 | D4: 58 | E4: 63 | F4: 62 | G4: 58 | H4: 56 | I4: 61 | J4: 62 | K4: 72 | M4: 1A | N4: =ROUND('3D Interpolace'!M5,2) -> 57.12 | O4: =ROUND('3D Interpolace'!N5,2) -> 58.79 | P4: =ROUND('3D Interpolace'!O5,2) -> 60.19 | Q4: =ROUND('3D Interpolace'!P5,2) -> 61.33 | R4: =ROUND('3D Interpolace'!Q5,2) -> 62.2 | S4: =ROUND('3D Interpolace'!R5,2) -> 62.8 | T4: =ROUND('3D Interpolace'!S5,2) -> 62.98 | U4: =ROUND('3D Interpolace'!T5,2) -> 62.74 | V4: =ROUND('3D Interpolace'!U5,2) -> 62.3 | W4: =ROUND('3D Interpolace'!V5,2) -> 61.91 | X4: =ROUND('3D Interpolace'!W5,2) -> 61.8 | Y4: =ROUND('3D Interpolace'!X5,2) -> 62.11 | Z4: =ROUND('3D Interpolace'!Y5,2) -> 62.7 | AA4: =ROUND('3D Interpolace'!Z5,2) -> 63.33 | AB4: =ROUND('3D Interpolace'!AA5,2) -> 63.79 | AC4: =ROUND('3D Interpolace'!AB5,2) -> 63.84 | AD4: =ROUND('3D Interpolace'!AC5,2) -> 63.31 | AE4: =ROUND('3D Interpolace'!AD5,2) -> 62.35 | AF4: =ROUND('3D Interpolace'!AE5,2) -> 61.23 | AG4: =ROUND('3D Interpolace'!AF5,2) -> 60.23 | AH4: =ROUND('3D Interpolace'!AG5,2) -> 59.6 | AI4: =ROUND('3D Interpolace'!AH5,2) -> 59.4 | AJ4: =ROUND('3D Interpolace'!AI5,2) -> 59.45 | AK4: =ROUND('3D Interpolace'!AJ5,2) -> 59.67 | AL4: =ROUND('3D Interpolace'!AK5,2) -> 60.01 | AM4: =ROUND('3D Interpolace'!AL5,2) -> 60.4 | AN4: =ROUND('3D Interpolace'!AM5,2) -> 60.84 | AO4: =ROUND('3D Interpolace'!AN5,2) -> 61.39 | AP4: =ROUND('3D Interpolace'!AO5,2) -> 62.02 | AQ4: =ROUND('3D Interpolace'!AP5,2) -> 62.72 | AR4: =ROUND('3D Interpolace'!AQ5,2) -> 63.48 | AS4: =ROUND('3D Interpolace'!AR5,2) -> 64.39 | AT4: =ROUND('3D Interpolace'!AS5,2) -> 65.46 | AU4: =ROUND('3D Interpolace'!AT5,2) -> 66.55 | AV4: =ROUND('3D Interpolace'!AU5,2) -> 67.52 | AW4: =ROUND('3D Interpolace'!AV5,2) -> 68.24 | AX4: =ROUND('3D Interpolace'!AW5,2) -> 68.7 | AY4: =ROUND('3D Interpolace'!AX5,2) -> 68.99 | AZ4: =ROUND('3D Interpolace'!AY5,2) -> 69.12 | BA4: =ROUND('3D Interpolace'!AZ5,2) -> 69.08 | BB4: =ROUND('3D Interpolace'!BA5,2) -> 68.88 | BD4: 0.1 | BE4: 2 | BK4: 4 | BL4: 4 | BT4: 4 | BU4: 4 | CC4: 4 | CD4: 4 | CL4: 4 | CM4: 4 | CU4: 0.1 | CW4: 0.1 | CX4: 2 | CY4: =N4+BF4 -> 57.12 | CZ4: =O4+BG4 -> 58.79 | DA4: =P4+BH4 -> 60.19 | DB4: =Q4+BI4 -> 61.33 | DC4: =R4+BJ4 -> 62.2 | DD4: =S4+BK4 -> 66.8 | DE4: 66.98 | DF4: 62.74 | DG4: =V4+BN4 -> 62.3 | DH4: =W4+BO4 -> 61.91 | DI4: =X4+BP4 -> 61.8 | DJ4: =Y4+BQ4 -> 62.11 | DK4: =Z4+BR4 -> 62.7 | DL4: =AA4+BS4 -> 63.33 | DM4: 67.79 | DN4: 67.84 | DO4: =AD4+BV4 -> 63.31 | DP4: =AE4+BW4 -> 62.35 | DQ4: =AF4+BX4 -> 61.23 | DR4: =AG4+BY4 -> 60.23 | DS4: =AH4+BZ4 -> 59.6 | DT4: =AI4+CA4 -> 59.4 | DU4: =AJ4+CB4 -> 59.45 | DV4: =AK4+CC4 -> 63.67 | DW4: =AL4+CD4 -> 64.01 | DX4: =AM4+CE4 -> 60.4 | DY4: =AN4+CF4 -> 60.84 | DZ4: =AO4+CG4 -> 61.39 | EA4: =AP4+CH4 -> 62.02 | EB4: =AQ4+CI4 -> 62.72 | EC4: =AR4+CJ4 -> 63.48 | ED4: =AS4+CK4 -> 64.39 | EE4: =AT4+CL4 -> 69.46 | EF4: =AU4+CM4 -> 70.55 | EG4: =AV4+CN4 -> 67.52 | EH4: =AW4+CO4 -> 68.24 | EI4: =AX4+CP4 -> 68.7 | EJ4: =AY4+CQ4 -> 68.99 | EK4: =AZ4+CR4 -> 69.12 | EL4: =BA4+CS4 -> 69.08 | EM4: =BB4+CT4 -> 68.88 | EN4: 0.1 | EP4: =IF(EQ4>0,EQ4/10-0.1,"") -> 0.1 | EQ4: 2 | ER4: 57.12 | ES4: 58.79 | ET4: 60.19 | EU4: 61.33 | EV4: 62.2 | EW4: 66.8 | EX4: 66.98 | EY4: 62.74 | EZ4: 62.3 | FA4: 61.91 | FB4: 61.8 | FC4: 62.11 | FD4: 62.7 | FE4: 63.33 | FF4: 67.79 | FG4: 67.84 | FH4: 63.31 | FI4: 62.35 | FJ4: 61.23 | FK4: 60.23 | FL4: 59.6 | FM4: 59.6 | FN4: 59.4 | FO4: 59.45 | FP4: 63.67 | FQ4: 64.01 | FR4: 60.4 | FS4: 60.84 | FT4: 61.39 | FU4: 62.02 | FV4: 62.72 | FW4: 63.48 | FX4: 64.39 | FY4: 69.46 | FZ4: 70.55 | GA4: 67.52 | GB4: 68.24 | GC4: 68.7 | GD4: 68.99 | GE4: 69.12 | GF4: 69.08 | GG4: 68.88 | GK4: 0.1 | GL4: 2 | GM4: 0 | GN4: 0 | GO4: 0 | GP4: 0 | GQ4: 0 | GR4: 66.8 | GS4: 0 | GT4: 0 | GU4: 0 | GV4: 0 | GW4: 0 | GX4: 0 | GY4: 0 | GZ4: 0 | HA4: 0 | HB4: 67.84 | HC4: 0 | HD4: 0 | HE4: 0 | HF4: 0 | HG4: 0 | HH4: 0 | HI4: 0 | HJ4: 0 | HK4: 0 | HL4: 0 | HM4: 0 | HN4: 0 | HO4: 0 | HP4: 0 | HQ4: 0 | HR4: 0 | HS4: 0 | HT4: 0 | HU4: 0 | HV4: 0 | HW4: 0 | HX4: 0 | HY4: 0 | HZ4: 0 | IA4: 0 | IB4: 0 | IC4: 0.1 | IG4: =EQ4 -> 2 | IH4: 67.6 | II4: 67.7 | IJ4: 67.8 | IK4: 67.9 | IL4: 68 | IM4: 68.1 | IN4: 68.2 | IO4: 68.3 | IP4: 68.4 | IQ4: 68.5 | IR4: 68.6 | IS4: 68.7 | IT4: 68.8 | IU4: 68.9 | IV4: 69 | IW4: 69.1 | IX4: 69.2 | IY4: 69.3 | IZ4: 69.4 | JA4: 69.5 | JB4: 69.6 | JC4: 64.1 | JD4: 64.8 | JE4: 65.5 | JF4: 66.2 | JG4: 66.9 | JH4: 67.6 | JI4: 68.3 | JJ4: 69 | JK4: 69.7 | JL4: 70.4 | JM4: 71.1 | JN4: 71.8 | JO4: 72.5 | JP4: 73.2 | JQ4: 73.9 | JR4: 74.6 | JS4: 75.3 | JT4: 76 | JU4: 76.7 | JV4: 77.4 | JW4: 78.1 | JX4: 0.1 | KD4: =IF(KE4>0,KE4/10-0.1,"") -> 0.1 | KE4: =IG4 -> 2 | KF4: 10.48 | KG4: 8.91 | KH4: 7.61 | KI4: 6.57 | KJ4: 5.8 | KK4: 1.3 | KL4: 1.22 | KM4: 5.56 | KN4: 6.1 | KO4: 6.59 | KP4: 6.8 | KQ4: 6.59 | KR4: 6.1 | KS4: 5.57 | KT4: 1.21 | KU4: 1.26 | KV4: 5.89 | KW4: 6.95 | KX4: 8.17 | KY4: 9.27 | KZ4: 10 | LA4: 4.5 | LB4: 5.4 | LC4: 6.05 | LD4: 2.53 | LE4: 2.89 | LF4: 7.2 | LG4: 7.46 | LH4: 7.61 | LI4: 7.68 | LJ4: 7.68 | LK4: 7.62 | LL4: 7.41 | LM4: 3.04 | LN4: 2.65 | LO4: 6.38 | LP4: 6.36 | LQ4: 6.6 | LR4: 7.01 | LS4: 7.58 | LT4: 8.32 | LU4: 9.22 | MC4: =IF(MD4>0,MD4/10-0.1,"") -> 0.1 | MD4: 2 | ME4: =AVERAGE(KF4:KG5) -> 10.5825 | MF4: =AVERAGE(KG4:KH5) -> 9.1625 | MG4: =AVERAGE(KH4:KI5) -> 7.9675 | MH4: =AVERAGE(KI4:KJ5) -> 7 | MI4: =AVERAGE(KJ4:KK5) -> 4.2625 | MJ4: =AVERAGE(KK4:KL5) -> 1.8025 | MK4: =AVERAGE(KL4:KM5) -> 3.675 | ML4: =AVERAGE(KM4:KN5) -> 5.805 | MM4: =AVERAGE(KN4:KO5) -> 6.0325 | MN4: =AVERAGE(KO4:KP5) -> 6.2 | MO4: =AVERAGE(KP4:KQ5) -> 6.185 | MP4: =AVERAGE(KQ4:KR5) -> 5.985 | MQ4: =AVERAGE(KR4:KS5) -> 5.7275 | MR4: =AVERAGE(KS4:KT5) -> 3.5625 | MS4: =AVERAGE(KT4:KU5) -> 1.635 | MT4: =AVERAGE(KU4:KV5) -> 4.0975 | MU4: =AVERAGE(KV4:KW5) -> 6.9775 | MV4: =AVERAGE(KW4:KX5) -> 8.11 | MW4: =AVERAGE(KX4:KY5) -> 9.255 | MX4: =AVERAGE(KY4:KZ5) -> 10.175 | MY4: 5.5925 | MZ4: 6.475 | NA4: 5.17 | NB4: 3.7075 | NC4: 6.12 | ND4: 8.41 | NE4: 8.5425 | NF4: 8.535 | NG4: 8.45 | NH4: 8.3475 | NI4: 8.24 | NJ4: 6.085 | NK4: 3.89 | NL4: 5.7175 | NM4: 7.6225 | NN4: 7.6325 | NO4: 7.73 | NP4: 7.895 | NQ4: 8.13 | NR4: 8.4325 | NU4: =IF(NV4>0,NV4/10-0.1,"") -> 0.1 | NV4: 2 | NW4: =IF(ME4<$C$34,$D$34,IF(ME4<$C$35,$D$35,IF(ME4<$C$36,$D$36,IF(ME4<$C$37,$D$37,IF(ME4<$C$38,$D$38,IF(ME4<$C$39,$D$39,IF(ME4<$C$40,$D$40,IF(ME4<$C$41,$D$41,0)))))))) -> 7.9 | NX4: =IF(MF4<$C$34,$D$34,IF(MF4<$C$35,$D$35,IF(MF4<$C$36,$D$36,IF(MF4<$C$37,$D$37,IF(MF4<$C$38,$D$38,IF(MF4<$C$39,$D$39,IF(MF4<$C$40,$D$40,IF(MF4<$C$41,$D$41,0)))))))) -> 11.33 | NY4: =IF(MG4<$C$34,$D$34,IF(MG4<$C$35,$D$35,IF(MG4<$C$36,$D$36,IF(MG4<$C$37,$D$37,IF(MG4<$C$38,$D$38,IF(MG4<$C$39,$D$39,IF(MG4<$C$40,$D$40,IF(MG4<$C$41,$D$41,0)))))))) -> 11.98 | NZ4: =IF(MH4<$C$34,$D$34,IF(MH4<$C$35,$D$35,IF(MH4<$C$36,$D$36,IF(MH4<$C$37,$D$37,IF(MH4<$C$38,$D$38,IF(MH4<$C$39,$D$39,IF(MH4<$C$40,$D$40,IF(MH4<$C$41,$D$41,0)))))))) -> 11.98 | OA4: =IF(MI4<$C$34,$D$34,IF(MI4<$C$35,$D$35,IF(MI4<$C$36,$D$36,IF(MI4<$C$37,$D$37,IF(MI4<$C$38,$D$38,IF(MI4<$C$39,$D$39,IF(MI4<$C$40,$D$40,IF(MI4<$C$41,$D$41,0)))))))) -> 15.63 | OB4: =IF(MJ4<$C$34,$D$34,IF(MJ4<$C$35,$D$35,IF(MJ4<$C$36,$D$36,IF(MJ4<$C$37,$D$37,IF(MJ4<$C$38,$D$38,IF(MJ4<$C$39,$D$39,IF(MJ4<$C$40,$D$40,IF(MJ4<$C$41,$D$41,0)))))))) -> 31.64 | OC4: =IF(MK4<$C$34,$D$34,IF(MK4<$C$35,$D$35,IF(MK4<$C$36,$D$36,IF(MK4<$C$37,$D$37,IF(MK4<$C$38,$D$38,IF(MK4<$C$39,$D$39,IF(MK4<$C$40,$D$40,IF(MK4<$C$41,$D$41,0)))))))) -> 23.66 | OD4: =IF(ML4<$C$34,$D$34,IF(ML4<$C$35,$D$35,IF(ML4<$C$36,$D$36,IF(ML4<$C$37,$D$37,IF(ML4<$C$38,$D$38,IF(ML4<$C$39,$D$39,IF(ML4<$C$40,$D$40,IF(ML4<$C$41,$D$41,0)))))))) -> 15.63 | OE4: =IF(MM4<$C$34,$D$34,IF(MM4<$C$35,$D$35,IF(MM4<$C$36,$D$36,IF(MM4<$C$37,$D$37,IF(MM4<$C$38,$D$38,IF(MM4<$C$39,$D$39,IF(MM4<$C$40,$D$40,IF(MM4<$C$41,$D$41,0)))))))) -> 11.98 | OF4: =IF(MN4<$C$34,$D$34,IF(MN4<$C$35,$D$35,IF(MN4<$C$36,$D$36,IF(MN4<$C$37,$D$37,IF(MN4<$C$38,$D$38,IF(MN4<$C$39,$D$39,IF(MN4<$C$40,$D$40,IF(MN4<$C$41,$D$41,0)))))))) -> 11.98 | OG4: =IF(MO4<$C$34,$D$34,IF(MO4<$C$35,$D$35,IF(MO4<$C$36,$D$36,IF(MO4<$C$37,$D$37,IF(MO4<$C$38,$D$38,IF(MO4<$C$39,$D$39,IF(MO4<$C$40,$D$40,IF(MO4<$C$41,$D$41,0)))))))) -> 11.98 | OH4: =IF(MP4<$C$34,$D$34,IF(MP4<$C$35,$D$35,IF(MP4<$C$36,$D$36,IF(MP4<$C$37,$D$37,IF(MP4<$C$38,$D$38,IF(MP4<$C$39,$D$39,IF(MP4<$C$40,$D$40,IF(MP4<$C$41,$D$41,0)))))))) -> 15.63 | OI4: =IF(MQ4<$C$34,$D$34,IF(MQ4<$C$35,$D$35,IF(MQ4<$C$36,$D$36,IF(MQ4<$C$37,$D$37,IF(MQ4<$C$38,$D$38,IF(MQ4<$C$39,$D$39,IF(MQ4<$C$40,$D$40,IF(MQ4<$C$41,$D$41,0)))))))) -> 15.63 | OJ4: =IF(MR4<$C$34,$D$34,IF(MR4<$C$35,$D$35,IF(MR4<$C$36,$D$36,IF(MR4<$C$37,$D$37,IF(MR4<$C$38,$D$38,IF(MR4<$C$39,$D$39,IF(MR4<$C$40,$D$40,IF(MR4<$C$41,$D$41,0)))))))) -> 23.66 | OK4: =IF(MS4<$C$34,$D$34,IF(MS4<$C$35,$D$35,IF(MS4<$C$36,$D$36,IF(MS4<$C$37,$D$37,IF(MS4<$C$38,$D$38,IF(MS4<$C$39,$D$39,IF(MS4<$C$40,$D$40,IF(MS4<$C$41,$D$41,0)))))))) -> 31.64 | OL4: =IF(MT4<$C$34,$D$34,IF(MT4<$C$35,$D$35,IF(MT4<$C$36,$D$36,IF(MT4<$C$37,$D$37,IF(MT4<$C$38,$D$38,IF(MT4<$C$39,$D$39,IF(MT4<$C$40,$D$40,IF(MT4<$C$41,$D$41,0)))))))) -> 15.63 | OM4: =IF(MU4<$C$34,$D$34,IF(MU4<$C$35,$D$35,IF(MU4<$C$36,$D$36,IF(MU4<$C$37,$D$37,IF(MU4<$C$38,$D$38,IF(MU4<$C$39,$D$39,IF(MU4<$C$40,$D$40,IF(MU4<$C$41,$D$41,0)))))))) -> 11.98 | ON4: =IF(MV4<$C$34,$D$34,IF(MV4<$C$35,$D$35,IF(MV4<$C$36,$D$36,IF(MV4<$C$37,$D$37,IF(MV4<$C$38,$D$38,IF(MV4<$C$39,$D$39,IF(MV4<$C$40,$D$40,IF(MV4<$C$41,$D$41,0)))))))) -> 11.33 | OO4: =IF(MW4<$C$34,$D$34,IF(MW4<$C$35,$D$35,IF(MW4<$C$36,$D$36,IF(MW4<$C$37,$D$37,IF(MW4<$C$38,$D$38,IF(MW4<$C$39,$D$39,IF(MW4<$C$40,$D$40,IF(MW4<$C$41,$D$41,0)))))))) -> 11.33 | OP4: =IF(MX4<$C$34,$D$34,IF(MX4<$C$35,$D$35,IF(MX4<$C$36,$D$36,IF(MX4<$C$37,$D$37,IF(MX4<$C$38,$D$38,IF(MX4<$C$39,$D$39,IF(MX4<$C$40,$D$40,IF(MX4<$C$41,$D$41,0)))))))) -> 7.9 | OQ4: =IF(MY4<$C$34,$D$34,IF(MY4<$C$35,$D$35,IF(MY4<$C$36,$D$36,IF(MY4<$C$37,$D$37,IF(MY4<$C$38,$D$38,IF(MY4<$C$39,$D$39,IF(MY4<$C$40,$D$40,IF(MY4<$C$41,$D$41,0)))))))) -> 15.63 | OR4: =IF(MZ4<$C$34,$D$34,IF(MZ4<$C$35,$D$35,IF(MZ4<$C$36,$D$36,IF(MZ4<$C$37,$D$37,IF(MZ4<$C$38,$D$38,IF(MZ4<$C$39,$D$39,IF(MZ4<$C$40,$D$40,IF(MZ4<$C$41,$D$41,0)))))))) -> 11.98 | OS4: =IF(NA4<$C$34,$D$34,IF(NA4<$C$35,$D$35,IF(NA4<$C$36,$D$36,IF(NA4<$C$37,$D$37,IF(NA4<$C$38,$D$38,IF(NA4<$C$39,$D$39,IF(NA4<$C$40,$D$40,IF(NA4<$C$41,$D$41,0)))))))) -> 15.63 | OT4: =IF(NB4<$C$34,$D$34,IF(NB4<$C$35,$D$35,IF(NB4<$C$36,$D$36,IF(NB4<$C$37,$D$37,IF(NB4<$C$38,$D$38,IF(NB4<$C$39,$D$39,IF(NB4<$C$40,$D$40,IF(NB4<$C$41,$D$41,0)))))))) -> 23.66 | OU4: =IF(NC4<$C$34,$D$34,IF(NC4<$C$35,$D$35,IF(NC4<$C$36,$D$36,IF(NC4<$C$37,$D$37,IF(NC4<$C$38,$D$38,IF(NC4<$C$39,$D$39,IF(NC4<$C$40,$D$40,IF(NC4<$C$41,$D$41,0)))))))) -> 11.98 | OV4: =IF(ND4<$C$34,$D$34,IF(ND4<$C$35,$D$35,IF(ND4<$C$36,$D$36,IF(ND4<$C$37,$D$37,IF(ND4<$C$38,$D$38,IF(ND4<$C$39,$D$39,IF(ND4<$C$40,$D$40,IF(ND4<$C$41,$D$41,0)))))))) -> 11.33 | OW4: =IF(NE4<$C$34,$D$34,IF(NE4<$C$35,$D$35,IF(NE4<$C$36,$D$36,IF(NE4<$C$37,$D$37,IF(NE4<$C$38,$D$38,IF(NE4<$C$39,$D$39,IF(NE4<$C$40,$D$40,IF(NE4<$C$41,$D$41,0)))))))) -> 11.33 | OX4: =IF(NF4<$C$34,$D$34,IF(NF4<$C$35,$D$35,IF(NF4<$C$36,$D$36,IF(NF4<$C$37,$D$37,IF(NF4<$C$38,$D$38,IF(NF4<$C$39,$D$39,IF(NF4<$C$40,$D$40,IF(NF4<$C$41,$D$41,0)))))))) -> 11.33 | OY4: =IF(NG4<$C$34,$D$34,IF(NG4<$C$35,$D$35,IF(NG4<$C$36,$D$36,IF(NG4<$C$37,$D$37,IF(NG4<$C$38,$D$38,IF(NG4<$C$39,$D$39,IF(NG4<$C$40,$D$40,IF(NG4<$C$41,$D$41,0)))))))) -> 11.33 | OZ4: =IF(NH4<$C$34,$D$34,IF(NH4<$C$35,$D$35,IF(NH4<$C$36,$D$36,IF(NH4<$C$37,$D$37,IF(NH4<$C$38,$D$38,IF(NH4<$C$39,$D$39,IF(NH4<$C$40,$D$40,IF(NH4<$C$41,$D$41,0)))))))) -> 11.33 | PA4: =IF(NI4<$C$34,$D$34,IF(NI4<$C$35,$D$35,IF(NI4<$C$36,$D$36,IF(NI4<$C$37,$D$37,IF(NI4<$C$38,$D$38,IF(NI4<$C$39,$D$39,IF(NI4<$C$40,$D$40,IF(NI4<$C$41,$D$41,0)))))))) -> 11.33 | PB4: =IF(NJ4<$C$34,$D$34,IF(NJ4<$C$35,$D$35,IF(NJ4<$C$36,$D$36,IF(NJ4<$C$37,$D$37,IF(NJ4<$C$38,$D$38,IF(NJ4<$C$39,$D$39,IF(NJ4<$C$40,$D$40,IF(NJ4<$C$41,$D$41,0)))))))) -> 11.98 | PC4: =IF(NK4<$C$34,$D$34,IF(NK4<$C$35,$D$35,IF(NK4<$C$36,$D$36,IF(NK4<$C$37,$D$37,IF(NK4<$C$38,$D$38,IF(NK4<$C$39,$D$39,IF(NK4<$C$40,$D$40,IF(NK4<$C$41,$D$41,0)))))))) -> 23.66 | PD4: =IF(NL4<$C$34,$D$34,IF(NL4<$C$35,$D$35,IF(NL4<$C$36,$D$36,IF(NL4<$C$37,$D$37,IF(NL4<$C$38,$D$38,IF(NL4<$C$39,$D$39,IF(NL4<$C$40,$D$40,IF(NL4<$C$41,$D$41,0)))))))) -> 15.63 | PE4: =IF(NM4<$C$34,$D$34,IF(NM4<$C$35,$D$35,IF(NM4<$C$36,$D$36,IF(NM4<$C$37,$D$37,IF(NM4<$C$38,$D$38,IF(NM4<$C$39,$D$39,IF(NM4<$C$40,$D$40,IF(NM4<$C$41,$D$41,0)))))))) -> 11.98 | PF4: =IF(NN4<$C$34,$D$34,IF(NN4<$C$35,$D$35,IF(NN4<$C$36,$D$36,IF(NN4<$C$37,$D$37,IF(NN4<$C$38,$D$38,IF(NN4<$C$39,$D$39,IF(NN4<$C$40,$D$40,IF(NN4<$C$41,$D$41,0)))))))) -> 11.98 | PG4: =IF(NO4<$C$34,$D$34,IF(NO4<$C$35,$D$35,IF(NO4<$C$36,$D$36,IF(NO4<$C$37,$D$37,IF(NO4<$C$38,$D$38,IF(NO4<$C$39,$D$39,IF(NO4<$C$40,$D$40,IF(NO4<$C$41,$D$41,0)))))))) -> 11.98 | PH4: =IF(NP4<$C$34,$D$34,IF(NP4<$C$35,$D$35,IF(NP4<$C$36,$D$36,IF(NP4<$C$37,$D$37,IF(NP4<$C$38,$D$38,IF(NP4<$C$39,$D$39,IF(NP4<$C$40,$D$40,IF(NP4<$C$41,$D$41,0)))))))) -> 11.98 | PI4: =IF(NQ4<$C$34,$D$34,IF(NQ4<$C$35,$D$35,IF(NQ4<$C$36,$D$36,IF(NQ4<$C$37,$D$37,IF(NQ4<$C$38,$D$38,IF(NQ4<$C$39,$D$39,IF(NQ4<$C$40,$D$40,IF(NQ4<$C$41,$D$41,0)))))))) -> 11.33 | PJ4: =IF(NR4<$C$34,$D$34,IF(NR4<$C$35,$D$35,IF(NR4<$C$36,$D$36,IF(NR4<$C$37,$D$37,IF(NR4<$C$38,$D$38,IF(NR4<$C$39,$D$39,IF(NR4<$C$40,$D$40,IF(NR4<$C$41,$D$41,0)))))))) -> 11.33 | PM4: =IF(PN4>0,PN4/10-0.1,"") -> 0.1 | PN4: 2 | PO4: =NW4-NW228 -> -23.74 | PP4: =NX4-NX228 -> -20.31 | PQ4: =NY4-NY228 -> -19.66 | PR4: =NZ4-NZ228 -> -11.68 | PS4: =OA4-OA228 -> -16.01 | PT4: =OB4-OB228 -> 0 | PU4: =OC4-OC228 -> 8.03 | PV4: =OD4-OD228 -> 4.3 | PW4: =OE4-OE228 -> 4.08 | PX4: =OF4-OF228 -> 5.88 | PY4: =OG4-OG228 -> 5.88 | PZ4: =OH4-OH228 -> 7.73 | QA4: =OI4-OI228 -> 4.3 | QB4: =OJ4-OJ228 -> 8.03 | QC4: =OK4-OK228 -> 0 | QD4: =OL4-OL228 -> -8.03 | QE4: =OM4-OM228 -> -11.68 | QF4: =ON4-ON228 -> -12.33 | QG4: =OO4-OO228 -> -12.33 | QH4: =OP4-OP228 -> -23.74 | QI4: =OQ4-OQ228 -> 0 | QJ4: =OR4-OR228 -> -3.65 | QK4: =OS4-OS228 -> -8.03 | QL4: =OT4-OT228 -> -7.98 | QM4: =OU4-OU228 -> -11.68 | QN4: =OV4-OV228 -> -4.3 | QO4: =OW4-OW228 -> -4.3 | QP4: =OX4-OX228 -> -12.33 | QQ4: =OY4-OY228 -> -12.33 | QR4: =OZ4-OZ228 -> -12.33 | QS4: =PA4-PA228 -> -4.3 | QT4: =PB4-PB228 -> -11.68 | QU4: =PC4-PC228 -> -7.98 | QV4: =PD4-PD228 -> -8.03 | QW4: =PE4-PE228 -> -3.65 | QX4: =PF4-PF228 -> -3.65 | QY4: =PG4-PG228 -> -3.65 | QZ4: =PH4-PH228 -> 0 | RA4: =PI4-PI228 -> -0.65 | RB4: =PJ4-PJ228 -> -0.65 | RE4: 0.1 | RF4: 2 | RG4: =IF(CY4=MAX(CY3:CZ5),CY4,0) -> 0 | RH4: =IF(CZ4=MAX(CY3:DA5),CZ4,0) -> 0 | RI4: =IF(DA4=MAX(CZ3:DB5),DA4,0) -> 0 | RJ4: =IF(DB4=MAX(DA3:DC5),DB4,0) -> 0 | RK4: =IF(DC4=MAX(DB3:DD5),DC4,0) -> 0 | RL4: =IF(DD4=MAX(DC3:DE5),DD4,0) -> 0 | RM4: =IF(DE4=MAX(DD3:DF5),DE4,0) -> 0 | RN4: =IF(DF4=MAX(DE3:DG5),DF4,0) -> 0 | RO4: =IF(DG4=MAX(DF3:DH5),DG4,0) -> 0 | RP4: =IF(DH4=MAX(DG3:DI5),DH4,0) -> 0 | RQ4: =IF(DI4=MAX(DH3:DJ5),DI4,0) -> 0 | RR4: =IF(DJ4=MAX(DI3:DK5),DJ4,0) -> 0 | RS4: =IF(DK4=MAX(DJ3:DL5),DK4,0) -> 0 | RT4: =IF(DL4=MAX(DK3:DM5),DL4,0) -> 0 | RU4: =IF(DM4=MAX(DL3:DN5),DM4,0) -> 0 | RV4: =IF(DN4=MAX(DM3:DO5),DN4,0) -> 0 | RW4: =IF(DO4=MAX(DN3:DP5),DO4,0) -> 0 | RX4: =IF(DP4=MAX(DO3:DQ5),DP4,0) -> 0 | RY4: =IF(DQ4=MAX(DP3:DR5),DQ4,0) -> 0 | RZ4: =IF(DR4=MAX(DQ3:DS5),DR4,0) -> 0 | SA4: =IF(DS4=MAX(DR3:DT5),DS4,0) -> 0 | SB4: =IF(DT4=MAX(DS3:DU5),DT4,0) -> 0 | SC4: =IF(DU4=MAX(DT3:DV5),DU4,0) -> 0 | SD4: =IF(DV4=MAX(DU3:DW5),DV4,0) -> 0 | SE4: =IF(DW4=MAX(DV3:DX5),DW4,0) -> 0 | SF4: =IF(DX4=MAX(DW3:DY5),DX4,0) -> 0 | SG4: =IF(DY4=MAX(DX3:DZ5),DY4,0) -> 0 | SH4: =IF(DZ4=MAX(DY3:EA5),DZ4,0) -> 0 | SI4: =IF(EA4=MAX(DZ3:EB5),EA4,0) -> 0 | SJ4: =IF(EB4=MAX(EA3:EC5),EB4,0) -> 0 | SK4: =IF(EC4=MAX(EB3:ED5),EC4,0) -> 0 | SL4: =IF(ED4=MAX(EC3:EE5),ED4,0) -> 0 | SM4: =IF(EE4=MAX(ED3:EF5),EE4,0) -> 0 | SN4: =IF(EF4=MAX(EE3:EG5),EF4,0) -> 0 | SO4: =IF(EG4=MAX(EF3:EH5),EG4,0) -> 0 | SP4: =IF(EH4=MAX(EG3:EI5),EH4,0) -> 0 | SQ4: =IF(EI4=MAX(EH3:EJ5),EI4,0) -> 0 | SR4: =IF(EJ4=MAX(EI3:EK5),EJ4,0) -> 0 | SS4: =IF(EK4=MAX(EJ3:EL5),EK4,0) -> 0 | ST4: =IF(EL4=MAX(EK3:EM5),EL4,0) -> 0 | SU4: =IF(EM4=MAX(EL3:EM5),EM4,0) -> 0 | SV4: 0.1 | SX4: 0.1 | SY4: 2 | SZ4: =IF(ER4=MAX(ER3:ES5),ER4,0) -> 0 | TA4: =IF(ES4=MAX(ER3:ET5),ES4,0) -> 0 | TB4: =IF(ET4=MAX(ES3:EU5),ET4,0) -> 0 | TC4: =IF(EU4=MAX(ET3:EV5),EU4,0) -> 0 | TD4: =IF(EV4=MAX(EU3:EW5),EV4,0) -> 0 | TE4: =IF(EW4=MAX(EV3:EX5),EW4,0) -> 0 | TF4: =IF(EX4=MAX(EW3:EY5),EX4,0) -> 0 | TG4: =IF(EY4=MAX(EX3:EZ5),EY4,0) -> 0 | TH4: =IF(EZ4=MAX(EY3:FA5),EZ4,0) -> 0 | TI4: =IF(FA4=MAX(EZ3:FB5),FA4,0) -> 0 | TJ4: =IF(FB4=MAX(FA3:FC5),FB4,0) -> 0 | TK4: =IF(FC4=MAX(FB3:FD5),FC4,0) -> 0 | TL4: =IF(FD4=MAX(FC3:FE5),FD4,0) -> 0 | TM4: =IF(FE4=MAX(FD3:FF5),FE4,0) -> 0 | TN4: =IF(FF4=MAX(FE3:FG5),FF4,0) -> 0 | TO4: =IF(FG4=MAX(FF3:FH5),FG4,0) -> 0 | TP4: =IF(FH4=MAX(FG3:FI5),FH4,0) -> 0 | TQ4: =IF(FI4=MAX(FH3:FJ5),FI4,0) -> 0 | TR4: =IF(FJ4=MAX(FI3:FK5),FJ4,0) -> 0 | TS4: =IF(FK4=MAX(FJ3:FL5),FK4,0) -> 0 | TT4: =IF(FL4=MAX(FK3:FM5),FL4,0) -> 0 | TU4: =IF(FM4=MAX(FL3:FN5),FM4,0) -> 0 | TV4: =IF(FN4=MAX(FM3:FO5),FN4,0) -> 0 | TW4: =IF(FO4=MAX(FN3:FP5),FO4,0) -> 0 | TX4: =IF(FP4=MAX(FO3:FQ5),FP4,0) -> 0 | TY4: =IF(FQ4=MAX(FP3:FR5),FQ4,0) -> 0 | TZ4: =IF(FR4=MAX(FQ3:FS5),FR4,0) -> 0 | UA4: =IF(FS4=MAX(FR3:FT5),FS4,0) -> 0 | UB4: =IF(FT4=MAX(FS3:FU5),FT4,0) -> 0 | UC4: =IF(FU4=MAX(FT3:FV5),FU4,0) -> 0 | UD4: =IF(FV4=MAX(FU3:FW5),FV4,0) -> 0 | UE4: =IF(FW4=MAX(FV3:FX5),FW4,0) -> 0 | UF4: =IF(FX4=MAX(FW3:FY5),FX4,0) -> 0 | UG4: =IF(FY4=MAX(FX3:FZ5),FY4,0) -> 0 | UH4: =IF(FZ4=MAX(FY3:GA5),FZ4,0) -> 0 | UI4: =IF(GA4=MAX(FZ3:GB5),GA4,0) -> 0 | UJ4: =IF(GB4=MAX(GA3:GC5),GB4,0) -> 0 | UK4: =IF(GC4=MAX(GB3:GD5),GC4,0) -> 0 | UL4: =IF(GD4=MAX(GC3:GE5),GD4,0) -> 0 | UM4: =IF(GE4=MAX(GD3:GF5),GE4,0) -> 0 | UN4: =IF(GF4=MAX(GE3:GF5),GF4,0) -> 0 | UO4: 0.1 | UQ4: 0.1 | UR4: 2 | US4: 1 | UT4: =IF(OR(INT(1000*UT$1/$B$18)-1000*UT$1/$B$18=0,INT(1000*$UQ4/$B$19)-1000*$UQ4/$B$19=0),1,0) -> 0 | UU4: 0 | UV4: 0 | UW4: 0 | UX4: 0 | UY4: 0 | UZ4: 0 | VA4: 0 | VB4: 0 | VC4: 0 | VD4: =IF(OR(INT(1000*VD$1/$B$18)-1000*VD$1/$B$18=0,INT(1000*$UQ4/$B$19)-1000*$UQ4/$B$19=0),1,0) -> 0 | VE4: 0 | VF4: 0 | VG4: 0 | VH4: 0 | VI4: 0 | VJ4: 0 | VK4: 0 | VL4: 0 | VM4: 1 | VN4: =IF(OR(INT(1000*VN$1/$B$18)-1000*VN$1/$B$18=0,INT(1000*$UQ4/$B$19)-1000*$UQ4/$B$19=0),1,0) -> 0 | VO4: 0 | VP4: 0 | VQ4: 0 | VR4: 0 | VS4: 0 | VT4: 0 | VU4: 0 | VV4: 0 | VW4: 0 | VX4: =IF(OR(INT(1000*VX$1/$B$18)-1000*VX$1/$B$18=0,INT(1000*$UQ4/$B$19)-1000*$UQ4/$B$19=0),1,0) -> 0 | VY4: 0 | VZ4: 0 | WA4: 0 | WB4: 0 | WC4: 0 | WD4: 0 | WE4: 0 | WF4: 0 | WG4: 1 | WH4: 0.1 | WJ4: 0.1 | WK4: 2 | WL4: 57.12 | WM4: 0 | WN4: 0 | WO4: 0 | WP4: 0 | WQ4: 0 | WR4: 0 | WS4: 0 | WT4: 0 | WU4: 0 | WV4: 0 | WW4: 0 | WX4: 0 | WY4: 0 | WZ4: 0 | XA4: 0 | XB4: 0 | XC4: 0 | XD4: 0 | XE4: 0 | XF4: 59.6 | XG4: 0 | XH4: 0 | XI4: 0 | XJ4: 0 | XK4: 0 | XL4: 0 | XM4: 0 | XN4: 0 | XO4: 0 | XP4: 0 | XQ4: 0 | XR4: 0 | XS4: 0 | XT4: 0 | XU4: 0 | XV4: 0 | XW4: 0 | XX4: 0 | XY4: 0 | XZ4: 68.88 | YA4: 0.1 | YC4: 0.1 | YD4: 2 | YE4: =YE3 -> 4 | YF4: =YF3 -> 4 | YG4: =YG3 -> 4 | YH4: 4 | YI4: 4 | YJ4: 4 | YK4: 4 | YL4: 4 | YM4: 4 | YN4: 4 | YO4: 4 | YP4: 4 | YQ4: 4 | YR4: 4 | YS4: 4 | YT4: 4 | YU4: 4 | YV4: 4 | YW4: 4 | YX4: 4 | YY4: =YX4 -> 4 | YZ4: =ZA4 -> 5 | ZA4: =ZA3 -> 5 | ZB4: =ZB3 -> 5 | ZC4: =ZC3 -> 5 | ZD4: =ZD3 -> 5 | ZE4: =ZE3 -> 5 | ZF4: =ZF3 -> 5 | ZG4: =ZG3 -> 5 | ZH4: =ZH3 -> 5 | ZI4: =ZI3 -> 5 | ZJ4: =ZJ3 -> 5 | ZK4: =ZK3 -> 5 | ZL4: =ZL3 -> 5 | ZM4: =ZM3 -> 5 | ZN4: =ZN3 -> 5 | ZO4: =ZO3 -> 5 | ZP4: =ZP3 -> 5 | ZQ4: =ZQ3 -> 5 | ZR4: =ZR3 -> 5 | ZS4: =ZS3 -> 5 | ZT4: =ZS4 -> 5 | ZU4: 0.1 | ZW4: 0.1 | ZX4: 2 | ZY4: 0 | ZZ4: 0 | AAA4: 0 | AAB4: 0 | AAC4: 0 | AAD4: 4 | AAE4: 4 | AAF4: 0 | AAG4: 0 | AAH4: 0 | AAI4: 0 | AAJ4: 0 | AAK4: 0 | AAL4: 0 | AAM4: 4 | AAN4: 4 | AAO4: 0 | AAP4: 0 | AAQ4: 0 | AAR4: 0 | AAS4: 0 | AAT4: 0 | AAU4: 0 | AAV4: 0 | AAW4: 4 | AAX4: 4 | AAY4: 0 | AAZ4: 0 | ABA4: 0 | ABB4: 0 | ABC4: 0 | ABD4: 0 | ABE4: 0 | ABF4: 4 | ABG4: 4 | ABH4: 0 | ABI4: 0 | ABJ4: 0 | ABK4: 0 | ABL4: 0 | ABM4: 0 | ABN4: 0 | ABO4: 0.1 | ABQ4: 0.1 | ABR4: 2 | ABS4: =IF(OR(INT(1000*ABS$1/$B$18)-1000*ABS$1/$B$18=0,INT(1000*$UQ4/$B$19)-1000*$UQ4/$B$19=0),1,0) -> 1 | ABT4: 0 | ABU4: 0 | ABV4: 0 | ABW4: 0 | ABX4: 0 | ABY4: 0 | ABZ4: 0 | ACA4: 0 | ACB4: 0 | ACC4: =IF(OR(INT(1000*ACC$1/$B$18)-1000*ACC$1/$B$18=0,INT(1000*$UQ4/$B$19)-1000*$UQ4/$B$19=0),1,0) -> 0 | ACD4: 0 | ACE4: 0 | ACF4: 0 | ACG4: 0 | ACH4: 0 | ACI4: 0 | ACJ4: 0 | ACK4: 0 | ACL4: 0 | ACM4: 1 | ACN4: =ACO4 -> 57 | ACO4: =ACO3 -> 57 | ACP4: =ACP3 -> 57 | ACQ4: =ACQ3 -> 57 | ACR4: =ACR3 -> 57 | ACS4: =ACS3 -> 57 | ACT4: =ACT3 -> 57 | ACU4: =ACU3 -> 57 | ACV4: =ACV3 -> 57 | ACW4: =ACW3 -> 57 | ACX4: =ACX3 -> 57 | ACY4: =ACY3 -> 57 | ACZ4: =ACZ3 -> 57 | ADA4: =ADA3 -> 57 | ADB4: =ADB3 -> 57 | ADC4: =ADC3 -> 57 | ADD4: =ADD3 -> 57 | ADE4: =ADE3 -> 57 | ADF4: =ADF3 -> 57 | ADG4: =ADG3 -> 57 | ADH4: =ADG4 -> 57 | ADI4: 0.1
A5: 3 | B5: C | C5: 51 | D5: 52 | E5: 51 | F5: 66 | G5: 65 | H5: 64 | I5: 66 | J5: 65 | K5: 66 | M5: 1B | N5: =ROUND('3D Interpolace'!M6,2) -> 55.48 | O5: =ROUND('3D Interpolace'!N6,2) -> 57.08 | P5: =ROUND('3D Interpolace'!O6,2) -> 58.49 | Q5: =ROUND('3D Interpolace'!P6,2) -> 59.72 | R5: =ROUND('3D Interpolace'!Q6,2) -> 60.75 | S5: =ROUND('3D Interpolace'!R6,2) -> 61.6 | T5: =ROUND('3D Interpolace'!S6,2) -> 62.21 | U5: =ROUND('3D Interpolace'!T6,2) -> 62.57 | V5: =ROUND('3D Interpolace'!U6,2) -> 62.77 | W5: =ROUND('3D Interpolace'!V6,2) -> 62.89 | X5: =ROUND('3D Interpolace'!W6,2) -> 63 | Y5: =ROUND('3D Interpolace'!X6,2) -> 63.15 | Z5: =ROUND('3D Interpolace'!Y6,2) -> 63.3 | AA5: =ROUND('3D Interpolace'!Z6,2) -> 63.36 | AB5: =ROUND('3D Interpolace'!AA6,2) -> 63.27 | AC5: =ROUND('3D Interpolace'!AB6,2) -> 62.96 | AD5: =ROUND('3D Interpolace'!AC6,2) -> 62.3 | AE5: =ROUND('3D Interpolace'!AD6,2) -> 61.33 | AF5: =ROUND('3D Interpolace'!AE6,2) -> 60.25 | AG5: =ROUND('3D Interpolace'!AF6,2) -> 59.27 | AH5: =ROUND('3D Interpolace'!AG6,2) -> 58.6 | AI5: =ROUND('3D Interpolace'!AH6,2) -> 58.23 | AJ5: =ROUND('3D Interpolace'!AI6,2) -> 58.02 | AK5: =ROUND('3D Interpolace'!AJ6,2) -> 57.98 | AL5: =ROUND('3D Interpolace'!AK6,2) -> 58.11 | AM5: =ROUND('3D Interpolace'!AL6,2) -> 58.4 | AN5: =ROUND('3D Interpolace'!AM6,2) -> 58.92 | AO5: =ROUND('3D Interpolace'!AN6,2) -> 59.68 | AP5: =ROUND('3D Interpolace'!AO6,2) -> 60.57 | AQ5: =ROUND('3D Interpolace'!AP6,2) -> 61.49 | AR5: =ROUND('3D Interpolace'!AQ6,2) -> 62.32 | AS5: =ROUND('3D Interpolace'!AR6,2) -> 63.05 | AT5: =ROUND('3D Interpolace'!AS6,2) -> 63.76 | AU5: =ROUND('3D Interpolace'!AT6,2) -> 64.47 | AV5: =ROUND('3D Interpolace'!AU6,2) -> 65.19 | AW5: =ROUND('3D Interpolace'!AV6,2) -> 65.96 | AX5: =ROUND('3D Interpolace'!AW6,2) -> 66.77 | AY5: =ROUND('3D Interpolace'!AX6,2) -> 67.62 | AZ5: =ROUND('3D Interpolace'!AY6,2) -> 68.49 | BA5: =ROUND('3D Interpolace'!AZ6,2) -> 69.39 | BB5: =ROUND('3D Interpolace'!BA6,2) -> 70.32 | BD5: 0.2 | BE5: 3 | BK5: 4 | BL5: 4 | BT5: 4 | BU5: 4 | CC5: 4 | CD5: 4 | CL5: 4 | CM5: 4 | CU5: 0.2 | CW5: 0.2 | CX5: 3 | CY5: 55.48 | CZ5: 57.08 | DA5: 58.49 | DB5: 59.72 | DC5: 60.75 | DD5: 65.6 | DE5: 66.21 | DF5: 62.57 | DG5: 62.77 | DH5: 62.89 | DI5: 63 | DJ5: 63.15 | DK5: 63.3 | DL5: 63.36 | DM5: 67.27 | DN5: 66.96 | DO5: 62.3 | DP5: 61.33 | DQ5: 60.25 | DR5: 59.27 | DS5: 58.6 | DT5: 58.23 | DU5: 58.02 | DV5: 61.98 | DW5: 62.11 | DX5: 58.4 | DY5: 58.92 | DZ5: 59.68 | EA5: 60.57 | EB5: 61.49 | EC5: 62.32 | ED5: 63.05 | EE5: 67.76 | EF5: 68.47 | EG5: 65.19 | EH5: 65.96 | EI5: 66.77 | EJ5: 67.62 | EK5: 68.49 | EL5: 69.39 | EM5: 70.32 | EN5: 0.2 | EP5: 0.2 | EQ5: 3 | ER5: 55.48 | ES5: 57.08 | ET5: 58.49 | EU5: 59.72 | EV5: 60.75 | EW5: 65.6 | EX5: 66.21 | EY5: 62.57 | EZ5: 62.77 | FA5: 62.89 | FB5: 63 | FC5: 63.15 | FD5: 63.3 | FE5: 63.36 | FF5: 67.27 | FG5: 66.96 | FH5: 62.3 | FI5: 61.33 | FJ5: 60.25 | FK5: 59.27 | FL5: 58.6 | FM5: 58.6 | FN5: 58.23 | FO5: 58.02 | FP5: 61.98 | FQ5: 62.11 | FR5: 58.4 | FS5: 58.92 | FT5: 59.68 | FU5: 60.57 | FV5: 61.49 | FW5: 62.32 | FX5: 63.05 | FY5: 67.76 | FZ5: 68.47 | GA5: 65.19 | GB5: 65.96 | GC5: 66.77 | GD5: 67.62 | GE5: 68.49 | GF5: 69.39 | GG5: 70.32 | GK5: 0.2 | GL5: 3 | GM5: 0 | GN5: 0 | GO5: 0 | GP5: 0 | GQ5: 0 | GR5: 65.6 | GS5: 0 | GT5: 0 | GU5: 0 | GV5: 0 | GW5: 0 | GX5: 0 | GY5: 0 | GZ5: 0 | HA5: 0 | HB5: 66.96 | HC5: 0 | HD5: 0 | HE5: 0 | HF5: 0 | HG5: 0 | HH5: 0 | HI5: 0 | HJ5: 0 | HK5: 0 | HL5: 0 | HM5: 0 | HN5: 0 | HO5: 0 | HP5: 0 | HQ5: 0 | HR5: 0 | HS5: 0 | HT5: 0 | HU5: 0 | HV5: 0 | HW5: 0 | HX5: 0 | HY5: 0 | HZ5: 0 | IA5: 0 | IB5: 0 | IC5: 0.2 | IG5: 3 | IH5: 67.7 | II5: 67.8 | IJ5: 67.9 | IK5: 68 | IL5: 68.1 | IM5: 68.2 | IN5: 68.3 | IO5: 68.4 | IP5: 68.5 | IQ5: 68.6 | IR5: 68.7 | IS5: 68.8 | IT5: 68.9 | IU5: 69 | IV5: 69.1 | IW5: 69.2 | IX5: 69.3 | IY5: 69.4 | IZ5: 69.5 | JA5: 69.6 | JB5: 69.7 | JC5: 64.3 | JD5: 65 | JE5: 65.7 | JF5: 66.4 | JG5: 67.1 | JH5: 67.8 | JI5: 68.5 | JJ5: 69.2 | JK5: 69.9 | JL5: 70.6 | JM5: 71.3 | JN5: 72 | JO5: 72.7 | JP5: 73.4 | JQ5: 74.1 | JR5: 74.8 | JS5: 75.5 | JT5: 76.2 | JU5: 76.9 | JV5: 77.6 | JW5: 78.3 | JX5: 0.2 | KD5: 0.2 | KE5: 3 | KF5: 12.22 | KG5: 10.72 | KH5: 9.41 | KI5: 8.28 | KJ5: 7.35 | KK5: 2.6 | KL5: 2.09 | KM5: 5.83 | KN5: 5.73 | KO5: 5.71 | KP5: 5.7 | KQ5: 5.65 | KR5: 5.6 | KS5: 5.64 | KT5: 1.83 | KU5: 2.24 | KV5: 7 | KW5: 8.07 | KX5: 9.25 | KY5: 10.33 | KZ5: 11.1 | LA5: 5.7 | LB5: 6.77 | LC5: 7.68 | LD5: 4.42 | LE5: 4.99 | LF5: 9.4 | LG5: 9.58 | LH5: 9.52 | LI5: 9.33 | LJ5: 9.11 | LK5: 8.98 | LL5: 8.95 | LM5: 4.94 | LN5: 4.93 | LO5: 8.91 | LP5: 8.84 | LQ5: 8.73 | LR5: 8.58 | LS5: 8.41 | LT5: 8.21 | LU5: 7.98 | MC5: 0.2 | MD5: 3 | ME5: 12.2425 | MF5: 10.865 | MG5: 9.64 | MH5: 8.5725 | MI5: 5.665 | MJ5: 2.92 | MK5: 4.3475 | ML5: 5.9375 | MM5: 5.665 | MN5: 5.505 | MO5: 5.44 | MP5: 5.4725 | MQ5: 5.62 | MR5: 3.9 | MS5: 2.3325 | MT5: 4.9875 | MU5: 7.915 | MV5: 9.0225 | MW5: 10.13 | MX5: 11.055 | MY5: 6.6675 | MZ5: 7.74 | NA5: 6.6675 | NB5: 5.42 | NC5: 7.975 | ND5: 10.275 | NE5: 10.28 | NF5: 10.0675 | NG5: 9.7775 | NH5: 9.555 | NI5: 9.5025 | NJ5: 7.6 | NK5: 5.7525 | NL5: 7.875 | NM5: 9.88 | NN5: 9.72 | NO5: 9.425 | NP5: 9.025 | NQ5: 8.52 | NR5: 7.91 | NU5: 0.2 | NV5: 3 | NW5: 6.1 | NX5: 7.9 | NY5: 11.33 | NZ5: 11.33 | OA5: 15.63 | OB5: 23.66 | OC5: 15.63 | OD5: 15.63 | OE5: 15.63 | OF5: 15.63 | OG5: 15.63 | OH5: 15.63 | OI5: 15.63 | OJ5: 23.66 | OK5: 23.66 | OL5: 15.63 | OM5: 11.98 | ON5: 11.33 | OO5: 7.9 | OP5: 7.9 | OQ5: 11.98 | OR5: 11.98 | OS5: 11.98 | OT5: 15.63 | OU5: 11.98 | OV5: 7.9 | OW5: 7.9 | OX5: 7.9 | OY5: 11.33 | OZ5: 11.33 | PA5: 11.33 | PB5: 11.98 | PC5: 15.63 | PD5: 11.98 | PE5: 11.33 | PF5: 11.33 | PG5: 11.33 | PH5: 11.33 | PI5: 11.33 | PJ5: 11.98 | PM5: 0.2 | PN5: 3 | PO5: -25.54 | PP5: -23.74 | PQ5: -20.31 | PR5: -12.33 | PS5: -16.01 | PT5: -7.98 | PU5: -8.03 | PV5: 3.65 | PW5: 4.3 | PX5: 7.73 | PY5: 7.73 | PZ5: 4.3 | QA5: 4.3 | QB5: 8.03 | QC5: -7.98 | QD5: -8.03 | QE5: -11.68 | QF5: -12.33 | QG5: -15.76 | QH5: -23.74 | QI5: -3.65 | QJ5: -3.65 | QK5: -11.68 | QL5: -16.01 | QM5: -11.68 | QN5: -7.73 | QO5: -7.73 | QP5: -15.76 | QQ5: -12.33 | QR5: -12.33 | QS5: -4.3 | QT5: -11.68 | QU5: -16.01 | QV5: -11.68 | QW5: -0.65 | QX5: -0.65 | QY5: -4.3 | QZ5: -4.3 | RA5: -4.3 | RB5: -3.65 | RE5: 0.2 | RF5: 3 | RG5: 0 | RH5: 0 | RI5: 0 | RJ5: 0 | RK5: 0 | RL5: 0 | RM5: 0 | RN5: 0 | RO5: 0 | RP5: 0 | RQ5: 0 | RR5: 0 | RS5: 0 | RT5: 0 | RU5: 0 | RV5: 0 | RW5: 0 | RX5: 0 | RY5: 0 | RZ5: 0 | SA5: 0 | SB5: 0 | SC5: 0 | SD5: 0 | SE5: 0 | SF5: 0 | SG5: 0 | SH5: 0 | SI5: 0 | SJ5: 0 | SK5: 0 | SL5: 0 | SM5: 0 | SN5: 0 | SO5: 0 | SP5: 0 | SQ5: 0 | SR5: 0 | SS5: 0 | ST5: 0 | SU5: 0 | SV5: 0.2 | SX5: 0.2 | SY5: 3 | SZ5: 0 | TA5: 0 | TB5: 0 | TC5: 0 | TD5: 0 | TE5: 0 | TF5: 0 | TG5: 0 | TH5: 0 | TI5: 0 | TJ5: 0 | TK5: 0 | TL5: 0 | TM5: 0 | TN5: 0 | TO5: 0 | TP5: 0 | TQ5: 0 | TR5: 0 | TS5: 0 | TT5: 0 | TU5: 0 | TV5: 0 | TW5: 0 | TX5: 0 | TY5: 0 | TZ5: 0 | UA5: 0 | UB5: 0 | UC5: 0 | UD5: 0 | UE5: 0 | UF5: 0 | UG5: 0 | UH5: 0 | UI5: 0 | UJ5: 0 | UK5: 0 | UL5: 0 | UM5: 0 | UN5: 0 | UO5: 0.2 | UQ5: 0.2 | UR5: 3 | US5: 1 | UT5: 0 | UU5: 0 | UV5: 0 | UW5: 0 | UX5: 0 | UY5: 0 | UZ5: 0 | VA5: 0 | VB5: 0 | VC5: 0 | VD5: 0 | VE5: 0 | VF5: 0 | VG5: 0 | VH5: 0 | VI5: 0 | VJ5: 0 | VK5: 0 | VL5: 0 | VM5: 1 | VN5: 0 | VO5: 0 | VP5: 0 | VQ5: 0 | VR5: 0 | VS5: 0 | VT5: 0 | VU5: 0 | VV5: 0 | VW5: 0 | VX5: 0 | VY5: 0 | VZ5: 0 | WA5: 0 | WB5: 0 | WC5: 0 | WD5: 0 | WE5: 0 | WF5: 0 | WG5: 1 | WH5: 0.2 | WJ5: 0.2 | WK5: 3 | WL5: 55.48 | WM5: 0 | WN5: 0 | WO5: 0 | WP5: 0 | WQ5: 0 | WR5: 0 | WS5: 0 | WT5: 0 | WU5: 0 | WV5: 0 | WW5: 0 | WX5: 0 | WY5: 0 | WZ5: 0 | XA5: 0 | XB5: 0 | XC5: 0 | XD5: 0 | XE5: 0 | XF5: 58.6 | XG5: 0 | XH5: 0 | XI5: 0 | XJ5: 0 | XK5: 0 | XL5: 0 | XM5: 0 | XN5: 0 | XO5: 0 | XP5: 0 | XQ5: 0 | XR5: 0 | XS5: 0 | XT5: 0 | XU5: 0 | XV5: 0 | XW5: 0 | XX5: 0 | XY5: 0 | XZ5: 70.32 | YA5: 0.2 | YC5: 0.2 | YD5: 3 | YE5: =YE4 -> 4 | YF5: =YF4 -> 4 | YG5: =YG4 -> 4 | YH5: =YH4 -> 4 | YI5: =YI4 -> 4 | YJ5: =YJ4 -> 4 | YK5: =YK4 -> 4 | YL5: =YL4 -> 4 | YM5: =YM4 -> 4 | YN5: =YN4 -> 4 | YO5: =YO4 -> 4 | YP5: =YP4 -> 4 | YQ5: =YQ4 -> 4 | YR5: =YR4 -> 4 | YS5: =YS4 -> 4 | YT5: =YT4 -> 4 | YU5: =YU4 -> 4 | YV5: =YV4 -> 4 | YW5: =YW4 -> 4 | YX5: =YX4 -> 4 | YY5: =YX5 -> 4 | YZ5: 5 | ZA5: =ZA4 -> 5 | ZB5: 5 | ZC5: 5 | ZD5: 5 | ZE5: 5 | ZF5: 5 | ZG5: 5 | ZH5: 5 | ZI5: 5 | ZJ5: 5 | ZK5: 5 | ZL5: 5 | ZM5: 5 | ZN5: 5 | ZO5: 5 | ZP5: 5 | ZQ5: 5 | ZR5: 5 | ZS5: 5 | ZT5: =ZS5 -> 5 | ZU5: 0.2 | ZW5: 0.2 | ZX5: 3 | ZY5: 0 | ZZ5: 0 | AAA5: 0 | AAB5: 0 | AAC5: 0 | AAD5: 4 | AAE5: 4 | AAF5: 0 | AAG5: 0 | AAH5: 0 | AAI5: 0 | AAJ5: 0 | AAK5: 0 | AAL5: 0 | AAM5: 4 | AAN5: 4 | AAO5: 0 | AAP5: 0 | AAQ5: 0 | AAR5: 0 | AAS5: 0 | AAT5: 0 | AAU5: 0 | AAV5: 0 | AAW5: 4 | AAX5: 4 | AAY5: 0 | AAZ5: 0 | ABA5: 0 | ABB5: 0 | ABC5: 0 | ABD5: 0 | ABE5: 0 | ABF5: 4 | ABG5: 4 | ABH5: 0 | ABI5: 0 | ABJ5: 0 | ABK5: 0 | ABL5: 0 | ABM5: 0 | ABN5: 0 | ABO5: 0.2 | ABQ5: 0.2 | ABR5: 3 | ABS5: 1 | ABT5: 0 | ABU5: 0 | ABV5: 0 | ABW5: 0 | ABX5: 0 | ABY5: 0 | ABZ5: 0 | ACA5: 0 | ACB5: 0 | ACC5: 0 | ACD5: 0 | ACE5: 0 | ACF5: 0 | ACG5: 0 | ACH5: 0 | ACI5: 0 | ACJ5: 0 | ACK5: 0 | ACL5: 0 | ACM5: 1 | ACN5: 57 | ACO5: =ACO4 -> 57 | ACP5: 57 | ACQ5: 57 | ACR5: 57 | ACS5: 57 | ACT5: 57 | ACU5: 57 | ACV5: 57 | ACW5: 57 | ACX5: 57 | ACY5: 57 | ACZ5: 57 | ADA5: 57 | ADB5: 57 | ADC5: 57 | ADD5: 57 | ADE5: 57 | ADF5: 57 | ADG5: 57 | ADH5: =ADG5 -> 57 | ADI5: 0.2
A6: 4 | B6: D | C6: 46 | D6: 47 | E6: 52 | F6: 59 | G6: 62 | H6: 66 | I6: 67 | J6: 66 | K6: 70 | M6: 1C | N6: =ROUND('3D Interpolace'!M7,2) -> 54.08 | O6: =ROUND('3D Interpolace'!N7,2) -> 55.59 | P6: =ROUND('3D Interpolace'!O7,2) -> 56.98 | Q6: =ROUND('3D Interpolace'!P7,2) -> 58.25 | R6: =ROUND('3D Interpolace'!Q7,2) -> 59.39 | S6: =ROUND('3D Interpolace'!R7,2) -> 60.4 | T6: =ROUND('3D Interpolace'!S7,2) -> 61.31 | U6: =ROUND('3D Interpolace'!T7,2) -> 62.12 | V6: =ROUND('3D Interpolace'!U7,2) -> 62.79 | W6: =ROUND('3D Interpolace'!V7,2) -> 63.29 | X6: =ROUND('3D Interpolace'!W7,2) -> 63.6 | Y6: =ROUND('3D Interpolace'!X7,2) -> 63.69 | Z6: =ROUND('3D Interpolace'!Y7,2) -> 63.57 | AA6: =ROUND('3D Interpolace'!Z7,2) -> 63.29 | AB6: =ROUND('3D Interpolace'!AA7,2) -> 62.88 | AC6: =ROUND('3D Interpolace'!AB7,2) -> 62.36 | AD6: =ROUND('3D Interpolace'!AC7,2) -> 61.63 | AE6: =ROUND('3D Interpolace'!AD7,2) -> 60.68 | AF6: =ROUND('3D Interpolace'!AE7,2) -> 59.65 | AG6: =ROUND('3D Interpolace'!AF7,2) -> 58.71 | AH6: =ROUND('3D Interpolace'!AG7,2) -> 58 | AI6: =ROUND('3D Interpolace'!AH7,2) -> 57.5 | AJ6: =ROUND('3D Interpolace'!AI7,2) -> 57.09 | AK6: =ROUND('3D Interpolace'!AJ7,2) -> 56.84 | AL6: =ROUND('3D Interpolace'!AK7,2) -> 56.79 | AM6: =ROUND('3D Interpolace'!AL7,2) -> 57 | AN6: =ROUND('3D Interpolace'!AM7,2) -> 57.58 | AO6: =ROUND('3D Interpolace'!AN7,2) -> 58.5 | AP6: =ROUND('3D Interpolace'!AO7,2) -> 59.58 | AQ6: =ROUND('3D Interpolace'!AP7,2) -> 60.65 | AR6: =ROUND('3D Interpolace'!AQ7,2) -> 61.52 | AS6: =ROUND('3D Interpolace'!AR7,2) -> 62.1 | AT6: =ROUND('3D Interpolace'!AS7,2) -> 62.49 | AU6: =ROUND('3D Interpolace'!AT7,2) -> 62.87 | AV6: =ROUND('3D Interpolace'!AU7,2) -> 63.37 | AW6: =ROUND('3D Interpolace'!AV7,2) -> 64.16 | AX6: =ROUND('3D Interpolace'!AW7,2) -> 65.23 | AY6: =ROUND('3D Interpolace'!AX7,2) -> 66.48 | AZ6: =ROUND('3D Interpolace'!AY7,2) -> 67.91 | BA6: =ROUND('3D Interpolace'!AZ7,2) -> 69.53 | BB6: =ROUND('3D Interpolace'!BA7,2) -> 71.32 | BD6: 0.3 | BE6: 4 | BK6: 4 | BL6: 4 | BT6: 4 | BU6: 4 | CC6: 4 | CD6: 4 | CL6: 4 | CM6: 4 | CU6: 0.3 | CW6: 0.3 | CX6: 4 | CY6: 54.08 | CZ6: 55.59 | DA6: 56.98 | DB6: 58.25 | DC6: 59.39 | DD6: 64.4 | DE6: 65.31 | DF6: 62.12 | DG6: 62.79 | DH6: 63.29 | DI6: 63.6 | DJ6: 63.69 | DK6: 63.57 | DL6: 63.29 | DM6: 66.88 | DN6: 66.36 | DO6: 61.63 | DP6: 60.68 | DQ6: 59.65 | DR6: 58.71 | DS6: 58 | DT6: 57.5 | DU6: 57.09 | DV6: 60.84 | DW6: 60.79 | DX6: 57 | DY6: 57.58 | DZ6: 58.5 | EA6: 59.58 | EB6: 60.65 | EC6: 61.52 | ED6: 62.1 | EE6: 66.49 | EF6: 66.87 | EG6: 63.37 | EH6: 64.16 | EI6: 65.23 | EJ6: 66.48 | EK6: 67.91 | EL6: 69.53 | EM6: 71.32 | EN6: 0.3 | EP6: 0.3 | EQ6: 4 | ER6: 54.08 | ES6: 55.59 | ET6: 56.98 | EU6: 58.25 | EV6: 59.39 | EW6: 64.4 | EX6: 65.31 | EY6: 62.12 | EZ6: 62.79 | FA6: 63.29 | FB6: 63.6 | FC6: 63.69 | FD6: 63.57 | FE6: 63.29 | FF6: 66.88 | FG6: 66.36 | FH6: 61.63 | FI6: 60.68 | FJ6: 59.65 | FK6: 58.71 | FL6: 58 | FM6: 58 | FN6: 57.5 | FO6: 57.09 | FP6: 60.84 | FQ6: 60.79 | FR6: 57 | FS6: 57.58 | FT6: 58.5 | FU6: 59.58 | FV6: 60.65 | FW6: 61.52 | FX6: 62.1 | FY6: 66.49 | FZ6: 66.87 | GA6: 63.37 | GB6: 64.16 | GC6: 65.23 | GD6: 66.48 | GE6: 67.91 | GF6: 69.53 | GG6: 71.32 | GK6: 0.3 | GL6: 4 | GM6: 0 | GN6: 0 | GO6: 0 | GP6: 0 | GQ6: 0 | GR6: 64.4 | GS6: 0 | GT6: 0 | GU6: 0 | GV6: 0 | GW6: 0 | GX6: 0 | GY6: 0 | GZ6: 0 | HA6: 0 | HB6: 66.36 | HC6: 0 | HD6: 0 | HE6: 0 | HF6: 0 | HG6: 0 | HH6: 0 | HI6: 0 | HJ6: 0 | HK6: 0 | HL6: 0 | HM6: 0 | HN6: 0 | HO6: 0 | HP6: 0 | HQ6: 0 | HR6: 0 | HS6: 0 | HT6: 0 | HU6: 0 | HV6: 0 | HW6: 0 | HX6: 0 | HY6: 0 | HZ6: 0 | IA6: 0 | IB6: 0 | IC6: 0.3 | IG6: 4 | IH6: 67.8 | II6: 67.9 | IJ6: 68 | IK6: 68.1 | IL6: 68.2 | IM6: 68.3 | IN6: 68.4 | IO6: 68.5 | IP6: 68.6 | IQ6: 68.7 | IR6: 68.8 | IS6: 68.9 | IT6: 69 | IU6: 69.1 | IV6: 69.2 | IW6: 69.3 | IX6: 69.4 | IY6: 69.5 | IZ6: 69.6 | JA6: 69.7 | JB6: 69.8 | JC6: 64.5 | JD6: 65.2 | JE6: 65.9 | JF6: 66.6 | JG6: 67.3 | JH6: 68 | JI6: 68.7 | JJ6: 69.4 | JK6: 70.1 | JL6: 70.8 | JM6: 71.5 | JN6: 72.2 | JO6: 72.9 | JP6: 73.6 | JQ6: 74.3 | JR6: 75 | JS6: 75.7 | JT6: 76.4 | JU6: 77.1 | JV6: 77.8 | JW6: 78.5 | JX6: 0.3 | KD6: 0.3 | KE6: 4 | KF6: 13.72 | KG6: 12.31 | KH6: 11.02 | KI6: 9.85 | KJ6: 8.81 | KK6: 3.9 | KL6: 3.09 | KM6: 6.38 | KN6: 5.81 | KO6: 5.41 | KP6: 5.2 | KQ6: 5.21 | KR6: 5.43 | KS6: 5.81 | KT6: 2.32 | KU6: 2.94 | KV6: 7.77 | KW6: 8.82 | KX6: 9.95 | KY6: 10.99 | KZ6: 11.8 | LA6: 6.5 | LB6: 7.7 | LC6: 8.81 | LD6: 5.76 | LE6: 6.51 | LF6: 11 | LG6: 11.12 | LH6: 10.9 | LI6: 10.52 | LJ6: 10.15 | LK6: 9.98 | LL6: 10.1 | LM6: 6.41 | LN6: 6.73 | LO6: 10.93 | LP6: 10.84 | LQ6: 10.47 | LR6: 9.92 | LS6: 9.19 | LT6: 8.27 | LU6: 7.18 | MC6: 0.3 | MD6: 4 | ME6: 13.67 | MF6: 12.36 | MG6: 11.15 | MH6: 10.04 | MI6: 7.03 | MJ6: 4.0975 | MK6: 5.2225 | ML6: 6.4375 | MM6: 5.8075 | MN6: 5.395 | MO6: 5.25 | MP6: 5.375 | MQ6: 5.7175 | MR6: 4.2175 | MS6: 2.825 | MT6: 5.5625 | MU6: 8.49 | MV6: 9.5575 | MW6: 10.6225 | MX6: 11.5425 | MY6: 7.3225 | MZ6: 8.535 | NA6: 7.64 | NB6: 6.565 | NC6: 9.2375 | ND6: 11.5525 | NE6: 11.4675 | NF6: 11.11 | NG6: 10.6825 | NH6: 10.3875 | NI6: 10.395 | NJ6: 8.7075 | NK6: 7.155 | NL6: 9.5325 | NM6: 11.64 | NN6: 11.375 | NO6: 10.81 | NP6: 10.01 | NQ6: 8.97 | NR6: 7.695 | NU6: 0.3 | NV6: 4 | NW6: 6.1 | NX6: 6.1 | NY6: 7.9 | NZ6: 7.9 | OA6: 11.98 | OB6: 15.63 | OC6: 15.63 | OD6: 11.98 | OE6: 15.63 | OF6: 15.63 | OG6: 15.63 | OH6: 15.63 | OI6: 15.63 | OJ6: 15.63 | OK6: 23.66 | OL6: 15.63 | OM6: 11.33 | ON6: 11.33 | OO6: 7.9 | OP6: 7.9 | OQ6: 11.98 | OR6: 11.33 | OS6: 11.98 | OT6: 11.98 | OU6: 11.33 | OV6: 7.9 | OW6: 7.9 | OX6: 7.9 | OY6: 7.9 | OZ6: 7.9 | PA6: 7.9 | PB6: 11.33 | PC6: 11.98 | PD6: 11.33 | PE6: 7.9 | PF6: 7.9 | PG6: 7.9 | PH6: 7.9 | PI6: 11.33 | PJ6: 11.98 | PM6: 0.3 | PN6: 4 | PO6: -25.54 | PP6: -25.54 | PQ6: -15.76 | PR6: -15.76 | PS6: -19.66 | PT6: -16.01 | PU6: -8.03 | PV6: 0 | PW6: 3.65 | PX6: 4.3 | PY6: 7.73 | PZ6: 4.3 | QA6: 3.65 | QB6: 0 | QC6: -7.98 | QD6: -8.03 | QE6: -12.33 | QF6: -12.33 | QG6: -15.76 | QH6: -23.74 | QI6: -11.68 | QJ6: -4.3 | QK6: -11.68 | QL6: -19.66 | QM6: -12.33 | QN6: -7.73 | QO6: -7.73 | QP6: -15.76 | QQ6: -15.76 | QR6: -23.74 | QS6: -7.73 | QT6: -12.33 | QU6: -19.66 | QV6: -12.33 | QW6: -4.08 | QX6: -4.08 | QY6: -7.73 | QZ6: -7.73 | RA6: -4.3 | RB6: -11.68 | RE6: 0.3 | RF6: 4 | RG6: 0 | RH6: 0 | RI6: 0 | RJ6: 0 | RK6: 0 | RL6: 0 | RM6: 0 | RN6: 0 | RO6: 0 | RP6: 0 | RQ6: 0 | RR6: 0 | RS6: 0 | RT6: 0 | RU6: 0 | RV6: 0 | RW6: 0 | RX6: 0 | RY6: 0 | RZ6: 0 | SA6: 0 | SB6: 0 | SC6: 0 | SD6: 0 | SE6: 0 | SF6: 0 | SG6: 0 | SH6: 0 | SI6: 0 | SJ6: 0 | SK6: 0 | SL6: 0 | SM6: 0 | SN6: 0 | SO6: 0 | SP6: 0 | SQ6: 0 | SR6: 0 | SS6: 0 | ST6: 0 | SU6: 0 | SV6: 0.3 | SX6: 0.3 | SY6: 4 | SZ6: 0 | TA6: 0 | TB6: 0 | TC6: 0 | TD6: 0 | TE6: 0 | TF6: 0 | TG6: 0 | TH6: 0 | TI6: 0 | TJ6: 0 | TK6: 0 | TL6: 0 | TM6: 0 | TN6: 0 | TO6: 0 | TP6: 0 | TQ6: 0 | TR6: 0 | TS6: 0 | TT6: 0 | TU6: 0 | TV6: 0 | TW6: 0 | TX6: 0 | TY6: 0 | TZ6: 0 | UA6: 0 | UB6: 0 | UC6: 0 | UD6: 0 | UE6: 0 | UF6: 0 | UG6: 0 | UH6: 0 | UI6: 0 | UJ6: 0 | UK6: 0 | UL6: 0 | UM6: 0 | UN6: 69.53 | UO6: 0.3 | UQ6: 0.3 | UR6: 4 | US6: 1 | UT6: 0 | UU6: 0 | UV6: 0 | UW6: 0 | UX6: 0 | UY6: 0 | UZ6: 0 | VA6: 0 | VB6: 0 | VC6: 0 | VD6: 0 | VE6: 0 | VF6: 0 | VG6: 0 | VH6: 0 | VI6: 0 | VJ6: 0 | VK6: 0 | VL6: 0 | VM6: 1 | VN6: 0 | VO6: 0 | VP6: 0 | VQ6: 0 | VR6: 0 | VS6: 0 | VT6: 0 | VU6: 0 | VV6: 0 | VW6: 0 | VX6: 0 | VY6: 0 | VZ6: 0 | WA6: 0 | WB6: 0 | WC6: 0 | WD6: 0 | WE6: 0 | WF6: 0 | WG6: 1 | WH6: 0.3 | WJ6: 0.3 | WK6: 4 | WL6: 54.08 | WM6: 0 | WN6: 0 | WO6: 0 | WP6: 0 | WQ6: 0 | WR6: 0 | WS6: 0 | WT6: 0 | WU6: 0 | WV6: 0 | WW6: 0 | WX6: 0 | WY6: 0 | WZ6: 0 | XA6: 0 | XB6: 0 | XC6: 0 | XD6: 0 | XE6: 0 | XF6: 58 | XG6: 0 | XH6: 0 | XI6: 0 | XJ6: 0 | XK6: 0 | XL6: 0 | XM6: 0 | XN6: 0 | XO6: 0 | XP6: 0 | XQ6: 0 | XR6: 0 | XS6: 0 | XT6: 0 | XU6: 0 | XV6: 0 | XW6: 0 | XX6: 0 | XY6: 0 | XZ6: 71.32 | YA6: 0.3 | YC6: 0.3 | YD6: 4 | YE6: 4 | YF6: 4 | YG6: 4 | YH6: 4 | YI6: 4 | YJ6: 4 | YK6: 4 | YL6: 4 | YM6: 4 | YN6: 4 | YO6: 4 | YP6: 4 | YQ6: 4 | YR6: 4 | YS6: 4 | YT6: 4 | YU6: 4 | YV6: 4 | YW6: 4 | YX6: 4 | YY6: 4 | YZ6: 5 | ZA6: 5 | ZB6: 5 | ZC6: 5 | ZD6: 5 | ZE6: 5 | ZF6: 5 | ZG6: 5 | ZH6: 5 | ZI6: 5 | ZJ6: 5 | ZK6: 5 | ZL6: 5 | ZM6: 5 | ZN6: 5 | ZO6: 5 | ZP6: 5 | ZQ6: 5 | ZR6: 5 | ZS6: 5 | ZT6: 5 | ZU6: 0.3 | ZW6: 0.3 | ZX6: 4 | ZY6: 0 | ZZ6: 0 | AAA6: 0 | AAB6: 0 | AAC6: 0 | AAD6: 4 | AAE6: 4 | AAF6: 0 | AAG6: 0 | AAH6: 0 | AAI6: 0 | AAJ6: 0 | AAK6: 0 | AAL6: 0 | AAM6: 4 | AAN6: 4 | AAO6: 0 | AAP6: 0 | AAQ6: 0 | AAR6: 0 | AAS6: 0 | AAT6: 0 | AAU6: 0 | AAV6: 0 | AAW6: 4 | AAX6: 4 | AAY6: 0 | AAZ6: 0 | ABA6: 0 | ABB6: 0 | ABC6: 0 | ABD6: 0 | ABE6: 0 | ABF6: 4 | ABG6: 4 | ABH6: 0 | ABI6: 0 | ABJ6: 0 | ABK6: 0 | ABL6: 0 | ABM6: 0 | ABN6: 0 | ABO6: 0.3 | ABQ6: 0.3 | ABR6: 4 | ABS6: 1 | ABT6: 0 | ABU6: 0 | ABV6: 0 | ABW6: 0 | ABX6: 0 | ABY6: 0 | ABZ6: 0 | ACA6: 0 | ACB6: 0 | ACC6: 0 | ACD6: 0 | ACE6: 0 | ACF6: 0 | ACG6: 0 | ACH6: 0 | ACI6: 0 | ACJ6: 0 | ACK6: 0 | ACL6: 0 | ACM6: 1 | ACN6: 57 | ACO6: 57 | ACP6: 57 | ACQ6: 57 | ACR6: 57 | ACS6: 57 | ACT6: 57 | ACU6: 57 | ACV6: 57 | ACW6: 57 | ACX6: 57 | ACY6: 57 | ACZ6: 57 | ADA6: 57 | ADB6: 57 | ADC6: 57 | ADD6: 57 | ADE6: 57 | ADF6: 57 | ADG6: 57 | ADH6: 57 | ADI6: 0.3
A7: 5 | B7: E | C7: 41 | D7: 42 | E7: 40 | F7: 52 | G7: 53 | H7: 59 | I7: 59 | J7: 64 | K7: 73 | M7: 1D | N7: =ROUND('3D Interpolace'!M8,2) -> 52.92 | O7: =ROUND('3D Interpolace'!N8,2) -> 54.33 | P7: =ROUND('3D Interpolace'!O8,2) -> 55.66 | Q7: =ROUND('3D Interpolace'!P8,2) -> 56.91 | R7: =ROUND('3D Interpolace'!Q8,2) -> 58.09 | S7: =ROUND('3D Interpolace'!R8,2) -> 59.2 | T7: =ROUND('3D Interpolace'!S8,2) -> 60.3 | U7: =ROUND('3D Interpolace'!T8,2) -> 61.38 | V7: =ROUND('3D Interpolace'!U8,2) -> 62.36 | W7: =ROUND('3D Interpolace'!V8,2) -> 63.13 | X7: =ROUND('3D Interpolace'!W8,2) -> 63.6 | Y7: =ROUND('3D Interpolace'!X8,2) -> 63.71 | Z7: =ROUND('3D Interpolace'!Y8,2) -> 63.53 | AA7: =ROUND('3D Interpolace'!Z8,2) -> 63.14 | AB7: =ROUND('3D Interpolace'!AA8,2) -> 62.62 | AC7: =ROUND('3D Interpolace'!AB8,2) -> 62.04 | AD7: =ROUND('3D Interpolace'!AC8,2) -> 61.32 | AE7: =ROUND('3D Interpolace'!AD8,2) -> 60.41 | AF7: =ROUND('3D Interpolace'!AE8,2) -> 59.43 | AG7: =ROUND('3D Interpolace'!AF8,2) -> 58.52 | AH7: =ROUND('3D Interpolace'!AG8,2) -> 57.8 | AI7: =ROUND('3D Interpolace'!AH8,2) -> 57.21 | AJ7: =ROUND('3D Interpolace'!AI8,2) -> 56.66 | AK7: =ROUND('3D Interpolace'!AJ8,2) -> 56.25 | AL7: =ROUND('3D Interpolace'!AK8,2) -> 56.06 | AM7: =ROUND('3D Interpolace'!AL8,2) -> 56.2 | AN7: =ROUND('3D Interpolace'!AM8,2) -> 56.81 | AO7: =ROUND('3D Interpolace'!AN8,2) -> 57.84 | AP7: =ROUND('3D Interpolace'!AO8,2) -> 59.04 | AQ7: =ROUND('3D Interpolace'!AP8,2) -> 60.2 | AR7: =ROUND('3D Interpolace'!AQ8,2) -> 61.08 | AS7: =ROUND('3D Interpolace'!AR8,2) -> 61.52 | AT7: =ROUND('3D Interpolace'!AS8,2) -> 61.66 | AU7: =ROUND('3D Interpolace'!AT8,2) -> 61.76 | AV7: =ROUND('3D Interpolace'!AU8,2) -> 62.07 | AW7: =ROUND('3D Interpolace'!AV8,2) -> 62.84 | AX7: =ROUND('3D Interpolace'!AW8,2) -> 64.07 | AY7: =ROUND('3D Interpolace'!AX8,2) -> 65.58 | AZ7: =ROUND('3D Interpolace'!AY8,2) -> 67.39 | BA7: =ROUND('3D Interpolace'!AZ8,2) -> 69.49 | BB7: =ROUND('3D Interpolace'!BA8,2) -> 71.88 | BD7: 0.4 | BE7: 5 | BK7: 4 | BL7: 4 | BT7: 4 | BU7: 4 | CC7: 4 | CD7: 4 | CL7: 4 | CM7: 4 | CU7: 0.4 | CW7: 0.4 | CX7: 5 | CY7: 52.92 | CZ7: 54.33 | DA7: 55.66 | DB7: 56.91 | DC7: 58.09 | DD7: 63.2 | DE7: 64.3 | DF7: 61.38 | DG7: 62.36 | DH7: 63.13 | DI7: 63.6 | DJ7: 63.71 | DK7: 63.53 | DL7: 63.14 | DM7: 66.62 | DN7: 66.04 | DO7: 61.32 | DP7: 60.41 | DQ7: 59.43 | DR7: 58.52 | DS7: 57.8 | DT7: 57.21 | DU7: 56.66 | DV7: 60.25 | DW7: 60.06 | DX7: 56.2 | DY7: 56.81 | DZ7: 57.84 | EA7: 59.04 | EB7: 60.2 | EC7: 61.08 | ED7: 61.52 | EE7: 65.66 | EF7: 65.76 | EG7: 62.07 | EH7: 62.84 | EI7: 64.07 | EJ7: 65.58 | EK7: 67.39 | EL7: 69.49 | EM7: 71.88 | EN7: 0.4 | EP7: 0.4 | EQ7: 5 | ER7: 52.92 | ES7: 54.33 | ET7: 55.66 | EU7: 56.91 | EV7: 58.09 | EW7: 63.2 | EX7: 64.3 | EY7: 61.38 | EZ7: 62.36 | FA7: 63.13 | FB7: 63.6 | FC7: 63.71 | FD7: 63.53 | FE7: 63.14 | FF7: 66.62 | FG7: 66.04 | FH7: 61.32 | FI7: 60.41 | FJ7: 59.43 | FK7: 58.52 | FL7: 57.8 | FM7: 57.8 | FN7: 57.21 | FO7: 56.66 | FP7: 60.25 | FQ7: 60.06 | FR7: 56.2 | FS7: 56.81 | FT7: 57.84 | FU7: 59.04 | FV7: 60.2 | FW7: 61.08 | FX7: 61.52 | FY7: 65.66 | FZ7: 65.76 | GA7: 62.07 | GB7: 62.84 | GC7: 64.07 | GD7: 65.58 | GE7: 67.39 | GF7: 69.49 | GG7: 71.88 | GK7: 0.4 | GL7: 5 | GM7: 0 | GN7: 0 | GO7: 0 | GP7: 0 | GQ7: 0 | GR7: 63.2 | GS7: 0 | GT7: 0 | GU7: 0 | GV7: 0 | GW7: 0 | GX7: 0 | GY7: 0 | GZ7: 0 | HA7: 0 | HB7: 66.04 | HC7: 0 | HD7: 0 | HE7: 0 | HF7: 0 | HG7: 0 | HH7: 0 | HI7: 0 | HJ7: 0 | HK7: 0 | HL7: 0 | HM7: 0 | HN7: 0 | HO7: 0 | HP7: 0 | HQ7: 0 | HR7: 0 | HS7: 0 | HT7: 0 | HU7: 0 | HV7: 0 | HW7: 0 | HX7: 0 | HY7: 0 | HZ7: 0 | IA7: 0 | IB7: 0 | IC7: 0.4 | IG7: 5 | IH7: 67.9 | II7: 68 | IJ7: 68.1 | IK7: 68.2 | IL7: 68.3 | IM7: 68.4 | IN7: 68.5 | IO7: 68.6 | IP7: 68.7 | IQ7: 68.8 | IR7: 68.9 | IS7: 69 | IT7: 69.1 | IU7: 69.2 | IV7: 69.3 | IW7: 69.4 | IX7: 69.5 | IY7: 69.6 | IZ7: 69.7 | JA7: 69.8 | JB7: 69.9 | JC7: 64.7 | JD7: 65.4 | JE7: 66.1 | JF7: 66.8 | JG7: 67.5 | JH7: 68.2 | JI7: 68.9 | JJ7: 69.6 | JK7: 70.3 | JL7: 71 | JM7: 71.7 | JN7: 72.4 | JO7: 73.1 | JP7: 73.8 | JQ7: 74.5 | JR7: 75.2 | JS7: 75.9 | JT7: 76.6 | JU7: 77.3 | JV7: 78 | JW7: 78.7 | JX7: 0.4 | KD7: 0.4 | KE7: 5 | KF7: 14.98 | KG7: 13.67 | KH7: 12.44 | KI7: 11.29 | KJ7: 10.21 | KK7: 5.2 | KL7: 4.2 | KM7: 7.22 | KN7: 6.34 | KO7: 5.67 | KP7: 5.3 | KQ7: 5.29 | KR7: 5.57 | KS7: 6.06 | KT7: 2.68 | KU7: 3.36 | KV7: 8.18 | KW7: 9.19 | KX7: 10.27 | KY7: 11.28 | KZ7: 12.1 | LA7: 6.9 | LB7: 8.19 | LC7: 9.44 | LD7: 6.55 | LE7: 7.44 | LF7: 12 | LG7: 12.09 | LH7: 11.76 | LI7: 11.26 | LJ7: 10.8 | LK7: 10.62 | LL7: 10.88 | LM7: 7.44 | LN7: 8.04 | LO7: 12.43 | LP7: 12.36 | LQ7: 11.83 | LR7: 11.02 | LS7: 9.91 | LT7: 8.51 | LU7: 6.82 | MC7: 0.4 | MD7: 5 | ME7: 14.8675 | MF7: 13.6525 | MG7: 12.4975 | MH7: 11.4 | MI7: 8.3575 | MJ7: 5.335 | MK7: 6.3 | ML7: 7.305 | MM7: 6.4575 | MN7: 5.8675 | MO7: 5.615 | MP7: 5.6875 | MQ7: 6.0125 | MR7: 4.5125 | MS7: 3.1125 | MT7: 5.82 | MU7: 8.6975 | MV7: 9.71 | MW7: 10.7325 | MX7: 11.64 | MY7: 7.5575 | MZ7: 8.8625 | NA7: 8.0925 | NB7: 7.1425 | NC7: 9.905 | ND7: 12.2425 | NE7: 12.11 | NF7: 11.67 | NG7: 11.1675 | NH7: 10.845 | NI7: 10.9225 | NJ7: 9.4125 | NK7: 8.095 | NL7: 10.685 | NM7: 12.9 | NN7: 12.6025 | NO7: 11.8875 | NP7: 10.8475 | NQ7: 9.48 | NR7: 7.7875 | NU7: 0.4 | NV7: 5 | NW7: 4.71 | NX7: 6.1 | NY7: 6.1 | NZ7: 7.9 | OA7: 11.33 | OB7: 15.63 | OC7: 11.98 | OD7: 11.98 | OE7: 11.98 | OF7: 15.63 | OG7: 15.63 | OH7: 15.63 | OI7: 11.98 | OJ7: 15.63 | OK7: 23.66 | OL7: 15.63 | OM7: 11.33 | ON7: 11.33 | OO7: 7.9 | OP7: 7.9 | OQ7: 11.98 | OR7: 11.33 | OS7: 11.33 | OT7: 11.98 | OU7: 11.33 | OV7: 6.1 | OW7: 6.1 | OX7: 7.9 | OY7: 7.9 | OZ7: 7.9 | PA7: 7.9 | PB7: 11.33 | PC7: 11.33 | PD7: 7.9 | PE7: 6.1 | PF7: 6.1 | PG7: 7.9 | PH7: 7.9 | PI7: 11.33 | PJ7: 11.98 | PM7: 0.4 | PN7: 5 | PO7: -26.93 | PP7: -25.54 | PQ7: -25.54 | PR7: -15.76 | PS7: -20.31 | PT7: -16.01 | PU7: -11.68 | PV7: -3.65 | PW7: 0 | PX7: 3.65 | PY7: 7.73 | PZ7: 4.3 | QA7: 0 | QB7: -8.03 | QC7: -7.98 | QD7: -16.01 | QE7: -12.33 | QF7: -12.33 | QG7: -23.74 | QH7: -23.74 | QI7: -11.68 | QJ7: -12.33 | QK7: -12.33 | QL7: -19.66 | QM7: -12.33 | QN7: -9.53 | QO7: -17.56 | QP7: -15.76 | QQ7: -23.74 | QR7: -23.74 | QS7: -15.76 | QT7: -20.31 | QU7: -20.31 | QV7: -15.76 | QW7: -9.53 | QX7: -9.53 | QY7: -7.73 | QZ7: -7.73 | RA7: -12.33 | RB7: -19.66 | RE7: 0.4 | RF7: 5 | RG7: 0 | RH7: 0 | RI7: 0 | RJ7: 0 | RK7: 0 | RL7: 0 | RM7: 0 | RN7: 0 | RO7: 0 | RP7: 0 | RQ7: 0 | RR7: 63.71 | RS7: 0 | RT7: 0 | RU7: 0 | RV7: 0 | RW7: 0 | RX7: 0 | RY7: 0 | RZ7: 0 | SA7: 0 | SB7: 0 | SC7: 0 | SD7: 0 | SE7: 0 | SF7: 0 | SG7: 0 | SH7: 0 | SI7: 0 | SJ7: 0 | SK7: 0 | SL7: 0 | SM7: 0 | SN7: 0 | SO7: 0 | SP7: 0 | SQ7: 0 | SR7: 0 | SS7: 0 | ST7: 0 | SU7: 0 | SV7: 0.4 | SX7: 0.4 | SY7: 5 | SZ7: 0 | TA7: 0 | TB7: 0 | TC7: 0 | TD7: 0 | TE7: 0 | TF7: 0 | TG7: 0 | TH7: 0 | TI7: 0 | TJ7: 0 | TK7: 63.71 | TL7: 0 | TM7: 0 | TN7: 0 | TO7: 0 | TP7: 0 | TQ7: 0 | TR7: 0 | TS7: 0 | TT7: 0 | TU7: 0 | TV7: 0 | TW7: 0 | TX7: 0 | TY7: 0 | TZ7: 0 | UA7: 0 | UB7: 0 | UC7: 0 | UD7: 0 | UE7: 0 | UF7: 0 | UG7: 0 | UH7: 0 | UI7: 0 | UJ7: 0 | UK7: 0 | UL7: 0 | UM7: 0 | UN7: 0 | UO7: 0.4 | UQ7: 0.4 | UR7: 5 | US7: 1 | UT7: 0 | UU7: 0 | UV7: 0 | UW7: 0 | UX7: 0 | UY7: 0 | UZ7: 0 | VA7: 0 | VB7: 0 | VC7: 0 | VD7: 0 | VE7: 0 | VF7: 0 | VG7: 0 | VH7: 0 | VI7: 0 | VJ7: 0 | VK7: 0 | VL7: 0 | VM7: 1 | VN7: 0 | VO7: 0 | VP7: 0 | VQ7: 0 | VR7: 0 | VS7: 0 | VT7: 0 | VU7: 0 | VV7: 0 | VW7: 0 | VX7: 0 | VY7: 0 | VZ7: 0 | WA7: 0 | WB7: 0 | WC7: 0 | WD7: 0 | WE7: 0 | WF7: 0 | WG7: 1 | WH7: 0.4 | WJ7: 0.4 | WK7: 5 | WL7: 52.92 | WM7: 0 | WN7: 0 | WO7: 0 | WP7: 0 | WQ7: 0 | WR7: 0 | WS7: 0 | WT7: 0 | WU7: 0 | WV7: 0 | WW7: 63.71 | WX7: 0 | WY7: 0 | WZ7: 0 | XA7: 0 | XB7: 0 | XC7: 0 | XD7: 0 | XE7: 0 | XF7: 57.8 | XG7: 0 | XH7: 0 | XI7: 0 | XJ7: 0 | XK7: 0 | XL7: 0 | XM7: 0 | XN7: 0 | XO7: 0 | XP7: 0 | XQ7: 0 | XR7: 0 | XS7: 0 | XT7: 0 | XU7: 0 | XV7: 0 | XW7: 0 | XX7: 0 | XY7: 0 | XZ7: 71.88 | YA7: 0.4 | YC7: 0.4 | YD7: 5 | YE7: 4 | YF7: 4 | YG7: 4 | YH7: 4 | YI7: 4 | YJ7: 4 | YK7: 4 | YL7: 4 | YM7: 4 | YN7: 4 | YO7: 4 | YP7: 4 | YQ7: 4 | YR7: 4 | YS7: 4 | YT7: 4 | YU7: 4 | YV7: 4 | YW7: 4 | YX7: 4 | YY7: 4 | YZ7: 5 | ZA7: 5 | ZB7: 5 | ZC7: 5 | ZD7: 5 | ZE7: 5 | ZF7: 5 | ZG7: 5 | ZH7: 5 | ZI7: 5 | ZJ7: 5 | ZK7: 5 | ZL7: 5 | ZM7: 5 | ZN7: 5 | ZO7: 5 | ZP7: 5 | ZQ7: 5 | ZR7: 5 | ZS7: 5 | ZT7: 5 | ZU7: 0.4 | ZW7: 0.4 | ZX7: 5 | ZY7: 0 | ZZ7: 0 | AAA7: 0 | AAB7: 0 | AAC7: 0 | AAD7: 4 | AAE7: 4 | AAF7: 0 | AAG7: 0 | AAH7: 0 | AAI7: 0 | AAJ7: 0 | AAK7: 0 | AAL7: 0 | AAM7: 4 | AAN7: 4 | AAO7: 0 | AAP7: 0 | AAQ7: 0 | AAR7: 0 | AAS7: 0 | AAT7: 0 | AAU7: 0 | AAV7: 0 | AAW7: 4 | AAX7: 4 | AAY7: 0 | AAZ7: 0 | ABA7: 0 | ABB7: 0 | ABC7: 0 | ABD7: 0 | ABE7: 0 | ABF7: 4 | ABG7: 4 | ABH7: 0 | ABI7: 0 | ABJ7: 0 | ABK7: 0 | ABL7: 0 | ABM7: 0 | ABN7: 0 | ABO7: 0.4 | ABQ7: 0.4 | ABR7: 5 | ABS7: 1 | ABT7: 0 | ABU7: 0 | ABV7: 0 | ABW7: 0 | ABX7: 0 | ABY7: 0 | ABZ7: 0 | ACA7: 0 | ACB7: 0 | ACC7: 0 | ACD7: 0 | ACE7: 0 | ACF7: 0 | ACG7: 0 | ACH7: 0 | ACI7: 0 | ACJ7: 0 | ACK7: 0 | ACL7: 0 | ACM7: 1 | ACN7: 57 | ACO7: 57 | ACP7: 57 | ACQ7: 57 | ACR7: 57 | ACS7: 57 | ACT7: 57 | ACU7: 57 | ACV7: 57 | ACW7: 57 | ACX7: 57 | ACY7: 57 | ACZ7: 57 | ADA7: 57 | ADB7: 57 | ADC7: 57 | ADD7: 57 | ADE7: 57 | ADF7: 57 | ADG7: 57 | ADH7: 57 | ADI7: 0.4
A8: 6 | B8: F | C8: 44 | D8: 41 | E8: 46 | F8: 58 | G8: 56 | H8: 59 | I8: 62 | J8: 65 | K8: 74 | M8: 2 | N8: =ROUND('3D Interpolace'!M9,2) -> 52 | O8: =ROUND('3D Interpolace'!N9,2) -> 53.28 | P8: =ROUND('3D Interpolace'!O9,2) -> 54.52 | Q8: =ROUND('3D Interpolace'!P9,2) -> 55.72 | R8: =ROUND('3D Interpolace'!Q9,2) -> 56.88 | S8: =ROUND('3D Interpolace'!R9,2) -> 58 | T8: =ROUND('3D Interpolace'!S9,2) -> 59.16 | U8: =ROUND('3D Interpolace'!T9,2) -> 60.36 | V8: =ROUND('3D Interpolace'!U9,2) -> 61.48 | W8: =ROUND('3D Interpolace'!V9,2) -> 62.4 | X8: =ROUND('3D Interpolace'!W9,2) -> 63 | Y8: =ROUND('3D Interpolace'!X9,2) -> 63.23 | Z8: =ROUND('3D Interpolace'!Y9,2) -> 63.18 | AA8: =ROUND('3D Interpolace'!Z9,2) -> 62.9 | AB8: =ROUND('3D Interpolace'!AA9,2) -> 62.49 | AC8: =ROUND('3D Interpolace'!AB9,2) -> 62 | AD8: =ROUND('3D Interpolace'!AC9,2) -> 61.36 | AE8: =ROUND('3D Interpolace'!AD9,2) -> 60.52 | AF8: =ROUND('3D Interpolace'!AE9,2) -> 59.6 | AG8: =ROUND('3D Interpolace'!AF9,2) -> 58.72 | AH8: =ROUND('3D Interpolace'!AG9,2) -> 58 | AI8: =ROUND('3D Interpolace'!AH9,2) -> 57.36 | AJ8: =ROUND('3D Interpolace'!AI9,2) -> 56.72 | AK8: =ROUND('3D Interpolace'!AJ9,2) -> 56.2 | AL8: =ROUND('3D Interpolace'!AK9,2) -> 55.92 | AM8: =ROUND('3D Interpolace'!AL9,2) -> 56 | AN8: =ROUND('3D Interpolace'!AM9,2) -> 56.62 | AO8: =ROUND('3D Interpolace'!AN9,2) -> 57.69 | AP8: =ROUND('3D Interpolace'!AO9,2) -> 58.95 | AQ8: =ROUND('3D Interpolace'!AP9,2) -> 60.14 | AR8: =ROUND('3D Interpolace'!AQ9,2) -> 61 | AS8: =ROUND('3D Interpolace'!AR9,2) -> 61.31 | AT8: =ROUND('3D Interpolace'!AS9,2) -> 61.26 | AU8: =ROUND('3D Interpolace'!AT9,2) -> 61.14 | AV8: =ROUND('3D Interpolace'!AU9,2) -> 61.29 | AW8: =ROUND('3D Interpolace'!AV9,2) -> 62 | AX8: =ROUND('3D Interpolace'!AW9,2) -> 63.28 | AY8: =ROUND('3D Interpolace'!AX9,2) -> 64.92 | AZ8: =ROUND('3D Interpolace'!AY9,2) -> 66.92 | BA8: =ROUND('3D Interpolace'!AZ9,2) -> 69.28 | BB8: =ROUND('3D Interpolace'!BA9,2) -> 72 | BD8: 0.5 | BE8: 6 | BK8: 4 | BL8: 4 | BT8: 4 | BU8: 4 | CC8: 4 | CD8: 4 | CL8: 4 | CM8: 4 | CU8: 0.5 | CW8: 0.5 | CX8: 6 | CY8: 52 | CZ8: 53.28 | DA8: 54.52 | DB8: 55.72 | DC8: 56.88 | DD8: 62 | DE8: 63.16 | DF8: 60.36 | DG8: 61.48 | DH8: 62.4 | DI8: 63 | DJ8: 63.23 | DK8: 63.18 | DL8: 62.9 | DM8: 66.49 | DN8: 66 | DO8: 61.36 | DP8: 60.52 | DQ8: 59.6 | DR8: 58.72 | DS8: 58 | DT8: 57.36 | DU8: 56.72 | DV8: 60.2 | DW8: 59.92 | DX8: 56 | DY8: 56.62 | DZ8: 57.69 | EA8: 58.95 | EB8: 60.14 | EC8: 61 | ED8: 61.31 | EE8: 65.26 | EF8: 65.14 | EG8: 61.29 | EH8: 62 | EI8: 63.28 | EJ8: 64.92 | EK8: 66.92 | EL8: 69.28 | EM8: 72 | EN8: 0.5 | EP8: 0.5 | EQ8: 6 | ER8: 52 | ES8: 53.28 | ET8: 54.52 | EU8: 55.72 | EV8: 56.88 | EW8: 62 | EX8: 63.16 | EY8: 60.36 | EZ8: 61.48 | FA8: 62.4 | FB8: 63 | FC8: 63.23 | FD8: 63.18 | FE8: 62.9 | FF8: 66.49 | FG8: 66 | FH8: 61.36 | FI8: 60.52 | FJ8: 59.6 | FK8: 58.72 | FL8: 58 | FM8: 58 | FN8: 57.36 | FO8: 56.72 | FP8: 60.2 | FQ8: 59.92 | FR8: 56 | FS8: 56.62 | FT8: 57.69 | FU8: 58.95 | FV8: 60.14 | FW8: 61 | FX8: 61.31 | FY8: 65.26 | FZ8: 65.14 | GA8: 61.29 | GB8: 62 | GC8: 63.28 | GD8: 64.92 | GE8: 66.92 | GF8: 69.28 | GG8: 72 | GK8: 0.5 | GL8: 6 | GM8: 52 | GN8: 0 | GO8: 0 | GP8: 0 | GQ8: 0 | GR8: 62 | GS8: 63.16 | GT8: 0 | GU8: 0 | GV8: 0 | GW8: 63 | GX8: 0 | GY8: 0 | GZ8: 0 | HA8: 66.49 | HB8: 66 | HC8: 0 | HD8: 0 | HE8: 0 | HF8: 0 | HG8: 58 | HH8: 58 | HI8: 0 | HJ8: 0 | HK8: 60.2 | HL8: 59.92 | HM8: 56 | HN8: 0 | HO8: 0 | HP8: 0 | HQ8: 0 | HR8: 61 | HS8: 0 | HT8: 65.26 | HU8: 65.14 | HV8: 0 | HW8: 62 | HX8: 0 | HY8: 0 | HZ8: 0 | IA8: 0 | IB8: 72 | IC8: 0.5 | IG8: 6 | IH8: 68 | II8: 68.1 | IJ8: 68.2 | IK8: 68.3 | IL8: 68.4 | IM8: 68.5 | IN8: 68.6 | IO8: 68.7 | IP8: 68.8 | IQ8: 68.9 | IR8: 69 | IS8: 69.1 | IT8: 69.2 | IU8: 69.3 | IV8: 69.4 | IW8: 69.5 | IX8: 69.6 | IY8: 69.7 | IZ8: 69.8 | JA8: 69.9 | JB8: 70 | JC8: 64.9 | JD8: 65.6 | JE8: 66.3 | JF8: 67 | JG8: 67.7 | JH8: 68.4 | JI8: 69.1 | JJ8: 69.8 | JK8: 70.5 | JL8: 71.2 | JM8: 71.9 | JN8: 72.6 | JO8: 73.3 | JP8: 74 | JQ8: 74.7 | JR8: 75.4 | JS8: 76.1 | JT8: 76.8 | JU8: 77.5 | JV8: 78.2 | JW8: 78.9 | JX8: 0.5 | KD8: 0.5 | KE8: 6 | KF8: 16 | KG8: 14.82 | KH8: 13.68 | KI8: 12.58 | KJ8: 11.52 | KK8: 6.5 | KL8: 5.44 | KM8: 8.34 | KN8: 7.32 | KO8: 6.5 | KP8: 6 | KQ8: 5.87 | KR8: 6.02 | KS8: 6.4 | KT8: 2.91 | KU8: 3.5 | KV8: 8.24 | KW8: 9.18 | KX8: 10.2 | KY8: 11.18 | KZ8: 12 | LA8: 6.9 | LB8: 8.24 | LC8: 9.58 | LD8: 6.8 | LE8: 7.78 | LF8: 12.4 | LG8: 12.48 | LH8: 12.11 | LI8: 11.55 | LJ8: 11.06 | LK8: 10.9 | LL8: 11.29 | LM8: 8.04 | LN8: 8.86 | LO8: 13.41 | LP8: 13.4 | LQ8: 12.82 | LR8: 11.88 | LS8: 10.58 | LT8: 8.92 | LU8: 6.9 | MC8: 0.5 | MD8: 6 | ME8: 15.76 | MF8: 14.6775 | MG8: 13.63 | MH8: 12.6175 | MI8: 9.64 | MJ8: 6.665 | MK8: 7.6625 | ML8: 8.6825 | MM8: 7.8125 | MN8: 7.145 | MO8: 6.735 | MP8: 6.5525 | MQ8: 6.565 | MR8: 4.75 | MS8: 3.0825 | MT8: 5.605 | MU8: 8.3675 | MV8: 9.3075 | MW8: 10.29 | MX8: 11.1825 | MY8: 7.21 | MZ8: 8.5575 | NA8: 7.8575 | NB8: 6.9825 | NC8: 9.8075 | ND8: 12.1825 | NE8: 12.0575 | NF8: 11.61 | NG8: 11.1075 | NH8: 10.815 | NI8: 10.975 | NJ8: 9.6025 | NK8: 8.4525 | NL8: 11.205 | NM8: 13.5425 | NN8: 13.3075 | NO8: 12.6025 | NP8: 11.535 | NQ8: 10.105 | NR8: 8.315 | NU8: 0.5 | NV8: 6 | NW8: 4.71 | NX8: 4.71 | NY8: 6.1 | NZ8: 6.1 | OA8: 11.33 | OB8: 11.98 | OC8: 11.98 | OD8: 11.33 | OE8: 11.98 | OF8: 11.98 | OG8: 11.98 | OH8: 11.98 | OI8: 11.98 | OJ8: 15.63 | OK8: 23.66 | OL8: 15.63 | OM8: 11.33 | ON8: 11.33 | OO8: 7.9 | OP8: 7.9 | OQ8: 11.98 | OR8: 11.33 | OS8: 11.98 | OT8: 11.98 | OU8: 11.33 | OV8: 6.1 | OW8: 6.1 | OX8: 7.9 | OY8: 7.9 | OZ8: 7.9 | PA8: 7.9 | PB8: 11.33 | PC8: 11.33 | PD8: 7.9 | PE8: 6.1 | PF8: 6.1 | PG8: 6.1 | PH8: 7.9 | PI8: 7.9 | PJ8: 11.33 | PM8: 0.5 | PN8: 6 | PO8: -10.92 | PP8: -10.92 | PQ8: -9.53 | PR8: -9.53 | PS8: -12.33 | PT8: -19.66 | PU8: -19.66 | PV8: -12.33 | PW8: -11.68 | PX8: -3.65 | PY8: 0.65 | PZ8: 0.65 | QA8: 0 | QB8: -8.03 | QC8: -7.98 | QD8: -16.01 | QE8: -12.33 | QF8: -12.33 | QG8: -15.76 | QH8: -15.76 | QI8: -11.68 | QJ8: -12.33 | QK8: -19.66 | QL8: -19.66 | QM8: -12.33 | QN8: -9.53 | QO8: -17.56 | QP8: -15.76 | QQ8: -23.74 | QR8: -23.74 | QS8: -15.76 | QT8: -20.31 | QU8: -20.31 | QV8: -15.76 | QW8: -5.88 | QX8: -5.88 | QY8: -9.53 | QZ8: -7.73 | RA8: -15.76 | RB8: -20.31 | RE8: 0.5 | RF8: 6 | RG8: 0 | RH8: 0 | RI8: 0 | RJ8: 0 | RK8: 0 | RL8: 0 | RM8: 0 | RN8: 0 | RO8: 0 | RP8: 0 | RQ8: 0 | RR8: 0 | RS8: 0 | RT8: 0 | RU8: 0 | RV8: 0 | RW8: 0 | RX8: 0 | RY8: 0 | RZ8: 0 | SA8: 0 | SB8: 0 | SC8: 0 | SD8: 0 | SE8: 0 | SF8: 0 | SG8: 0 | SH8: 0 | SI8: 0 | SJ8: 0 | SK8: 0 | SL8: 0 | SM8: 0 | SN8: 0 | SO8: 0 | SP8: 0 | SQ8: 0 | SR8: 0 | SS8: 0 | ST8: 0 | SU8: 72 | SV8: 0.5 | SX8: 0.5 | SY8: 6 | SZ8: 0 | TA8: 0 | TB8: 0 | TC8: 0 | TD8: 0 | TE8: 0 | TF8: 0 | TG8: 0 | TH8: 0 | TI8: 0 | TJ8: 0 | TK8: 0 | TL8: 0 | TM8: 0 | TN8: 0 | TO8: 0 | TP8: 0 | TQ8: 0 | TR8: 0 | TS8: 0 | TT8: 0 | TU8: 0 | TV8: 0 | TW8: 0 | TX8: 0 | TY8: 0 | TZ8: 0 | UA8: 0 | UB8: 0 | UC8: 0 | UD8: 0 | UE8: 0 | UF8: 0 | UG8: 0 | UH8: 0 | UI8: 0 | UJ8: 0 | UK8: 0 | UL8: 0 | UM8: 0 | UN8: 0 | UO8: 0.5 | UQ8: 0.5 | UR8: 6 | US8: 1 | UT8: 0 | UU8: 0 | UV8: 0 | UW8: 0 | UX8: 0 | UY8: 0 | UZ8: 0 | VA8: 0 | VB8: 0 | VC8: 0 | VD8: 0 | VE8: 0 | VF8: 0 | VG8: 0 | VH8: 0 | VI8: 0 | VJ8: 0 | VK8: 0 | VL8: 0 | VM8: 1 | VN8: 0 | VO8: 0 | VP8: 0 | VQ8: 0 | VR8: 0 | VS8: 0 | VT8: 0 | VU8: 0 | VV8: 0 | VW8: 0 | VX8: 0 | VY8: 0 | VZ8: 0 | WA8: 0 | WB8: 0 | WC8: 0 | WD8: 0 | WE8: 0 | WF8: 0 | WG8: 1 | WH8: 0.5 | WJ8: 0.5 | WK8: 6 | WL8: 52 | WM8: 0 | WN8: 0 | WO8: 0 | WP8: 0 | WQ8: 0 | WR8: 0 | WS8: 0 | WT8: 0 | WU8: 0 | WV8: 0 | WW8: 0 | WX8: 0 | WY8: 0 | WZ8: 0 | XA8: 0 | XB8: 0 | XC8: 0 | XD8: 0 | XE8: 0 | XF8: 58 | XG8: 0 | XH8: 0 | XI8: 0 | XJ8: 0 | XK8: 0 | XL8: 0 | XM8: 0 | XN8: 0 | XO8: 0 | XP8: 0 | XQ8: 0 | XR8: 0 | XS8: 0 | XT8: 0 | XU8: 0 | XV8: 0 | XW8: 0 | XX8: 0 | XY8: 0 | XZ8: 72 | YA8: 0.5 | YC8: 0.5 | YD8: 6 | YE8: 4 | YF8: 4 | YG8: 4 | YH8: 4 | YI8: 4 | YJ8: 4 | YK8: 4 | YL8: 4 | YM8: 4 | YN8: 4 | YO8: 4 | YP8: 4 | YQ8: 4 | YR8: 4 | YS8: 4 | YT8: 4 | YU8: 4 | YV8: 4 | YW8: 4 | YX8: 4 | YY8: 4 | YZ8: 5 | ZA8: 5 | ZB8: 5 | ZC8: 5 | ZD8: 5 | ZE8: 5 | ZF8: 5 | ZG8: 5 | ZH8: 5 | ZI8: 5 | ZJ8: 5 | ZK8: 5 | ZL8: 5 | ZM8: 5 | ZN8: 5 | ZO8: 5 | ZP8: 5 | ZQ8: 5 | ZR8: 5 | ZS8: 5 | ZT8: 5 | ZU8: 0.5 | ZW8: 0.5 | ZX8: 6 | ZY8: 0 | ZZ8: 0 | AAA8: 0 | AAB8: 0 | AAC8: 0 | AAD8: 4 | AAE8: 4 | AAF8: 0 | AAG8: 0 | AAH8: 0 | AAI8: 0 | AAJ8: 0 | AAK8: 0 | AAL8: 0 | AAM8: 4 | AAN8: 4 | AAO8: 0 | AAP8: 0 | AAQ8: 0 | AAR8: 0 | AAS8: 0 | AAT8: 0 | AAU8: 0 | AAV8: 0 | AAW8: 4 | AAX8: 4 | AAY8: 0 | AAZ8: 0 | ABA8: 0 | ABB8: 0 | ABC8: 0 | ABD8: 0 | ABE8: 0 | ABF8: 4 | ABG8: 4 | ABH8: 0 | ABI8: 0 | ABJ8: 0 | ABK8: 0 | ABL8: 0 | ABM8: 0 | ABN8: 0 | ABO8: 0.5 | ABQ8: 0.5 | ABR8: 6 | ABS8: 1 | ABT8: 0 | ABU8: 0 | ABV8: 0 | ABW8: 0 | ABX8: 0 | ABY8: 0 | ABZ8: 0 | ACA8: 0 | ACB8: 0 | ACC8: 0 | ACD8: 0 | ACE8: 0 | ACF8: 0 | ACG8: 0 | ACH8: 0 | ACI8: 0 | ACJ8: 0 | ACK8: 0 | ACL8: 0 | ACM8: 1 | ACN8: 57 | ACO8: 57 | ACP8: 57 | ACQ8: 57 | ACR8: 57 | ACS8: 57 | ACT8: 57 | ACU8: 57 | ACV8: 57 | ACW8: 57 | ACX8: 57 | ACY8: 57 | ACZ8: 57 | ADA8: 57 | ADB8: 57 | ADC8: 57 | ADD8: 57 | ADE8: 57 | ADF8: 57 | ADG8: 57 | ADH8: 57 | ADI8: 0.5
A9: 7 | B9: G | C9: 41 | D9: 41 | E9: 39 | F9: 47 | G9: 55 | H9: 59 | I9: 61 | J9: 62 | K9: 76 | M9: 2A | N9: =ROUND('3D Interpolace'!M10,2) -> 51.48 | O9: =ROUND('3D Interpolace'!N10,2) -> 52.6 | P9: =ROUND('3D Interpolace'!O10,2) -> 53.69 | Q9: =ROUND('3D Interpolace'!P10,2) -> 54.75 | R9: =ROUND('3D Interpolace'!Q10,2) -> 55.78 | S9: =ROUND('3D Interpolace'!R10,2) -> 56.78 | T9: =ROUND('3D Interpolace'!S10,2) -> 57.8 | U9: =ROUND('3D Interpolace'!T10,2) -> 58.83 | V9: =ROUND('3D Interpolace'!U10,2) -> 59.8 | W9: =ROUND('3D Interpolace'!V10,2) -> 60.67 | X9: =ROUND('3D Interpolace'!W10,2) -> 61.35 | Y9: =ROUND('3D Interpolace'!X10,2) -> 61.88 | Z9: =ROUND('3D Interpolace'!Y10,2) -> 62.3 | AA9: =ROUND('3D Interpolace'!Z10,2) -> 62.56 | AB9: =ROUND('3D Interpolace'!AA10,2) -> 62.65 | AC9: =ROUND('3D Interpolace'!AB10,2) -> 62.53 | AD9: =ROUND('3D Interpolace'!AC10,2) -> 62.09 | AE9: =ROUND('3D Interpolace'!AD10,2) -> 61.36 | AF9: =ROUND('3D Interpolace'!AE10,2) -> 60.49 | AG9: =ROUND('3D Interpolace'!AF10,2) -> 59.63 | AH9: =ROUND('3D Interpolace'!AG10,2) -> 58.92 | AI9: =ROUND('3D Interpolace'!AH10,2) -> 58.28 | AJ9: =ROUND('3D Interpolace'!AI10,2) -> 57.61 | AK9: =ROUND('3D Interpolace'!AJ10,2) -> 57.04 | AL9: =ROUND('3D Interpolace'!AK10,2) -> 56.71 | AM9: =ROUND('3D Interpolace'!AL10,2) -> 56.74 | AN9: =ROUND('3D Interpolace'!AM10,2) -> 57.31 | AO9: =ROUND('3D Interpolace'!AN10,2) -> 58.35 | AP9: =ROUND('3D Interpolace'!AO10,2) -> 59.57 | AQ9: =ROUND('3D Interpolace'!AP10,2) -> 60.71 | AR9: =ROUND('3D Interpolace'!AQ10,2) -> 61.49 | AS9: =ROUND('3D Interpolace'!AR10,2) -> 61.7 | AT9: =ROUND('3D Interpolace'!AS10,2) -> 61.52 | AU9: =ROUND('3D Interpolace'!AT10,2) -> 61.27 | AV9: =ROUND('3D Interpolace'!AU10,2) -> 61.28 | AW9: =ROUND('3D Interpolace'!AV10,2) -> 61.86 | AX9: =ROUND('3D Interpolace'!AW10,2) -> 63.03 | AY9: =ROUND('3D Interpolace'!AX10,2) -> 64.56 | AZ9: =ROUND('3D Interpolace'!AY10,2) -> 66.46 | BA9: =ROUND('3D Interpolace'!AZ10,2) -> 68.72 | BB9: =ROUND('3D Interpolace'!BA10,2) -> 71.34 | BD9: 0.6 | BE9: 7 | BK9: 4 | BL9: 4 | BT9: 4 | BU9: 4 | CC9: 4 | CD9: 4 | CL9: 4 | CM9: 4 | CU9: 0.6 | CW9: 0.6 | CX9: 7 | CY9: 51.48 | CZ9: 52.6 | DA9: 53.69 | DB9: 54.75 | DC9: 55.78 | DD9: 60.78 | DE9: 61.8 | DF9: 58.83 | DG9: 59.8 | DH9: 60.67 | DI9: 61.35 | DJ9: 61.88 | DK9: 62.3 | DL9: 62.56 | DM9: 66.65 | DN9: 66.53 | DO9: 62.09 | DP9: 61.36 | DQ9: 60.49 | DR9: 59.63 | DS9: 58.92 | DT9: 58.28 | DU9: 57.61 | DV9: 61.04 | DW9: 60.71 | DX9: 56.74 | DY9: 57.31 | DZ9: 58.35 | EA9: 59.57 | EB9: 60.71 | EC9: 61.49 | ED9: 61.7 | EE9: 65.52 | EF9: 65.27 | EG9: 61.28 | EH9: 61.86 | EI9: 63.03 | EJ9: 64.56 | EK9: 66.46 | EL9: 68.72 | EM9: 71.34 | EN9: 0.6 | EP9: 0.6 | EQ9: 7 | ER9: 51.48 | ES9: 52.6 | ET9: 53.69 | EU9: 54.75 | EV9: 55.78 | EW9: 60.78 | EX9: 61.8 | EY9: 58.83 | EZ9: 59.8 | FA9: 60.67 | FB9: 61.35 | FC9: 61.88 | FD9: 62.3 | FE9: 62.56 | FF9: 66.65 | FG9: 66.53 | FH9: 62.09 | FI9: 61.36 | FJ9: 60.49 | FK9: 59.63 | FL9: 58.92 | FM9: 58.92 | FN9: 58.28 | FO9: 57.61 | FP9: 61.04 | FQ9: 60.71 | FR9: 56.74 | FS9: 57.31 | FT9: 58.35 | FU9: 59.57 | FV9: 60.71 | FW9: 61.49 | FX9: 61.7 | FY9: 65.52 | FZ9: 65.27 | GA9: 61.28 | GB9: 61.86 | GC9: 63.03 | GD9: 64.56 | GE9: 66.46 | GF9: 68.72 | GG9: 71.34 | GK9: 0.6 | GL9: 7 | GM9: 0 | GN9: 0 | GO9: 0 | GP9: 0 | GQ9: 0 | GR9: 60.78 | GS9: 0 | GT9: 0 | GU9: 0 | GV9: 0 | GW9: 0 | GX9: 0 | GY9: 0 | GZ9: 0 | HA9: 0 | HB9: 66.53 | HC9: 0 | HD9: 0 | HE9: 0 | HF9: 0 | HG9: 0 | HH9: 0 | HI9: 0 | HJ9: 0 | HK9: 0 | HL9: 0 | HM9: 0 | HN9: 0 | HO9: 0 | HP9: 0 | HQ9: 0 | HR9: 0 | HS9: 0 | HT9: 0 | HU9: 0 | HV9: 0 | HW9: 0 | HX9: 0 | HY9: 0 | HZ9: 0 | IA9: 0 | IB9: 0 | IC9: 0.6 | IG9: 7 | IH9: 68.1 | II9: 68.2 | IJ9: 68.3 | IK9: 68.4 | IL9: 68.5 | IM9: 68.6 | IN9: 68.7 | IO9: 68.8 | IP9: 68.9 | IQ9: 69 | IR9: 69.1 | IS9: 69.2 | IT9: 69.3 | IU9: 69.4 | IV9: 69.5 | IW9: 69.6 | IX9: 69.7 | IY9: 69.8 | IZ9: 69.9 | JA9: 70 | JB9: 70.1 | JC9: 65.1 | JD9: 65.8 | JE9: 66.5 | JF9: 67.2 | JG9: 67.9 | JH9: 68.6 | JI9: 69.3 | JJ9: 70 | JK9: 70.7 | JL9: 71.4 | JM9: 72.1 | JN9: 72.8 | JO9: 73.5 | JP9: 74.2 | JQ9: 74.9 | JR9: 75.6 | JS9: 76.3 | JT9: 77 | JU9: 77.7 | JV9: 78.4 | JW9: 79.1 | JX9: 0.6 | KD9: 0.6 | KE9: 7 | KF9: 16.62 | KG9: 15.6 | KH9: 14.61 | KI9: 13.65 | KJ9: 12.72 | KK9: 7.82 | KL9: 6.9 | KM9: 9.97 | KN9: 9.1 | KO9: 8.33 | KP9: 7.75 | KQ9: 7.32 | KR9: 7 | KS9: 6.84 | KT9: 2.85 | KU9: 3.07 | KV9: 7.61 | KW9: 8.44 | KX9: 9.41 | KY9: 10.37 | KZ9: 11.18 | LA9: 6.18 | LB9: 7.52 | LC9: 8.89 | LD9: 6.16 | LE9: 7.19 | LF9: 11.86 | LG9: 11.99 | LH9: 11.65 | LI9: 11.13 | LJ9: 10.69 | LK9: 10.61 | LL9: 11.1 | LM9: 7.98 | LN9: 8.93 | LO9: 13.62 | LP9: 13.74 | LQ9: 13.27 | LR9: 12.44 | LS9: 11.24 | LT9: 9.68 | LU9: 7.76 | MC9: 0.6 | MD9: 7 | ME9: 16.2675 | MF9: 15.3625 | MG9: 14.495 | MH9: 13.665 | MI9: 10.8725 | MJ9: 8.115 | MK9: 9.395 | ML9: 10.715 | MM9: 10.0675 | MN9: 9.4475 | MO9: 8.8125 | MP9: 8.1175 | MQ9: 7.43 | MR9: 4.8875 | MS9: 2.6225 | MT9: 4.7625 | MU9: 7.3275 | MV9: 8.1775 | MW9: 9.1325 | MX9: 10.0125 | MY9: 6.1175 | MZ9: 7.4525 | NA9: 6.7625 | NB9: 5.915 | NC9: 8.78 | ND9: 11.21 | NE9: 11.1575 | NF9: 10.795 | NG9: 10.385 | NH9: 10.1925 | NI9: 10.45 | NJ9: 9.1675 | NK9: 8.11 | NL9: 10.97 | NM9: 13.4475 | NN9: 13.39 | NO9: 12.895 | NP9: 12.065 | NQ9: 10.9 | NR9: 9.405 | NU9: 0.6 | NV9: 7 | NW9: 0 | NX9: 4.71 | NY9: 4.71 | NZ9: 6.1 | OA9: 7.9 | OB9: 11.33 | OC9: 11.33 | OD9: 7.9 | OE9: 7.9 | OF9: 11.33 | OG9: 11.33 | OH9: 11.33 | OI9: 11.98 | OJ9: 15.63 | OK9: 23.66 | OL9: 15.63 | OM9: 11.98 | ON9: 11.33 | OO9: 11.33 | OP9: 7.9 | OQ9: 11.98 | OR9: 11.98 | OS9: 11.98 | OT9: 15.63 | OU9: 11.33 | OV9: 7.9 | OW9: 7.9 | OX9: 7.9 | OY9: 7.9 | OZ9: 7.9 | PA9: 7.9 | PB9: 11.33 | PC9: 11.33 | PD9: 7.9 | PE9: 6.1 | PF9: 6.1 | PG9: 6.1 | PH9: 6.1 | PI9: 7.9 | PJ9: 11.33 | PM9: 0.6 | PN9: 7 | PO9: -23.66 | PP9: -18.95 | PQ9: -18.95 | PR9: -17.56 | PS9: -23.74 | PT9: -20.31 | PU9: -12.33 | PV9: -7.73 | PW9: -7.73 | PX9: -4.3 | PY9: 5.23 | PZ9: 3.43 | QA9: 0.65 | QB9: 0 | QC9: -7.98 | QD9: -16.01 | QE9: -11.68 | QF9: -12.33 | QG9: -12.33 | QH9: -15.76 | QI9: -11.68 | QJ9: -11.68 | QK9: -11.68 | QL9: -16.01 | QM9: -12.33 | QN9: -7.73 | QO9: -7.73 | QP9: -15.76 | QQ9: -15.76 | QR9: -23.74 | QS9: -15.76 | QT9: -20.31 | QU9: -20.31 | QV9: -7.73 | QW9: -5.88 | QX9: -5.88 | QY9: -5.88 | QZ9: -9.53 | RA9: -7.73 | RB9: -12.33 | RE9: 0.6 | RF9: 7 | RG9: 0 | RH9: 0 | RI9: 0 | RJ9: 0 | RK9: 0 | RL9: 0 | RM9: 0 | RN9: 0 | RO9: 0 | RP9: 0 | RQ9: 0 | RR9: 0 | RS9: 0 | RT9: 0 | RU9: 0 | RV9: 0 | RW9: 0 | RX9: 0 | RY9: 0 | RZ9: 0 | SA9: 0 | SB9: 0 | SC9: 0 | SD9: 0 | SE9: 0 | SF9: 0 | SG9: 0 | SH9: 0 | SI9: 0 | SJ9: 0 | SK9: 0 | SL9: 0 | SM9: 0 | SN9: 0 | SO9: 0 | SP9: 0 | SQ9: 0 | SR9: 0 | SS9: 0 | ST9: 0 | SU9: 0 | SV9: 0.6 | SX9: 0.6 | SY9: 7 | SZ9: 0 | TA9: 0 | TB9: 0 | TC9: 0 | TD9: 0 | TE9: 0 | TF9: 0 | TG9: 0 | TH9: 0 | TI9: 0 | TJ9: 0 | TK9: 0 | TL9: 0 | TM9: 0 | TN9: 0 | TO9: 0 | TP9: 0 | TQ9: 0 | TR9: 0 | TS9: 0 | TT9: 0 | TU9: 0 | TV9: 0 | TW9: 0 | TX9: 0 | TY9: 0 | TZ9: 0 | UA9: 0 | UB9: 0 | UC9: 0 | UD9: 0 | UE9: 0 | UF9: 0 | UG9: 0 | UH9: 0 | UI9: 0 | UJ9: 0 | UK9: 0 | UL9: 0 | UM9: 0 | UN9: 0 | UO9: 0.6 | UQ9: 0.6 | UR9: 7 | US9: 1 | UT9: 0 | UU9: 0 | UV9: 0 | UW9: 0 | UX9: 0 | UY9: 0 | UZ9: 0 | VA9: 0 | VB9: 0 | VC9: 0 | VD9: 0 | VE9: 0 | VF9: 0 | VG9: 0 | VH9: 0 | VI9: 0 | VJ9: 0 | VK9: 0 | VL9: 0 | VM9: 1 | VN9: 0 | VO9: 0 | VP9: 0 | VQ9: 0 | VR9: 0 | VS9: 0 | VT9: 0 | VU9: 0 | VV9: 0 | VW9: 0 | VX9: 0 | VY9: 0 | VZ9: 0 | WA9: 0 | WB9: 0 | WC9: 0 | WD9: 0 | WE9: 0 | WF9: 0 | WG9: 1 | WH9: 0.6 | WJ9: 0.6 | WK9: 7 | WL9: 51.48 | WM9: 0 | WN9: 0 | WO9: 0 | WP9: 0 | WQ9: 0 | WR9: 0 | WS9: 0 | WT9: 0 | WU9: 0 | WV9: 0 | WW9: 0 | WX9: 0 | WY9: 0 | WZ9: 0 | XA9: 0 | XB9: 0 | XC9: 0 | XD9: 0 | XE9: 0 | XF9: 58.92 | XG9: 0 | XH9: 0 | XI9: 0 | XJ9: 0 | XK9: 0 | XL9: 0 | XM9: 0 | XN9: 0 | XO9: 0 | XP9: 0 | XQ9: 0 | XR9: 0 | XS9: 0 | XT9: 0 | XU9: 0 | XV9: 0 | XW9: 0 | XX9: 0 | XY9: 0 | XZ9: 71.34 | YA9: 0.6 | YC9: 0.6 | YD9: 7 | YE9: 4 | YF9: 4 | YG9: 4 | YH9: 4 | YI9: 4 | YJ9: 4 | YK9: 4 | YL9: 4 | YM9: 4 | YN9: 4 | YO9: 4 | YP9: 4 | YQ9: 4 | YR9: 4 | YS9: 4 | YT9: 4 | YU9: 4 | YV9: 4 | YW9: 4 | YX9: 4 | YY9: 4 | YZ9: 5 | ZA9: 5 | ZB9: 5 | ZC9: 5 | ZD9: 5 | ZE9: 5 | ZF9: 5 | ZG9: 5 | ZH9: 5 | ZI9: 5 | ZJ9: 5 | ZK9: 5 | ZL9: 5 | ZM9: 5 | ZN9: 5 | ZO9: 5 | ZP9: 5 | ZQ9: 5 | ZR9: 5 | ZS9: 5 | ZT9: 5 | ZU9: 0.6 | ZW9: 0.6 | ZX9: 7 | ZY9: 0 | ZZ9: 0 | AAA9: 0 | AAB9: 0 | AAC9: 0 | AAD9: 4 | AAE9: 4 | AAF9: 0 | AAG9: 0 | AAH9: 0 | AAI9: 0 | AAJ9: 0 | AAK9: 0 | AAL9: 0 | AAM9: 4 | AAN9: 4 | AAO9: 0 | AAP9: 0 | AAQ9: 0 | AAR9: 0 | AAS9: 0 | AAT9: 0 | AAU9: 0 | AAV9: 0 | AAW9: 4 | AAX9: 4 | AAY9: 0 | AAZ9: 0 | ABA9: 0 | ABB9: 0 | ABC9: 0 | ABD9: 0 | ABE9: 0 | ABF9: 4 | ABG9: 4 | ABH9: 0 | ABI9: 0 | ABJ9: 0 | ABK9: 0 | ABL9: 0 | ABM9: 0 | ABN9: 0 | ABO9: 0.6 | ABQ9: 0.6 | ABR9: 7 | ABS9: 1 | ABT9: 0 | ABU9: 0 | ABV9: 0 | ABW9: 0 | ABX9: 0 | ABY9: 0 | ABZ9: 0 | ACA9: 0 | ACB9: 0 | ACC9: 0 | ACD9: 0 | ACE9: 0 | ACF9: 0 | ACG9: 0 | ACH9: 0 | ACI9: 0 | ACJ9: 0 | ACK9: 0 | ACL9: 0 | ACM9: 1 | ACN9: 57 | ACO9: 57 | ACP9: 57 | ACQ9: 57 | ACR9: 57 | ACS9: 57 | ACT9: 57 | ACU9: 57 | ACV9: 57 | ACW9: 57 | ACX9: 57 | ACY9: 57 | ACZ9: 57 | ADA9: 57 | ADB9: 57 | ADC9: 57 | ADD9: 57 | ADE9: 57 | ADF9: 57 | ADG9: 57 | ADH9: 57 | ADI9: 0.6
A10: 8 | B10: H | C10: 43 | D10: 46 | E10: 47 | F10: 53 | G10: 62 | H10: 66 | I10: 66 | J10: 72 | K10: 78 | M10: 2B | N10: =ROUND('3D Interpolace'!M11,2) -> 51.36 | O10: =ROUND('3D Interpolace'!N11,2) -> 52.29 | P10: =ROUND('3D Interpolace'!O11,2) -> 53.17 | Q10: =ROUND('3D Interpolace'!P11,2) -> 54.01 | R10: =ROUND('3D Interpolace'!Q11,2) -> 54.8 | S10: =ROUND('3D Interpolace'!R11,2) -> 55.55 | T10: =ROUND('3D Interpolace'!S11,2) -> 56.21 | U10: =ROUND('3D Interpolace'!T11,2) -> 56.78 | V10: =ROUND('3D Interpolace'!U11,2) -> 57.33 | W10: =ROUND('3D Interpolace'!V11,2) -> 57.93 | X10: =ROUND('3D Interpolace'!W11,2) -> 58.66 | Y10: =ROUND('3D Interpolace'!X11,2) -> 59.66 | Z10: =ROUND('3D Interpolace'!Y11,2) -> 60.89 | AA10: =ROUND('3D Interpolace'!Z11,2) -> 62.13 | AB10: =ROUND('3D Interpolace'!AA11,2) -> 63.11 | AC10: =ROUND('3D Interpolace'!AB11,2) -> 63.62 | AD10: =ROUND('3D Interpolace'!AC11,2) -> 63.51 | AE10: =ROUND('3D Interpolace'!AD11,2) -> 62.93 | AF10: =ROUND('3D Interpolace'!AE11,2) -> 62.11 | AG10: =ROUND('3D Interpolace'!AF11,2) -> 61.24 | AH10: =ROUND('3D Interpolace'!AG11,2) -> 60.56 | AI10: =ROUND('3D Interpolace'!AH11,2) -> 59.97 | AJ10: =ROUND('3D Interpolace'!AI11,2) -> 59.33 | AK10: =ROUND('3D Interpolace'!AJ11,2) -> 58.77 | AL10: =ROUND('3D Interpolace'!AK11,2) -> 58.42 | AM10: =ROUND('3D Interpolace'!AL11,2) -> 58.41 | AN10: =ROUND('3D Interpolace'!AM11,2) -> 58.9 | AO10: =ROUND('3D Interpolace'!AN11,2) -> 59.81 | AP10: =ROUND('3D Interpolace'!AO11,2) -> 60.89 | AQ10: =ROUND('3D Interpolace'!AP11,2) -> 61.89 | AR10: =ROUND('3D Interpolace'!AQ11,2) -> 62.54 | AS10: =ROUND('3D Interpolace'!AR11,2) -> 62.67 | AT10: =ROUND('3D Interpolace'!AS11,2) -> 62.44 | AU10: =ROUND('3D Interpolace'!AT11,2) -> 62.13 | AV10: =ROUND('3D Interpolace'!AU11,2) -> 62.04 | AW10: =ROUND('3D Interpolace'!AV11,2) -> 62.43 | AX10: =ROUND('3D Interpolace'!AW11,2) -> 63.32 | AY10: =ROUND('3D Interpolace'!AX11,2) -> 64.51 | AZ10: =ROUND('3D Interpolace'!AY11,2) -> 66.01 | BA10: =ROUND('3D Interpolace'!AZ11,2) -> 67.81 | BB10: =ROUND('3D Interpolace'!BA11,2) -> 69.91 | BD10: 0.7 | BE10: 8 | BK10: 4 | BL10: 4 | BT10: 4 | BU10: 4 | CC10: 4 | CD10: 4 | CL10: 4 | CM10: 4 | CU10: 0.7 | CW10: 0.7 | CX10: 8 | CY10: 51.36 | CZ10: 52.29 | DA10: 53.17 | DB10: 54.01 | DC10: 54.8 | DD10: 59.55 | DE10: 60.21 | DF10: 56.78 | DG10: 57.33 | DH10: 57.93 | DI10: 58.66 | DJ10: 59.66 | DK10: 60.89 | DL10: 62.13 | DM10: 67.11 | DN10: 67.62 | DO10: 63.51 | DP10: 62.93 | DQ10: 62.11 | DR10: 61.24 | DS10: 60.56 | DT10: 59.97 | DU10: 59.33 | DV10: 62.77 | DW10: 62.42 | DX10: 58.41 | DY10: 58.9 | DZ10: 59.81 | EA10: 60.89 | EB10: 61.89 | EC10: 62.54 | ED10: 62.67 | EE10: 66.44 | EF10: 66.13 | EG10: 62.04 | EH10: 62.43 | EI10: 63.32 | EJ10: 64.51 | EK10: 66.01 | EL10: 67.81 | EM10: 69.91 | EN10: 0.7 | EP10: 0.7 | EQ10: 8 | ER10: 51.36 | ES10: 52.29 | ET10: 53.17 | EU10: 54.01 | EV10: 54.8 | EW10: 59.55 | EX10: 60.21 | EY10: 56.78 | EZ10: 57.33 | FA10: 57.93 | FB10: 58.66 | FC10: 59.66 | FD10: 60.89 | FE10: 62.13 | FF10: 67.11 | FG10: 67.62 | FH10: 63.51 | FI10: 62.93 | FJ10: 62.11 | FK10: 61.24 | FL10: 60.56 | FM10: 60.56 | FN10: 59.97 | FO10: 59.33 | FP10: 62.77 | FQ10: 62.42 | FR10: 58.41 | FS10: 58.9 | FT10: 59.81 | FU10: 60.89 | FV10: 61.89 | FW10: 62.54 | FX10: 62.67 | FY10: 66.44 | FZ10: 66.13 | GA10: 62.04 | GB10: 62.43 | GC10: 63.32 | GD10: 64.51 | GE10: 66.01 | GF10: 67.81 | GG10: 69.91 | GK10: 0.7 | GL10: 8 | GM10: 0 | GN10: 0 | GO10: 0 | GP10: 0 | GQ10: 0 | GR10: 59.55 | GS10: 0 | GT10: 0 | GU10: 0 | GV10: 0 | GW10: 0 | GX10: 0 | GY10: 0 | GZ10: 0 | HA10: 0 | HB10: 67.62 | HC10: 0 | HD10: 0 | HE10: 0 | HF10: 0 | HG10: 0 | HH10: 0 | HI10: 0 | HJ10: 0 | HK10: 0 | HL10: 0 | HM10: 0 | HN10: 0 | HO10: 0 | HP10: 0 | HQ10: 0 | HR10: 0 | HS10: 0 | HT10: 0 | HU10: 0 | HV10: 0 | HW10: 0 | HX10: 0 | HY10: 0 | HZ10: 0 | IA10: 0 | IB10: 0 | IC10: 0.7 | IG10: 8 | IH10: 68.2 | II10: 68.3 | IJ10: 68.4 | IK10: 68.5 | IL10: 68.6 | IM10: 68.7 | IN10: 68.8 | IO10: 68.9 | IP10: 69 | IQ10: 69.1 | IR10: 69.2 | IS10: 69.3 | IT10: 69.4 | IU10: 69.5 | IV10: 69.6 | IW10: 69.7 | IX10: 69.8 | IY10: 69.9 | IZ10: 70 | JA10: 70.1 | JB10: 70.2 | JC10: 65.3 | JD10: 66 | JE10: 66.7 | JF10: 67.4 | JG10: 68.1 | JH10: 68.8 | JI10: 69.5 | JJ10: 70.2 | JK10: 70.9 | JL10: 71.6 | JM10: 72.3 | JN10: 73 | JO10: 73.7 | JP10: 74.4 | JQ10: 75.1 | JR10: 75.8 | JS10: 76.5 | JT10: 77.2 | JU10: 77.9 | JV10: 78.6 | JW10: 79.3 | JX10: 0.7 | KD10: 0.7 | KE10: 8 | KF10: 16.84 | KG10: 16.01 | KH10: 15.23 | KI10: 14.49 | KJ10: 13.8 | KK10: 9.15 | KL10: 8.59 | KM10: 12.12 | KN10: 11.67 | KO10: 11.17 | KP10: 10.54 | KQ10: 9.64 | KR10: 8.51 | KS10: 7.37 | KT10: 2.49 | KU10: 2.08 | KV10: 6.29 | KW10: 6.97 | KX10: 7.89 | KY10: 8.86 | KZ10: 9.64 | LA10: 4.74 | LB10: 6.03 | LC10: 7.37 | LD10: 4.63 | LE10: 5.68 | LF10: 10.39 | LG10: 10.6 | LH10: 10.39 | LI10: 10.01 | LJ10: 9.71 | LK10: 9.76 | LL10: 10.33 | LM10: 7.26 | LN10: 8.27 | LO10: 13.06 | LP10: 13.37 | LQ10: 13.18 | LR10: 12.69 | LS10: 11.89 | LT10: 10.79 | LU10: 9.39 | MC10: 0.7 | MD10: 8 | ME10: 16.5075 | MF10: 15.8125 | MG10: 15.1725 | MH10: 14.5875 | MI10: 12.06 | MJ10: 9.6375 | MK10: 11.37 | ML10: 13.185 | MM10: 12.9275 | MN10: 12.445 | MO10: 11.5475 | MP10: 10.165 | MQ10: 8.525 | MR10: 4.985 | MS10: 1.8975 | MT10: 3.525 | MU10: 5.835 | MV10: 6.58 | MW10: 7.51 | MX10: 8.37 | MY10: 4.5225 | MZ10: 5.795 | NA10: 5.06 | NB10: 4.195 | NC10: 7.0775 | ND10: 9.57 | NE10: 9.635 | NF10: 9.4275 | NG10: 9.1825 | NH10: 9.14 | NI10: 9.5025 | NJ10: 8.2725 | NK10: 7.2475 | NL10: 10.17 | NM10: 12.7925 | NN10: 12.9925 | NO10: 12.85 | NP10: 12.4475 | NQ10: 11.785 | NR10: 10.865 | NU10: 0.7 | NV10: 8 | NW10: 0 | NX10: 4.71 | NY10: 4.71 | NZ10: 4.71 | OA10: 6.1 | OB10: 11.33 | OC10: 7.9 | OD10: 6.1 | OE10: 6.1 | OF10: 6.1 | OG10: 7.9 | OH10: 7.9 | OI10: 11.33 | OJ10: 15.63 | OK10: 31.64 | OL10: 23.66 | OM10: 15.63 | ON10: 11.98 | OO10: 11.98 | OP10: 11.33 | OQ10: 15.63 | OR10: 15.63 | OS10: 15.63 | OT10: 15.63 | OU10: 11.98 | OV10: 11.33 | OW10: 11.33 | OX10: 11.33 | OY10: 11.33 | OZ10: 11.33 | PA10: 11.33 | PB10: 11.33 | PC10: 11.98 | PD10: 7.9 | PE10: 6.1 | PF10: 6.1 | PG10: 6.1 | PH10: 6.1 | PI10: 7.9 | PJ10: 7.9 | PM10: 0.7 | PN10: 8 | PO10: -23.66 | PP10: -18.95 | PQ10: -18.95 | PR10: -18.95 | PS10: -25.54 | PT10: -20.31 | PU10: -15.76 | PV10: -9.53 | PW10: -5.88 | PX10: -5.88 | PY10: 7.9 | PZ10: 1.8 | QA10: 3.43 | QB10: 0 | QC10: 0 | QD10: -7.98 | QE10: -8.03 | QF10: -11.68 | QG10: -19.66 | QH10: -20.31 | QI10: -8.03 | QJ10: -8.03 | QK10: -16.01 | QL10: -16.01 | QM10: -11.68 | QN10: -4.3 | QO10: -4.3 | QP10: -12.33 | QQ10: -12.33 | QR10: -12.33 | QS10: -12.33 | QT10: -20.31 | QU10: -19.66 | QV10: -7.73 | QW10: -5.88 | QX10: -5.88 | QY10: -5.88 | QZ10: -5.88 | RA10: -4.08 | RB10: -7.73 | RE10: 0.7 | RF10: 8 | RG10: 0 | RH10: 0 | RI10: 0 | RJ10: 0 | RK10: 0 | RL10: 0 | RM10: 0 | RN10: 0 | RO10: 0 | RP10: 0 | RQ10: 0 | RR10: 0 | RS10: 0 | RT10: 0 | RU10: 0 | RV10: 0 | RW10: 0 | RX10: 0 | RY10: 0 | RZ10: 0 | SA10: 0 | SB10: 0 | SC10: 0 | SD10: 0 | SE10: 0 | SF10: 0 | SG10: 0 | SH10: 0 | SI10: 0 | SJ10: 0 | SK10: 0 | SL10: 0 | SM10: 0 | SN10: 0 | SO10: 0 | SP10: 0 | SQ10: 0 | SR10: 0 | SS10: 0 | ST10: 0 | SU10: 0 | SV10: 0.7 | SX10: 0.7 | SY10: 8 | SZ10: 0 | TA10: 0 | TB10: 0 | TC10: 0 | TD10: 0 | TE10: 0 | TF10: 0 | TG10: 0 | TH10: 0 | TI10: 0 | TJ10: 0 | TK10: 0 | TL10: 0 | TM10: 0 | TN10: 0 | TO10: 0 | TP10: 0 | TQ10: 0 | TR10: 0 | TS10: 0 | TT10: 0 | TU10: 0 | TV10: 0 | TW10: 0 | TX10: 0 | TY10: 0 | TZ10: 0 | UA10: 0 | UB10: 0 | UC10: 0 | UD10: 0 | UE10: 0 | UF10: 0 | UG10: 0 | UH10: 0 | UI10: 0 | UJ10: 0 | UK10: 0 | UL10: 0 | UM10: 0 | UN10: 0 | UO10: 0.7 | UQ10: 0.7 | UR10: 8 | US10: 1 | UT10: 0 | UU10: 0 | UV10: 0 | UW10: 0 | UX10: 0 | UY10: 0 | UZ10: 0 | VA10: 0 | VB10: 0 | VC10: 0 | VD10: 0 | VE10: 0 | VF10: 0 | VG10: 0 | VH10: 0 | VI10: 0 | VJ10: 0 | VK10: 0 | VL10: 0 | VM10: 1 | VN10: 0 | VO10: 0 | VP10: 0 | VQ10: 0 | VR10: 0 | VS10: 0 | VT10: 0 | VU10: 0 | VV10: 0 | VW10: 0 | VX10: 0 | VY10: 0 | VZ10: 0 | WA10: 0 | WB10: 0 | WC10: 0 | WD10: 0 | WE10: 0 | WF10: 0 | WG10: 1 | WH10: 0.7 | WJ10: 0.7 | WK10: 8 | WL10: 51.36 | WM10: 0 | WN10: 0 | WO10: 0 | WP10: 0 | WQ10: 0 | WR10: 0 | WS10: 0 | WT10: 0 | WU10: 0 | WV10: 0 | WW10: 0 | WX10: 0 | WY10: 0 | WZ10: 0 | XA10: 0 | XB10: 0 | XC10: 0 | XD10: 0 | XE10: 0 | XF10: 60.56 | XG10: 0 | XH10: 0 | XI10: 0 | XJ10: 0 | XK10: 0 | XL10: 0 | XM10: 0 | XN10: 0 | XO10: 0 | XP10: 0 | XQ10: 0 | XR10: 0 | XS10: 0 | XT10: 0 | XU10: 0 | XV10: 0 | XW10: 0 | XX10: 0 | XY10: 0 | XZ10: 69.91 | YA10: 0.7 | YC10: 0.7 | YD10: 8 | YE10: 4 | YF10: 4 | YG10: 4 | YH10: 4 | YI10: 4 | YJ10: 4 | YK10: 4 | YL10: 4 | YM10: 4 | YN10: 4 | YO10: 4 | YP10: 4 | YQ10: 4 | YR10: 4 | YS10: 4 | YT10: 4 | YU10: 4 | YV10: 4 | YW10: 4 | YX10: 4 | YY10: 4 | YZ10: 5 | ZA10: 5 | ZB10: 5 | ZC10: 5 | ZD10: 5 | ZE10: 5 | ZF10: 5 | ZG10: 5 | ZH10: 5 | ZI10: 5 | ZJ10: 5 | ZK10: 5 | ZL10: 5 | ZM10: 5 | ZN10: 5 | ZO10: 5 | ZP10: 5 | ZQ10: 5 | ZR10: 5 | ZS10: 5 | ZT10: 5 | ZU10: 0.7 | ZW10: 0.7 | ZX10: 8 | ZY10: 0 | ZZ10: 0 | AAA10: 0 | AAB10: 0 | AAC10: 0 | AAD10: 4 | AAE10: 4 | AAF10: 0 | AAG10: 0 | AAH10: 0 | AAI10: 0 | AAJ10: 0 | AAK10: 0 | AAL10: 0 | AAM10: 4 | AAN10: 4 | AAO10: 0 | AAP10: 0 | AAQ10: 0 | AAR10: 0 | AAS10: 0 | AAT10: 0 | AAU10: 0 | AAV10: 0 | AAW10: 4 | AAX10: 4 | AAY10: 0 | AAZ10: 0 | ABA10: 0 | ABB10: 0 | ABC10: 0 | ABD10: 0 | ABE10: 0 | ABF10: 4 | ABG10: 4 | ABH10: 0 | ABI10: 0 | ABJ10: 0 | ABK10: 0 | ABL10: 0 | ABM10: 0 | ABN10: 0 | ABO10: 0.7 | ABQ10: 0.7 | ABR10: 8 | ABS10: 1 | ABT10: 0 | ABU10: 0 | ABV10: 0 | ABW10: 0 | ABX10: 0 | ABY10: 0 | ABZ10: 0 | ACA10: 0 | ACB10: 0 | ACC10: 0 | ACD10: 0 | ACE10: 0 | ACF10: 0 | ACG10: 0 | ACH10: 0 | ACI10: 0 | ACJ10: 0 | ACK10: 0 | ACL10: 0 | ACM10: 1 | ACN10: 57 | ACO10: 57 | ACP10: 57 | ACQ10: 57 | ACR10: 57 | ACS10: 57 | ACT10: 57 | ACU10: 57 | ACV10: 57 | ACW10: 57 | ACX10: 57 | ACY10: 57 | ACZ10: 57 | ADA10: 57 | ADB10: 57 | ADC10: 57 | ADD10: 57 | ADE10: 57 | ADF10: 57 | ADG10: 57 | ADH10: 57 | ADI10: 0.7
A11: 9 | B11: I | C11: 48 | D11: 52 | E11: 53 | F11: 55 | G11: 62 | H11: 66 | I11: 71 | J11: 74 | K11: 78 | M11: 2C | N11: =ROUND('3D Interpolace'!M12,2) -> 51.4 | O11: =ROUND('3D Interpolace'!N12,2) -> 52.12 | P11: =ROUND('3D Interpolace'!O12,2) -> 52.77 | Q11: =ROUND('3D Interpolace'!P12,2) -> 53.36 | R11: =ROUND('3D Interpolace'!Q12,2) -> 53.88 | S11: =ROUND('3D Interpolace'!R12,2) -> 54.33 | T11: =ROUND('3D Interpolace'!S12,2) -> 54.56 | U11: =ROUND('3D Interpolace'!T12,2) -> 54.57 | V11: =ROUND('3D Interpolace'!U12,2) -> 54.58 | W11: =ROUND('3D Interpolace'!V12,2) -> 54.85 | X11: =ROUND('3D Interpolace'!W12,2) -> 55.58 | Y11: =ROUND('3D Interpolace'!X12,2) -> 57.11 | Z11: =ROUND('3D Interpolace'!Y12,2) -> 59.28 | AA11: =ROUND('3D Interpolace'!Z12,2) -> 61.6 | AB11: =ROUND('3D Interpolace'!AA12,2) -> 63.62 | AC11: =ROUND('3D Interpolace'!AB12,2) -> 64.86 | AD11: =ROUND('3D Interpolace'!AC12,2) -> 65.11 | AE11: =ROUND('3D Interpolace'!AD12,2) -> 64.71 | AF11: =ROUND('3D Interpolace'!AE12,2) -> 63.93 | AG11: =ROUND('3D Interpolace'!AF12,2) -> 63.08 | AH11: =ROUND('3D Interpolace'!AG12,2) -> 62.44 | AI11: =ROUND('3D Interpolace'!AH12,2) -> 61.94 | AJ11: =ROUND('3D Interpolace'!AI12,2) -> 61.38 | AK11: =ROUND('3D Interpolace'!AJ12,2) -> 60.88 | AL11: =ROUND('3D Interpolace'!AK12,2) -> 60.55 | AM11: =ROUND('3D Interpolace'!AL12,2) -> 60.51 | AN11: =ROUND('3D Interpolace'!AM12,2) -> 60.9 | AO11: =ROUND('3D Interpolace'!AN12,2) -> 61.65 | AP11: =ROUND('3D Interpolace'!AO12,2) -> 62.54 | AQ11: =ROUND('3D Interpolace'!AP12,2) -> 63.35 | AR11: =ROUND('3D Interpolace'!AQ12,2) -> 63.86 | AS11: =ROUND('3D Interpolace'!AR12,2) -> 63.92 | AT11: =ROUND('3D Interpolace'!AS12,2) -> 63.68 | AU11: =ROUND('3D Interpolace'!AT12,2) -> 63.36 | AV11: =ROUND('3D Interpolace'!AU12,2) -> 63.19 | AW11: =ROUND('3D Interpolace'!AV12,2) -> 63.37 | AX11: =ROUND('3D Interpolace'!AW12,2) -> 63.91 | AY11: =ROUND('3D Interpolace'!AX12,2) -> 64.66 | AZ11: =ROUND('3D Interpolace'!AY12,2) -> 65.63 | BA11: =ROUND('3D Interpolace'!AZ12,2) -> 66.81 | BB11: =ROUND('3D Interpolace'!BA12,2) -> 68.21 | BD11: 0.8 | BE11: 9 | BK11: 4 | BL11: 4 | BT11: 4 | BU11: 4 | CC11: 4 | CD11: 4 | CL11: 4 | CM11: 4 | CU11: 0.8 | CW11: 0.8 | CX11: 9 | CY11: 51.4 | CZ11: 52.12 | DA11: 52.77 | DB11: 53.36 | DC11: 53.88 | DD11: 58.33 | DE11: 58.56 | DF11: 54.57 | DG11: 54.58 | DH11: 54.85 | DI11: 55.58 | DJ11: 57.11 | DK11: 59.28 | DL11: 61.6 | DM11: 67.62 | DN11: 68.86 | DO11: 65.11 | DP11: 64.71 | DQ11: 63.93 | DR11: 63.08 | DS11: 62.44 | DT11: 61.94 | DU11: 61.38 | DV11: 64.88 | DW11: 64.55 | DX11: 60.51 | DY11: 60.9 | DZ11: 61.65 | EA11: 62.54 | EB11: 63.35 | EC11: 63.86 | ED11: 63.92 | EE11: 67.68 | EF11: 67.36 | EG11: 63.19 | EH11: 63.37 | EI11: 63.91 | EJ11: 64.66 | EK11: 65.63 | EL11: 66.81 | EM11: 68.21 | EN11: 0.8 | EP11: 0.8 | EQ11: 9 | ER11: 51.4 | ES11: 52.12 | ET11: 52.77 | EU11: 53.36 | EV11: 53.88 | EW11: 58.33 | EX11: 58.56 | EY11: 54.57 | EZ11: 54.58 | FA11: 54.85 | FB11: 55.58 | FC11: 57.11 | FD11: 59.28 | FE11: 61.6 | FF11: 67.62 | FG11: 68.86 | FH11: 65.11 | FI11: 64.71 | FJ11: 63.93 | FK11: 63.08 | FL11: 62.44 | FM11: 62.44 | FN11: 61.94 | FO11: 61.38 | FP11: 64.88 | FQ11: 64.55 | FR11: 60.51 | FS11: 60.9 | FT11: 61.65 | FU11: 62.54 | FV11: 63.35 | FW11: 63.86 | FX11: 63.92 | FY11: 67.68 | FZ11: 67.36 | GA11: 63.19 | GB11: 63.37 | GC11: 63.91 | GD11: 64.66 | GE11: 65.63 | GF11: 66.81 | GG11: 68.21 | GK11: 0.8 | GL11: 9 | GM11: 0 | GN11: 0 | GO11: 0 | GP11: 0 | GQ11: 0 | GR11: 58.33 | GS11: 0 | GT11: 0 | GU11: 0 | GV11: 0 | GW11: 0 | GX11: 0 | GY11: 0 | GZ11: 0 | HA11: 0 | HB11: 68.86 | HC11: 0 | HD11: 0 | HE11: 0 | HF11: 0 | HG11: 0 | HH11: 0 | HI11: 0 | HJ11: 0 | HK11: 0 | HL11: 0 | HM11: 0 | HN11: 0 | HO11: 0 | HP11: 0 | HQ11: 0 | HR11: 0 | HS11: 0 | HT11: 0 | HU11: 0 | HV11: 0 | HW11: 0 | HX11: 0 | HY11: 0 | HZ11: 0 | IA11: 0 | IB11: 0 | IC11: 0.8 | IG11: 9 | IH11: 68.3 | II11: 68.4 | IJ11: 68.5 | IK11: 68.6 | IL11: 68.7 | IM11: 68.8 | IN11: 68.9 | IO11: 69 | IP11: 69.1 | IQ11: 69.2 | IR11: 69.3 | IS11: 69.4 | IT11: 69.5 | IU11: 69.6 | IV11: 69.7 | IW11: 69.8 | IX11: 69.9 | IY11: 70 | IZ11: 70.1 | JA11: 70.2 | JB11: 70.3 | JC11: 65.5 | JD11: 66.2 | JE11: 66.9 | JF11: 67.6 | JG11: 68.3 | JH11: 69 | JI11: 69.7 | JJ11: 70.4 | JK11: 71.1 | JL11: 71.8 | JM11: 72.5 | JN11: 73.2 | JO11: 73.9 | JP11: 74.6 | JQ11: 75.3 | JR11: 76 | JS11: 76.7 | JT11: 77.4 | JU11: 78.1 | JV11: 78.8 | JW11: 79.5 | JX11: 0.8 | KD11: 0.8 | KE11: 9 | KF11: 16.9 | KG11: 16.28 | KH11: 15.73 | KI11: 15.24 | KJ11: 14.82 | KK11: 10.47 | KL11: 10.34 | KM11: 14.43 | KN11: 14.52 | KO11: 14.35 | KP11: 13.72 | KQ11: 12.29 | KR11: 10.22 | KS11: 8 | KT11: 2.08 | KU11: 0.94 | KV11: 4.79 | KW11: 5.29 | KX11: 6.17 | KY11: 7.12 | KZ11: 7.86 | LA11: 3.06 | LB11: 4.26 | LC11: 5.52 | LD11: 2.72 | LE11: 3.75 | LF11: 8.49 | LG11: 8.8 | LH11: 8.75 | LI11: 8.56 | LJ11: 8.45 | LK11: 8.64 | LL11: 9.28 | LM11: 6.22 | LN11: 7.24 | LO11: 12.11 | LP11: 12.63 | LQ11: 12.79 | LR11: 12.74 | LS11: 12.47 | LT11: 11.99 | LU11: 11.29 | MC11: 0.8 | MD11: 9 | ME11: 16.71 | MF11: 16.2275 | MG11: 15.8175 | MH11: 15.4825 | MI11: 13.225 | MJ11: 11.145 | MK11: 13.34 | ML11: 15.6625 | MM11: 15.8075 | MN11: 15.475 | MO11: 14.3275 | MP11: 12.2675 | MQ11: 9.6875 | MR11: 5.16 | MS11: 1.2525 | MT11: 2.3625 | MU11: 4.4075 | MV11: 5.035 | MW11: 5.92 | MX11: 6.7375 | MY11: 2.91 | MZ11: 4.08 | NA11: 3.2575 | NB11: 2.3325 | NC11: 5.2025 | ND11: 7.75 | NE11: 7.94 | NF11: 7.91 | NG11: 7.8575 | NH11: 7.9825 | NI11: 8.4475 | NJ11: 7.2475 | NK11: 6.2225 | NL11: 9.1825 | NM11: 11.94 | NN11: 12.405 | NO11: 12.64 | NP11: 12.7025 | NQ11: 12.5925 | NR11: 12.31 | NU11: 0.8 | NV11: 9 | NW11: 0 | NX11: 0 | NY11: 4.71 | NZ11: 4.71 | OA11: 6.1 | OB11: 7.9 | OC11: 6.1 | OD11: 4.71 | OE11: 4.71 | OF11: 4.71 | OG11: 4.71 | OH11: 6.1 | OI11: 11.33 | OJ11: 15.63 | OK11: 31.64 | OL11: 23.66 | OM11: 15.63 | ON11: 15.63 | OO11: 15.63 | OP11: 11.98 | OQ11: 23.66 | OR11: 15.63 | OS11: 23.66 | OT11: 23.66 | OU11: 15.63 | OV11: 11.98 | OW11: 11.98 | OX11: 11.98 | OY11: 11.98 | OZ11: 11.98 | PA11: 11.33 | PB11: 11.98 | PC11: 11.98 | PD11: 11.33 | PE11: 7.9 | PF11: 6.1 | PG11: 6.1 | PH11: 6.1 | PI11: 6.1 | PJ11: 6.1 | PM11: 0.8 | PN11: 9 | PO11: -31.64 | PP11: -23.66 | PQ11: -18.95 | PR11: -18.95 | PS11: -25.54 | PT11: -23.74 | PU11: -17.56 | PV11: -7.27 | PW11: -7.27 | PX11: -6.62 | PY11: 4.71 | PZ11: 6.1 | QA11: 5.23 | QB11: 3.65 | QC11: 0 | QD11: -7.98 | QE11: -8.03 | QF11: -16.01 | QG11: -16.01 | QH11: -19.66 | QI11: 0 | QJ11: -8.03 | QK11: -7.98 | QL11: -7.98 | QM11: -8.03 | QN11: -3.65 | QO11: -11.68 | QP11: -11.68 | QQ11: -11.68 | QR11: -11.68 | QS11: -12.33 | QT11: -19.66 | QU11: -19.66 | QV11: -12.33 | QW11: -4.08 | QX11: -5.88 | QY11: -5.88 | QZ11: -5.23 | RA11: -5.23 | RB11: -5.23 | RE11: 0.8 | RF11: 9 | RG11: 0 | RH11: 0 | RI11: 0 | RJ11: 0 | RK11: 0 | RL11: 0 | RM11: 0 | RN11: 0 | RO11: 0 | RP11: 0 | RQ11: 0 | RR11: 0 | RS11: 0 | RT11: 0 | RU11: 0 | RV11: 0 | RW11: 0 | RX11: 0 | RY11: 0 | RZ11: 0 | SA11: 0 | SB11: 0 | SC11: 0 | SD11: 0 | SE11: 0 | SF11: 0 | SG11: 0 | SH11: 0 | SI11: 0 | SJ11: 0 | SK11: 0 | SL11: 0 | SM11: 0 | SN11: 0 | SO11: 0 | SP11: 0 | SQ11: 0 | SR11: 0 | SS11: 0 | ST11: 0 | SU11: 0 | SV11: 0.8 | SX11: 0.8 | SY11: 9 | SZ11: 0 | TA11: 0 | TB11: 0 | TC11: 0 | TD11: 0 | TE11: 0 | TF11: 0 | TG11: 0 | TH11: 0 | TI11: 0 | TJ11: 0 | TK11: 0 | TL11: 0 | TM11: 0 | TN11: 0 | TO11: 0 | TP11: 0 | TQ11: 0 | TR11: 0 | TS11: 0 | TT11: 0 | TU11: 0 | TV11: 0 | TW11: 0 | TX11: 0 | TY11: 0 | TZ11: 0 | UA11: 0 | UB11: 0 | UC11: 0 | UD11: 0 | UE11: 0 | UF11: 0 | UG11: 0 | UH11: 0 | UI11: 0 | UJ11: 0 | UK11: 0 | UL11: 0 | UM11: 0 | UN11: 0 | UO11: 0.8 | UQ11: 0.8 | UR11: 9 | US11: 1 | UT11: 0 | UU11: 0 | UV11: 0 | UW11: 0 | UX11: 0 | UY11: 0 | UZ11: 0 | VA11: 0 | VB11: 0 | VC11: 0 | VD11: 0 | VE11: 0 | VF11: 0 | VG11: 0 | VH11: 0 | VI11: 0 | VJ11: 0 | VK11: 0 | VL11: 0 | VM11: 1 | VN11: 0 | VO11: 0 | VP11: 0 | VQ11: 0 | VR11: 0 | VS11: 0 | VT11: 0 | VU11: 0 | VV11: 0 | VW11: 0 | VX11: 0 | VY11: 0 | VZ11: 0 | WA11: 0 | WB11: 0 | WC11: 0 | WD11: 0 | WE11: 0 | WF11: 0 | WG11: 1 | WH11: 0.8 | WJ11: 0.8 | WK11: 9 | WL11: 51.4 | WM11: 0 | WN11: 0 | WO11: 0 | WP11: 0 | WQ11: 0 | WR11: 0 | WS11: 0 | WT11: 0 | WU11: 0 | WV11: 0 | WW11: 0 | WX11: 0 | WY11: 0 | WZ11: 0 | XA11: 0 | XB11: 0 | XC11: 0 | XD11: 0 | XE11: 0 | XF11: 62.44 | XG11: 0 | XH11: 0 | XI11: 0 | XJ11: 0 | XK11: 0 | XL11: 0 | XM11: 0 | XN11: 0 | XO11: 0 | XP11: 0 | XQ11: 0 | XR11: 0 | XS11: 0 | XT11: 0 | XU11: 0 | XV11: 0 | XW11: 0 | XX11: 0 | XY11: 0 | XZ11: 68.21 | YA11: 0.8 | YC11: 0.8 | YD11: 9 | YE11: 4 | YF11: 4 | YG11: 4 | YH11: 4 | YI11: 4 | YJ11: 4 | YK11: 4 | YL11: 4 | YM11: 4 | YN11: 4 | YO11: 4 | YP11: 4 | YQ11: 4 | YR11: 4 | YS11: 4 | YT11: 4 | YU11: 4 | YV11: 4 | YW11: 4 | YX11: 4 | YY11: 4 | YZ11: 5 | ZA11: 5 | ZB11: 5 | ZC11: 5 | ZD11: 5 | ZE11: 5 | ZF11: 5 | ZG11: 5 | ZH11: 5 | ZI11: 5 | ZJ11: 5 | ZK11: 5 | ZL11: 5 | ZM11: 5 | ZN11: 5 | ZO11: 5 | ZP11: 5 | ZQ11: 5 | ZR11: 5 | ZS11: 5 | ZT11: 5 | ZU11: 0.8 | ZW11: 0.8 | ZX11: 9 | ZY11: 0 | ZZ11: 0 | AAA11: 0 | AAB11: 0 | AAC11: 0 | AAD11: 4 | AAE11: 4 | AAF11: 0 | AAG11: 0 | AAH11: 0 | AAI11: 0 | AAJ11: 0 | AAK11: 0 | AAL11: 0 | AAM11: 4 | AAN11: 4 | AAO11: 0 | AAP11: 0 | AAQ11: 0 | AAR11: 0 | AAS11: 0 | AAT11: 0 | AAU11: 0 | AAV11: 0 | AAW11: 4 | AAX11: 4 | AAY11: 0 | AAZ11: 0 | ABA11: 0 | ABB11: 0 | ABC11: 0 | ABD11: 0 | ABE11: 0 | ABF11: 4 | ABG11: 4 | ABH11: 0 | ABI11: 0 | ABJ11: 0 | ABK11: 0 | ABL11: 0 | ABM11: 0 | ABN11: 0 | ABO11: 0.8 | ABQ11: 0.8 | ABR11: 9 | ABS11: 1 | ABT11: 0 | ABU11: 0 | ABV11: 0 | ABW11: 0 | ABX11: 0 | ABY11: 0 | ABZ11: 0 | ACA11: 0 | ACB11: 0 | ACC11: 0 | ACD11: 0 | ACE11: 0 | ACF11: 0 | ACG11: 0 | ACH11: 0 | ACI11: 0 | ACJ11: 0 | ACK11: 0 | ACL11: 0 | ACM11: 1 | ACN11: 57 | ACO11: 57 | ACP11: 57 | ACQ11: 57 | ACR11: 57 | ACS11: 57 | ACT11: 57 | ACU11: 57 | ACV11: 57 | ACW11: 57 | ACX11: 57 | ACY11: 57 | ACZ11: 57 | ADA11: 57 | ADB11: 57 | ADC11: 57 | ADD11: 57 | ADE11: 57 | ADF11: 57 | ADG11: 57 | ADH11: 57 | ADI11: 0.8
A12: 10 | B12: J | C12: 49 | D12: 46 | E12: 46 | F12: 53 | G12: 57 | H12: 66 | I12: 69 | J12: 76 | K12: 79 | M12: 2D | N12: =ROUND('3D Interpolace'!M13,2) -> 51.36 | O12: =ROUND('3D Interpolace'!N13,2) -> 51.88 | P12: =ROUND('3D Interpolace'!O13,2) -> 52.32 | Q12: =ROUND('3D Interpolace'!P13,2) -> 52.68 | R12: =ROUND('3D Interpolace'!Q13,2) -> 52.95 | S12: =ROUND('3D Interpolace'!R13,2) -> 53.14 | T12: =ROUND('3D Interpolace'!S13,2) -> 52.99 | U12: =ROUND('3D Interpolace'!T13,2) -> 52.52 | V12: =ROUND('3D Interpolace'!U13,2) -> 52.08 | W12: =ROUND('3D Interpolace'!V13,2) -> 52.06 | X12: =ROUND('3D Interpolace'!W13,2) -> 52.81 | Y12: =ROUND('3D Interpolace'!X13,2) -> 54.79 | Z12: =ROUND('3D Interpolace'!Y13,2) -> 57.75 | AA12: =ROUND('3D Interpolace'!Z13,2) -> 61.02 | AB12: =ROUND('3D Interpolace'!AA13,2) -> 63.92 | AC12: =ROUND('3D Interpolace'!AB13,2) -> 65.79 | AD12: =ROUND('3D Interpolace'!AC13,2) -> 66.39 | AE12: =ROUND('3D Interpolace'!AD13,2) -> 66.16 | AF12: =ROUND('3D Interpolace'!AE13,2) -> 65.46 | AG12: =ROUND('3D Interpolace'!AF13,2) -> 64.65 | AH12: =ROUND('3D Interpolace'!AG13,2) -> 64.08 | AI12: =ROUND('3D Interpolace'!AH13,2) -> 63.7 | AJ12: =ROUND('3D Interpolace'!AI13,2) -> 63.26 | AK12: =ROUND('3D Interpolace'!AJ13,2) -> 62.85 | AL12: =ROUND('3D Interpolace'!AK13,2) -> 62.59 | AM12: =ROUND('3D Interpolace'!AL13,2) -> 62.54 | AN12: =ROUND('3D Interpolace'!AM13,2) -> 62.85 | AO12: =ROUND('3D Interpolace'!AN13,2) -> 63.44 | AP12: =ROUND('3D Interpolace'!AO13,2) -> 64.13 | AQ12: =ROUND('3D Interpolace'!AP13,2) -> 64.75 | AR12: =ROUND('3D Interpolace'!AQ13,2) -> 65.11 | AS12: =ROUND('3D Interpolace'!AR13,2) -> 65.12 | AT12: =ROUND('3D Interpolace'!AS13,2) -> 64.89 | AU12: =ROUND('3D Interpolace'!AT13,2) -> 64.58 | AV12: =ROUND('3D Interpolace'!AU13,2) -> 64.34 | AW12: =ROUND('3D Interpolace'!AV13,2) -> 64.34 | AX12: =ROUND('3D Interpolace'!AW13,2) -> 64.56 | AY12: =ROUND('3D Interpolace'!AX13,2) -> 64.91 | AZ12: =ROUND('3D Interpolace'!AY13,2) -> 65.39 | BA12: =ROUND('3D Interpolace'!AZ13,2) -> 66 | BB12: =ROUND('3D Interpolace'!BA13,2) -> 66.74 | BD12: 0.9 | BE12: 10 | BK12: 4 | BL12: 4 | BT12: 4 | BU12: 4 | CC12: 4 | CD12: 4 | CL12: 4 | CM12: 4 | CU12: 0.9 | CW12: 0.9 | CX12: 10 | CY12: 51.36 | CZ12: 51.88 | DA12: 52.32 | DB12: 52.68 | DC12: 52.95 | DD12: 57.14 | DE12: 56.99 | DF12: 52.52 | DG12: 52.08 | DH12: 52.06 | DI12: 52.81 | DJ12: 54.79 | DK12: 57.75 | DL12: 61.02 | DM12: 67.92 | DN12: 69.79 | DO12: 66.39 | DP12: 66.16 | DQ12: 65.46 | DR12: 64.65 | DS12: 64.08 | DT12: 63.7 | DU12: 63.26 | DV12: 66.85 | DW12: 66.59 | DX12: 62.54 | DY12: 62.85 | DZ12: 63.44 | EA12: 64.13 | EB12: 64.75 | EC12: 65.11 | ED12: 65.12 | EE12: 68.89 | EF12: 68.58 | EG12: 64.34 | EH12: 64.34 | EI12: 64.56 | EJ12: 64.91 | EK12: 65.39 | EL12: 66 | EM12: 66.74 | EN12: 0.9 | EP12: 0.9 | EQ12: 10 | ER12: 51.36 | ES12: 51.88 | ET12: 52.32 | EU12: 52.68 | EV12: 52.95 | EW12: 57.14 | EX12: 56.99 | EY12: 52.52 | EZ12: 52.08 | FA12: 52.06 | FB12: 52.81 | FC12: 54.79 | FD12: 57.75 | FE12: 61.02 | FF12: 67.92 | FG12: 69.79 | FH12: 66.39 | FI12: 66.16 | FJ12: 65.46 | FK12: 64.65 | FL12: 64.08 | FM12: 64.08 | FN12: 63.7 | FO12: 63.26 | FP12: 66.85 | FQ12: 66.59 | FR12: 62.54 | FS12: 62.85 | FT12: 63.44 | FU12: 64.13 | FV12: 64.75 | FW12: 65.11 | FX12: 65.12 | FY12: 68.89 | FZ12: 68.58 | GA12: 64.34 | GB12: 64.34 | GC12: 64.56 | GD12: 64.91 | GE12: 65.39 | GF12: 66 | GG12: 66.74 | GK12: 0.9 | GL12: 10 | GM12: 0 | GN12: 0 | GO12: 0 | GP12: 0 | GQ12: 0 | GR12: 57.14 | GS12: 0 | GT12: 0 | GU12: 0 | GV12: 0 | GW12: 0 | GX12: 0 | GY12: 0 | GZ12: 0 | HA12: 0 | HB12: 69.79 | HC12: 0 | HD12: 0 | HE12: 0 | HF12: 0 | HG12: 0 | HH12: 0 | HI12: 0 | HJ12: 0 | HK12: 0 | HL12: 0 | HM12: 0 | HN12: 0 | HO12: 0 | HP12: 0 | HQ12: 0 | HR12: 0 | HS12: 0 | HT12: 0 | HU12: 0 | HV12: 0 | HW12: 0 | HX12: 0 | HY12: 0 | HZ12: 0 | IA12: 0 | IB12: 0 | IC12: 0.9 | IG12: 10 | IH12: 68.4 | II12: 68.5 | IJ12: 68.6 | IK12: 68.7 | IL12: 68.8 | IM12: 68.9 | IN12: 69 | IO12: 69.1 | IP12: 69.2 | IQ12: 69.3 | IR12: 69.4 | IS12: 69.5 | IT12: 69.6 | IU12: 69.7 | IV12: 69.8 | IW12: 69.9 | IX12: 70 | IY12: 70.1 | IZ12: 70.2 | JA12: 70.3 | JB12: 70.4 | JC12: 65.7 | JD12: 66.4 | JE12: 67.1 | JF12: 67.8 | JG12: 68.5 | JH12: 69.2 | JI12: 69.9 | JJ12: 70.6 | JK12: 71.3 | JL12: 72 | JM12: 72.7 | JN12: 73.4 | JO12: 74.1 | JP12: 74.8 | JQ12: 75.5 | JR12: 76.2 | JS12: 76.9 | JT12: 77.6 | JU12: 78.3 | JV12: 79 | JW12: 79.7 | JX12: 0.9 | KD12: 0.9 | KE12: 10 | KF12: 17.04 | KG12: 16.62 | KH12: 16.28 | KI12: 16.02 | KJ12: 15.85 | KK12: 11.76 | KL12: 12.01 | KM12: 16.58 | KN12: 17.12 | KO12: 17.24 | KP12: 16.59 | KQ12: 14.71 | KR12: 11.85 | KS12: 8.68 | KT12: 1.88 | KU12: 0.11 | KV12: 3.61 | KW12: 3.94 | KX12: 4.74 | KY12: 5.65 | KZ12: 6.32 | LA12: 1.62 | LB12: 2.7 | LC12: 3.84 | LD12: 0.95 | LE12: 1.91 | LF12: 6.66 | LG12: 7.05 | LH12: 7.16 | LI12: 7.17 | LJ12: 7.25 | LK12: 7.59 | LL12: 8.28 | LM12: 5.21 | LN12: 6.22 | LO12: 11.16 | LP12: 11.86 | LQ12: 12.34 | LR12: 12.69 | LS12: 12.91 | LT12: 13 | LU12: 12.96 | MC12: 0.9 | MD12: 10 | ME12: =AVERAGE(KF12:KG13) -> 17.1 | MF12: 16.8 | MG12: 16.58 | MH12: 16.4425 | MI12: 14.3875 | MJ12: 12.55 | MK12: 15.06 | ML12: 17.72 | MM12: 18.1275 | MN12: 17.88 | MO12: 16.5425 | MP12: 14.0025 | MQ12: 10.7575 | MR12: 5.5275 | MS12: 1.03 | MT12: 1.75 | MU12: 3.57 | MV12: 4.065 | MW12: 4.865 | MX12: 5.6025 | MY12: 1.7675 | MZ12: 2.8075 | NA12: 1.8625 | NB12: 0.8425 | NC12: 3.665 | ND12: 6.2375 | NE12: 6.53 | NF12: 6.6575 | NG12: 6.7775 | NH12: 7.05 | NI12: 7.6025 | NJ12: 6.4275 | NK12: 5.4025 | NL12: 8.39 | NM12: 11.25 | NN12: 11.915 | NO12: 12.4325 | NP12: 12.845 | NQ12: 13.1525 | NR12: 13.355 | NU12: 0.9 | NV12: 10 | NW12: 0 | NX12: 0 | NY12: 0 | NZ12: 0 | OA12: 4.71 | OB12: 6.1 | OC12: 4.71 | OD12: 0 | OE12: 0 | OF12: 0 | OG12: 0 | OH12: 4.71 | OI12: 7.9 | OJ12: 15.63 | OK12: 31.64 | OL12: 31.64 | OM12: 23.66 | ON12: 15.63 | OO12: 15.63 | OP12: 15.63 | OQ12: 31.64 | OR12: 23.66 | OS12: 31.64 | OT12: 31.64 | OU12: 23.66 | OV12: 11.98 | OW12: 11.98 | OX12: 11.98 | OY12: 11.98 | OZ12: 11.98 | PA12: 11.98 | PB12: 11.98 | PC12: 15.63 | PD12: 11.33 | PE12: 7.9 | PF12: 7.9 | PG12: 6.1 | PH12: 6.1 | PI12: 6.1 | PJ12: 6.1 | PM12: 0.9 | PN12: 10 | PO12: -31.64 | PP12: -31.64 | PQ12: -31.64 | PR12: -23.66 | PS12: -26.93 | PT12: -25.54 | PU12: -10.92 | PV12: -11.98 | PW12: -11.33 | PX12: -11.33 | PY12: 0 | PZ12: 4.71 | QA12: 3.19 | QB12: 4.3 | QC12: 7.98 | QD12: 0 | QE12: 0 | QF12: -16.01 | QG12: -16.01 | QH12: -16.01 | QI12: 7.98 | QJ12: 0 | QK12: 0 | QL12: 0 | QM12: 0 | QN12: -3.65 | QO12: -11.68 | QP12: -11.68 | QQ12: -11.68 | QR12: -11.68 | QS12: -11.68 | QT12: -19.66 | QU12: -16.01 | QV12: -12.33 | QW12: -4.08 | QX12: -4.08 | QY12: -5.23 | QZ12: -5.23 | RA12: -5.23 | RB12: -5.23 | RE12: 0.9 | RF12: 10 | RG12: 0 | RH12: 0 | RI12: 0 | RJ12: 0 | RK12: 0 | RL12: 0 | RM12: 0 | RN12: 0 | RO12: 0 | RP12: 0 | RQ12: 0 | RR12: 0 | RS12: 0 | RT12: 0 | RU12: 0 | RV12: 0 | RW12: 0 | RX12: 0 | RY12: 0 | RZ12: 0 | SA12: 0 | SB12: 0 | SC12: 0 | SD12: 0 | SE12: 0 | SF12: 0 | SG12: 0 | SH12: 0 | SI12: 0 | SJ12: 0 | SK12: 0 | SL12: 0 | SM12: 0 | SN12: 0 | SO12: 0 | SP12: 0 | SQ12: 0 | SR12: 0 | SS12: 0 | ST12: 0 | SU12: 0 | SV12: 0.9 | SX12: 0.9 | SY12: 10 | SZ12: 0 | TA12: 0 | TB12: 0 | TC12: 0 | TD12: 0 | TE12: 0 | TF12: 0 | TG12: 0 | TH12: 0 | TI12: 0 | TJ12: 0 | TK12: 0 | TL12: 0 | TM12: 0 | TN12: 0 | TO12: 0 | TP12: 0 | TQ12: 0 | TR12: 0 | TS12: 0 | TT12: 0 | TU12: 0 | TV12: 0 | TW12: 0 | TX12: 0 | TY12: 0 | TZ12: 0 | UA12: 0 | UB12: 0 | UC12: 0 | UD12: 0 | UE12: 0 | UF12: 0 | UG12: 0 | UH12: 0 | UI12: 0 | UJ12: 0 | UK12: 0 | UL12: 0 | UM12: 0 | UN12: 0 | UO12: 0.9 | UQ12: 0.9 | UR12: 10 | US12: 1 | UT12: 0 | UU12: 0 | UV12: 0 | UW12: 0 | UX12: 0 | UY12: 0 | UZ12: 0 | VA12: 0 | VB12: 0 | VC12: 0 | VD12: 0 | VE12: 0 | VF12: 0 | VG12: 0 | VH12: 0 | VI12: 0 | VJ12: 0 | VK12: 0 | VL12: 0 | VM12: 1 | VN12: 0 | VO12: 0 | VP12: 0 | VQ12: 0 | VR12: 0 | VS12: 0 | VT12: 0 | VU12: 0 | VV12: 0 | VW12: 0 | VX12: 0 | VY12: 0 | VZ12: 0 | WA12: 0 | WB12: 0 | WC12: 0 | WD12: 0 | WE12: 0 | WF12: 0 | WG12: 1 | WH12: 0.9 | WJ12: 0.9 | WK12: 10 | WL12: 51.36 | WM12: 0 | WN12: 0 | WO12: 0 | WP12: 0 | WQ12: 0 | WR12: 0 | WS12: 0 | WT12: 0 | WU12: 0 | WV12: 0 | WW12: 0 | WX12: 0 | WY12: 0 | WZ12: 0 | XA12: 0 | XB12: 0 | XC12: 0 | XD12: 0 | XE12: 0 | XF12: 64.08 | XG12: 0 | XH12: 0 | XI12: 0 | XJ12: 0 | XK12: 0 | XL12: 0 | XM12: 0 | XN12: 0 | XO12: 0 | XP12: 0 | XQ12: 0 | XR12: 0 | XS12: 0 | XT12: 0 | XU12: 0 | XV12: 0 | XW12: 0 | XX12: 0 | XY12: 0 | XZ12: 66.74 | YA12: 0.9 | YC12: 0.9 | YD12: 10 | YE12: 4 | YF12: 4 | YG12: 4 | YH12: 4 | YI12: 4 | YJ12: 4 | YK12: 4 | YL12: 4 | YM12: 4 | YN12: 4 | YO12: 4 | YP12: 4 | YQ12: 4 | YR12: 4 | YS12: 4 | YT12: 4 | YU12: 4 | YV12: 4 | YW12: 4 | YX12: 4 | YY12: 4 | YZ12: 5 | ZA12: 5 | ZB12: 5 | ZC12: 5 | ZD12: 5 | ZE12: 5 | ZF12: 5 | ZG12: 5 | ZH12: 5 | ZI12: 5 | ZJ12: 5 | ZK12: 5 | ZL12: 5 | ZM12: 5 | ZN12: 5 | ZO12: 5 | ZP12: 5 | ZQ12: 5 | ZR12: 5 | ZS12: 5 | ZT12: 5 | ZU12: 0.9 | ZW12: 0.9 | ZX12: 10 | ZY12: 0 | ZZ12: 0 | AAA12: 0 | AAB12: 0 | AAC12: 0 | AAD12: 4 | AAE12: 4 | AAF12: 0 | AAG12: 0 | AAH12: 0 | AAI12: 0 | AAJ12: 0 | AAK12: 0 | AAL12: 0 | AAM12: 4 | AAN12: 4 | AAO12: 0 | AAP12: 0 | AAQ12: 0 | AAR12: 0 | AAS12: 0 | AAT12: 0 | AAU12: 0 | AAV12: 0 | AAW12: 4 | AAX12: 4 | AAY12: 0 | AAZ12: 0 | ABA12: 0 | ABB12: 0 | ABC12: 0 | ABD12: 0 | ABE12: 0 | ABF12: 4 | ABG12: 4 | ABH12: 0 | ABI12: 0 | ABJ12: 0 | ABK12: 0 | ABL12: 0 | ABM12: 0 | ABN12: 0 | ABO12: 0.9 | ABQ12: 0.9 | ABR12: 10 | ABS12: 1 | ABT12: 0 | ABU12: 0 | ABV12: 0 | ABW12: 0 | ABX12: 0 | ABY12: 0 | ABZ12: 0 | ACA12: 0 | ACB12: 0 | ACC12: 0 | ACD12: 0 | ACE12: 0 | ACF12: 0 | ACG12: 0 | ACH12: 0 | ACI12: 0 | ACJ12: 0 | ACK12: 0 | ACL12: 0 | ACM12: 1 | ACN12: 57 | ACO12: 57 | ACP12: 57 | ACQ12: 57 | ACR12: 57 | ACS12: 57 | ACT12: 57 | ACU12: 57 | ACV12: 57 | ACW12: 57 | ACX12: 57 | ACY12: 57 | ACZ12: 57 | ADA12: 57 | ADB12: 57 | ADC12: 57 | ADD12: 57 | ADE12: 57 | ADF12: 57 | ADG12: 57 | ADH12: 57 | ADI12: 0.9
A13: 11 | B13: K | C13: 54 | D13: 52 | E13: 54 | F13: 59 | G13: 67 | H13: 74 | I13: 78 | J13: 84 | K13: 83 | M13: 3 | N13: =ROUND('3D Interpolace'!M14,2) -> 51 | O13: =ROUND('3D Interpolace'!N14,2) -> 51.36 | P13: =ROUND('3D Interpolace'!O14,2) -> 51.64 | Q13: =ROUND('3D Interpolace'!P14,2) -> 51.84 | R13: =ROUND('3D Interpolace'!Q14,2) -> 51.96 | S13: =ROUND('3D Interpolace'!R14,2) -> 52 | T13: =ROUND('3D Interpolace'!S14,2) -> 51.67 | U13: =ROUND('3D Interpolace'!T14,2) -> 50.98 | V13: =ROUND('3D Interpolace'!U14,2) -> 50.34 | W13: =ROUND('3D Interpolace'!V14,2) -> 50.21 | X13: =ROUND('3D Interpolace'!W14,2) -> 51 | Y13: =ROUND('3D Interpolace'!X14,2) -> 53.23 | Z13: =ROUND('3D Interpolace'!Y14,2) -> 56.62 | AA13: =ROUND('3D Interpolace'!Z14,2) -> 60.38 | AB13: =ROUND('3D Interpolace'!AA14,2) -> 63.77 | AC13: =ROUND('3D Interpolace'!AB14,2) -> 66 | AD13: =ROUND('3D Interpolace'!AC14,2) -> 66.82 | AE13: =ROUND('3D Interpolace'!AD14,2) -> 66.75 | AF13: =ROUND('3D Interpolace'!AE14,2) -> 66.17 | AG13: =ROUND('3D Interpolace'!AF14,2) -> 65.46 | AH13: =ROUND('3D Interpolace'!AG14,2) -> 65 | AI13: =ROUND('3D Interpolace'!AH14,2) -> 64.75 | AJ13: =ROUND('3D Interpolace'!AI14,2) -> 64.46 | AK13: =ROUND('3D Interpolace'!AJ14,2) -> 64.18 | AL13: =ROUND('3D Interpolace'!AK14,2) -> 64.01 | AM13: =ROUND('3D Interpolace'!AL14,2) -> 64 | AN13: =ROUND('3D Interpolace'!AM14,2) -> 64.26 | AO13: =ROUND('3D Interpolace'!AN14,2) -> 64.73 | AP13: =ROUND('3D Interpolace'!AO14,2) -> 65.27 | AQ13: =ROUND('3D Interpolace'!AP14,2) -> 65.74 | AR13: =ROUND('3D Interpolace'!AQ14,2) -> 66 | AS13: =ROUND('3D Interpolace'!AR14,2) -> 65.96 | AT13: =ROUND('3D Interpolace'!AS14,2) -> 65.72 | AU13: =ROUND('3D Interpolace'!AT14,2) -> 65.4 | AV13: =ROUND('3D Interpolace'!AU14,2) -> 65.12 | AW13: =ROUND('3D Interpolace'!AV14,2) -> 65 | AX13: =ROUND('3D Interpolace'!AW14,2) -> 65.04 | AY13: =ROUND('3D Interpolace'!AX14,2) -> 65.16 | AZ13: =ROUND('3D Interpolace'!AY14,2) -> 65.36 | BA13: =ROUND('3D Interpolace'!AZ14,2) -> 65.64 | BB13: =ROUND('3D Interpolace'!BA14,2) -> 66 | BD13: 1 | BE13: 11 | BK13: 4 | BL13: 4 | BT13: 4 | BU13: 4 | CC13: 4 | CD13: 4 | CL13: 4 | CM13: 4 | CU13: 1 | CW13: 1 | CX13: 11 | CY13: 51 | CZ13: 51.36 | DA13: 51.64 | DB13: 51.84 | DC13: 51.96 | DD13: 56 | DE13: 55.67 | DF13: 50.98 | DG13: 50.34 | DH13: 50.21 | DI13: 51 | DJ13: 53.23 | DK13: 56.62 | DL13: 60.38 | DM13: 67.77 | DN13: 70 | DO13: 66.82 | DP13: 66.75 | DQ13: 66.17 | DR13: 65.46 | DS13: 65 | DT13: 64.75 | DU13: 64.46 | DV13: 68.18 | DW13: 68.01 | DX13: 64 | DY13: 64.26 | DZ13: 64.73 | EA13: 65.27 | EB13: 65.74 | EC13: 66 | ED13: 65.96 | EE13: 69.72 | EF13: 69.4 | EG13: 65.12 | EH13: 65 | EI13: 65.04 | EJ13: 65.16 | EK13: 65.36 | EL13: 65.64 | EM13: 66 | EN13: 1 | EP13: 1 | EQ13: 11 | ER13: =IF(ISNUMBER(INDEX(VstupniData,$EQ13,ER$2)),INDEX(VstupniData,$EQ13,ER$2),"") -> 51 | ES13: 51.36 | ET13: 51.64 | EU13: 51.84 | EV13: 51.96 | EW13: 56 | EX13: 55.67 | EY13: 50.98 | EZ13: 50.34 | FA13: 50.21 | FB13: =IF(ISNUMBER(INDEX(VstupniData,$EQ13,FB$2)),INDEX(VstupniData,$EQ13,FB$2),"") -> 51 | FC13: 53.23 | FD13: 56.62 | FE13: 60.38 | FF13: 67.77 | FG13: 70 | FH13: 66.82 | FI13: 66.75 | FJ13: 66.17 | FK13: 65.46 | FL13: =IF(ISNUMBER(INDEX(VstupniData,$EQ13,FL$2)),INDEX(VstupniData,$EQ13,FL$2),"") -> 65 | FM13: 65 | FN13: 64.75 | FO13: 64.46 | FP13: 68.18 | FQ13: 68.01 | FR13: 64 | FS13: 64.26 | FT13: 64.73 | FU13: 65.27 | FV13: =IF(ISNUMBER(INDEX(VstupniData,$EQ13,FV$2)),INDEX(VstupniData,$EQ13,FV$2),"") -> 65.74 | FW13: 66 | FX13: 65.96 | FY13: 69.72 | FZ13: 69.4 | GA13: 65.12 | GB13: 65 | GC13: 65.04 | GD13: 65.16 | GE13: 65.36 | GF13: 65.64 | GG13: 66 | GK13: 1 | GL13: 11 | GM13: 51 | GN13: 0 | GO13: 0 | GP13: 0 | GQ13: 0 | GR13: 56 | GS13: 55.67 | GT13: 0 | GU13: 0 | GV13: 0 | GW13: 51 | GX13: 0 | GY13: 0 | GZ13: 0 | HA13: 67.77 | HB13: 70 | HC13: 0 | HD13: 0 | HE13: 0 | HF13: 0 | HG13: 65 | HH13: 65 | HI13: 0 | HJ13: 0 | HK13: 68.18 | HL13: 68.01 | HM13: 64 | HN13: 0 | HO13: 0 | HP13: 0 | HQ13: 0 | HR13: 66 | HS13: 0 | HT13: 69.72 | HU13: 69.4 | HV13: 0 | HW13: 65 | HX13: 0 | HY13: 0 | HZ13: 0 | IA13: 0 | IB13: 66 | IC13: 1 | IG13: 11 | IH13: 68.5 | II13: 68.6 | IJ13: 68.7 | IK13: 68.8 | IL13: 68.9 | IM13: 69 | IN13: 69.1 | IO13: 69.2 | IP13: 69.3 | IQ13: 69.4 | IR13: 69.5 | IS13: 69.6 | IT13: 69.7 | IU13: 69.8 | IV13: 69.9 | IW13: 70 | IX13: 70.1 | IY13: 70.2 | IZ13: 70.3 | JA13: 70.4 | JB13: 70.5 | JC13: 65.9 | JD13: 66.6 | JE13: 67.3 | JF13: 68 | JG13: 68.7 | JH13: 69.4 | JI13: 70.1 | JJ13: 70.8 | JK13: 71.5 | JL13: 72.2 | JM13: 72.9 | JN13: 73.6 | JO13: 74.3 | JP13: 75 | JQ13: 75.7 | JR13: 76.4 | JS13: 77.1 | JT13: 77.8 | JU13: 78.5 | JV13: 79.2 | JW13: 79.9 | JX13: 1 | KD13: 1 | KE13: 11 | KF13: 17.5 | KG13: 17.24 | KH13: 17.06 | KI13: 16.96 | KJ13: 16.94 | KK13: 13 | KL13: 13.43 | KM13: 18.22 | KN13: 18.96 | KO13: 19.19 | KP13: 18.5 | KQ13: 16.37 | KR13: 13.08 | KS13: 9.42 | KT13: 2.13 | KU13: 0 | KV13: 3.28 | KW13: 3.45 | KX13: 4.13 | KY13: 4.94 | KZ13: 5.5 | LA13: 0.9 | LB13: 1.85 | LC13: 2.84 | LD13: -0.18 | LE13: 0.69 | LF13: 5.4 | LG13: 5.84 | LH13: 6.07 | LI13: 6.23 | LJ13: 6.46 | LK13: 6.9 | LL13: 7.64 | LM13: 4.58 | LN13: 5.6 | LO13: 10.58 | LP13: 11.4 | LQ13: 12.06 | LR13: 12.64 | LS13: 13.14 | LT13: 13.56 | LU13: 13.9 | MC13: 1 | MD13: 11 | ME13: =AVERAGE(KF14:KG15) -> 0.3583333333 | MF13: =AVERAGE(KG14:KH15) -> 1.3675 | MG13: 2.436666667 | MH13: 3.565833333 | MI13: 2.755 | MJ13: 2.141666667 | MK13: 5.863333333 | ML13: 9.715 | MM13: 11.28416667 | MN13: 12.16083333 | MO13: 11.9 | MP13: 10.38166667 | MQ13: 8.118333333 | MR13: 3.855 | MS13: 0.3316666667 | MT13: 2.048333333 | MU13: 4.875 | MV13: 6.379166667 | MW13: 8.193333333 | MX13: 9.9475 | MY13: 6.63 | MZ13: 2.680833333 | NA13: 3.066666667 | NB13: 1.465 | NC13: -0.1841666667 | ND13: 2.056666667 | NE13: 4.1175 | NF13: 3.975833333 | NG13: 3.716666667 | NH13: 3.4675 | NI13: 3.355833333 | NJ13: 3.486666667 | NK13: 1.86 | NL13: 0.3708333333 | NM13: 2.899166667 | NN13: 5.3275 | NO13: 5.598333333 | NP13: 5.749166667 | NQ13: 5.8175 | NR13: 5.805833333 | NU13: 1 | NV13: 11 | NW13: 31.64 | NX13: 31.64 | NY13: 23.66 | NZ13: 23.66 | OA13: 23.66 | OB13: 23.66 | OC13: 15.63 | OD13: 11.33 | OE13: 7.9 | OF13: 6.1 | OG13: 7.9 | OH13: 7.9 | OI13: 11.33 | OJ13: 23.66 | OK13: 31.64 | OL13: 23.66 | OM13: 15.63 | ON13: 11.98 | OO13: 11.33 | OP13: 11.33 | OQ13: 11.98 | OR13: 23.66 | OS13: 23.66 | OT13: 31.64 | OU13: 31.64 | OV13: 23.66 | OW13: 15.63 | OX13: 23.66 | OY13: 23.66 | OZ13: 23.66 | PA13: 23.66 | PB13: 23.66 | PC13: 31.64 | PD13: 31.64 | PE13: 23.66 | PF13: 15.63 | PG13: 15.63 | PH13: 15.63 | PI13: 15.63 | PJ13: 15.63 | PM13: 1 | PN13: 11 | PO13: 0 | PP13: 0 | PQ13: -7.98 | PR13: 0 | PS13: -7.98 | PT13: -7.98 | PU13: 0 | PV13: -0.65 | PW13: -3.43 | PX13: -5.23 | PY13: 7.9 | PZ13: 3.19 | QA13: 5.23 | QB13: 11.68 | QC13: 0 | QD13: -7.98 | QE13: -8.03 | QF13: -11.68 | QG13: -12.33 | QH13: -12.33 | QI13: -3.65 | QJ13: 8.03 | QK13: -7.98 | QL13: 0 | QM13: 0 | QN13: 0 | QO13: -8.03 | QP13: -7.98 | QQ13: -7.98 | QR13: -7.98 | QS13: 0 | QT13: -7.98 | QU13: 0 | QV13: 7.98 | QW13: 8.03 | QX13: 0 | QY13: 0 | QZ13: 0 | RA13: 0 | RB13: 0 | RE13: 1 | RF13: 11 | RG13: 0 | RH13: 0 | RI13: 0 | RJ13: 0 | RK13: 0 | RL13: 0 | RM13: 0 | RN13: 0 | RO13: 0 | RP13: 0 | RQ13: 0 | RR13: 0 | RS13: 0 | RT13: 0 | RU13: 0 | RV13: 70 | RW13: 0 | RX13: 0 | RY13: 0 | RZ13: 0 | SA13: 0 | SB13: 0 | SC13: 0 | SD13: 0 | SE13: 0 | SF13: 0 | SG13: 0 | SH13: 0 | SI13: 0 | SJ13: 0 | SK13: 0 | SL13: 0 | SM13: 0 | SN13: 0 | SO13: 0 | SP13: 0 | SQ13: 0 | SR13: 0 | SS13: 0 | ST13: 0 | SU13: 0 | SV13: 1 | SX13: 1 | SY13: 11 | SZ13: 0 | TA13: 0 | TB13: 0 | TC13: 0 | TD13: 0 | TE13: 0 | TF13: 0 | TG13: 0 | TH13: 0 | TI13: 0 | TJ13: 0 | TK13: 0 | TL13: 0 | TM13: 0 | TN13: 0 | TO13: 70 | TP13: 0 | TQ13: 0 | TR13: 0 | TS13: 0 | TT13: 0 | TU13: 65 | TV13: 0 | TW13: 0 | TX13: 68.18 | TY13: 0 | TZ13: 0 | UA13: 0 | UB13: 0 | UC13: 0 | UD13: 0 | UE13: 66 | UF13: 0 | UG13: 69.72 | UH13: 0 | UI13: 0 | UJ13: 0 | UK13: 0 | UL13: 0 | UM13: 0 | UN13: 0 | UO13: 1 | UQ13: 1 | UR13: 11 | US13: 1 | UT13: 1 | UU13: 1 | UV13: 1 | UW13: 1 | UX13: 1 | UY13: 1 | UZ13: 1 | VA13: 1 | VB13: 1 | VC13: 1 | VD13: 1 | VE13: 1 | VF13: 1 | VG13: 1 | VH13: 1 | VI13: 1 | VJ13: 1 | VK13: 1 | VL13: 1 | VM13: 1 | VN13: 1 | VO13: 1 | VP13: 1 | VQ13: 1 | VR13: 1 | VS13: 1 | VT13: 1 | VU13: 1 | VV13: 1 | VW13: 1 | VX13: 1 | VY13: 1 | VZ13: 1 | WA13: 1 | WB13: 1 | WC13: 1 | WD13: 1 | WE13: 1 | WF13: 1 | WG13: 1 | WH13: 1 | WJ13: 1 | WK13: 11 | WL13: 51 | WM13: 51.36 | WN13: 51.64 | WO13: 51.84 | WP13: 51.96 | WQ13: 56 | WR13: 55.67 | WS13: 50.98 | WT13: 50.34 | WU13: 50.21 | WV13: 51 | WW13: 53.23 | WX13: 56.62 | WY13: 60.38 | WZ13: 67.77 | XA13: 70 | XB13: 66.82 | XC13: 66.75 | XD13: 66.17 | XE13: 65.46 | XF13: 65 | XG13: 64.75 | XH13: 64.46 | XI13: 68.18 | XJ13: 68.01 | XK13: 64 | XL13: 64.26 | XM13: 64.73 | XN13: 65.27 | XO13: 65.74 | XP13: 66 | XQ13: 65.96 | XR13: 69.72 | XS13: 69.4 | XT13: 65.12 | XU13: 65 | XV13: 65.04 | XW13: 65.16 | XX13: 65.36 | XY13: 65.64 | XZ13: 66 | YA13: 1 | YC13: 1 | YD13: 11 | YE13: =YE12 -> 4 | YF13: =YF12 -> 4 | YG13: 4 | YH13: 4 | YI13: 4 | YJ13: 4 | YK13: 4 | YL13: 4 | YM13: 4 | YN13: 4 | YO13: 4 | YP13: 4 | YQ13: 4 | YR13: 4 | YS13: 4 | YT13: 4 | YU13: 4 | YV13: 4 | YW13: 4 | YX13: 4 | YY13: =YX13 -> 4 | YZ13: 5 | ZA13: =ZA12 -> 5 | ZB13: 5 | ZC13: 5 | ZD13: 5 | ZE13: 5 | ZF13: 5 | ZG13: 5 | ZH13: 5 | ZI13: 5 | ZJ13: 5 | ZK13: 5 | ZL13: 5 | ZM13: 5 | ZN13: 5 | ZO13: 5 | ZP13: 5 | ZQ13: 5 | ZR13: 5 | ZS13: 5 | ZT13: =ZS13 -> 5 | ZU13: 1 | ZW13: 1 | ZX13: 11 | ZY13: =IF(ISNUMBER(INDEX(Asfalt,$ZX13,ZY$2)),INDEX(Asfalt,$ZX13,ZY$2),0) -> 0 | ZZ13: 0 | AAA13: 0 | AAB13: 0 | AAC13: 0 | AAD13: 4 | AAE13: 4 | AAF13: 0 | AAG13: 0 | AAH13: 0 | AAI13: =IF(ISNUMBER(INDEX(Asfalt,$ZX13,AAI$2)),INDEX(Asfalt,$ZX13,AAI$2),0) -> 0 | AAJ13: 0 | AAK13: 0 | AAL13: 0 | AAM13: 4 | AAN13: 4 | AAO13: 0 | AAP13: 0 | AAQ13: 0 | AAR13: 0 | AAS13: =IF(ISNUMBER(INDEX(Asfalt,$ZX13,AAS$2)),INDEX(Asfalt,$ZX13,AAS$2),0) -> 0 | AAT13: 0 | AAU13: 0 | AAV13: 0 | AAW13: 4 | AAX13: 4 | AAY13: 0 | AAZ13: 0 | ABA13: 0 | ABB13: 0 | ABC13: =IF(ISNUMBER(INDEX(Asfalt,$ZX13,ABC$2)),INDEX(Asfalt,$ZX13,ABC$2),0) -> 0 | ABD13: 0 | ABE13: 0 | ABF13: 4 | ABG13: 4 | ABH13: 0 | ABI13: 0 | ABJ13: 0 | ABK13: 0 | ABL13: 0 | ABM13: 0 | ABN13: 0 | ABO13: 1 | ABQ13: 1 | ABR13: 11 | ABS13: 1 | ABT13: 1 | ABU13: 1 | ABV13: 1 | ABW13: 1 | ABX13: 1 | ABY13: 1 | ABZ13: 1 | ACA13: 1 | ACB13: 1 | ACC13: 1 | ACD13: 1 | ACE13: 1 | ACF13: 1 | ACG13: 1 | ACH13: 1 | ACI13: 1 | ACJ13: 1 | ACK13: 1 | ACL13: 1 | ACM13: 1 | ACN13: 57 | ACO13: =ACO12 -> 57 | ACP13: 57 | ACQ13: 57 | ACR13: 57 | ACS13: 57 | ACT13: 57 | ACU13: 57 | ACV13: 57 | ACW13: 57 | ACX13: 57 | ACY13: 57 | ACZ13: 57 | ADA13: 57 | ADB13: 57 | ADC13: 57 | ADD13: 57 | ADE13: 57 | ADF13: 57 | ADG13: 57 | ADH13: =ADG13 -> 57 | ADI13: 1
A14: 12 | B14: L | C14: =C13 -> 54 | D14: =D13 -> 52 | E14: 54 | F14: 59 | G14: 67 | H14: 74 | I14: 78 | J14: 84 | K14: 83 | M14: 3A | N14: =ROUND('3D Interpolace'!M15,2) -> 50.26 | O14: =ROUND('3D Interpolace'!N15,2) -> 50.48 | P14: =ROUND('3D Interpolace'!O15,2) -> 50.65 | Q14: =ROUND('3D Interpolace'!P15,2) -> 50.79 | R14: =ROUND('3D Interpolace'!Q15,2) -> 50.88 | S14: =ROUND('3D Interpolace'!R15,2) -> 50.94 | T14: =ROUND('3D Interpolace'!S15,2) -> 50.69 | U14: =ROUND('3D Interpolace'!T15,2) -> 50.14 | V14: =ROUND('3D Interpolace'!U15,2) -> 49.68 | W14: =ROUND('3D Interpolace'!V15,2) -> 49.7 | X14: =ROUND('3D Interpolace'!W15,2) -> 50.58 | Y14: =ROUND('3D Interpolace'!X15,2) -> 52.79 | Z14: =ROUND('3D Interpolace'!Y15,2) -> 56.1 | AA14: =ROUND('3D Interpolace'!Z15,2) -> 59.76 | AB14: =ROUND('3D Interpolace'!AA15,2) -> 63.07 | AC14: =ROUND('3D Interpolace'!AB15,2) -> 65.3 | AD14: =ROUND('3D Interpolace'!AC15,2) -> 66.22 | AE14: =ROUND('3D Interpolace'!AD15,2) -> 66.31 | AF14: =ROUND('3D Interpolace'!AE15,2) -> 65.92 | AG14: =ROUND('3D Interpolace'!AF15,2) -> 65.41 | AH14: =ROUND('3D Interpolace'!AG15,2) -> 65.14 | AI14: =ROUND('3D Interpolace'!AH15,2) -> 65.07 | AJ14: =ROUND('3D Interpolace'!AI15,2) -> 64.97 | AK14: =ROUND('3D Interpolace'!AJ15,2) -> 64.88 | AL14: =ROUND('3D Interpolace'!AK15,2) -> 64.85 | AM14: =ROUND('3D Interpolace'!AL15,2) -> 64.93 | AN14: =ROUND('3D Interpolace'!AM15,2) -> 65.19 | AO14: =ROUND('3D Interpolace'!AN15,2) -> 65.6 | AP14: =ROUND('3D Interpolace'!AO15,2) -> 66.05 | AQ14: =ROUND('3D Interpolace'!AP15,2) -> 66.42 | AR14: =ROUND('3D Interpolace'!AQ15,2) -> 66.6 | AS14: =ROUND('3D Interpolace'!AR15,2) -> 66.51 | AT14: =ROUND('3D Interpolace'!AS15,2) -> 66.22 | AU14: =ROUND('3D Interpolace'!AT15,2) -> 65.86 | AV14: =ROUND('3D Interpolace'!AU15,2) -> 65.54 | AW14: =ROUND('3D Interpolace'!AV15,2) -> 65.38 | AX14: =ROUND('3D Interpolace'!AW15,2) -> 65.37 | AY14: =ROUND('3D Interpolace'!AX15,2) -> 65.45 | AZ14: =ROUND('3D Interpolace'!AY15,2) -> 65.61 | BA14: =ROUND('3D Interpolace'!AZ15,2) -> 65.85 | BB14: =ROUND('3D Interpolace'!BA15,2) -> 66.18 | BD14: 1.1 | BE14: 12 | BK14: 4 | BL14: 4 | BT14: 4 | BU14: 4 | CC14: 4 | CD14: 4 | CL14: 4 | CM14: 4 | CU14: 1.1 | CW14: 1.1 | CX14: 12 | CY14: 50.26 | CZ14: 50.48 | DA14: 50.65 | DB14: 50.79 | DC14: 50.88 | DD14: 54.94 | DE14: 54.69 | DF14: 50.14 | DG14: 49.68 | DH14: 49.7 | DI14: 50.58 | DJ14: 52.79 | DK14: 56.1 | DL14: 59.76 | DM14: 67.07 | DN14: 69.3 | DO14: 66.22 | DP14: 66.31 | DQ14: 65.92 | DR14: 65.41 | DS14: 65.14 | DT14: 65.07 | DU14: 64.97 | DV14: 68.88 | DW14: 68.85 | DX14: 64.93 | DY14: 65.19 | DZ14: 65.6 | EA14: 66.05 | EB14: 66.42 | EC14: 66.6 | ED14: 66.51 | EE14: 70.22 | EF14: 69.86 | EG14: 65.54 | EH14: 65.38 | EI14: 65.37 | EJ14: 65.45 | EK14: 65.61 | EL14: 65.85 | EM14: 66.18 | EN14: 1.1 | EP14: 1 | EQ14: 11 | ER14: 51 | ES14: 51.36 | ET14: 51.64 | EU14: 51.84 | EV14: 51.96 | EW14: 56 | EX14: 55.67 | EY14: 50.98 | EZ14: 50.34 | FA14: 50.21 | FB14: 51 | FC14: 53.23 | FD14: 56.62 | FE14: 60.38 | FF14: 67.77 | FG14: 70 | FH14: 66.82 | FI14: 66.75 | FJ14: 66.17 | FK14: 65.46 | FL14: 65 | FM14: 65 | FN14: 64.75 | FO14: 64.46 | FP14: 68.18 | FQ14: 68.01 | FR14: 64 | FS14: 64.26 | FT14: 64.73 | FU14: 65.27 | FV14: 65.74 | FW14: 66 | FX14: 65.96 | FY14: 69.72 | FZ14: 69.4 | GA14: 65.12 | GB14: 65 | GC14: 65.04 | GD14: 65.16 | GE14: 65.36 | GF14: 65.64 | GG14: 66 | GK14: 1 | GL14: 11 | GM14: 51 | GN14: 0 | GO14: 0 | GP14: 0 | GQ14: 0 | GR14: 56 | GS14: 55.67 | GT14: 0 | GU14: 0 | GV14: 0 | GW14: 51 | GX14: 0 | GY14: 0 | GZ14: 0 | HA14: 67.77 | HB14: 70 | HC14: 0 | HD14: 0 | HE14: 0 | HF14: 0 | HG14: 65 | HH14: 65 | HI14: 0 | HJ14: 0 | HK14: 68.18 | HL14: 68.01 | HM14: 64 | HN14: 0 | HO14: 0 | HP14: 0 | HQ14: 0 | HR14: 66 | HS14: 0 | HT14: 69.72 | HU14: 69.4 | HV14: 0 | HW14: 65 | HX14: 0 | HY14: 0 | HZ14: 0 | IA14: 0 | IB14: 66 | IC14: 1 | IG14: 11 | IH14: 51 | II14: 52.26666667 | IJ14: 53.53333333 | IK14: 54.8 | IL14: 56.06666667 | IM14: 57.33333333 | IN14: 58.6 | IO14: 59.86666667 | IP14: 61.13333333 | IQ14: 62.4 | IR14: 63.66666667 | IS14: 64.93333333 | IT14: 66.2 | IU14: 67.46666667 | IV14: 68.73333333 | IW14: 70 | IX14: 71.26666667 | IY14: 72.53333333 | IZ14: 73.8 | JA14: 75.06666667 | JB14: 76.33333333 | JC14: 67.5 | JD14: 67.70833333 | JE14: 67.91666667 | JF14: 68.125 | JG14: 68.33333333 | JH14: 68.54166667 | JI14: 68.75 | JJ14: 68.95833333 | JK14: 69.16666667 | JL14: 69.375 | JM14: 69.58333333 | JN14: 69.79166667 | JO14: 70 | JP14: 70.20833333 | JQ14: 70.41666667 | JR14: 70.625 | JS14: 70.83333333 | JT14: 71.04166667 | JU14: 71.25 | JV14: 71.45833333 | JW14: 71.66666667 | JX14: 1 | KD14: 1 | KE14: 11 | KF14: 0 | KG14: 0.9066666667 | KH14: 1.893333333 | KI14: 2.96 | KJ14: 4.106666667 | KK14: 1.333333333 | KL14: 2.93 | KM14: 8.886666667 | KN14: 10.79333333 | KO14: 12.19 | KP14: 12.66666667 | KQ14: 11.70333333 | KR14: 9.58 | KS14: 7.086666667 | KT14: 0.9633333333 | KU14: 0 | KV14: 4.446666667 | KW14: 5.783333333 | KX14: 7.63 | KY14: 9.606666667 | KZ14: 11.33333333 | LA14: 2.5 | LB14: 2.958333333 | LC14: 3.456666667 | LD14: -0.055 | LE14: 0.3233333333 | LF14: 4.541666667 | LG14: 4.49 | LH14: 4.228333333 | LI14: 3.896666667 | LJ14: 3.635 | LK14: 3.583333333 | LL14: 3.831666667 | LM14: 0.28 | LN14: 0.8083333333 | LO14: 5.296666667 | LP14: 5.625 | LQ14: 5.793333333 | LR14: 5.881666667 | LS14: 5.89 | LT14: 5.818333333 | LU14: 5.666666667 | MC14: 1.1 | MD14: 12 | ME14: =AVERAGE(KF15:KG16) -> 0.2833333333 | MF14: =AVERAGE(KG15:KH16) -> 1.405 | MG14: =AVERAGE(KH15:KI16) -> 2.534166667 | MH14: =AVERAGE(KI15:KJ16) -> 3.673333333 | MI14: =AVERAGE(KJ15:KK16) -> 2.8225 | MJ14: =AVERAGE(KK15:KL16) -> 2.091666667 | MK14: =AVERAGE(KL15:KM16) -> 5.593333333 | ML14: =AVERAGE(KM15:KN16) -> 9.16 | MM14: =AVERAGE(KN15:KO16) -> 10.45916667 | MN14: =AVERAGE(KO15:KP16) -> 11.16583333 | MO14: =AVERAGE(KP15:KQ16) -> 10.9075 | MP14: =AVERAGE(KQ15:KR16) -> 9.571666667 | MQ14: =AVERAGE(KR15:KS16) -> 7.588333333 | MR14: =AVERAGE(KS15:KT16) -> 3.6075 | MS14: =AVERAGE(KT15:KU16) -> 0.2766666667 | MT14: =AVERAGE(KU15:KV16) -> 2.023333333 | MU14: =AVERAGE(KV15:KW16) -> 4.7375 | MV14: =AVERAGE(KW15:KX16) -> 6.046666667 | MW14: =AVERAGE(KX15:KY16) -> 7.625833333 | MX14: =AVERAGE(KY15:KZ16) -> 9.15 | MY14: =AVERAGE(LA15:LB16) -> 2.806666667 | MZ14: =AVERAGE(LB15:LC16) -> 2.98 | NA14: 1.158333333 | NB14: =AVERAGE(LD15:LE16) -> -0.6858333333 | NC14: =AVERAGE(LE15:LF16) -> 1.415 | ND14: =AVERAGE(LF15:LG16) -> 3.410833333 | NE14: =AVERAGE(LG15:LH16) -> 3.281666667 | NF14: =AVERAGE(LH15:LI16) -> 3.085 | NG14: =AVERAGE(LI15:LJ16) -> 2.923333333 | NH14: =AVERAGE(LJ15:LK16) -> 2.894166667 | NI14: =AVERAGE(LK15:LL16) -> 3.085 | NJ14: =AVERAGE(LL15:LM16) -> 1.510833333 | NK14: =AVERAGE(LM15:LN16) -> 0.07416666667 | NL14: =AVERAGE(LN15:LO16) -> 2.6475 | NM14: =AVERAGE(LO15:LP16) -> 5.105833333 | NN14: =AVERAGE(LP15:LQ16) -> 5.389166667 | NO14: =AVERAGE(LQ15:LR16) -> 5.5375 | NP14: =AVERAGE(LR15:LS16) -> 5.588333333 | NQ14: =AVERAGE(LS15:LT16) -> 5.544166667 | NR14: =AVERAGE(LT15:LU16) -> 5.405 | NU14: 1.1 | NV14: 12 | NW14: 31.64 | NX14: 31.64 | NY14: 23.66 | NZ14: 23.66 | OA14: 23.66 | OB14: 23.66 | OC14: 15.63 | OD14: 11.33 | OE14: 7.9 | OF14: 7.9 | OG14: 7.9 | OH14: 11.33 | OI14: 11.98 | OJ14: 23.66 | OK14: 31.64 | OL14: 23.66 | OM14: 15.63 | ON14: 11.98 | OO14: 11.98 | OP14: 11.33 | OQ14: 23.66 | OR14: 23.66 | OS14: 31.64 | OT14: 31.64 | OU14: 31.64 | OV14: 23.66 | OW14: 23.66 | OX14: 23.66 | OY14: 23.66 | OZ14: 23.66 | PA14: 23.66 | PB14: 31.64 | PC14: 31.64 | PD14: 23.66 | PE14: 15.63 | PF14: 15.63 | PG14: 15.63 | PH14: 15.63 | PI14: 15.63 | PJ14: 15.63 | PM14: 1.1 | PN14: 12 | PO14: 0 | PP14: 0 | PQ14: -7.98 | PR14: 0 | PS14: -7.98 | PT14: -7.98 | PU14: -8.03 | PV14: -0.65 | PW14: -3.43 | PX14: -3.43 | PY14: 7.9 | PZ14: 6.62 | QA14: 4.08 | QB14: 8.03 | QC14: 0 | QD14: -7.98 | QE14: -8.03 | QF14: -11.68 | QG14: -11.68 | QH14: -12.33 | QI14: 8.03 | QJ14: 8.03 | QK14: 0 | QL14: 0 | QM14: 0 | QN14: 0 | QO14: -7.98 | QP14: -7.98 | QQ14: -7.98 | QR14: -7.98 | QS14: 0 | QT14: 0 | QU14: 0 | QV14: 0 | QW14: 0 | QX14: 0 | QY14: 0 | QZ14: 0 | RA14: -8.03 | RB14: -8.03 | RE14: 1.1 | RF14: 12 | RG14: 0 | RH14: 0 | RI14: 0 | RJ14: 0 | RK14: 0 | RL14: 0 | RM14: 0 | RN14: 0 | RO14: 0 | RP14: 0 | RQ14: 0 | RR14: 0 | RS14: 0 | RT14: 0 | RU14: 0 | RV14: 0 | RW14: 0 | RX14: 0 | RY14: 0 | RZ14: 0 | SA14: 0 | SB14: 0 | SC14: 0 | SD14: 0 | SE14: 0 | SF14: 0 | SG14: 0 | SH14: 0 | SI14: 0 | SJ14: 0 | SK14: 0 | SL14: 0 | SM14: 0 | SN14: 0 | SO14: 0 | SP14: 0 | SQ14: 0 | SR14: 0 | SS14: 0 | ST14: 0 | SU14: 0 | SV14: 1.1 | SX14: 1.1 | SY14: 12 | SZ14: 0 | TA14: 0 | TB14: 0 | TC14: 0 | TD14: 0 | TE14: 56 | TF14: 0 | TG14: 0 | TH14: 0 | TI14: 0 | TJ14: 0 | TK14: 0 | TL14: 0 | TM14: 0 | TN14: 0 | TO14: 70 | TP14: 0 | TQ14: 0 | TR14: 0 | TS14: 0 | TT14: 0 | TU14: 0 | TV14: 0 | TW14: 0 | TX14: 0 | TY14: 0 | TZ14: 0 | UA14: 0 | UB14: 0 | UC14: 0 | UD14: 0 | UE14: 0 | UF14: 0 | UG14: 0 | UH14: 0 | UI14: 0 | UJ14: 0 | UK14: 0 | UL14: 0 | UM14: 0 | UN14: 0 | UO14: 1.1 | UQ14: 1.1 | UR14: 12 | US14: 1 | UT14: =IF(OR(INT(1000*UT$1/$B$18)-1000*UT$1/$B$18=0,INT(1000*$UQ14/$B$19)-1000*$UQ14/$B$19=0),1,0) -> 0 | UU14: 0 | UV14: 0 | UW14: 0 | UX14: 0 | UY14: 0 | UZ14: 0 | VA14: 0 | VB14: 0 | VC14: 0 | VD14: =IF(OR(INT(1000*VD$1/$B$18)-1000*VD$1/$B$18=0,INT(1000*$UQ14/$B$19)-1000*$UQ14/$B$19=0),1,0) -> 0 | VE14: 0 | VF14: 0 | VG14: 0 | VH14: 0 | VI14: 0 | VJ14: 0 | VK14: 0 | VL14: 0 | VM14: 1 | VN14: =IF(OR(INT(1000*VN$1/$B$18)-1000*VN$1/$B$18=0,INT(1000*$UQ14/$B$19)-1000*$UQ14/$B$19=0),1,0) -> 0 | VO14: 0 | VP14: 0 | VQ14: 0 | VR14: 0 | VS14: 0 | VT14: 0 | VU14: 0 | VV14: 0 | VW14: 0 | VX14: =IF(OR(INT(1000*VX$1/$B$18)-1000*VX$1/$B$18=0,INT(1000*$UQ14/$B$19)-1000*$UQ14/$B$19=0),1,0) -> 0 | VY14: 0 | VZ14: 0 | WA14: 0 | WB14: 0 | WC14: 0 | WD14: 0 | WE14: 0 | WF14: 0 | WG14: 1 | WH14: 1.1 | WJ14: 1.1 | WK14: 12 | WL14: 50.26 | WM14: 0 | WN14: 0 | WO14: 0 | WP14: 0 | WQ14: 0 | WR14: 0 | WS14: 0 | WT14: 0 | WU14: 0 | WV14: 0 | WW14: 0 | WX14: 0 | WY14: 0 | WZ14: 0 | XA14: 0 | XB14: 0 | XC14: 0 | XD14: 0 | XE14: 0 | XF14: 65.14 | XG14: 0 | XH14: 0 | XI14: 0 | XJ14: 0 | XK14: 0 | XL14: 0 | XM14: 0 | XN14: 0 | XO14: 0 | XP14: 0 | XQ14: 0 | XR14: 0 | XS14: 0 | XT14: 0 | XU14: 0 | XV14: 0 | XW14: 0 | XX14: 0 | XY14: 0 | XZ14: 66.18 | YA14: 1.1 | YC14: 1 | YD14: 11 | YE14: =COUNTIF(RG13:SA23,">0") -> 1 | YF14: =YE14 -> 1 | YG14: =YF14 -> 1 | YH14: 1 | YI14: 1 | YJ14: 1 | YK14: 1 | YL14: 1 | YM14: 1 | YN14: 1 | YO14: 1 | YP14: 1 | YQ14: 1 | YR14: 1 | YS14: 1 | YT14: 1 | YU14: 1 | YV14: 1 | YW14: 1 | YX14: 1 | YY14: =YX14 -> 1 | YZ14: =COUNTIF(SA13:SU23,">0") -> 4 | ZA14: =YZ14 -> 4 | ZB14: =ZA14 -> 4 | ZC14: 4 | ZD14: 4 | ZE14: 4 | ZF14: 4 | ZG14: 4 | ZH14: 4 | ZI14: 4 | ZJ14: 4 | ZK14: 4 | ZL14: 4 | ZM14: 4 | ZN14: 4 | ZO14: 4 | ZP14: 4 | ZQ14: 4 | ZR14: 4 | ZS14: 4 | ZT14: =ZS14 -> 4 | ZU14: 1 | ZW14: 1 | ZX14: 11 | ZY14: 0 | ZZ14: 0 | AAA14: 0 | AAB14: 0 | AAC14: 0 | AAD14: 4 | AAE14: 4 | AAF14: 0 | AAG14: 0 | AAH14: 0 | AAI14: 0 | AAJ14: 0 | AAK14: 0 | AAL14: 0 | AAM14: 4 | AAN14: 4 | AAO14: 0 | AAP14: 0 | AAQ14: 0 | AAR14: 0 | AAS14: 0 | AAT14: 0 | AAU14: 0 | AAV14: 0 | AAW14: 4 | AAX14: 4 | AAY14: 0 | AAZ14: 0 | ABA14: 0 | ABB14: 0 | ABC14: 0 | ABD14: 0 | ABE14: 0 | ABF14: 4 | ABG14: 4 | ABH14: 0 | ABI14: 0 | ABJ14: 0 | ABK14: 0 | ABL14: 0 | ABM14: 0 | ABN14: 0 | ABO14: 1 | ABQ14: 1 | ABR14: 11 | ABS14: =RANK(#REF!,$ER$14:$FL$24,0) ->  | ABT14: =RANK(IE14,$ER$14:$FL$24,0) ->  | ABU14: =RANK(IF14,$ER$14:$FL$24,0) ->  | ABV14: =RANK(IG14,$ER$14:$FL$24,0) ->  | ABW14: =RANK(IH14,$ER$14:$FL$24,0) -> 120 | ABX14: =RANK(II14,$ER$14:$FL$24,0) ->  | ABY14: =RANK(IJ14,$ER$14:$FL$24,0) ->  | ABZ14: =RANK(IK14,$ER$14:$FL$24,0) ->  | ACA14: =RANK(IL14,$ER$14:$FL$24,0) ->  | ACB14: =RANK(IM14,$ER$14:$FL$24,0) ->  | ACC14: =RANK(IN14,$ER$14:$FL$24,0) ->  | ACD14: =RANK(IO14,$ER$14:$FL$24,0) ->  | ACE14: =RANK(IP14,$ER$14:$FL$24,0) ->  | ACF14: =RANK(IQ14,$ER$14:$FL$24,0) ->  | ACG14: =RANK(IR14,$ER$14:$FL$24,0) ->  | ACH14: =RANK(IS14,$ER$14:$FL$24,0) ->  | ACI14: =RANK(IT14,$ER$14:$FL$24,0) ->  | ACJ14: =RANK(IU14,$ER$14:$FL$24,0) ->  | ACK14: =RANK(IV14,$ER$14:$FL$24,0) ->  | ACL14: =RANK(IW14,$ER$14:$FL$24,0) -> 1 | ACM14: =RANK(IX14,$ER$14:$FL$24,0) ->  | ACN14: =COUNTIF(VO13:WI23,">0") -> 58 | ACO14: =ACN14 -> 58 | ACP14: =ACO14 -> 58 | ACQ14: 58 | ACR14: 58 | ACS14: 58 | ACT14: 58 | ACU14: 58 | ACV14: 58 | ACW14: 58 | ACX14: 58 | ACY14: 58 | ACZ14: 58 | ADA14: 58 | ADB14: 58 | ADC14: 58 | ADD14: 58 | ADE14: 58 | ADF14: 58 | ADG14: 58 | ADH14: =ADG14 -> 58 | ADI14: 1
A15: 13 | B15: M | C15: =C14 -> 54 | D15: =D14 -> 52 | E15: =E14 -> 54 | F15: =F14 -> 59 | G15: =G14 -> 67 | H15: =H14 -> 74 | I15: =I14 -> 78 | J15: =J14 -> 84 | K15: =K14 -> 83 | M15: 3B | N15: =ROUND('3D Interpolace'!M16,2) -> 49.29 | O15: =ROUND('3D Interpolace'!N16,2) -> 49.37 | P15: =ROUND('3D Interpolace'!O16,2) -> 49.48 | Q15: =ROUND('3D Interpolace'!P16,2) -> 49.61 | R15: =ROUND('3D Interpolace'!Q16,2) -> 49.76 | S15: =ROUND('3D Interpolace'!R16,2) -> 49.93 | T15: =ROUND('3D Interpolace'!S16,2) -> 49.94 | U15: =ROUND('3D Interpolace'!T16,2) -> 49.79 | V15: =ROUND('3D Interpolace'!U16,2) -> 49.75 | W15: =ROUND('3D Interpolace'!V16,2) -> 50.1 | X15: =ROUND('3D Interpolace'!W16,2) -> 51.09 | Y15: =ROUND('3D Interpolace'!X16,2) -> 53.11 | Z15: =ROUND('3D Interpolace'!Y16,2) -> 55.98 | AA15: =ROUND('3D Interpolace'!Z16,2) -> 59.14 | AB15: =ROUND('3D Interpolace'!AA16,2) -> 62 | AC15: =ROUND('3D Interpolace'!AB16,2) -> 63.99 | AD15: =ROUND('3D Interpolace'!AC16,2) -> 64.93 | AE15: =ROUND('3D Interpolace'!AD16,2) -> 65.19 | AF15: =ROUND('3D Interpolace'!AE16,2) -> 65.06 | AG15: =ROUND('3D Interpolace'!AF16,2) -> 64.84 | AH15: =ROUND('3D Interpolace'!AG16,2) -> 64.81 | AI15: =ROUND('3D Interpolace'!AH16,2) -> 64.97 | AJ15: =ROUND('3D Interpolace'!AI16,2) -> 65.12 | AK15: =ROUND('3D Interpolace'!AJ16,2) -> 65.28 | AL15: =ROUND('3D Interpolace'!AK16,2) -> 65.45 | AM15: =ROUND('3D Interpolace'!AL16,2) -> 65.66 | AN15: =ROUND('3D Interpolace'!AM16,2) -> 65.96 | AO15: =ROUND('3D Interpolace'!AN16,2) -> 66.34 | AP15: =ROUND('3D Interpolace'!AO16,2) -> 66.72 | AQ15: =ROUND('3D Interpolace'!AP16,2) -> 67 | AR15: =ROUND('3D Interpolace'!AQ16,2) -> 67.12 | AS15: =ROUND('3D Interpolace'!AR16,2) -> 66.98 | AT15: =ROUND('3D Interpolace'!AS16,2) -> 66.63 | AU15: =ROUND('3D Interpolace'!AT16,2) -> 66.21 | AV15: =ROUND('3D Interpolace'!AU16,2) -> 65.85 | AW15: =ROUND('3D Interpolace'!AV16,2) -> 65.69 | AX15: =ROUND('3D Interpolace'!AW16,2) -> 65.72 | AY15: =ROUND('3D Interpolace'!AX16,2) -> 65.86 | AZ15: =ROUND('3D Interpolace'!AY16,2) -> 66.11 | BA15: =ROUND('3D Interpolace'!AZ16,2) -> 66.47 | BB15: =ROUND('3D Interpolace'!BA16,2) -> 66.93 | BD15: 1.2 | BE15: 13 | BK15: 4 | BL15: 4 | BT15: 4 | BU15: 4 | CC15: 4 | CD15: 4 | CL15: 4 | CM15: 4 | CU15: 1.2 | CW15: 1.2 | CX15: 13 | CY15: 49.29 | CZ15: 49.37 | DA15: 49.48 | DB15: 49.61 | DC15: 49.76 | DD15: 53.93 | DE15: =T15+BL15 -> 53.94 | DF15: =U15+BM15 -> 49.79 | DG15: 49.75 | DH15: 50.1 | DI15: 51.09 | DJ15: 53.11 | DK15: 55.98 | DL15: 59.14 | DM15: =AB15+BT15 -> 66 | DN15: =AC15+BU15 -> 67.99 | DO15: 64.93 | DP15: 65.19 | DQ15: 65.06 | DR15: 64.84 | DS15: 64.81 | DT15: 64.97 | DU15: 65.12 | DV15: 69.28 | DW15: 69.45 | DX15: 65.66 | DY15: 65.96 | DZ15: 66.34 | EA15: 66.72 | EB15: 67 | EC15: 67.12 | ED15: 66.98 | EE15: 70.63 | EF15: 70.21 | EG15: 65.85 | EH15: 65.69 | EI15: 65.72 | EJ15: 65.86 | EK15: 66.11 | EL15: 66.47 | EM15: 66.93 | EN15: 1.2 | EP15: 1.1 | EQ15: 12 | ER15: 50.26 | ES15: 50.48 | ET15: 50.65 | EU15: 50.79 | EV15: 50.88 | EW15: 54.94 | EX15: 54.69 | EY15: 50.14 | EZ15: 49.68 | FA15: 49.7 | FB15: 50.58 | FC15: 52.79 | FD15: 56.1 | FE15: 59.76 | FF15: 67.07 | FG15: 69.3 | FH15: 66.22 | FI15: 66.31 | FJ15: 65.92 | FK15: 65.41 | FL15: 65.14 | FM15: 65.14 | FN15: 65.07 | FO15: 64.97 | FP15: 68.88 | FQ15: 68.85 | FR15: 64.93 | FS15: 65.19 | FT15: 65.6 | FU15: 66.05 | FV15: 66.42 | FW15: 66.6 | FX15: 66.51 | FY15: 70.22 | FZ15: 69.86 | GA15: 65.54 | GB15: 65.38 | GC15: 65.37 | GD15: 65.45 | GE15: 65.61 | GF15: 65.85 | GG15: 66.18 | GK15: 1.1 | GL15: 12 | GM15: 0 | GN15: 0 | GO15: 0 | GP15: 0 | GQ15: 0 | GR15: 54.94 | GS15: 0 | GT15: 0 | GU15: 0 | GV15: 0 | GW15: 0 | GX15: 0 | GY15: 0 | GZ15: 0 | HA15: 0 | HB15: 69.3 | HC15: 0 | HD15: 0 | HE15: 0 | HF15: 0 | HG15: 0 | HH15: 0 | HI15: 0 | HJ15: 0 | HK15: 0 | HL15: 0 | HM15: 0 | HN15: 0 | HO15: 0 | HP15: 0 | HQ15: 0 | HR15: 0 | HS15: 0 | HT15: 0 | HU15: 0 | HV15: 0 | HW15: 0 | HX15: 0 | HY15: 0 | HZ15: 0 | IA15: 0 | IB15: 0 | IC15: 1.1 | IG15: 12 | IH15: 50 | II15: 51.26666667 | IJ15: 52.53333333 | IK15: 53.8 | IL15: 55.06666667 | IM15: 56.33333333 | IN15: 57.6 | IO15: 58.86666667 | IP15: 60.13333333 | IQ15: 61.4 | IR15: 62.66666667 | IS15: 63.93333333 | IT15: 65.2 | IU15: 66.46666667 | IV15: 67.73333333 | IW15: 69 | IX15: 70.26666667 | IY15: 71.53333333 | IZ15: 72.8 | JA15: 74.06666667 | JB15: 75.33333333 | JC15: 67.63333333 | JD15: 67.84166667 | JE15: 68.05 | JF15: 68.25833333 | JG15: 68.46666667 | JH15: 68.675 | JI15: 68.88333333 | JJ15: 69.09166667 | JK15: 69.3 | JL15: 69.50833333 | JM15: 69.71666667 | JN15: 69.925 | JO15: 70.13333333 | JP15: 70.34166667 | JQ15: 70.55 | JR15: 70.75833333 | JS15: 70.96666667 | JT15: 71.175 | JU15: 71.38333333 | JV15: 71.59166667 | JW15: 71.8 | JX15: 1.1 | KD15: 1.1 | KE15: 12 | KF15: -0.26 | KG15: 0.7866666667 | KH15: 1.883333333 | KI15: 3.01 | KJ15: 4.186666667 | KK15: 1.393333333 | KL15: 2.91 | KM15: 8.726666667 | KN15: 10.45333333 | KO15: 11.7 | KP15: 12.08666667 | KQ15: 11.14333333 | KR15: 9.1 | KS15: 6.706666667 | KT15: 0.6633333333 | KU15: -0.3 | KV15: 4.046666667 | KW15: 5.223333333 | KX15: 6.88 | KY15: 8.656666667 | KZ15: 10.19333333 | LA15: 2.493333333 | LB15: 2.771666667 | LC15: 3.08 | LD15: -0.6216666667 | LE15: -0.3833333333 | LF15: 3.745 | LG15: 3.693333333 | LH15: 3.491666667 | LI15: 3.25 | LJ15: 3.088333333 | LK15: 3.116666667 | LL15: 3.415 | LM15: -0.08666666667 | LN15: 0.4816666667 | LO15: 5.01 | LP15: 5.378333333 | LQ15: 5.596666667 | LR15: 5.725 | LS15: 5.773333333 | LT15: 5.741666667 | LU15: 5.62 | MC15: 1.2 | MD15: 13 | ME15: 0.3783333333 | MF15: 1.5875 | MG15: 2.741666667 | MH15: 3.840833333 | MI15: 2.885 | MJ15: 1.941666667 | MK15: 5.075833333 | ML15: 8.1875 | MM15: 9.079166667 | MN15: 9.555833333 | MO15: 9.3575 | MP15: 8.389166667 | MQ15: 6.955833333 | MR15: 3.5375 | MS15: 0.6166666667 | MT15: 2.513333333 | MU15: 5.15 | MV15: 6.241666667 | MW15: 7.538333333 | MX15: 8.79 | MY15: 3.3375 | MZ15: 3.260833333 | NA15: 1.176666667 | NB15: -0.905 | NC15: 1.015833333 | ND15: 2.916666667 | NE15: 2.7775 | NF15: 2.628333333 | NG15: 2.541666667 | NH15: 2.58 | NI15: 2.820833333 | NJ15: 1.296666667 | NK15: -0.0875 | NL15: 2.523333333 | NM15: 4.984166667 | NN15: 5.2225 | NO15: 5.288333333 | NP15: 5.226666667 | NQ15: 5.0375 | NR15: 4.725833333 | NU15: 1.2 | NV15: 13 | NW15: 31.64 | NX15: 31.64 | NY15: 23.66 | NZ15: 23.66 | OA15: 23.66 | OB15: 31.64 | OC15: 15.63 | OD15: 11.33 | OE15: 11.33 | OF15: 11.33 | OG15: 11.33 | OH15: 11.33 | OI15: 11.98 | OJ15: 23.66 | OK15: 31.64 | OL15: 23.66 | OM15: 15.63 | ON15: 11.98 | OO15: 11.98 | OP15: 11.33 | OQ15: 23.66 | OR15: 23.66 | OS15: 31.64 | OT15: 31.64 | OU15: 31.64 | OV15: 23.66 | OW15: 23.66 | OX15: 23.66 | OY15: 23.66 | OZ15: 23.66 | PA15: 23.66 | PB15: 31.64 | PC15: 31.64 | PD15: 23.66 | PE15: 15.63 | PF15: 15.63 | PG15: 15.63 | PH15: 15.63 | PI15: 15.63 | PJ15: 15.63 | PM15: 1.2 | PN15: 13 | PO15: 0 | PP15: 0 | PQ15: 0 | PR15: 0 | PS15: -7.98 | PT15: 0 | PU15: -8.03 | PV15: -0.65 | PW15: -0.65 | PX15: -0.65 | PY15: 6.62 | PZ15: 5.23 | QA15: 0.65 | QB15: 8.03 | QC15: 0 | QD15: -7.98 | QE15: -8.03 | QF15: -19.66 | QG15: -19.66 | QH15: -20.31 | QI15: 8.03 | QJ15: 8.03 | QK15: 0 | QL15: 0 | QM15: 0 | QN15: -7.98 | QO15: -7.98 | QP15: -7.98 | QQ15: -7.98 | QR15: -7.98 | QS15: 0 | QT15: 0 | QU15: 0 | QV15: -7.98 | QW15: 0 | QX15: 0 | QY15: 0 | QZ15: -8.03 | RA15: -8.03 | RB15: -8.03 | RE15: 1.2 | RF15: 13 | RG15: 0 | RH15: 0 | RI15: 0 | RJ15: 0 | RK15: 0 | RL15: 0 | RM15: 0 | RN15: 0 | RO15: 0 | RP15: 0 | RQ15: 0 | RR15: 0 | RS15: 0 | RT15: 0 | RU15: 0 | RV15: 0 | RW15: 0 | RX15: 0 | RY15: 0 | RZ15: 0 | SA15: 0 | SB15: 0 | SC15: 0 | SD15: 0 | SE15: 0 | SF15: 0 | SG15: 0 | SH15: 0 | SI15: 0 | SJ15: 0 | SK15: 0 | SL15: 0 | SM15: 0 | SN15: 0 | SO15: 0 | SP15: 0 | SQ15: 0 | SR15: 0 | SS15: 0 | ST15: 0 | SU15: 0 | SV15: 1.2 | SX15: 1.2 | SY15: 13 | SZ15: 0 | TA15: 0 | TB15: 0 | TC15: 0 | TD15: 0 | TE15: 0 | TF15: 0 | TG15: 0 | TH15: 0 | TI15: 0 | TJ15: 0 | TK15: 0 | TL15: 0 | TM15: 0 | TN15: 0 | TO15: 0 | TP15: 0 | TQ15: 0 | TR15: 0 | TS15: 0 | TT15: 0 | TU15: 65.14 | TV15: 0 | TW15: 0 | TX15: 0 | TY15: 0 | TZ15: 0 | UA15: 0 | UB15: 0 | UC15: 0 | UD15: 0 | UE15: 0 | UF15: 0 | UG15: 0 | UH15: 0 | UI15: 0 | UJ15: 0 | UK15: 0 | UL15: 0 | UM15: 0 | UN15: 0 | UO15: 1.2 | UQ15: 1.2 | UR15: 13 | US15: 1 | UT15: 0 | UU15: 0 | UV15: 0 | UW15: 0 | UX15: 0 | UY15: 0 | UZ15: 0 | VA15: 0 | VB15: 0 | VC15: 0 | VD15: 0 | VE15: 0 | VF15: 0 | VG15: 0 | VH15: 0 | VI15: 0 | VJ15: 0 | VK15: 0 | VL15: 0 | VM15: 1 | VN15: 0 | VO15: 0 | VP15: 0 | VQ15: 0 | VR15: 0 | VS15: 0 | VT15: 0 | VU15: 0 | VV15: 0 | VW15: 0 | VX15: 0 | VY15: 0 | VZ15: 0 | WA15: 0 | WB15: 0 | WC15: 0 | WD15: 0 | WE15: 0 | WF15: 0 | WG15: 1 | WH15: 1.2 | WJ15: 1.2 | WK15: 13 | WL15: 49.29 | WM15: 0 | WN15: 0 | WO15: 0 | WP15: 0 | WQ15: 0 | WR15: 0 | WS15: 0 | WT15: 0 | WU15: 0 | WV15: 0 | WW15: 0 | WX15: 0 | WY15: 0 | WZ15: 0 | XA15: 0 | XB15: 0 | XC15: 0 | XD15: 0 | XE15: 0 | XF15: 64.81 | XG15: 0 | XH15: 0 | XI15: 0 | XJ15: 0 | XK15: 0 | XL15: 0 | XM15: 0 | XN15: 0 | XO15: 0 | XP15: 0 | XQ15: 0 | XR15: 0 | XS15: 0 | XT15: 0 | XU15: 0 | XV15: 0 | XW15: 0 | XX15: 0 | XY15: 0 | XZ15: 66.93 | YA15: 1.2 | YC15: 1.1 | YD15: 12 | YE15: =YE14 -> 1 | YF15: =YF14 -> 1 | YG15: =YG14 -> 1 | YH15: =YH14 -> 1 | YI15: =YI14 -> 1 | YJ15: =YJ14 -> 1 | YK15: =YK14 -> 1 | YL15: =YL14 -> 1 | YM15: =YM14 -> 1 | YN15: =YN14 -> 1 | YO15: =YO14 -> 1 | YP15: =YP14 -> 1 | YQ15: =YQ14 -> 1 | YR15: =YR14 -> 1 | YS15: =YS14 -> 1 | YT15: =YT14 -> 1 | YU15: =YU14 -> 1 | YV15: =YV14 -> 1 | YW15: =YW14 -> 1 | YX15: =YX14 -> 1 | YY15: =YX15 -> 1 | YZ15: =ZA15 -> 4 | ZA15: =ZA14 -> 4 | ZB15: =ZB14 -> 4 | ZC15: =ZC14 -> 4 | ZD15: =ZD14 -> 4 | ZE15: =ZE14 -> 4 | ZF15: =ZF14 -> 4 | ZG15: =ZG14 -> 4 | ZH15: =ZH14 -> 4 | ZI15: =ZI14 -> 4 | ZJ15: =ZJ14 -> 4 | ZK15: =ZK14 -> 4 | ZL15: =ZL14 -> 4 | ZM15: =ZM14 -> 4 | ZN15: =ZN14 -> 4 | ZO15: =ZO14 -> 4 | ZP15: =ZP14 -> 4 | ZQ15: =ZQ14 -> 4 | ZR15: =ZR14 -> 4 | ZS15: =ZS14 -> 4 | ZT15: =ZS15 -> 4 | ZU15: 1.1 | ZW15: 1.1 | ZX15: 12 | ZY15: 0 | ZZ15: 0 | AAA15: 0 | AAB15: 0 | AAC15: 0 | AAD15: 4 | AAE15: 4 | AAF15: 0 | AAG15: 0 | AAH15: 0 | AAI15: 0 | AAJ15: 0 | AAK15: 0 | AAL15: 0 | AAM15: 4 | AAN15: 4 | AAO15: 0 | AAP15: 0 | AAQ15: 0 | AAR15: 0 | AAS15: 0 | AAT15: 0 | AAU15: 0 | AAV15: 0 | AAW15: 4 | AAX15: 4 | AAY15: 0 | AAZ15: 0 | ABA15: 0 | ABB15: 0 | ABC15: 0 | ABD15: 0 | ABE15: 0 | ABF15: 4 | ABG15: 4 | ABH15: 0 | ABI15: 0 | ABJ15: 0 | ABK15: 0 | ABL15: 0 | ABM15: 0 | ABN15: 0 | ABO15: 1.1 | ABQ15: 1.1 | ABR15: 12 | ABS15: =RANK(#REF!,$ER$14:$FL$24,0) ->  | ACN15: =ACO15 -> 58 | ACO15: =ACO14 -> 58 | ACP15: =ACP14 -> 58 | ACQ15: =ACQ14 -> 58 | ACR15: =ACR14 -> 58 | ACS15: =ACS14 -> 58 | ACT15: =ACT14 -> 58 | ACU15: =ACU14 -> 58 | ACV15: =ACV14 -> 58 | ACW15: =ACW14 -> 58 | ACX15: =ACX14 -> 58 | ACY15: =ACY14 -> 58 | ACZ15: =ACZ14 -> 58 | ADA15: =ADA14 -> 58 | ADB15: =ADB14 -> 58 | ADC15: =ADC14 -> 58 | ADD15: =ADD14 -> 58 | ADE15: =ADE14 -> 58 | ADF15: =ADF14 -> 58 | ADG15: =ADG14 -> 58 | ADH15: =ADG15 -> 58 | ADI15: 1.1
M16: 3C | N16: =ROUND('3D Interpolace'!M17,2) -> 48.19 | O16: =ROUND('3D Interpolace'!N17,2) -> 48.17 | P16: =ROUND('3D Interpolace'!O17,2) -> 48.23 | Q16: =ROUND('3D Interpolace'!P17,2) -> 48.38 | R16: =ROUND('3D Interpolace'!Q17,2) -> 48.62 | S16: =ROUND('3D Interpolace'!R17,2) -> 48.95 | T16: =ROUND('3D Interpolace'!S17,2) -> 49.28 | U16: =ROUND('3D Interpolace'!T17,2) -> 49.62 | V16: =ROUND('3D Interpolace'!U17,2) -> 50.09 | W16: =ROUND('3D Interpolace'!V17,2) -> 50.81 | X16: =ROUND('3D Interpolace'!W17,2) -> 51.91 | Y16: =ROUND('3D Interpolace'!X17,2) -> 53.66 | Z16: =ROUND('3D Interpolace'!Y17,2) -> 55.96 | AA16: =ROUND('3D Interpolace'!Z17,2) -> 58.43 | AB16: =ROUND('3D Interpolace'!AA17,2) -> 60.68 | AC16: =ROUND('3D Interpolace'!AB17,2) -> 62.33 | AD16: =ROUND('3D Interpolace'!AC17,2) -> 63.23 | AE16: =ROUND('3D Interpolace'!AD17,2) -> 63.65 | AF16: =ROUND('3D Interpolace'!AE17,2) -> 63.8 | AG16: =ROUND('3D Interpolace'!AF17,2) -> 63.88 | AH16: =ROUND('3D Interpolace'!AG17,2) -> 64.11 | AI16: =ROUND('3D Interpolace'!AH17,2) -> 64.51 | AJ16: =ROUND('3D Interpolace'!AI17,2) -> 64.94 | AK16: =ROUND('3D Interpolace'!AJ17,2) -> 65.37 | AL16: =ROUND('3D Interpolace'!AK17,2) -> 65.77 | AM16: =ROUND('3D Interpolace'!AL17,2) -> 66.14 | AN16: =ROUND('3D Interpolace'!AM17,2) -> 66.49 | AO16: =ROUND('3D Interpolace'!AN17,2) -> 66.85 | AP16: =ROUND('3D Interpolace'!AO17,2) -> 67.16 | AQ16: =ROUND('3D Interpolace'!AP17,2) -> 67.37 | AR16: =ROUND('3D Interpolace'!AQ17,2) -> 67.44 | AS16: =ROUND('3D Interpolace'!AR17,2) -> 67.26 | AT16: =ROUND('3D Interpolace'!AS17,2) -> 66.86 | AU16: =ROUND('3D Interpolace'!AT17,2) -> 66.4 | AV16: =ROUND('3D Interpolace'!AU17,2) -> 66.03 | AW16: =ROUND('3D Interpolace'!AV17,2) -> 65.91 | AX16: =ROUND('3D Interpolace'!AW17,2) -> 66.04 | AY16: =ROUND('3D Interpolace'!AX17,2) -> 66.31 | AZ16: =ROUND('3D Interpolace'!AY17,2) -> 66.73 | BA16: =ROUND('3D Interpolace'!AZ17,2) -> 67.29 | BB16: =ROUND('3D Interpolace'!BA17,2) -> 67.99 | BD16: 1.3 | BE16: 14 | BK16: 4 | BL16: 4 | BT16: 4 | BU16: 4 | CC16: 4 | CD16: 4 | CL16: 4 | CM16: 4 | CU16: 1.3 | CW16: 1.3 | CX16: 14 | CY16: 48.19 | CZ16: 48.17 | DA16: 48.23 | DB16: 48.38 | DC16: 48.62 | DD16: 52.95 | DE16: 53.28 | DF16: 49.62 | DG16: 50.09 | DH16: 50.81 | DI16: 51.91 | DJ16: 53.66 | DK16: 55.96 | DL16: 58.43 | DM16: 64.68 | DN16: 66.33 | DO16: 63.23 | DP16: 63.65 | DQ16: 63.8 | DR16: 63.88 | DS16: 64.11 | DT16: 64.51 | DU16: 64.94 | DV16: 69.37 | DW16: 69.77 | DX16: 66.14 | DY16: 66.49 | DZ16: 66.85 | EA16: 67.16 | EB16: 67.37 | EC16: 67.44 | ED16: 67.26 | EE16: 70.86 | EF16: 70.4 | EG16: 66.03 | EH16: 65.91 | EI16: 66.04 | EJ16: 66.31 | EK16: 66.73 | EL16: 67.29 | EM16: 67.99 | EN16: 1.3 | EP16: 1.2 | EQ16: 13 | ER16: 49.29 | ES16: 49.37 | ET16: 49.48 | EU16: 49.61 | EV16: 49.76 | EW16: 53.93 | EX16: 53.94 | EY16: 49.79 | EZ16: 49.75 | FA16: 50.1 | FB16: 51.09 | FC16: 53.11 | FD16: 55.98 | FE16: 59.14 | FF16: 66 | FG16: 67.99 | FH16: 64.93 | FI16: 65.19 | FJ16: 65.06 | FK16: 64.84 | FL16: 64.81 | FM16: 64.81 | FN16: 64.97 | FO16: 65.12 | FP16: 69.28 | FQ16: 69.45 | FR16: 65.66 | FS16: 65.96 | FT16: 66.34 | FU16: 66.72 | FV16: 67 | FW16: 67.12 | FX16: 66.98 | FY16: 70.63 | FZ16: 70.21 | GA16: 65.85 | GB16: 65.69 | GC16: 65.72 | GD16: 65.86 | GE16: 66.11 | GF16: 66.47 | GG16: 66.93 | GK16: 1.2 | GL16: 13 | GM16: 0 | GN16: 0 | GO16: 0 | GP16: 0 | GQ16: 0 | GR16: 53.93 | GS16: 0 | GT16: 0 | GU16: 0 | GV16: 0 | GW16: 0 | GX16: 0 | GY16: 0 | GZ16: 0 | HA16: 0 | HB16: 67.99 | HC16: 0 | HD16: 0 | HE16: 0 | HF16: 0 | HG16: 0 | HH16: 0 | HI16: 0 | HJ16: 0 | HK16: 0 | HL16: 0 | HM16: 0 | HN16: 0 | HO16: 0 | HP16: 0 | HQ16: 0 | HR16: 0 | HS16: 0 | HT16: 0 | HU16: 0 | HV16: 0 | HW16: 0 | HX16: 0 | HY16: 0 | HZ16: 0 | IA16: 0 | IB16: 0 | IC16: 1.2 | IG16: 13 | IH16: 49 | II16: 50.26666667 | IJ16: 51.53333333 | IK16: 52.8 | IL16: 54.06666667 | IM16: 55.33333333 | IN16: 56.6 | IO16: 57.86666667 | IP16: 59.13333333 | IQ16: 60.4 | IR16: 61.66666667 | IS16: 62.93333333 | IT16: 64.2 | IU16: 65.46666667 | IV16: 66.73333333 | IW16: 68 | IX16: 69.26666667 | IY16: 70.53333333 | IZ16: 71.8 | JA16: 73.06666667 | JB16: 74.33333333 | JC16: 67.76666667 | JD16: 67.975 | JE16: 68.18333333 | JF16: 68.39166667 | JG16: 68.6 | JH16: 68.80833333 | JI16: 69.01666667 | JJ16: 69.225 | JK16: 69.43333333 | JL16: 69.64166667 | JM16: 69.85 | JN16: 70.05833333 | JO16: 70.26666667 | JP16: 70.475 | JQ16: 70.68333333 | JR16: 70.89166667 | JS16: 71.1 | JT16: 71.30833333 | JU16: 71.51666667 | JV16: 71.725 | JW16: 71.93333333 | JX16: 1.2 | KD16: 1.2 | KE16: 13 | KF16: -0.29 | KG16: 0.8966666667 | KH16: 2.053333333 | KI16: 3.19 | KJ16: 4.306666667 | KK16: 1.403333333 | KL16: 2.66 | KM16: 8.076666667 | KN16: 9.383333333 | KO16: 10.3 | KP16: 10.57666667 | KQ16: 9.823333333 | KR16: 8.22 | KS16: 6.326666667 | KT16: 0.7333333333 | KU16: 0.01 | KV16: 4.336666667 | KW16: 5.343333333 | KX16: 6.74 | KY16: 8.226666667 | KZ16: 9.523333333 | LA16: 2.956666667 | LB16: 3.005 | LC16: 3.063333333 | LD16: -0.8883333333 | LE16: -0.85 | LF16: 3.148333333 | LG16: 3.056666667 | LH16: 2.885 | LI16: 2.713333333 | LJ16: 2.641666667 | LK16: 2.73 | LL16: 3.078333333 | LM16: -0.3633333333 | LN16: 0.265 | LO16: 4.833333333 | LP16: 5.201666667 | LQ16: 5.38 | LR16: 5.448333333 | LS16: 5.406666667 | LT16: 5.255 | LU16: 5.003333333 | MC16: 1.3 | MD16: 14 | ME16: 0.5358333333 | MF16: 1.805 | MG16: 2.964166667 | MH16: 4.005833333 | MI16: 2.9325 | MJ16: 1.766666667 | MK16: 4.528333333 | ML16: 7.1875 | MM16: 7.679166667 | MN16: 7.938333333 | MO16: 7.825 | MP16: 7.261666667 | MQ16: 6.428333333 | MR16: 3.6275 | MS16: 1.159166667 | MT16: 3.238333333 | MU16: 5.825 | MV16: 6.724166667 | MW16: 7.758333333 | MX16: 8.7475 | MY16: 4.188333333 | MZ16: 3.861666667 | NA16: 1.5125 | NB16: -0.8141666667 | NC16: 0.9191666667 | ND16: 2.72 | NE16: 2.568333333 | NF16: 2.464166667 | NG16: 2.4425 | NH16: 2.533333333 | NI16: 2.806666667 | NJ16: 1.31 | NK16: -0.05166666667 | NL16: 2.559166667 | NM16: 4.9825 | NN16: 5.133333333 | NO16: 5.066666667 | NP16: 4.84 | NQ16: 4.450833333 | NR16: 3.901666667 | NU16: 1.3 | NV16: 14 | NW16: 31.64 | NX16: 31.64 | NY16: 23.66 | NZ16: 15.63 | OA16: 23.66 | OB16: 31.64 | OC16: 15.63 | OD16: 11.98 | OE16: 11.98 | OF16: 11.98 | OG16: 11.98 | OH16: 11.98 | OI16: 11.98 | OJ16: 23.66 | OK16: 31.64 | OL16: 23.66 | OM16: 15.63 | ON16: 11.98 | OO16: 11.98 | OP16: 11.33 | OQ16: 15.63 | OR16: 23.66 | OS16: 31.64 | OT16: 31.64 | OU16: 31.64 | OV16: 23.66 | OW16: 23.66 | OX16: 23.66 | OY16: 23.66 | OZ16: 23.66 | PA16: 23.66 | PB16: 31.64 | PC16: 31.64 | PD16: 23.66 | PE16: 15.63 | PF16: 15.63 | PG16: 15.63 | PH16: 15.63 | PI16: 15.63 | PJ16: 23.66 | PM16: 1.3 | PN16: 14 | PO16: 0 | PP16: 0 | PQ16: 0 | PR16: -8.03 | PS16: -7.98 | PT16: 0 | PU16: -8.03 | PV16: -3.65 | PW16: -3.65 | PX16: -3.65 | PY16: 5.88 | PZ16: 4.08 | QA16: 0.65 | QB16: 8.03 | QC16: 0 | QD16: -7.98 | QE16: -8.03 | QF16: -19.66 | QG16: -19.66 | QH16: -20.31 | QI16: 0 | QJ16: 8.03 | QK16: 7.98 | QL16: 0 | QM16: 0 | QN16: -7.98 | QO16: -7.98 | QP16: -7.98 | QQ16: -7.98 | QR16: -7.98 | QS16: 0 | QT16: 0 | QU16: 0 | QV16: -7.98 | QW16: -8.03 | QX16: -8.03 | QY16: -8.03 | QZ16: -8.03 | RA16: -8.03 | RB16: -7.98 | RE16: 1.3 | RF16: 14 | RG16: 0 | RH16: 0 | RI16: 0 | RJ16: 0 | RK16: 0 | RL16: 0 | RM16: 0 | RN16: 0 | RO16: 0 | RP16: 0 | RQ16: 0 | RR16: 0 | RS16: 0 | RT16: 0 | RU16: 0 | RV16: 0 | RW16: 0 | RX16: 0 | RY16: 0 | RZ16: 0 | SA16: 0 | SB16: 0 | SC16: 0 | SD16: 0 | SE16: 69.77 | SF16: 0 | SG16: 0 | SH16: 0 | SI16: 0 | SJ16: 0 | SK16: 67.44 | SL16: 0 | SM16: 70.86 | SN16: 0 | SO16: 0 | SP16: 0 | SQ16: 0 | SR16: 0 | SS16: 0 | ST16: 0 | SU16: 0 | SV16: 1.3 | SX16: 1.3 | SY16: 14 | SZ16: 0 | TA16: 0 | TB16: 0 | TC16: 0 | TD16: 0 | TE16: 0 | TF16: 0 | TG16: 0 | TH16: 0 | TI16: 0 | TJ16: 0 | TK16: 0 | TL16: 0 | TM16: 0 | TN16: 0 | TO16: 0 | TP16: 0 | TQ16: 0 | TR16: 0 | TS16: 0 | TT16: 0 | TU16: 0 | TV16: 0 | TW16: 0 | TX16: 0 | TY16: 0 | TZ16: 0 | UA16: 0 | UB16: 0 | UC16: 0 | UD16: 0 | UE16: 0 | UF16: 0 | UG16: 0 | UH16: 0 | UI16: 0 | UJ16: 0 | UK16: 0 | UL16: 0 | UM16: 0 | UN16: 0 | UO16: 1.3 | UQ16: 1.3 | UR16: 14 | US16: 1 | UT16: 0 | UU16: 0 | UV16: 0 | UW16: 0 | UX16: 0 | UY16: 0 | UZ16: 0 | VA16: 0 | VB16: 0 | VC16: 0 | VD16: 0 | VE16: 0 | VF16: 0 | VG16: 0 | VH16: 0 | VI16: 0 | VJ16: 0 | VK16: 0 | VL16: 0 | VM16: 1 | VN16: 0 | VO16: 0 | VP16: 0 | VQ16: 0 | VR16: 0 | VS16: 0 | VT16: 0 | VU16: 0 | VV16: 0 | VW16: 0 | VX16: 0 | VY16: 0 | VZ16: 0 | WA16: 0 | WB16: 0 | WC16: 0 | WD16: 0 | WE16: 0 | WF16: 0 | WG16: 1 | WH16: 1.3 | WJ16: 1.3 | WK16: 14 | WL16: 48.19 | WM16: 0 | WN16: 0 | WO16: 0 | WP16: 0 | WQ16: 0 | WR16: 0 | WS16: 0 | WT16: 0 | WU16: 0 | WV16: 0 | WW16: 0 | WX16: 0 | WY16: 0 | WZ16: 0 | XA16: 0 | XB16: 0 | XC16: 0 | XD16: 0 | XE16: 0 | XF16: 64.11 | XG16: 0 | XH16: 0 | XI16: 0 | XJ16: 69.77 | XK16: 0 | XL16: 0 | XM16: 0 | XN16: 0 | XO16: 0 | XP16: 67.44 | XQ16: 0 | XR16: 70.86 | XS16: 0 | XT16: 0 | XU16: 0 | XV16: 0 | XW16: 0 | XX16: 0 | XY16: 0 | XZ16: 67.99 | YA16: 1.3 | YC16: 1.2 | YD16: 13 | YE16: =YE15 -> 1 | YF16: =YF15 -> 1 | YG16: 1 | YH16: 1 | YI16: 1 | YJ16: 1 | YK16: 1 | YL16: 1 | YM16: 1 | YN16: 1 | YO16: 1 | YP16: 1 | YQ16: 1 | YR16: 1 | YS16: 1 | YT16: 1 | YU16: 1 | YV16: 1 | YW16: 1 | YX16: 1 | YY16: =YX16 -> 1 | YZ16: 4 | ZA16: =ZA15 -> 4 | ZB16: 4 | ZC16: 4 | ZD16: 4 | ZE16: 4 | ZF16: 4 | ZG16: 4 | ZH16: 4 | ZI16: 4 | ZJ16: 4 | ZK16: 4 | ZL16: 4 | ZM16: 4 | ZN16: 4 | ZO16: 4 | ZP16: 4 | ZQ16: 4 | ZR16: 4 | ZS16: 4 | ZT16: =ZS16 -> 4 | ZU16: 1.2 | ZW16: 1.2 | ZX16: 13 | ZY16: 0 | ZZ16: 0 | AAA16: 0 | AAB16: 0 | AAC16: 0 | AAD16: 4 | AAE16: 4 | AAF16: 0 | AAG16: 0 | AAH16: 0 | AAI16: 0 | AAJ16: 0 | AAK16: 0 | AAL16: 0 | AAM16: 4 | AAN16: 4 | AAO16: 0 | AAP16: 0 | AAQ16: 0 | AAR16: 0 | AAS16: 0 | AAT16: 0 | AAU16: 0 | AAV16: 0 | AAW16: 4 | AAX16: 4 | AAY16: 0 | AAZ16: 0 | ABA16: 0 | ABB16: 0 | ABC16: 0 | ABD16: 0 | ABE16: 0 | ABF16: 4 | ABG16: 4 | ABH16: 0 | ABI16: 0 | ABJ16: 0 | ABK16: 0 | ABL16: 0 | ABM16: 0 | ABN16: 0 | ABO16: 1.2 | ABQ16: 1.2 | ABR16: 13 | ABS16: =RANK(#REF!,$ER$14:$FL$24,0) ->  | ACN16: 58 | ACO16: =ACO15 -> 58 | ACP16: 58 | ACQ16: 58 | ACR16: 58 | ACS16: 58 | ACT16: 58 | ACU16: 58 | ACV16: 58 | ACW16: 58 | ACX16: 58 | ACY16: 58 | ACZ16: 58 | ADA16: 58 | ADB16: 58 | ADC16: 58 | ADD16: 58 | ADE16: 58 | ADF16: 58 | ADG16: 58 | ADH16: =ADG16 -> 58 | ADI16: 1.2
B17: DESKA | F17: x | G17: y | H17: z | M17: 3D | N17: =ROUND('3D Interpolace'!M18,2) -> 47.06 | O17: =ROUND('3D Interpolace'!N18,2) -> 46.97 | P17: =ROUND('3D Interpolace'!O18,2) -> 47.01 | Q17: =ROUND('3D Interpolace'!P18,2) -> 47.19 | R17: =ROUND('3D Interpolace'!Q18,2) -> 47.52 | S17: =ROUND('3D Interpolace'!R18,2) -> 47.98 | T17: =ROUND('3D Interpolace'!S18,2) -> 48.59 | U17: =ROUND('3D Interpolace'!T18,2) -> 49.33 | V17: =ROUND('3D Interpolace'!U18,2) -> 50.21 | W17: =ROUND('3D Interpolace'!V18,2) -> 51.24 | X17: =ROUND('3D Interpolace'!W18,2) -> 52.42 | Y17: =ROUND('3D Interpolace'!X18,2) -> 53.91 | Z17: =ROUND('3D Interpolace'!Y18,2) -> 55.69 | AA17: =ROUND('3D Interpolace'!Z18,2) -> 57.54 | AB17: =ROUND('3D Interpolace'!AA18,2) -> 59.24 | AC17: =ROUND('3D Interpolace'!AB18,2) -> 60.58 | AD17: =ROUND('3D Interpolace'!AC18,2) -> 61.44 | AE17: =ROUND('3D Interpolace'!AD18,2) -> 61.98 | AF17: =ROUND('3D Interpolace'!AE18,2) -> 62.34 | AG17: =ROUND('3D Interpolace'!AF18,2) -> 62.68 | AH17: =ROUND('3D Interpolace'!AG18,2) -> 63.14 | AI17: =ROUND('3D Interpolace'!AH18,2) -> 63.77 | AJ17: =ROUND('3D Interpolace'!AI18,2) -> 64.45 | AK17: =ROUND('3D Interpolace'!AJ18,2) -> 65.14 | AL17: =ROUND('3D Interpolace'!AK18,2) -> 65.76 | AM17: =ROUND('3D Interpolace'!AL18,2) -> 66.27 | AN17: =ROUND('3D Interpolace'!AM18,2) -> 66.67 | AO17: =ROUND('3D Interpolace'!AN18,2) -> 67 | AP17: =ROUND('3D Interpolace'!AO18,2) -> 67.25 | AQ17: =ROUND('3D Interpolace'!AP18,2) -> 67.4 | AR17: =ROUND('3D Interpolace'!AQ18,2) -> 67.44 | AS17: =ROUND('3D Interpolace'!AR18,2) -> 67.25 | AT17: =ROUND('3D Interpolace'!AS18,2) -> 66.84 | AU17: =ROUND('3D Interpolace'!AT18,2) -> 66.39 | AV17: =ROUND('3D Interpolace'!AU18,2) -> 66.06 | AW17: =ROUND('3D Interpolace'!AV18,2) -> 66.02 | AX17: =ROUND('3D Interpolace'!AW18,2) -> 66.28 | AY17: =ROUND('3D Interpolace'!AX18,2) -> 66.72 | AZ17: =ROUND('3D Interpolace'!AY18,2) -> 67.33 | BA17: =ROUND('3D Interpolace'!AZ18,2) -> 68.13 | BB17: =ROUND('3D Interpolace'!BA18,2) -> 69.1 | BD17: 1.4 | BE17: 15 | BK17: 4 | BL17: 4 | BT17: 4 | BU17: 4 | CC17: 4 | CD17: 4 | CL17: 4 | CM17: 4 | CU17: 1.4 | CW17: 1.4 | CX17: 15 | CY17: 47.06 | CZ17: 46.97 | DA17: 47.01 | DB17: 47.19 | DC17: 47.52 | DD17: 51.98 | DE17: 52.59 | DF17: 49.33 | DG17: 50.21 | DH17: 51.24 | DI17: 52.42 | DJ17: 53.91 | DK17: 55.69 | DL17: 57.54 | DM17: 63.24 | DN17: 64.58 | DO17: 61.44 | DP17: 61.98 | DQ17: 62.34 | DR17: 62.68 | DS17: 63.14 | DT17: 63.77 | DU17: 64.45 | DV17: 69.14 | DW17: 69.76 | DX17: 66.27 | DY17: 66.67 | DZ17: 67 | EA17: 67.25 | EB17: 67.4 | EC17: 67.44 | ED17: 67.25 | EE17: 70.84 | EF17: 70.39 | EG17: 66.06 | EH17: 66.02 | EI17: 66.28 | EJ17: 66.72 | EK17: 67.33 | EL17: 68.13 | EM17: 69.1 | EN17: 1.4 | EP17: 1.3 | EQ17: 14 | ER17: 48.19 | ES17: 48.17 | ET17: 48.23 | EU17: 48.38 | EV17: 48.62 | EW17: 52.95 | EX17: 53.28 | EY17: 49.62 | EZ17: 50.09 | FA17: 50.81 | FB17: 51.91 | FC17: 53.66 | FD17: 55.96 | FE17: 58.43 | FF17: 64.68 | FG17: 66.33 | FH17: 63.23 | FI17: 63.65 | FJ17: 63.8 | FK17: 63.88 | FL17: 64.11 | FM17: 64.11 | FN17: 64.51 | FO17: 64.94 | FP17: 69.37 | FQ17: 69.77 | FR17: 66.14 | FS17: 66.49 | FT17: 66.85 | FU17: 67.16 | FV17: 67.37 | FW17: 67.44 | FX17: 67.26 | FY17: 70.86 | FZ17: 70.4 | GA17: 66.03 | GB17: 65.91 | GC17: 66.04 | GD17: 66.31 | GE17: 66.73 | GF17: 67.29 | GG17: 67.99 | GK17: 1.3 | GL17: 14 | GM17: 0 | GN17: 0 | GO17: 0 | GP17: 0 | GQ17: 0 | GR17: 52.95 | GS17: 0 | GT17: 0 | GU17: 0 | GV17: 0 | GW17: 0 | GX17: 0 | GY17: 0 | GZ17: 0 | HA17: 0 | HB17: 66.33 | HC17: 0 | HD17: 0 | HE17: 0 | HF17: 0 | HG17: 0 | HH17: 0 | HI17: 0 | HJ17: 0 | HK17: 0 | HL17: 0 | HM17: 0 | HN17: 0 | HO17: 0 | HP17: 0 | HQ17: 0 | HR17: 0 | HS17: 0 | HT17: 0 | HU17: 0 | HV17: 0 | HW17: 0 | HX17: 0 | HY17: 0 | HZ17: 0 | IA17: 0 | IB17: 0 | IC17: 1.3 | IG17: 14 | IH17: 48 | II17: 49.26666667 | IJ17: 50.53333333 | IK17: 51.8 | IL17: 53.06666667 | IM17: 54.33333333 | IN17: 55.6 | IO17: 56.86666667 | IP17: 58.13333333 | IQ17: 59.4 | IR17: 60.66666667 | IS17: 61.93333333 | IT17: 63.2 | IU17: 64.46666667 | IV17: 65.73333333 | IW17: 67 | IX17: 68.26666667 | IY17: 69.53333333 | IZ17: 70.8 | JA17: 72.06666667 | JB17: 73.33333333 | JC17: 67.9 | JD17: 68.10833333 | JE17: 68.31666667 | JF17: 68.525 | JG17: 68.73333333 | JH17: 68.94166667 | JI17: 69.15 | JJ17: 69.35833333 | JK17: 69.56666667 | JL17: 69.775 | JM17: 69.98333333 | JN17: 70.19166667 | JO17: 70.4 | JP17: 70.60833333 | JQ17: 70.81666667 | JR17: 71.025 | JS17: 71.23333333 | JT17: 71.44166667 | JU17: 71.65 | JV17: 71.85833333 | JW17: 72.06666667 | JX17: 1.3 | KD17: 1.3 | KE17: 14 | KF17: -0.19 | KG17: 1.096666667 | KH17: 2.303333333 | KI17: 3.42 | KJ17: 4.446666667 | KK17: 1.383333333 | KL17: 2.32 | KM17: 7.246666667 | KN17: 8.043333333 | KO17: 8.59 | KP17: 8.756666667 | KQ17: 8.273333333 | KR17: 7.24 | KS17: 6.036666667 | KT17: 1.053333333 | KU17: 0.67 | KV17: 5.036666667 | KW17: 5.883333333 | KX17: 7 | KY17: 8.186666667 | KZ17: 9.223333333 | LA17: 3.79 | LB17: 3.598333333 | LC17: 3.376666667 | LD17: -0.845 | LE17: -1.036666667 | LF17: 2.801666667 | LG17: 2.66 | LH17: 2.508333333 | LI17: 2.406666667 | LJ17: 2.405 | LK17: 2.543333333 | LL17: 2.931666667 | LM17: -0.46 | LN17: 0.2083333333 | LO17: 4.786666667 | LP17: 5.115 | LQ17: 5.193333333 | LR17: 5.131666667 | LS17: 4.92 | LT17: 4.568333333 | LU17: 4.076666667 | MC17: 1.4 | MD17: 15 | ME17: 0.6558333333 | MF17: 1.955 | MG17: 3.106666667 | MH17: 4.105833333 | MI17: 2.955 | MJ17: 1.646666667 | MK17: 4.170833333 | ML17: 6.545 | MM17: 6.786666667 | MN17: 6.915833333 | MO17: 6.8825 | MP17: 6.619166667 | MQ17: 6.215833333 | MR17: 3.8525 | MS17: 1.706666667 | MT17: 3.918333333 | MU17: 6.475 | MV17: 7.246666667 | MW17: 8.098333333 | MX17: 8.895 | MY17: 5.281666667 | MZ17: 4.745 | NA17: 2.163333333 | NB17: -0.3833333333 | NC17: 1.185 | ND17: 2.905833333 | NE17: 2.754166667 | NF17: 2.7 | NG17: 2.740833333 | NH17: 2.874166667 | NI17: 3.1525 | NJ17: 1.635833333 | NK17: 0.2366666667 | NL17: 2.7875 | NM17: 5.123333333 | NN17: 5.154166667 | NO17: 4.9375 | NP17: 4.533333333 | NQ17: 3.939166667 | NR17: 3.155 | NU17: 1.4 | NV17: 15 | NW17: 31.64 | NX17: 31.64 | NY17: 23.66 | NZ17: 15.63 | OA17: 23.66 | OB17: 31.64 | OC17: 15.63 | OD17: 11.98 | OE17: 11.98 | OF17: 11.98 | OG17: 11.98 | OH17: 11.98 | OI17: 11.98 | OJ17: 23.66 | OK17: 31.64 | OL17: 23.66 | OM17: 11.98 | ON17: 11.98 | OO17: 11.33 | OP17: 11.33 | OQ17: 15.63 | OR17: 15.63 | OS17: 23.66 | OT17: 31.64 | OU17: 31.64 | OV17: 23.66 | OW17: 23.66 | OX17: 23.66 | OY17: 23.66 | OZ17: 23.66 | PA17: 23.66 | PB17: 31.64 | PC17: 31.64 | PD17: 23.66 | PE17: 15.63 | PF17: 15.63 | PG17: 15.63 | PH17: 15.63 | PI17: 23.66 | PJ17: 23.66 | PM17: 1.4 | PN17: 15 | PO17: 0 | PP17: 0 | PQ17: 0 | PR17: -8.03 | PS17: -7.98 | PT17: 0 | PU17: -8.03 | PV17: -3.65 | PW17: -3.65 | PX17: -3.65 | PY17: 4.08 | PZ17: 4.08 | QA17: 0.65 | QB17: 8.03 | QC17: 0 | QD17: -7.98 | QE17: -11.68 | QF17: -19.66 | QG17: -20.31 | QH17: -20.31 | QI17: 3.65 | QJ17: 3.65 | QK17: 0 | QL17: 0 | QM17: 0 | QN17: 0 | QO17: -7.98 | QP17: -7.98 | QQ17: -7.98 | QR17: -7.98 | QS17: 0 | QT17: 0 | QU17: 0 | QV17: -7.98 | QW17: 0 | QX17: -8.03 | QY17: -8.03 | QZ17: -8.03 | RA17: -7.98 | RB17: -7.98 | RE17: 1.4 | RF17: 15 | RG17: 0 | RH17: 0 | RI17: 0 | RJ17: 0 | RK17: 0 | RL17: 0 | RM17: 0 | RN17: 0 | RO17: 0 | RP17: 0 | RQ17: 0 | RR17: 0 | RS17: 0 | RT17: 0 | RU17: 0 | RV17: 0 | RW17: 0 | RX17: 0 | RY17: 0 | RZ17: 0 | SA17: 0 | SB17: 0 | SC17: 0 | SD17: 0 | SE17: 0 | SF17: 0 | SG17: 0 | SH17: 0 | SI17: 0 | SJ17: 0 | SK17: 67.44 | SL17: 0 | SM17: 0 | SN17: 0 | SO17: 0 | SP17: 0 | SQ17: 0 | SR17: 0 | SS17: 0 | ST17: 0 | SU17: 0 | SV17: 1.4 | SX17: 1.4 | SY17: 15 | SZ17: 0 | TA17: 0 | TB17: 0 | TC17: 0 | TD17: 0 | TE17: 0 | TF17: 0 | TG17: 0 | TH17: 0 | TI17: 0 | TJ17: 0 | TK17: 0 | TL17: 0 | TM17: 0 | TN17: 0 | TO17: 0 | TP17: 0 | TQ17: 0 | TR17: 0 | TS17: 0 | TT17: 0 | TU17: 0 | TV17: 0 | TW17: 0 | TX17: 0 | TY17: 69.77 | TZ17: 0 | UA17: 0 | UB17: 0 | UC17: 0 | UD17: 0 | UE17: 67.44 | UF17: 0 | UG17: 70.86 | UH17: 0 | UI17: 0 | UJ17: 0 | UK17: 0 | UL17: 0 | UM17: 0 | UN17: 0 | UO17: 1.4 | UQ17: 1.4 | UR17: 15 | US17: 1 | UT17: 0 | UU17: 0 | UV17: 0 | UW17: 0 | UX17: 0 | UY17: 0 | UZ17: 0 | VA17: 0 | VB17: 0 | VC17: 0 | VD17: 0 | VE17: 0 | VF17: 0 | VG17: 0 | VH17: 0 | VI17: 0 | VJ17: 0 | VK17: 0 | VL17: 0 | VM17: 1 | VN17: 0 | VO17: 0 | VP17: 0 | VQ17: 0 | VR17: 0 | VS17: 0 | VT17: 0 | VU17: 0 | VV17: 0 | VW17: 0 | VX17: 0 | VY17: 0 | VZ17: 0 | WA17: 0 | WB17: 0 | WC17: 0 | WD17: 0 | WE17: 0 | WF17: 0 | WG17: 1 | WH17: 1.4 | WJ17: 1.4 | WK17: 15 | WL17: 47.06 | WM17: 0 | WN17: 0 | WO17: 0 | WP17: 0 | WQ17: 0 | WR17: 0 | WS17: 0 | WT17: 0 | WU17: 0 | WV17: 0 | WW17: 0 | WX17: 0 | WY17: 0 | WZ17: 0 | XA17: 0 | XB17: 0 | XC17: 0 | XD17: 0 | XE17: 0 | XF17: 63.14 | XG17: 0 | XH17: 0 | XI17: 0 | XJ17: 0 | XK17: 0 | XL17: 0 | XM17: 0 | XN17: 0 | XO17: 0 | XP17: 67.44 | XQ17: 0 | XR17: 0 | XS17: 0 | XT17: 0 | XU17: 0 | XV17: 0 | XW17: 0 | XX17: 0 | XY17: 0 | XZ17: 69.1 | YA17: 1.4 | YC17: 1.3 | YD17: 14 | YE17: 1 | YF17: 1 | YG17: 1 | YH17: 1 | YI17: 1 | YJ17: 1 | YK17: 1 | YL17: 1 | YM17: 1 | YN17: 1 | YO17: 1 | YP17: 1 | YQ17: 1 | YR17: 1 | YS17: 1 | YT17: 1 | YU17: 1 | YV17: 1 | YW17: 1 | YX17: 1 | YY17: 1 | YZ17: 4 | ZA17: 4 | ZB17: 4 | ZC17: 4 | ZD17: 4 | ZE17: 4 | ZF17: 4 | ZG17: 4 | ZH17: 4 | ZI17: 4 | ZJ17: 4 | ZK17: 4 | ZL17: 4 | ZM17: 4 | ZN17: 4 | ZO17: 4 | ZP17: 4 | ZQ17: 4 | ZR17: 4 | ZS17: 4 | ZT17: 4 | ZU17: 1.3 | ZW17: 1.3 | ZX17: 14 | ZY17: 0 | ZZ17: 0 | AAA17: 0 | AAB17: 0 | AAC17: 0 | AAD17: 4 | AAE17: 4 | AAF17: 0 | AAG17: 0 | AAH17: 0 | AAI17: 0 | AAJ17: 0 | AAK17: 0 | AAL17: 0 | AAM17: 4 | AAN17: 4 | AAO17: 0 | AAP17: 0 | AAQ17: 0 | AAR17: 0 | AAS17: 0 | AAT17: 0 | AAU17: 0 | AAV17: 0 | AAW17: 4 | AAX17: 4 | AAY17: 0 | AAZ17: 0 | ABA17: 0 | ABB17: 0 | ABC17: 0 | ABD17: 0 | ABE17: 0 | ABF17: 4 | ABG17: 4 | ABH17: 0 | ABI17: 0 | ABJ17: 0 | ABK17: 0 | ABL17: 0 | ABM17: 0 | ABN17: 0 | ABO17: 1.3 | ABQ17: 1.3 | ABR17: 14 | ABS17: =RANK(#REF!,$ER$14:$FL$24,0) ->  | ACN17: 58 | ACO17: 58 | ACP17: 58 | ACQ17: 58 | ACR17: 58 | ACS17: 58 | ACT17: 58 | ACU17: 58 | ACV17: 58 | ACW17: 58 | ACX17: 58 | ACY17: 58 | ACZ17: 58 | ADA17: 58 | ADB17: 58 | ADC17: 58 | ADD17: 58 | ADE17: 58 | ADF17: 58 | ADG17: 58 | ADH17: 58 | ADI17: 1.3
B18: 2000 | C18: =B18/500+1 -> 5 | E18: Bod A | F18: 3900 | G18: 6000 | H18: 100 | M18: 4 | N18: =ROUND('3D Interpolace'!M19,2) -> 46 | O18: =ROUND('3D Interpolace'!N19,2) -> 45.88 | P18: =ROUND('3D Interpolace'!O19,2) -> 45.92 | Q18: =ROUND('3D Interpolace'!P19,2) -> 46.12 | R18: =ROUND('3D Interpolace'!Q19,2) -> 46.48 | S18: =ROUND('3D Interpolace'!R19,2) -> 47 | T18: =ROUND('3D Interpolace'!S19,2) -> 47.71 | U18: =ROUND('3D Interpolace'!T19,2) -> 48.62 | V18: =ROUND('3D Interpolace'!U19,2) -> 49.66 | W18: =ROUND('3D Interpolace'!V19,2) -> 50.81 | X18: =ROUND('3D Interpolace'!W19,2) -> 52 | Y18: =ROUND('3D Interpolace'!X19,2) -> 53.34 | Z18: =ROUND('3D Interpolace'!Y19,2) -> 54.85 | AA18: =ROUND('3D Interpolace'!Z19,2) -> 56.39 | AB18: =ROUND('3D Interpolace'!AA19,2) -> 57.82 | AC18: =ROUND('3D Interpolace'!AB19,2) -> 59 | AD18: =ROUND('3D Interpolace'!AC19,2) -> 59.84 | AE18: =ROUND('3D Interpolace'!AD19,2) -> 60.44 | AF18: =ROUND('3D Interpolace'!AE19,2) -> 60.92 | AG18: =ROUND('3D Interpolace'!AF19,2) -> 61.4 | AH18: =ROUND('3D Interpolace'!AG19,2) -> 62 | AI18: =ROUND('3D Interpolace'!AH19,2) -> 62.78 | AJ18: =ROUND('3D Interpolace'!AI19,2) -> 63.67 | AK18: =ROUND('3D Interpolace'!AJ19,2) -> 64.57 | AL18: =ROUND('3D Interpolace'!AK19,2) -> 65.38 | AM18: =ROUND('3D Interpolace'!AL19,2) -> 66 | AN18: =ROUND('3D Interpolace'!AM19,2) -> 66.42 | AO18: =ROUND('3D Interpolace'!AN19,2) -> 66.71 | AP18: =ROUND('3D Interpolace'!AO19,2) -> 66.89 | AQ18: =ROUND('3D Interpolace'!AP19,2) -> 66.98 | AR18: =ROUND('3D Interpolace'!AQ19,2) -> 67 | AS18: =ROUND('3D Interpolace'!AR19,2) -> 66.85 | AT18: =ROUND('3D Interpolace'!AS19,2) -> 66.5 | AU18: =ROUND('3D Interpolace'!AT19,2) -> 66.14 | AV18: =ROUND('3D Interpolace'!AU19,2) -> 65.91 | AW18: =ROUND('3D Interpolace'!AV19,2) -> 66 | AX18: =ROUND('3D Interpolace'!AW19,2) -> 66.4 | AY18: =ROUND('3D Interpolace'!AX19,2) -> 67 | AZ18: =ROUND('3D Interpolace'!AY19,2) -> 67.8 | BA18: =ROUND('3D Interpolace'!AZ19,2) -> 68.8 | BB18: =ROUND('3D Interpolace'!BA19,2) -> 70 | BD18: 1.5 | BE18: 16 | BK18: 4 | BL18: 4 | BT18: 4 | BU18: 4 | CC18: 4 | CD18: 4 | CL18: 4 | CM18: 4 | CU18: 1.5 | CW18: 1.5 | CX18: 16 | CY18: 46 | CZ18: 45.88 | DA18: 45.92 | DB18: 46.12 | DC18: 46.48 | DD18: 51 | DE18: 51.71 | DF18: 48.62 | DG18: 49.66 | DH18: 50.81 | DI18: 52 | DJ18: 53.34 | DK18: 54.85 | DL18: 56.39 | DM18: 61.82 | DN18: 63 | DO18: 59.84 | DP18: 60.44 | DQ18: 60.92 | DR18: 61.4 | DS18: 62 | DT18: 62.78 | DU18: 63.67 | DV18: 68.57 | DW18: 69.38 | DX18: 66 | DY18: 66.42 | DZ18: 66.71 | EA18: 66.89 | EB18: 66.98 | EC18: 67 | ED18: 66.85 | EE18: 70.5 | EF18: 70.14 | EG18: 65.91 | EH18: 66 | EI18: 66.4 | EJ18: 67 | EK18: 67.8 | EL18: 68.8 | EM18: 70 | EN18: 1.5 | EP18: 1.4 | EQ18: 15 | ER18: 47.06 | ES18: 46.97 | ET18: 47.01 | EU18: 47.19 | EV18: 47.52 | EW18: 51.98 | EX18: 52.59 | EY18: 49.33 | EZ18: 50.21 | FA18: 51.24 | FB18: 52.42 | FC18: 53.91 | FD18: 55.69 | FE18: 57.54 | FF18: 63.24 | FG18: 64.58 | FH18: 61.44 | FI18: 61.98 | FJ18: 62.34 | FK18: 62.68 | FL18: 63.14 | FM18: 63.14 | FN18: 63.77 | FO18: 64.45 | FP18: 69.14 | FQ18: 69.76 | FR18: 66.27 | FS18: 66.67 | FT18: 67 | FU18: 67.25 | FV18: 67.4 | FW18: 67.44 | FX18: 67.25 | FY18: 70.84 | FZ18: 70.39 | GA18: 66.06 | GB18: 66.02 | GC18: 66.28 | GD18: 66.72 | GE18: 67.33 | GF18: 68.13 | GG18: 69.1 | GK18: 1.4 | GL18: 15 | GM18: 0 | GN18: 0 | GO18: 0 | GP18: 0 | GQ18: 0 | GR18: 51.98 | GS18: 0 | GT18: 0 | GU18: 0 | GV18: 0 | GW18: 0 | GX18: 0 | GY18: 0 | GZ18: 0 | HA18: 0 | HB18: 64.58 | HC18: 0 | HD18: 0 | HE18: 0 | HF18: 0 | HG18: 0 | HH18: 0 | HI18: 0 | HJ18: 0 | HK18: 0 | HL18: 0 | HM18: 0 | HN18: 0 | HO18: 0 | HP18: 0 | HQ18: 0 | HR18: 0 | HS18: 0 | HT18: 0 | HU18: 0 | HV18: 0 | HW18: 0 | HX18: 0 | HY18: 0 | HZ18: 0 | IA18: 0 | IB18: 0 | IC18: 1.4 | IG18: 15 | IH18: 47 | II18: 48.26666667 | IJ18: 49.53333333 | IK18: 50.8 | IL18: 52.06666667 | IM18: 53.33333333 | IN18: 54.6 | IO18: 55.86666667 | IP18: 57.13333333 | IQ18: 58.4 | IR18: 59.66666667 | IS18: 60.93333333 | IT18: 62.2 | IU18: 63.46666667 | IV18: 64.73333333 | IW18: 66 | IX18: 67.26666667 | IY18: 68.53333333 | IZ18: 69.8 | JA18: 71.06666667 | JB18: 72.33333333 | JC18: 68.03333333 | JD18: 68.24166667 | JE18: 68.45 | JF18: 68.65833333 | JG18: 68.86666667 | JH18: 69.075 | JI18: 69.28333333 | JJ18: 69.49166667 | JK18: 69.7 | JL18: 69.90833333 | JM18: 70.11666667 | JN18: 70.325 | JO18: 70.53333333 | JP18: 70.74166667 | JQ18: 70.95 | JR18: 71.15833333 | JS18: 71.36666667 | JT18: 71.575 | JU18: 71.78333333 | JV18: 71.99166667 | JW18: 72.2 | JX18: 1.4 | KD18: 1.4 | KE18: 15 | KF18: -0.06 | KG18: 1.296666667 | KH18: 2.523333333 | KI18: 3.61 | KJ18: 4.546666667 | KK18: 1.353333333 | KL18: 2.01 | KM18: 6.536666667 | KN18: 6.923333333 | KO18: 7.16 | KP18: 7.246666667 | KQ18: 7.023333333 | KR18: 6.51 | KS18: 5.926666667 | KT18: 1.493333333 | KU18: 1.42 | KV18: 5.826666667 | KW18: 6.553333333 | KX18: 7.46 | KY18: 8.386666667 | KZ18: 9.193333333 | LA18: 4.893333333 | LB18: 4.471666667 | LC18: 4 | LD18: -0.4816666667 | LE18: -0.8933333333 | LF18: 2.805 | LG18: 2.613333333 | LH18: 2.491666667 | LI18: 2.45 | LJ18: 2.508333333 | LK18: 2.676666667 | LL18: 3.075 | LM18: -0.3066666667 | LN18: 0.3516666667 | LO18: 4.89 | LP18: 5.138333333 | LQ18: 5.086666667 | LR18: 4.855 | LS18: 4.453333333 | LT18: 3.861666667 | LU18: 3.1 | MC18: 1.5 | MD18: 16 | ME18: 0.7383333333 | MF18: 2.0125 | MG18: 3.144166667 | MH18: 4.133333333 | MI18: 2.9775 | MJ18: 1.671666667 | MK18: 4.205833333 | ML18: 6.595 | MM18: 6.861666667 | MN18: 7.030833333 | MO18: 7.0625 | MP18: 6.894166667 | MQ18: 6.603333333 | MR18: 4.3425 | MS18: 2.271666667 | MT18: 4.515833333 | MU18: 7.065 | MV18: 7.801666667 | MW18: 8.595833333 | MX18: 9.315 | MY18: 6.725 | MZ18: 6.030833333 | NA18: 3.261666667 | NB18: 0.5375 | NC18: 1.973333333 | ND18: 3.639166667 | NE18: 3.515 | NF18: 3.538333333 | NG18: 3.656666667 | NH18: 3.825 | NI18: 4.068333333 | NJ18: 2.454166667 | NK18: 0.92 | NL18: 3.310833333 | NM18: 5.479166667 | NN18: 5.345 | NO18: 4.958333333 | NP18: 4.371666667 | NQ18: 3.585 | NR18: 2.595833333 | NU18: 1.5 | NV18: 16 | NW18: 31.64 | NX18: 23.66 | NY18: 23.66 | NZ18: 15.63 | OA18: 23.66 | OB18: 31.64 | OC18: 15.63 | OD18: 11.98 | OE18: 11.98 | OF18: 11.98 | OG18: 11.98 | OH18: 11.98 | OI18: 11.98 | OJ18: 15.63 | OK18: 23.66 | OL18: 15.63 | OM18: 11.98 | ON18: 11.98 | OO18: 11.33 | OP18: 11.33 | OQ18: 11.98 | OR18: 11.98 | OS18: 23.66 | OT18: 31.64 | OU18: 31.64 | OV18: 23.66 | OW18: 23.66 | OX18: 23.66 | OY18: 23.66 | OZ18: 23.66 | PA18: 15.63 | PB18: 23.66 | PC18: 31.64 | PD18: 23.66 | PE18: 15.63 | PF18: 15.63 | PG18: 15.63 | PH18: 15.63 | PI18: 23.66 | PJ18: 23.66 | PM18: 1.5 | PN18: 16 | PO18: 0 | PP18: -7.98 | PQ18: 0 | PR18: -8.03 | PS18: -7.98 | PT18: 0 | PU18: -8.03 | PV18: -3.65 | PW18: -3.65 | PX18: -3.65 | PY18: 4.08 | PZ18: 0.65 | QA18: 0.65 | QB18: 0 | QC18: -7.98 | QD18: -16.01 | QE18: -11.68 | QF18: -19.66 | QG18: -20.31 | QH18: -20.31 | QI18: 0.65 | QJ18: 0 | QK18: 8.03 | QL18: 0 | QM18: 0 | QN18: 0 | QO18: -7.98 | QP18: -7.98 | QQ18: -7.98 | QR18: -7.98 | QS18: -16.01 | QT18: -7.98 | QU18: 0 | QV18: 0 | QW18: 3.65 | QX18: 3.65 | QY18: 3.65 | QZ18: 4.3 | RA18: 12.33 | RB18: 12.33 | RE18: 1.5 | RF18: 16 | RG18: 0 | RH18: 0 | RI18: 0 | RJ18: 0 | RK18: 0 | RL18: 0 | RM18: 0 | RN18: 0 | RO18: 0 | RP18: 0 | RQ18: 0 | RR18: 0 | RS18: 0 | RT18: 0 | RU18: 0 | RV18: 0 | RW18: 0 | RX18: 0 | RY18: 0 | RZ18: 0 | SA18: 0 | SB18: 0 | SC18: 0 | SD18: 0 | SE18: 0 | SF18: 0 | SG18: 0 | SH18: 0 | SI18: 0 | SJ18: 0 | SK18: 0 | SL18: 0 | SM18: 0 | SN18: 0 | SO18: 0 | SP18: 0 | SQ18: 0 | SR18: 0 | SS18: 0 | ST18: 0 | SU18: 0 | SV18: 1.5 | SX18: 1.5 | SY18: 16 | SZ18: 0 | TA18: 0 | TB18: 0 | TC18: 0 | TD18: 0 | TE18: 0 | TF18: 0 | TG18: 0 | TH18: 0 | TI18: 0 | TJ18: 0 | TK18: 0 | TL18: 0 | TM18: 0 | TN18: 0 | TO18: 0 | TP18: 0 | TQ18: 0 | TR18: 0 | TS18: 0 | TT18: 0 | TU18: 0 | TV18: 0 | TW18: 0 | TX18: 0 | TY18: 0 | TZ18: 0 | UA18: 0 | UB18: 0 | UC18: 0 | UD18: 0 | UE18: 67.44 | UF18: 0 | UG18: 0 | UH18: 0 | UI18: 0 | UJ18: 0 | UK18: 0 | UL18: 0 | UM18: 0 | UN18: 0 | UO18: 1.5 | UQ18: 1.5 | UR18: 16 | US18: 1 | UT18: 0 | UU18: 0 | UV18: 0 | UW18: 0 | UX18: 0 | UY18: 0 | UZ18: 0 | VA18: 0 | VB18: 0 | VC18: 0 | VD18: 0 | VE18: 0 | VF18: 0 | VG18: 0 | VH18: 0 | VI18: 0 | VJ18: 0 | VK18: 0 | VL18: 0 | VM18: 1 | VN18: 0 | VO18: 0 | VP18: 0 | VQ18: 0 | VR18: 0 | VS18: 0 | VT18: 0 | VU18: 0 | VV18: 0 | VW18: 0 | VX18: 0 | VY18: 0 | VZ18: 0 | WA18: 0 | WB18: 0 | WC18: 0 | WD18: 0 | WE18: 0 | WF18: 0 | WG18: 1 | WH18: 1.5 | WJ18: 1.5 | WK18: 16 | WL18: 46 | WM18: 0 | WN18: 0 | WO18: 0 | WP18: 0 | WQ18: 0 | WR18: 0 | WS18: 0 | WT18: 0 | WU18: 0 | WV18: 0 | WW18: 0 | WX18: 0 | WY18: 0 | WZ18: 0 | XA18: 0 | XB18: 0 | XC18: 0 | XD18: 0 | XE18: 0 | XF18: 62 | XG18: 0 | XH18: 0 | XI18: 0 | XJ18: 0 | XK18: 0 | XL18: 0 | XM18: 0 | XN18: 0 | XO18: 0 | XP18: 0 | XQ18: 0 | XR18: 0 | XS18: 0 | XT18: 0 | XU18: 0 | XV18: 0 | XW18: 0 | XX18: 0 | XY18: 0 | XZ18: 70 | YA18: 1.5 | YC18: 1.4 | YD18: 15 | YE18: 1 | YF18: 1 | YG18: 1 | YH18: 1 | YI18: 1 | YJ18: 1 | YK18: 1 | YL18: 1 | YM18: 1 | YN18: 1 | YO18: 1 | YP18: 1 | YQ18: 1 | YR18: 1 | YS18: 1 | YT18: 1 | YU18: 1 | YV18: 1 | YW18: 1 | YX18: 1 | YY18: 1 | YZ18: 4 | ZA18: 4 | ZB18: 4 | ZC18: 4 | ZD18: 4 | ZE18: 4 | ZF18: 4 | ZG18: 4 | ZH18: 4 | ZI18: 4 | ZJ18: 4 | ZK18: 4 | ZL18: 4 | ZM18: 4 | ZN18: 4 | ZO18: 4 | ZP18: 4 | ZQ18: 4 | ZR18: 4 | ZS18: 4 | ZT18: 4 | ZU18: 1.4 | ZW18: 1.4 | ZX18: 15 | ZY18: 0 | ZZ18: 0 | AAA18: 0 | AAB18: 0 | AAC18: 0 | AAD18: 4 | AAE18: 4 | AAF18: 0 | AAG18: 0 | AAH18: 0 | AAI18: 0 | AAJ18: 0 | AAK18: 0 | AAL18: 0 | AAM18: 4 | AAN18: 4 | AAO18: 0 | AAP18: 0 | AAQ18: 0 | AAR18: 0 | AAS18: 0 | AAT18: 0 | AAU18: 0 | AAV18: 0 | AAW18: 4 | AAX18: 4 | AAY18: 0 | AAZ18: 0 | ABA18: 0 | ABB18: 0 | ABC18: 0 | ABD18: 0 | ABE18: 0 | ABF18: 4 | ABG18: 4 | ABH18: 0 | ABI18: 0 | ABJ18: 0 | ABK18: 0 | ABL18: 0 | ABM18: 0 | ABN18: 0 | ABO18: 1.4 | ABQ18: 1.4 | ABR18: 15 | ABS18: =RANK(#REF!,$ER$14:$FL$24,0) ->  | ACL18: 12 | ACN18: 58 | ACO18: 58 | ACP18: 58 | ACQ18: 58 | ACR18: 58 | ACS18: 58 | ACT18: 58 | ACU18: 58 | ACV18: 58 | ACW18: 58 | ACX18: 58 | ACY18: 58 | ACZ18: 58 | ADA18: 58 | ADB18: 58 | ADC18: 58 | ADD18: 58 | ADE18: 58 | ADF18: 58 | ADG18: 58 | ADH18: 58 | ADI18: 1.4
B19: 1000 | C19: =B19/500+1 -> 3 | E19: Bod B | F19: 3000 | G19: 5000 | H19: 100 | M19: 4A | N19: =ROUND('3D Interpolace'!M20,2) -> 44.87 | O19: =ROUND('3D Interpolace'!N20,2) -> 44.83 | P19: =ROUND('3D Interpolace'!O20,2) -> 44.92 | Q19: =ROUND('3D Interpolace'!P20,2) -> 45.13 | R19: =ROUND('3D Interpolace'!Q20,2) -> 45.47 | S19: =ROUND('3D Interpolace'!R20,2) -> 45.94 | T19: =ROUND('3D Interpolace'!S20,2) -> 46.53 | U19: =ROUND('3D Interpolace'!T20,2) -> 47.25 | V19: =ROUND('3D Interpolace'!U20,2) -> 48.09 | W19: =ROUND('3D Interpolace'!V20,2) -> 49.06 | X19: =ROUND('3D Interpolace'!W20,2) -> 50.14 | Y19: =ROUND('3D Interpolace'!X20,2) -> 51.47 | Z19: =ROUND('3D Interpolace'!Y20,2) -> 53.03 | AA19: =ROUND('3D Interpolace'!Z20,2) -> 54.65 | AB19: =ROUND('3D Interpolace'!AA20,2) -> 56.17 | AC19: =ROUND('3D Interpolace'!AB20,2) -> 57.39 | AD19: =ROUND('3D Interpolace'!AC20,2) -> 58.24 | AE19: =ROUND('3D Interpolace'!AD20,2) -> 58.82 | AF19: =ROUND('3D Interpolace'!AE20,2) -> 59.28 | AG19: =ROUND('3D Interpolace'!AF20,2) -> 59.75 | AH19: =ROUND('3D Interpolace'!AG20,2) -> 60.39 | AI19: =ROUND('3D Interpolace'!AH20,2) -> 61.28 | AJ19: =ROUND('3D Interpolace'!AI20,2) -> 62.33 | AK19: =ROUND('3D Interpolace'!AJ20,2) -> 63.4 | AL19: =ROUND('3D Interpolace'!AK20,2) -> 64.35 | AM19: =ROUND('3D Interpolace'!AL20,2) -> 65.06 | AN19: =ROUND('3D Interpolace'!AM20,2) -> 65.48 | AO19: =ROUND('3D Interpolace'!AN20,2) -> 65.68 | AP19: =ROUND('3D Interpolace'!AO20,2) -> 65.75 | AQ19: =ROUND('3D Interpolace'!AP20,2) -> 65.77 | AR19: =ROUND('3D Interpolace'!AQ20,2) -> 65.8 | AS19: =ROUND('3D Interpolace'!AR20,2) -> 65.76 | AT19: =ROUND('3D Interpolace'!AS20,2) -> 65.59 | AU19: =ROUND('3D Interpolace'!AT20,2) -> 65.44 | AV19: =ROUND('3D Interpolace'!AU20,2) -> 65.45 | AW19: =ROUND('3D Interpolace'!AV20,2) -> 65.74 | AX19: =ROUND('3D Interpolace'!AW20,2) -> 66.33 | AY19: =ROUND('3D Interpolace'!AX20,2) -> 67.12 | AZ19: =ROUND('3D Interpolace'!AY20,2) -> 68.11 | BA19: =ROUND('3D Interpolace'!AZ20,2) -> 69.3 | BB19: =ROUND('3D Interpolace'!BA20,2) -> 70.7 | BD19: 1.6 | BE19: 17 | BK19: 4 | BL19: 4 | BT19: 4 | BU19: 4 | CC19: 4 | CD19: 4 | CL19: 4 | CM19: 4 | CU19: 1.6 | CW19: 1.6 | CX19: 17 | CY19: 44.87 | CZ19: 44.83 | DA19: 44.92 | DB19: 45.13 | DC19: 45.47 | DD19: 49.94 | DE19: 50.53 | DF19: 47.25 | DG19: 48.09 | DH19: 49.06 | DI19: 50.14 | DJ19: 51.47 | DK19: 53.03 | DL19: 54.65 | DM19: 60.17 | DN19: 61.39 | DO19: 58.24 | DP19: 58.82 | DQ19: 59.28 | DR19: 59.75 | DS19: 60.39 | DT19: 61.28 | DU19: 62.33 | DV19: 67.4 | DW19: 68.35 | DX19: 65.06 | DY19: 65.48 | DZ19: 65.68 | EA19: 65.75 | EB19: 65.77 | EC19: 65.8 | ED19: 65.76 | EE19: 69.59 | EF19: 69.44 | EG19: 65.45 | EH19: 65.74 | EI19: 66.33 | EJ19: 67.12 | EK19: 68.11 | EL19: 69.3 | EM19: 70.7 | EN19: 1.6 | EP19: 1.5 | EQ19: 16 | ER19: 46 | ES19: 45.88 | ET19: 45.92 | EU19: 46.12 | EV19: 46.48 | EW19: 51 | EX19: 51.71 | EY19: 48.62 | EZ19: 49.66 | FA19: 50.81 | FB19: 52 | FC19: 53.34 | FD19: 54.85 | FE19: 56.39 | FF19: 61.82 | FG19: 63 | FH19: 59.84 | FI19: 60.44 | FJ19: 60.92 | FK19: 61.4 | FL19: 62 | FM19: 62 | FN19: 62.78 | FO19: 63.67 | FP19: 68.57 | FQ19: 69.38 | FR19: 66 | FS19: 66.42 | FT19: 66.71 | FU19: 66.89 | FV19: 66.98 | FW19: 67 | FX19: 66.85 | FY19: 70.5 | FZ19: 70.14 | GA19: 65.91 | GB19: 66 | GC19: 66.4 | GD19: 67 | GE19: 67.8 | GF19: 68.8 | GG19: 70 | GK19: 1.5 | GL19: 16 | GM19: 46 | GN19: 0 | GO19: 0 | GP19: 0 | GQ19: 0 | GR19: 51 | GS19: 51.71 | GT19: 0 | GU19: 0 | GV19: 0 | GW19: 52 | GX19: 0 | GY19: 0 | GZ19: 0 | HA19: 61.82 | HB19: 63 | HC19: 0 | HD19: 0 | HE19: 0 | HF19: 0 | HG19: 62 | HH19: 62 | HI19: 0 | HJ19: 0 | HK19: 68.57 | HL19: 69.38 | HM19: 66 | HN19: 0 | HO19: 0 | HP19: 0 | HQ19: 0 | HR19: 67 | HS19: 0 | HT19: 70.5 | HU19: 70.14 | HV19: 0 | HW19: 66 | HX19: 0 | HY19: 0 | HZ19: 0 | IA19: 0 | IB19: 70 | IC19: 1.5 | IG19: 16 | IH19: 46 | II19: 47.26666667 | IJ19: 48.53333333 | IK19: 49.8 | IL19: 51.06666667 | IM19: 52.33333333 | IN19: 53.6 | IO19: 54.86666667 | IP19: 56.13333333 | IQ19: 57.4 | IR19: 58.66666667 | IS19: 59.93333333 | IT19: 61.2 | IU19: 62.46666667 | IV19: 63.73333333 | IW19: 65 | IX19: 66.26666667 | IY19: 67.53333333 | IZ19: 68.8 | JA19: 70.06666667 | JB19: 71.33333333 | JC19: 68.16666667 | JD19: 68.375 | JE19: 68.58333333 | JF19: 68.79166667 | JG19: 69 | JH19: 69.20833333 | JI19: 69.41666667 | JJ19: 69.625 | JK19: 69.83333333 | JL19: 70.04166667 | JM19: 70.25 | JN19: 70.45833333 | JO19: 70.66666667 | JP19: 70.875 | JQ19: 71.08333333 | JR19: 71.29166667 | JS19: 71.5 | JT19: 71.70833333 | JU19: 71.91666667 | JV19: 72.125 | JW19: 72.33333333 | JX19: 1.5 | KD19: 1.5 | KE19: 16 | KF19: 0 | KG19: 1.386666667 | KH19: 2.613333333 | KI19: 3.68 | KJ19: 4.586666667 | KK19: 1.333333333 | KL19: 1.89 | KM19: 6.246666667 | KN19: 6.473333333 | KO19: 6.59 | KP19: 6.666666667 | KQ19: 6.593333333 | KR19: 6.35 | KS19: 6.076666667 | KT19: 1.913333333 | KU19: 2 | KV19: 6.426666667 | KW19: 7.093333333 | KX19: 7.88 | KY19: 8.666666667 | KZ19: 9.333333333 | LA19: 6.166666667 | LB19: 5.595 | LC19: 4.913333333 | LD19: 0.2216666667 | LE19: -0.38 | LF19: 3.208333333 | LG19: 2.996666667 | LH19: 2.915 | LI19: 2.943333333 | LJ19: 3.061666667 | LK19: 3.25 | LL19: 3.608333333 | LM19: 0.1666666667 | LN19: 0.735 | LO19: 5.173333333 | LP19: 5.291666667 | LQ19: 5.1 | LR19: 4.708333333 | LS19: 4.116666667 | LT19: 3.325 | LU19: 2.333333333 | MC19: 1.6 | MD19: 17 | ME19: 0.8658333333 | MF19: 2.04 | MG19: 3.124166667 | MH19: 4.120833333 | MI19: 3.0275 | MJ19: 1.864166667 | MK19: 4.650833333 | ML19: 7.36 | MM19: 7.931666667 | MN19: 8.318333333 | MO19: 8.4175 | MP19: 8.169166667 | MQ19: 7.708333333 | MR19: 5.255 | MS19: 3.036666667 | MT19: 5.223333333 | MU19: 7.795 | MV19: 8.591666667 | MW19: 9.445833333 | MX19: 10.1875 | MY19: 8.683333333 | MZ19: 7.869166667 | NA19: 4.9425 | NB19: 2.065833333 | NC19: 3.391666667 | ND19: 5.0275 | NE19: 4.963333333 | NF19: 5.096666667 | NG19: 5.3125 | NH19: 5.508333333 | NI19: 5.671666667 | NJ19: 3.87 | NK19: 2.085833333 | NL19: 4.201666667 | NM19: 6.1025 | NN19: 5.733333333 | NO19: 5.129166667 | NP19: 4.33 | NQ19: 3.335833333 | NR19: 2.144166667 | NU19: 1.6 | NV19: 17 | NW19: 31.64 | NX19: 23.66 | NY19: 23.66 | NZ19: 15.63 | OA19: 23.66 | OB19: 31.64 | OC19: 15.63 | OD19: 11.98 | OE19: 11.98 | OF19: 11.33 | OG19: 11.33 | OH19: 11.33 | OI19: 11.98 | OJ19: 15.63 | OK19: 23.66 | OL19: 15.63 | OM19: 11.98 | ON19: 11.33 | OO19: 11.33 | OP19: 7.9 | OQ19: 11.33 | OR19: 11.98 | OS19: 15.63 | OT19: 23.66 | OU19: 23.66 | OV19: 15.63 | OW19: 15.63 | OX19: 15.63 | OY19: 15.63 | OZ19: 15.63 | PA19: 15.63 | PB19: 23.66 | PC19: 23.66 | PD19: 15.63 | PE19: 11.98 | PF19: 15.63 | PG19: 15.63 | PH19: 15.63 | PI19: 23.66 | PJ19: 23.66 | PM19: 1.6 | PN19: 17 | PO19: 0 | PP19: -7.98 | PQ19: 0 | PR19: -8.03 | PS19: -7.98 | PT19: 0 | PU19: -8.03 | PV19: -3.65 | PW19: -3.65 | PX19: -4.3 | PY19: 5.23 | PZ19: 3.43 | QA19: 0.65 | QB19: 0 | QC19: -7.98 | QD19: -16.01 | QE19: -11.68 | QF19: -12.33 | QG19: -20.31 | QH19: -23.74 | QI19: 0 | QJ19: 0.65 | QK19: 0 | QL19: -7.98 | QM19: -7.98 | QN19: -8.03 | QO19: -16.01 | QP19: -16.01 | QQ19: -16.01 | QR19: -16.01 | QS19: -16.01 | QT19: -7.98 | QU19: -7.98 | QV19: -8.03 | QW19: -3.65 | QX19: 3.65 | QY19: 3.65 | QZ19: 3.65 | RA19: 11.68 | RB19: 11.68 | RE19: 1.6 | RF19: 17 | RG19: 0 | RH19: 0 | RI19: 0 | RJ19: 0 | RK19: 0 | RL19: 0 | RM19: 0 | RN19: 0 | RO19: 0 | RP19: 0 | RQ19: 0 | RR19: 0 | RS19: 0 | RT19: 0 | RU19: 0 | RV19: 0 | RW19: 0 | RX19: 0 | RY19: 0 | RZ19: 0 | SA19: 0 | SB19: 0 | SC19: 0 | SD19: 0 | SE19: 0 | SF19: 0 | SG19: 0 | SH19: 0 | SI19: 0 | SJ19: 0 | SK19: 0 | SL19: 0 | SM19: 0 | SN19: 0 | SO19: 0 | SP19: 0 | SQ19: 0 | SR19: 0 | SS19: 0 | ST19: 0 | SU19: 0 | SV19: 1.6 | SX19: 1.6 | SY19: 17 | SZ19: 0 | TA19: 0 | TB19: 0 | TC19: 0 | TD19: 0 | TE19: 0 | TF19: 0 | TG19: 0 | TH19: 0 | TI19: 0 | TJ19: 0 | TK19: 0 | TL19: 0 | TM19: 0 | TN19: 0 | TO19: 0 | TP19: 0 | TQ19: 0 | TR19: 0 | TS19: 0 | TT19: 0 | TU19: 0 | TV19: 0 | TW19: 0 | TX19: 0 | TY19: 0 | TZ19: 0 | UA19: 0 | UB19: 0 | UC19: 0 | UD19: 0 | UE19: 0 | UF19: 0 | UG19: 0 | UH19: 0 | UI19: 0 | UJ19: 0 | UK19: 0 | UL19: 0 | UM19: 0 | UN19: 0 | UO19: 1.6 | UQ19: 1.6 | UR19: 17 | US19: 1 | UT19: 0 | UU19: 0 | UV19: 0 | UW19: 0 | UX19: 0 | UY19: 0 | UZ19: 0 | VA19: 0 | VB19: 0 | VC19: 0 | VD19: 0 | VE19: 0 | VF19: 0 | VG19: 0 | VH19: 0 | VI19: 0 | VJ19: 0 | VK19: 0 | VL19: 0 | VM19: 1 | VN19: 0 | VO19: 0 | VP19: 0 | VQ19: 0 | VR19: 0 | VS19: 0 | VT19: 0 | VU19: 0 | VV19: 0 | VW19: 0 | VX19: 0 | VY19: 0 | VZ19: 0 | WA19: 0 | WB19: 0 | WC19: 0 | WD19: 0 | WE19: 0 | WF19: 0 | WG19: 1 | WH19: 1.6 | WJ19: 1.6 | WK19: 17 | WL19: 44.87 | WM19: 0 | WN19: 0 | WO19: 0 | WP19: 0 | WQ19: 0 | WR19: 0 | WS19: 0 | WT19: 0 | WU19: 0 | WV19: 0 | WW19: 0 | WX19: 0 | WY19: 0 | WZ19: 0 | XA19: 0 | XB19: 0 | XC19: 0 | XD19: 0 | XE19: 0 | XF19: 60.39 | XG19: 0 | XH19: 0 | XI19: 0 | XJ19: 0 | XK19: 0 | XL19: 0 | XM19: 0 | XN19: 0 | XO19: 0 | XP19: 0 | XQ19: 0 | XR19: 0 | XS19: 0 | XT19: 0 | XU19: 0 | XV19: 0 | XW19: 0 | XX19: 0 | XY19: 0 | XZ19: 70.7 | YA19: 1.6 | YC19: 1.5 | YD19: 16 | YE19: 1 | YF19: 1 | YG19: 1 | YH19: 1 | YI19: 1 | YJ19: 1 | YK19: 1 | YL19: 1 | YM19: 1 | YN19: 1 | YO19: 1 | YP19: 1 | YQ19: 1 | YR19: 1 | YS19: 1 | YT19: 1 | YU19: 1 | YV19: 1 | YW19: 1 | YX19: 1 | YY19: 1 | YZ19: 4 | ZA19: 4 | ZB19: 4 | ZC19: 4 | ZD19: 4 | ZE19: 4 | ZF19: 4 | ZG19: 4 | ZH19: 4 | ZI19: 4 | ZJ19: 4 | ZK19: 4 | ZL19: 4 | ZM19: 4 | ZN19: 4 | ZO19: 4 | ZP19: 4 | ZQ19: 4 | ZR19: 4 | ZS19: 4 | ZT19: 4 | ZU19: 1.5 | ZW19: 1.5 | ZX19: 16 | ZY19: 0 | ZZ19: 0 | AAA19: 0 | AAB19: 0 | AAC19: 0 | AAD19: 4 | AAE19: 4 | AAF19: 0 | AAG19: 0 | AAH19: 0 | AAI19: 0 | AAJ19: 0 | AAK19: 0 | AAL19: 0 | AAM19: 4 | AAN19: 4 | AAO19: 0 | AAP19: 0 | AAQ19: 0 | AAR19: 0 | AAS19: 0 | AAT19: 0 | AAU19: 0 | AAV19: 0 | AAW19: 4 | AAX19: 4 | AAY19: 0 | AAZ19: 0 | ABA19: 0 | ABB19: 0 | ABC19: 0 | ABD19: 0 | ABE19: 0 | ABF19: 4 | ABG19: 4 | ABH19: 0 | ABI19: 0 | ABJ19: 0 | ABK19: 0 | ABL19: 0 | ABM19: 0 | ABN19: 0 | ABO19: 1.5 | ABQ19: 1.5 | ABR19: 16 | ABS19: =RANK(#REF!,$ER$14:$FL$24,0) ->  | ABW19: 183 | ACL19: 19 | ACN19: 58 | ACO19: 58 | ACP19: 58 | ACQ19: 58 | ACR19: 58 | ACS19: 58 | ACT19: 58 | ACU19: 58 | ACV19: 58 | ACW19: 58 | ACX19: 58 | ACY19: 58 | ACZ19: 58 | ADA19: 58 | ADB19: 58 | ADC19: 58 | ADD19: 58 | ADE19: 58 | ADF19: 58 | ADG19: 58 | ADH19: 58 | ADI19: 1.5
E20: Bod C | F20: 2000 | G20: 5400 | H20: 100 | M20: 4B | N20: =ROUND('3D Interpolace'!M21,2) -> 43.62 | O20: =ROUND('3D Interpolace'!N21,2) -> 43.75 | P20: =ROUND('3D Interpolace'!O21,2) -> 43.94 | Q20: =ROUND('3D Interpolace'!P21,2) -> 44.18 | R20: =ROUND('3D Interpolace'!Q21,2) -> 44.47 | S20: =ROUND('3D Interpolace'!R21,2) -> 44.81 | T20: =ROUND('3D Interpolace'!S21,2) -> 45.13 | U20: =ROUND('3D Interpolace'!T21,2) -> 45.42 | V20: =ROUND('3D Interpolace'!U21,2) -> 45.8 | W20: =ROUND('3D Interpolace'!V21,2) -> 46.39 | X20: =ROUND('3D Interpolace'!W21,2) -> 47.27 | Y20: =ROUND('3D Interpolace'!X21,2) -> 48.65 | Z20: =ROUND('3D Interpolace'!Y21,2) -> 50.44 | AA20: =ROUND('3D Interpolace'!Z21,2) -> 52.38 | AB20: =ROUND('3D Interpolace'!AA21,2) -> 54.18 | AC20: =ROUND('3D Interpolace'!AB21,2) -> 55.58 | AD20: =ROUND('3D Interpolace'!AC21,2) -> 56.43 | AE20: =ROUND('3D Interpolace'!AD21,2) -> 56.93 | AF20: =ROUND('3D Interpolace'!AE21,2) -> 57.27 | AG20: =ROUND('3D Interpolace'!AF21,2) -> 57.65 | AH20: =ROUND('3D Interpolace'!AG21,2) -> 58.26 | AI20: =ROUND('3D Interpolace'!AH21,2) -> 59.22 | AJ20: =ROUND('3D Interpolace'!AI21,2) -> 60.41 | AK20: =ROUND('3D Interpolace'!AJ21,2) -> 61.64 | AL20: =ROUND('3D Interpolace'!AK21,2) -> 62.73 | AM20: =ROUND('3D Interpolace'!AL21,2) -> 63.51 | AN20: =ROUND('3D Interpolace'!AM21,2) -> 63.89 | AO20: =ROUND('3D Interpolace'!AN21,2) -> 63.98 | AP20: =ROUND('3D Interpolace'!AO21,2) -> 63.92 | AQ20: =ROUND('3D Interpolace'!AP21,2) -> 63.86 | AR20: =ROUND('3D Interpolace'!AQ21,2) -> 63.92 | AS20: =ROUND('3D Interpolace'!AR21,2) -> 64.05 | AT20: =ROUND('3D Interpolace'!AS21,2) -> 64.17 | AU20: =ROUND('3D Interpolace'!AT21,2) -> 64.34 | AV20: =ROUND('3D Interpolace'!AU21,2) -> 64.68 | AW20: =ROUND('3D Interpolace'!AV21,2) -> 65.27 | AX20: =ROUND('3D Interpolace'!AW21,2) -> 66.11 | AY20: =ROUND('3D Interpolace'!AX21,2) -> 67.14 | AZ20: =ROUND('3D Interpolace'!AY21,2) -> 68.36 | BA20: =ROUND('3D Interpolace'!AZ21,2) -> 69.77 | BB20: =ROUND('3D Interpolace'!BA21,2) -> 71.37 | BD20: 1.7 | BE20: 18 | BK20: 4 | BL20: 4 | BT20: 4 | BU20: 4 | CC20: 4 | CD20: 4 | CL20: 4 | CM20: 4 | CU20: 1.7 | CW20: 1.7 | CX20: 18 | CY20: 43.62 | CZ20: 43.75 | DA20: 43.94 | DB20: 44.18 | DC20: 44.47 | DD20: 48.81 | DE20: 49.13 | DF20: 45.42 | DG20: 45.8 | DH20: 46.39 | DI20: 47.27 | DJ20: 48.65 | DK20: 50.44 | DL20: 52.38 | DM20: 58.18 | DN20: 59.58 | DO20: 56.43 | DP20: 56.93 | DQ20: 57.27 | DR20: 57.65 | DS20: 58.26 | DT20: 59.22 | DU20: 60.41 | DV20: 65.64 | DW20: 66.73 | DX20: 63.51 | DY20: 63.89 | DZ20: 63.98 | EA20: 63.92 | EB20: 63.86 | EC20: 63.92 | ED20: 64.05 | EE20: 68.17 | EF20: 68.34 | EG20: 64.68 | EH20: 65.27 | EI20: 66.11 | EJ20: 67.14 | EK20: 68.36 | EL20: 69.77 | EM20: 71.37 | EN20: 1.7 | EP20: 1.6 | EQ20: 17 | ER20: 44.87 | ES20: 44.83 | ET20: 44.92 | EU20: 45.13 | EV20: 45.47 | EW20: 49.94 | EX20: 50.53 | EY20: 47.25 | EZ20: 48.09 | FA20: 49.06 | FB20: 50.14 | FC20: 51.47 | FD20: 53.03 | FE20: 54.65 | FF20: 60.17 | FG20: 61.39 | FH20: 58.24 | FI20: 58.82 | FJ20: 59.28 | FK20: 59.75 | FL20: 60.39 | FM20: 60.39 | FN20: 61.28 | FO20: 62.33 | FP20: 67.4 | FQ20: 68.35 | FR20: 65.06 | FS20: 65.48 | FT20: 65.68 | FU20: 65.75 | FV20: 65.77 | FW20: 65.8 | FX20: 65.76 | FY20: 69.59 | FZ20: 69.44 | GA20: 65.45 | GB20: 65.74 | GC20: 66.33 | GD20: 67.12 | GE20: 68.11 | GF20: 69.3 | GG20: 70.7 | GK20: 1.6 | GL20: 17 | GM20: 0 | GN20: 0 | GO20: 0 | GP20: 0 | GQ20: 0 | GR20: 49.94 | GS20: 0 | GT20: 0 | GU20: 0 | GV20: 0 | GW20: 0 | GX20: 0 | GY20: 0 | GZ20: 0 | HA20: 0 | HB20: 61.39 | HC20: 0 | HD20: 0 | HE20: 0 | HF20: 0 | HG20: 0 | HH20: 0 | HI20: 0 | HJ20: 0 | HK20: 0 | HL20: 0 | HM20: 0 | HN20: 0 | HO20: 0 | HP20: 0 | HQ20: 0 | HR20: 0 | HS20: 0 | HT20: 0 | HU20: 0 | HV20: 0 | HW20: 0 | HX20: 0 | HY20: 0 | HZ20: 0 | IA20: 0 | IB20: 0 | IC20: 1.6 | IG20: 17 | IH20: 45 | II20: 46.26666667 | IJ20: 47.53333333 | IK20: 48.8 | IL20: 50.06666667 | IM20: 51.33333333 | IN20: 52.6 | IO20: 53.86666667 | IP20: 55.13333333 | IQ20: 56.4 | IR20: 57.66666667 | IS20: 58.93333333 | IT20: 60.2 | IU20: 61.46666667 | IV20: 62.73333333 | IW20: 64 | IX20: 65.26666667 | IY20: 66.53333333 | IZ20: 67.8 | JA20: 69.06666667 | JB20: 70.33333333 | JC20: 68.3 | JD20: 68.50833333 | JE20: 68.71666667 | JF20: 68.925 | JG20: 69.13333333 | JH20: 69.34166667 | JI20: 69.55 | JJ20: 69.75833333 | JK20: 69.96666667 | JL20: 70.175 | JM20: 70.38333333 | JN20: 70.59166667 | JO20: 70.8 | JP20: 71.00833333 | JQ20: 71.21666667 | JR20: 71.425 | JS20: 71.63333333 | JT20: 71.84166667 | JU20: 72.05 | JV20: 72.25833333 | JW20: 72.46666667 | JX20: 1.6 | KD20: 1.6 | KE20: 17 | KF20: 0.13 | KG20: 1.436666667 | KH20: 2.613333333 | KI20: 3.67 | KJ20: 4.596666667 | KK20: 1.393333333 | KL20: 2.07 | KM20: 6.616666667 | KN20: 7.043333333 | KO20: 7.34 | KP20: 7.526666667 | KQ20: 7.463333333 | KR20: 7.17 | KS20: 6.816666667 | KT20: 2.563333333 | KU20: 2.61 | KV20: 7.026666667 | KW20: 7.713333333 | KX20: 8.52 | KY20: 9.316666667 | KZ20: 9.943333333 | LA20: 7.91 | LB20: 7.228333333 | LC20: 6.386666667 | LD20: 1.525 | LE20: 0.7833333333 | LF20: 4.281666667 | LG20: 4.07 | LH20: 4.078333333 | LI20: 4.216666667 | LJ20: 4.405 | LK20: 4.583333333 | LL20: 4.831666667 | LM20: 1.21 | LN20: 1.568333333 | LO20: 5.766666667 | LP20: 5.685 | LQ20: 5.303333333 | LR20: 4.721666667 | LS20: 3.94 | LT20: 2.958333333 | LU20: 1.766666667 | MC20: 1.7 | MD20: 18 | ME20: 0.9983333333 | MF20: 2.03 | MG20: 3.051666667 | MH20: 4.065833333 | MI20: 3.0725 | MJ20: 2.129166667 | MK20: 5.298333333 | ML20: 8.49 | MM20: 9.521666667 | MN20: 10.22083333 | MO20: 10.3875 | MP20: 9.964166667 | MQ20: 9.180833333 | MR20: 6.38 | MS20: 3.899166667 | MT20: 5.985833333 | MU20: 8.605 | MV20: 9.524166667 | MW20: 10.51333333 | MX20: 11.345 | MY20: 10.97166667 | MZ20: 10.0675 | NA20: 7.008333333 | NB20: 3.994166667 | NC20: 5.2225 | ND20: 6.848333333 | NE20: 6.861666667 | NF20: 7.1125 | NG20: 7.428333333 | NH20: 7.641666667 | NI20: 7.6925 | NJ20: 5.650833333 | NK20: 3.549166667 | NL20: 5.32 | NM20: 6.893333333 | NN20: 6.244166667 | NO20: 5.39 | NP20: 4.353333333 | NQ20: 3.134166667 | NR20: 1.7325 | NU20: 1.7 | NV20: 18 | NW20: 31.64 | NX20: 23.66 | NY20: 23.66 | NZ20: 15.63 | OA20: 23.66 | OB20: 23.66 | OC20: 15.63 | OD20: 11.33 | OE20: 11.33 | OF20: 7.9 | OG20: 7.9 | OH20: 11.33 | OI20: 11.33 | OJ20: 11.98 | OK20: 23.66 | OL20: 15.63 | OM20: 11.33 | ON20: 11.33 | OO20: 7.9 | OP20: 7.9 | OQ20: 7.9 | OR20: 7.9 | OS20: 11.98 | OT20: 23.66 | OU20: 15.63 | OV20: 11.98 | OW20: 11.98 | OX20: 11.98 | OY20: 11.98 | OZ20: 11.98 | PA20: 11.98 | PB20: 15.63 | PC20: 23.66 | PD20: 15.63 | PE20: 11.98 | PF20: 11.98 | PG20: 15.63 | PH20: 15.63 | PI20: 23.66 | PJ20: 31.64 | PM20: 1.7 | PN20: 18 | PO20: 0 | PP20: -7.98 | PQ20: 0 | PR20: -8.03 | PS20: -7.98 | PT20: -7.98 | PU20: -8.03 | PV20: -0.65 | PW20: -0.65 | PX20: -4.08 | PY20: 1.8 | PZ20: 5.23 | QA20: 0 | QB20: -3.65 | QC20: -7.98 | QD20: -8.03 | QE20: -12.33 | QF20: -12.33 | QG20: -15.76 | QH20: -23.74 | QI20: 0 | QJ20: -3.43 | QK20: -3.65 | QL20: -7.98 | QM20: -16.01 | QN20: -11.68 | QO20: -19.66 | QP20: -19.66 | QQ20: -19.66 | QR20: -19.66 | QS20: -11.68 | QT20: -16.01 | QU20: -7.98 | QV20: -8.03 | QW20: -3.65 | QX20: -3.65 | QY20: 0 | QZ20: 0 | RA20: 8.03 | RB20: 16.01 | RE20: 1.7 | RF20: 18 | RG20: 0 | RH20: 0 | RI20: 0 | RJ20: 0 | RK20: 0 | RL20: 0 | RM20: 0 | RN20: 0 | RO20: 0 | RP20: 0 | RQ20: 0 | RR20: 0 | RS20: 0 | RT20: 0 | RU20: 0 | RV20: 0 | RW20: 0 | RX20: 0 | RY20: 0 | RZ20: 0 | SA20: 0 | SB20: 0 | SC20: 0 | SD20: 0 | SE20: 0 | SF20: 0 | SG20: 0 | SH20: 0 | SI20: 0 | SJ20: 0 | SK20: 0 | SL20: 0 | SM20: 0 | SN20: 0 | SO20: 0 | SP20: 0 | SQ20: 0 | SR20: 0 | SS20: 0 | ST20: 0 | SU20: 0 | SV20: 1.7 | SX20: 1.7 | SY20: 18 | SZ20: 0 | TA20: 0 | TB20: 0 | TC20: 0 | TD20: 0 | TE20: 0 | TF20: 0 | TG20: 0 | TH20: 0 | TI20: 0 | TJ20: 0 | TK20: 0 | TL20: 0 | TM20: 0 | TN20: 0 | TO20: 0 | TP20: 0 | TQ20: 0 | TR20: 0 | TS20: 0 | TT20: 0 | TU20: 0 | TV20: 0 | TW20: 0 | TX20: 0 | TY20: 0 | TZ20: 0 | UA20: 0 | UB20: 0 | UC20: 0 | UD20: 0 | UE20: 0 | UF20: 0 | UG20: 0 | UH20: 0 | UI20: 0 | UJ20: 0 | UK20: 0 | UL20: 0 | UM20: 0 | UN20: 0 | UO20: 1.7 | UQ20: 1.7 | UR20: 18 | US20: 1 | UT20: 0 | UU20: 0 | UV20: 0 | UW20: 0 | UX20: 0 | UY20: 0 | UZ20: 0 | VA20: 0 | VB20: 0 | VC20: 0 | VD20: 0 | VE20: 0 | VF20: 0 | VG20: 0 | VH20: 0 | VI20: 0 | VJ20: 0 | VK20: 0 | VL20: 0 | VM20: 1 | VN20: 0 | VO20: 0 | VP20: 0 | VQ20: 0 | VR20: 0 | VS20: 0 | VT20: 0 | VU20: 0 | VV20: 0 | VW20: 0 | VX20: 0 | VY20: 0 | VZ20: 0 | WA20: 0 | WB20: 0 | WC20: 0 | WD20: 0 | WE20: 0 | WF20: 0 | WG20: 1 | WH20: 1.7 | WJ20: 1.7 | WK20: 18 | WL20: 43.62 | WM20: 0 | WN20: 0 | WO20: 0 | WP20: 0 | WQ20: 0 | WR20: 0 | WS20: 0 | WT20: 0 | WU20: 0 | WV20: 0 | WW20: 0 | WX20: 0 | WY20: 0 | WZ20: 0 | XA20: 0 | XB20: 0 | XC20: 0 | XD20: 0 | XE20: 0 | XF20: 58.26 | XG20: 0 | XH20: 0 | XI20: 0 | XJ20: 0 | XK20: 0 | XL20: 0 | XM20: 0 | XN20: 0 | XO20: 0 | XP20: 0 | XQ20: 0 | XR20: 0 | XS20: 0 | XT20: 0 | XU20: 0 | XV20: 0 | XW20: 0 | XX20: 0 | XY20: 0 | XZ20: 71.37 | YA20: 1.7 | YC20: 1.6 | YD20: 17 | YE20: 1 | YF20: 1 | YG20: 1 | YH20: 1 | YI20: 1 | YJ20: 1 | YK20: 1 | YL20: 1 | YM20: 1 | YN20: 1 | YO20: 1 | YP20: 1 | YQ20: 1 | YR20: 1 | YS20: 1 | YT20: 1 | YU20: 1 | YV20: 1 | YW20: 1 | YX20: 1 | YY20: 1 | YZ20: 4 | ZA20: 4 | ZB20: 4 | ZC20: 4 | ZD20: 4 | ZE20: 4 | ZF20: 4 | ZG20: 4 | ZH20: 4 | ZI20: 4 | ZJ20: 4 | ZK20: 4 | ZL20: 4 | ZM20: 4 | ZN20: 4 | ZO20: 4 | ZP20: 4 | ZQ20: 4 | ZR20: 4 | ZS20: 4 | ZT20: 4 | ZU20: 1.6 | ZW20: 1.6 | ZX20: 17 | ZY20: 0 | ZZ20: 0 | AAA20: 0 | AAB20: 0 | AAC20: 0 | AAD20: 4 | AAE20: 4 | AAF20: 0 | AAG20: 0 | AAH20: 0 | AAI20: 0 | AAJ20: 0 | AAK20: 0 | AAL20: 0 | AAM20: 4 | AAN20: 4 | AAO20: 0 | AAP20: 0 | AAQ20: 0 | AAR20: 0 | AAS20: 0 | AAT20: 0 | AAU20: 0 | AAV20: 0 | AAW20: 4 | AAX20: 4 | AAY20: 0 | AAZ20: 0 | ABA20: 0 | ABB20: 0 | ABC20: 0 | ABD20: 0 | ABE20: 0 | ABF20: 4 | ABG20: 4 | ABH20: 0 | ABI20: 0 | ABJ20: 0 | ABK20: 0 | ABL20: 0 | ABM20: 0 | ABN20: 0 | ABO20: 1.6 | ABQ20: 1.6 | ABR20: 17 | ABS20: =RANK(#REF!,$ER$14:$FL$24,0) ->  | ACN20: 58 | ACO20: 58 | ACP20: 58 | ACQ20: 58 | ACR20: 58 | ACS20: 58 | ACT20: 58 | ACU20: 58 | ACV20: 58 | ACW20: 58 | ACX20: 58 | ACY20: 58 | ACZ20: 58 | ADA20: 58 | ADB20: 58 | ADC20: 58 | ADD20: 58 | ADE20: 58 | ADF20: 58 | ADG20: 58 | ADH20: 58 | ADI20: 1.6
B21: 1000 | C21: =B21/500+1 -> 3 | M21: 4C | N21: =ROUND('3D Interpolace'!M22,2) -> 42.42 | O21: =ROUND('3D Interpolace'!N22,2) -> 42.75 | P21: =ROUND('3D Interpolace'!O22,2) -> 43.04 | Q21: =ROUND('3D Interpolace'!P22,2) -> 43.3 | R21: =ROUND('3D Interpolace'!Q22,2) -> 43.52 | S21: =ROUND('3D Interpolace'!R22,2) -> 43.71 | T21: =ROUND('3D Interpolace'!S22,2) -> 43.7 | U21: =ROUND('3D Interpolace'!T22,2) -> 43.49 | V21: =ROUND('3D Interpolace'!U22,2) -> 43.33 | W21: =ROUND('3D Interpolace'!V22,2) -> 43.46 | X21: =ROUND('3D Interpolace'!W22,2) -> 44.13 | Y21: =ROUND('3D Interpolace'!X22,2) -> 45.6 | Z21: =ROUND('3D Interpolace'!Y22,2) -> 47.72 | AA21: =ROUND('3D Interpolace'!Z22,2) -> 50.07 | AB21: =ROUND('3D Interpolace'!AA22,2) -> 52.25 | AC21: =ROUND('3D Interpolace'!AB22,2) -> 53.86 | AD21: =ROUND('3D Interpolace'!AC22,2) -> 54.72 | AE21: =ROUND('3D Interpolace'!AD22,2) -> 55.1 | AF21: =ROUND('3D Interpolace'!AE22,2) -> 55.27 | AG21: =ROUND('3D Interpolace'!AF22,2) -> 55.49 | AH21: =ROUND('3D Interpolace'!AG22,2) -> 56.02 | AI21: =ROUND('3D Interpolace'!AH22,2) -> 57.03 | AJ21: =ROUND('3D Interpolace'!AI22,2) -> 58.32 | AK21: =ROUND('3D Interpolace'!AJ22,2) -> 59.68 | AL21: =ROUND('3D Interpolace'!AK22,2) -> 60.89 | AM21: =ROUND('3D Interpolace'!AL22,2) -> 61.73 | AN21: =ROUND('3D Interpolace'!AM22,2) -> 62.06 | AO21: =ROUND('3D Interpolace'!AN22,2) -> 62.04 | AP21: =ROUND('3D Interpolace'!AO22,2) -> 61.86 | AQ21: =ROUND('3D Interpolace'!AP22,2) -> 61.73 | AR21: =ROUND('3D Interpolace'!AQ22,2) -> 61.84 | AS21: =ROUND('3D Interpolace'!AR22,2) -> 62.17 | AT21: =ROUND('3D Interpolace'!AS22,2) -> 62.59 | AU21: =ROUND('3D Interpolace'!AT22,2) -> 63.12 | AV21: =ROUND('3D Interpolace'!AU22,2) -> 63.83 | AW21: =ROUND('3D Interpolace'!AV22,2) -> 64.73 | AX21: =ROUND('3D Interpolace'!AW22,2) -> 65.83 | AY21: =ROUND('3D Interpolace'!AX22,2) -> 67.11 | AZ21: =ROUND('3D Interpolace'!AY22,2) -> 68.56 | BA21: =ROUND('3D Interpolace'!AZ22,2) -> 70.19 | BB21: =ROUND('3D Interpolace'!BA22,2) -> 71.99 | BD21: 1.8 | BE21: 19 | BK21: 4 | BL21: 4 | BT21: 4 | BU21: 4 | CC21: 4 | CD21: 4 | CL21: 4 | CM21: 4 | CU21: 1.8 | CW21: 1.8 | CX21: 19 | CY21: 42.42 | CZ21: 42.75 | DA21: 43.04 | DB21: 43.3 | DC21: 43.52 | DD21: 47.71 | DE21: 47.7 | DF21: 43.49 | DG21: 43.33 | DH21: 43.46 | DI21: 44.13 | DJ21: 45.6 | DK21: 47.72 | DL21: 50.07 | DM21: 56.25 | DN21: 57.86 | DO21: 54.72 | DP21: 55.1 | DQ21: 55.27 | DR21: 55.49 | DS21: 56.02 | DT21: 57.03 | DU21: 58.32 | DV21: 63.68 | DW21: 64.89 | DX21: 61.73 | DY21: 62.06 | DZ21: 62.04 | EA21: 61.86 | EB21: 61.73 | EC21: 61.84 | ED21: 62.17 | EE21: 66.59 | EF21: 67.12 | EG21: 63.83 | EH21: 64.73 | EI21: 65.83 | EJ21: 67.11 | EK21: 68.56 | EL21: 70.19 | EM21: 71.99 | EN21: 1.8 | EP21: 1.7 | EQ21: 18 | ER21: 43.62 | ES21: 43.75 | ET21: 43.94 | EU21: 44.18 | EV21: 44.47 | EW21: 48.81 | EX21: 49.13 | EY21: 45.42 | EZ21: 45.8 | FA21: 46.39 | FB21: 47.27 | FC21: 48.65 | FD21: 50.44 | FE21: 52.38 | FF21: 58.18 | FG21: 59.58 | FH21: 56.43 | FI21: 56.93 | FJ21: 57.27 | FK21: 57.65 | FL21: 58.26 | FM21: 58.26 | FN21: 59.22 | FO21: 60.41 | FP21: 65.64 | FQ21: 66.73 | FR21: 63.51 | FS21: 63.89 | FT21: 63.98 | FU21: 63.92 | FV21: 63.86 | FW21: 63.92 | FX21: 64.05 | FY21: 68.17 | FZ21: 68.34 | GA21: 64.68 | GB21: 65.27 | GC21: 66.11 | GD21: 67.14 | GE21: 68.36 | GF21: 69.77 | GG21: 71.37 | GK21: 1.7 | GL21: 18 | GM21: 0 | GN21: 0 | GO21: 0 | GP21: 0 | GQ21: 0 | GR21: 48.81 | GS21: 0 | GT21: 0 | GU21: 0 | GV21: 0 | GW21: 0 | GX21: 0 | GY21: 0 | GZ21: 0 | HA21: 0 | HB21: 59.58 | HC21: 0 | HD21: 0 | HE21: 0 | HF21: 0 | HG21: 0 | HH21: 0 | HI21: 0 | HJ21: 0 | HK21: 0 | HL21: 0 | HM21: 0 | HN21: 0 | HO21: 0 | HP21: 0 | HQ21: 0 | HR21: 0 | HS21: 0 | HT21: 0 | HU21: 0 | HV21: 0 | HW21: 0 | HX21: 0 | HY21: 0 | HZ21: 0 | IA21: 0 | IB21: 0 | IC21: 1.7 | IG21: 18 | IH21: 44 | II21: 45.26666667 | IJ21: 46.53333333 | IK21: 47.8 | IL21: 49.06666667 | IM21: 50.33333333 | IN21: 51.6 | IO21: 52.86666667 | IP21: 54.13333333 | IQ21: 55.4 | IR21: 56.66666667 | IS21: 57.93333333 | IT21: 59.2 | IU21: 60.46666667 | IV21: 61.73333333 | IW21: 63 | IX21: 64.26666667 | IY21: 65.53333333 | IZ21: 66.8 | JA21: 68.06666667 | JB21: 69.33333333 | JC21: 68.43333333 | JD21: 68.64166667 | JE21: 68.85 | JF21: 69.05833333 | JG21: 69.26666667 | JH21: 69.475 | JI21: 69.68333333 | JJ21: 69.89166667 | JK21: 70.1 | JL21: 70.30833333 | JM21: 70.51666667 | JN21: 70.725 | JO21: 70.93333333 | JP21: 71.14166667 | JQ21: 71.35 | JR21: 71.55833333 | JS21: 71.76666667 | JT21: 71.975 | JU21: 72.18333333 | JV21: 72.39166667 | JW21: 72.6 | JX21: 1.7 | KD21: 1.7 | KE21: 18 | KF21: 0.38 | KG21: 1.516666667 | KH21: 2.593333333 | KI21: 3.62 | KJ21: 4.596666667 | KK21: 1.523333333 | KL21: 2.47 | KM21: 7.446666667 | KN21: 8.333333333 | KO21: 9.01 | KP21: 9.396666667 | KQ21: 9.283333333 | KR21: 8.76 | KS21: 8.086666667 | KT21: 3.553333333 | KU21: 3.42 | KV21: 7.836666667 | KW21: 8.603333333 | KX21: 9.53 | KY21: 10.41666667 | KZ21: 11.07333333 | LA21: 10.17333333 | LB21: 9.421666667 | LC21: 8.44 | LD21: 3.418333333 | LE21: 2.536666667 | LF21: 5.965 | LG21: 5.793333333 | LH21: 5.911666667 | LI21: 6.18 | LJ21: 6.448333333 | LK21: 6.596666667 | LL21: 6.675 | LM21: 2.763333333 | LN21: 2.801666667 | LO21: 6.67 | LP21: 6.288333333 | LQ21: 5.656666667 | LR21: 4.835 | LS21: 3.823333333 | LT21: 2.621666667 | LU21: 1.23 | MC21: 1.8 | MD21: 19 | ME21: 0.9833333333 | MF21: 1.8925 | MG21: 2.869166667 | MH21: 3.915833333 | MI21: 3.0325 | MJ21: 2.316666667 | MK21: 5.868333333 | ML21: 9.54 | MM21: 11.02916667 | MN21: 12.03083333 | MO21: 12.2425 | MP21: 11.60916667 | MQ21: 10.46333333 | MR21: 7.275 | MS21: 4.506666667 | MT21: 6.490833333 | MU21: 9.1725 | MV21: 10.24416667 | MW21: 11.40833333 | MX21: 12.3675 | MY21: 13.1575 | MZ21: 12.20083333 | NA21: 9.049166667 | NB21: 5.9325 | NC21: 7.085833333 | ND21: 8.706666667 | NE21: 8.7875 | NF21: 9.135833333 | NG21: 9.529166667 | NH21: 9.7425 | NI21: 9.673333333 | NJ21: 7.399166667 | NK21: 4.9875 | NL21: 6.420833333 | NM21: 7.679166667 | NN21: 6.76 | NO21: 5.668333333 | NP21: 4.406666667 | NQ21: 2.975 | NR21: 1.375833333 | NU21: 1.8 | NV21: 19 | NW21: 31.64 | NX21: 31.64 | NY21: 23.66 | NZ21: 23.66 | OA21: 23.66 | OB21: 23.66 | OC21: 15.63 | OD21: 11.33 | OE21: 7.9 | OF21: 6.1 | OG21: 6.1 | OH21: 7.9 | OI21: 7.9 | OJ21: 11.98 | OK21: 15.63 | OL21: 11.98 | OM21: 11.33 | ON21: 7.9 | OO21: 7.9 | OP21: 6.1 | OQ21: 6.1 | OR21: 6.1 | OS21: 11.33 | OT21: 15.63 | OU21: 11.98 | OV21: 11.33 | OW21: 11.33 | OX21: 11.33 | OY21: 11.33 | OZ21: 11.33 | PA21: 11.33 | PB21: 11.98 | PC21: 15.63 | PD21: 11.98 | PE21: 11.98 | PF21: 11.98 | PG21: 15.63 | PH21: 15.63 | PI21: 23.66 | PJ21: 31.64 | PM21: 1.8 | PN21: 19 | PO21: 0 | PP21: 0 | PQ21: 0 | PR21: 0 | PS21: -7.98 | PT21: -7.98 | PU21: 0 | PV21: -0.65 | PW21: -3.43 | PX21: -5.23 | PY21: 1.39 | PZ21: 1.8 | QA21: 0 | QB21: 0 | QC21: -16.01 | QD21: -11.68 | QE21: -12.33 | QF21: -15.76 | QG21: -15.76 | QH21: -17.56 | QI21: -1.8 | QJ21: -5.23 | QK21: -4.3 | QL21: -16.01 | QM21: -19.66 | QN21: -12.33 | QO21: -20.31 | QP21: -20.31 | QQ21: -20.31 | QR21: -20.31 | QS21: -12.33 | QT21: -19.66 | QU21: -16.01 | QV21: -11.68 | QW21: -3.65 | QX21: -3.65 | QY21: 0 | QZ21: 0 | RA21: 0 | RB21: 7.98 | RE21: 1.8 | RF21: 19 | RG21: 0 | RH21: 0 | RI21: 0 | RJ21: 0 | RK21: 0 | RL21: 0 | RM21: 0 | RN21: 0 | RO21: 0 | RP21: 0 | RQ21: 0 | RR21: 0 | RS21: 0 | RT21: 0 | RU21: 0 | RV21: 0 | RW21: 0 | RX21: 0 | RY21: 0 | RZ21: 0 | SA21: 0 | SB21: 0 | SC21: 0 | SD21: 0 | SE21: 0 | SF21: 0 | SG21: 0 | SH21: 0 | SI21: 0 | SJ21: 0 | SK21: 0 | SL21: 0 | SM21: 0 | SN21: 0 | SO21: 0 | SP21: 0 | SQ21: 0 | SR21: 0 | SS21: 0 | ST21: 0 | SU21: 0 | SV21: 1.8 | SX21: 1.8 | SY21: 19 | SZ21: 0 | TA21: 0 | TB21: 0 | TC21: 0 | TD21: 0 | TE21: 0 | TF21: 0 | TG21: 0 | TH21: 0 | TI21: 0 | TJ21: 0 | TK21: 0 | TL21: 0 | TM21: 0 | TN21: 0 | TO21: 0 | TP21: 0 | TQ21: 0 | TR21: 0 | TS21: 0 | TT21: 0 | TU21: 0 | TV21: 0 | TW21: 0 | TX21: 0 | TY21: 0 | TZ21: 0 | UA21: 0 | UB21: 0 | UC21: 0 | UD21: 0 | UE21: 0 | UF21: 0 | UG21: 0 | UH21: 0 | UI21: 0 | UJ21: 0 | UK21: 0 | UL21: 0 | UM21: 0 | UN21: 0 | UO21: 1.8 | UQ21: 1.8 | UR21: 19 | US21: 1 | UT21: 0 | UU21: 0 | UV21: 0 | UW21: 0 | UX21: 0 | UY21: 0 | UZ21: 0 | VA21: 0 | VB21: 0 | VC21: 0 | VD21: 0 | VE21: 0 | VF21: 0 | VG21: 0 | VH21: 0 | VI21: 0 | VJ21: 0 | VK21: 0 | VL21: 0 | VM21: 1 | VN21: 0 | VO21: 0 | VP21: 0 | VQ21: 0 | VR21: 0 | VS21: 0 | VT21: 0 | VU21: 0 | VV21: 0 | VW21: 0 | VX21: 0 | VY21: 0 | VZ21: 0 | WA21: 0 | WB21: 0 | WC21: 0 | WD21: 0 | WE21: 0 | WF21: 0 | WG21: 1 | WH21: 1.8 | WJ21: 1.8 | WK21: 19 | WL21: 42.42 | WM21: 0 | WN21: 0 | WO21: 0 | WP21: 0 | WQ21: 0 | WR21: 0 | WS21: 0 | WT21: 0 | WU21: 0 | WV21: 0 | WW21: 0 | WX21: 0 | WY21: 0 | WZ21: 0 | XA21: 0 | XB21: 0 | XC21: 0 | XD21: 0 | XE21: 0 | XF21: 56.02 | XG21: 0 | XH21: 0 | XI21: 0 | XJ21: 0 | XK21: 0 | XL21: 0 | XM21: 0 | XN21: 0 | XO21: 0 | XP21: 0 | XQ21: 0 | XR21: 0 | XS21: 0 | XT21: 0 | XU21: 0 | XV21: 0 | XW21: 0 | XX21: 0 | XY21: 0 | XZ21: 71.99 | YA21: 1.8 | YC21: 1.7 | YD21: 18 | YE21: 1 | YF21: 1 | YG21: 1 | YH21: 1 | YI21: 1 | YJ21: 1 | YK21: 1 | YL21: 1 | YM21: 1 | YN21: 1 | YO21: 1 | YP21: 1 | YQ21: 1 | YR21: 1 | YS21: 1 | YT21: 1 | YU21: 1 | YV21: 1 | YW21: 1 | YX21: 1 | YY21: 1 | YZ21: 4 | ZA21: 4 | ZB21: 4 | ZC21: 4 | ZD21: 4 | ZE21: 4 | ZF21: 4 | ZG21: 4 | ZH21: 4 | ZI21: 4 | ZJ21: 4 | ZK21: 4 | ZL21: 4 | ZM21: 4 | ZN21: 4 | ZO21: 4 | ZP21: 4 | ZQ21: 4 | ZR21: 4 | ZS21: 4 | ZT21: 4 | ZU21: 1.7 | ZW21: 1.7 | ZX21: 18 | ZY21: 0 | ZZ21: 0 | AAA21: 0 | AAB21: 0 | AAC21: 0 | AAD21: 4 | AAE21: 4 | AAF21: 0 | AAG21: 0 | AAH21: 0 | AAI21: 0 | AAJ21: 0 | AAK21: 0 | AAL21: 0 | AAM21: 4 | AAN21: 4 | AAO21: 0 | AAP21: 0 | AAQ21: 0 | AAR21: 0 | AAS21: 0 | AAT21: 0 | AAU21: 0 | AAV21: 0 | AAW21: 4 | AAX21: 4 | AAY21: 0 | AAZ21: 0 | ABA21: 0 | ABB21: 0 | ABC21: 0 | ABD21: 0 | ABE21: 0 | ABF21: 4 | ABG21: 4 | ABH21: 0 | ABI21: 0 | ABJ21: 0 | ABK21: 0 | ABL21: 0 | ABM21: 0 | ABN21: 0 | ABO21: 1.7 | ABQ21: 1.7 | ABR21: 18 | ABS21: =RANK(#REF!,$ER$14:$FL$24,0) ->  | ACL21: 32 | ACN21: 58 | ACO21: 58 | ACP21: 58 | ACQ21: 58 | ACR21: 58 | ACS21: 58 | ACT21: 58 | ACU21: 58 | ACV21: 58 | ACW21: 58 | ACX21: 58 | ACY21: 58 | ACZ21: 58 | ADA21: 58 | ADB21: 58 | ADC21: 58 | ADD21: 58 | ADE21: 58 | ADF21: 58 | ADG21: 58 | ADH21: 58 | ADI21: 1.7
B22: 500 | C22: =B22/500+1 -> 2 | E22: AB | F22: =(F19-F18) -> -900 | G22: =(G19-G18) -> -1000 | H22: =H19-H18 -> 0 | M22: 4D | N22: =ROUND('3D Interpolace'!M23,2) -> 41.49 | O22: =ROUND('3D Interpolace'!N23,2) -> 41.94 | P22: =ROUND('3D Interpolace'!O23,2) -> 42.3 | Q22: =ROUND('3D Interpolace'!P23,2) -> 42.55 | R22: =ROUND('3D Interpolace'!Q23,2) -> 42.7 | S22: =ROUND('3D Interpolace'!R23,2) -> 42.74 | T22: =ROUND('3D Interpolace'!S23,2) -> 42.45 | U22: =ROUND('3D Interpolace'!T23,2) -> 41.82 | V22: =ROUND('3D Interpolace'!U23,2) -> 41.2 | W22: =ROUND('3D Interpolace'!V23,2) -> 40.96 | X22: =ROUND('3D Interpolace'!W23,2) -> 41.46 | Y22: =ROUND('3D Interpolace'!X23,2) -> 43.04 | Z22: =ROUND('3D Interpolace'!Y23,2) -> 45.47 | AA22: =ROUND('3D Interpolace'!Z23,2) -> 48.22 | AB22: =ROUND('3D Interpolace'!AA23,2) -> 50.76 | AC22: =ROUND('3D Interpolace'!AB23,2) -> 52.57 | AD22: =ROUND('3D Interpolace'!AC23,2) -> 53.42 | AE22: =ROUND('3D Interpolace'!AD23,2) -> 53.67 | AF22: =ROUND('3D Interpolace'!AE23,2) -> 53.65 | AG22: =ROUND('3D Interpolace'!AF23,2) -> 53.69 | AH22: =ROUND('3D Interpolace'!AG23,2) -> 54.13 | AI22: =ROUND('3D Interpolace'!AH23,2) -> 55.14 | AJ22: =ROUND('3D Interpolace'!AI23,2) -> 56.49 | AK22: =ROUND('3D Interpolace'!AJ23,2) -> 57.93 | AL22: =ROUND('3D Interpolace'!AK23,2) -> 59.22 | AM22: =ROUND('3D Interpolace'!AL23,2) -> 60.1 | AN22: =ROUND('3D Interpolace'!AM23,2) -> 60.4 | AO22: =ROUND('3D Interpolace'!AN23,2) -> 60.3 | AP22: =ROUND('3D Interpolace'!AO23,2) -> 60.04 | AQ22: =ROUND('3D Interpolace'!AP23,2) -> 59.87 | AR22: =ROUND('3D Interpolace'!AQ23,2) -> 60.04 | AS22: =ROUND('3D Interpolace'!AR23,2) -> 60.54 | AT22: =ROUND('3D Interpolace'!AS23,2) -> 61.22 | AU22: =ROUND('3D Interpolace'!AT23,2) -> 62.07 | AV22: =ROUND('3D Interpolace'!AU23,2) -> 63.08 | AW22: =ROUND('3D Interpolace'!AV23,2) -> 64.26 | AX22: =ROUND('3D Interpolace'!AW23,2) -> 65.59 | AY22: =ROUND('3D Interpolace'!AX23,2) -> 67.08 | AZ22: =ROUND('3D Interpolace'!AY23,2) -> 68.74 | BA22: =ROUND('3D Interpolace'!AZ23,2) -> 70.56 | BB22: =ROUND('3D Interpolace'!BA23,2) -> 72.54 | BD22: 1.9 | BE22: 20 | BK22: 4 | BL22: 4 | BT22: 4 | BU22: 4 | CC22: 4 | CD22: 4 | CL22: 4 | CM22: 4 | CU22: 1.9 | CW22: 1.9 | CX22: 20 | CY22: 41.49 | CZ22: 41.94 | DA22: 42.3 | DB22: 42.55 | DC22: 42.7 | DD22: 46.74 | DE22: 46.45 | DF22: 41.82 | DG22: 41.2 | DH22: 40.96 | DI22: 41.46 | DJ22: 43.04 | DK22: 45.47 | DL22: 48.22 | DM22: 54.76 | DN22: 56.57 | DO22: 53.42 | DP22: 53.67 | DQ22: 53.65 | DR22: 53.69 | DS22: 54.13 | DT22: 55.14 | DU22: 56.49 | DV22: 61.93 | DW22: 63.22 | DX22: 60.1 | DY22: 60.4 | DZ22: 60.3 | EA22: 60.04 | EB22: 59.87 | EC22: 60.04 | ED22: 60.54 | EE22: 65.22 | EF22: 66.07 | EG22: 63.08 | EH22: 64.26 | EI22: 65.59 | EJ22: 67.08 | EK22: 68.74 | EL22: 70.56 | EM22: 72.54 | EN22: 1.9 | EP22: 1.8 | EQ22: 19 | ER22: 42.42 | ES22: 42.75 | ET22: 43.04 | EU22: 43.3 | EV22: 43.52 | EW22: 47.71 | EX22: 47.7 | EY22: 43.49 | EZ22: 43.33 | FA22: 43.46 | FB22: 44.13 | FC22: 45.6 | FD22: 47.72 | FE22: 50.07 | FF22: 56.25 | FG22: 57.86 | FH22: 54.72 | FI22: 55.1 | FJ22: 55.27 | FK22: 55.49 | FL22: 56.02 | FM22: 56.02 | FN22: 57.03 | FO22: 58.32 | FP22: 63.68 | FQ22: 64.89 | FR22: 61.73 | FS22: 62.06 | FT22: 62.04 | FU22: 61.86 | FV22: 61.73 | FW22: 61.84 | FX22: 62.17 | FY22: 66.59 | FZ22: 67.12 | GA22: 63.83 | GB22: 64.73 | GC22: 65.83 | GD22: 67.11 | GE22: 68.56 | GF22: 70.19 | GG22: 71.99 | GK22: 1.8 | GL22: 19 | GM22: 0 | GN22: 0 | GO22: 0 | GP22: 0 | GQ22: 0 | GR22: 47.71 | GS22: 0 | GT22: 0 | GU22: 0 | GV22: 0 | GW22: 0 | GX22: 0 | GY22: 0 | GZ22: 0 | HA22: 0 | HB22: 57.86 | HC22: 0 | HD22: 0 | HE22: 0 | HF22: 0 | HG22: 0 | HH22: 0 | HI22: 0 | HJ22: 0 | HK22: 0 | HL22: 0 | HM22: 0 | HN22: 0 | HO22: 0 | HP22: 0 | HQ22: 0 | HR22: 0 | HS22: 0 | HT22: 0 | HU22: 0 | HV22: 0 | HW22: 0 | HX22: 0 | HY22: 0 | HZ22: 0 | IA22: 0 | IB22: 0 | IC22: 1.8 | IG22: 19 | IH22: 43 | II22: 44.26666667 | IJ22: 45.53333333 | IK22: 46.8 | IL22: 48.06666667 | IM22: 49.33333333 | IN22: 50.6 | IO22: 51.86666667 | IP22: 53.13333333 | IQ22: 54.4 | IR22: 55.66666667 | IS22: 56.93333333 | IT22: 58.2 | IU22: 59.46666667 | IV22: 60.73333333 | IW22: 62 | IX22: 63.26666667 | IY22: 64.53333333 | IZ22: 65.8 | JA22: 67.06666667 | JB22: 68.33333333 | JC22: 68.56666667 | JD22: 68.775 | JE22: 68.98333333 | JF22: 69.19166667 | JG22: 69.4 | JH22: 69.60833333 | JI22: 69.81666667 | JJ22: 70.025 | JK22: 70.23333333 | JL22: 70.44166667 | JM22: 70.65 | JN22: 70.85833333 | JO22: 71.06666667 | JP22: 71.275 | JQ22: 71.48333333 | JR22: 71.69166667 | JS22: 71.9 | JT22: 72.10833333 | JU22: 72.31666667 | JV22: 72.525 | JW22: 72.73333333 | JX22: 1.8 | KD22: 1.8 | KE22: 19 | KF22: 0.58 | KG22: 1.516666667 | KH22: 2.493333333 | KI22: 3.5 | KJ22: 4.546666667 | KK22: 1.623333333 | KL22: 2.9 | KM22: 8.376666667 | KN22: 9.803333333 | KO22: 10.94 | KP22: 11.53666667 | KQ22: 11.33333333 | KR22: 10.48 | KS22: 9.396666667 | KT22: 4.483333333 | KU22: 4.14 | KV22: 8.546666667 | KW22: 9.433333333 | KX22: 10.53 | KY22: 11.57666667 | KZ22: 12.31333333 | LA22: 12.54666667 | LB22: 11.745 | LC22: 10.66333333 | LD22: 5.511666667 | LE22: 4.51 | LF22: 7.878333333 | LG22: 7.756666667 | LH22: 7.985 | LI22: 8.373333333 | LJ22: 8.711666667 | LK22: 8.81 | LL22: 8.688333333 | LM22: 4.476666667 | LN22: 4.155 | LO22: 7.653333333 | LP22: 6.961666667 | LQ22: 6.07 | LR22: 4.998333333 | LS22: 3.756666667 | LT22: 2.335 | LU22: 0.7433333333 | MC22: 1.9 | MD22: 20 | ME22: =AVERAGE(KF23:KG24) -> 0.6658333333 | MF22: 1.54 | MG22: 2.524166667 | MH22: 3.620833333 | MI22: 2.83 | MJ22: 2.276666667 | MK22: 6.088333333 | ML22: 10.075 | MM22: 11.85416667 | MN22: 13.04083333 | MO22: 13.255 | MP22: 12.43916667 | MQ22: 11.00083333 | MR22: 7.505 | MS22: 4.514166667 | MT22: 6.430833333 | MU22: 9.185 | MV22: 10.40666667 | MW22: 11.74083333 | MX22: 12.83 | MY22: 14.80833333 | MZ22: 13.84416667 | NA22: 10.6525 | NB22: 7.485833333 | NC22: 8.599166667 | ND22: 10.2125 | NE22: 10.32333333 | NF22: 10.71416667 | NG22: 11.1325 | NH22: 11.32333333 | NI22: 11.15416667 | NJ22: 8.705 | NK22: 6.068333333 | NL22: 7.259166667 | NM22: 8.2875 | NN22: 7.163333333 | NO22: 5.886666667 | NP22: 4.4475 | NQ22: 2.845833333 | NR22: 1.084166667 | NU22: 1.9 | NV22: 20 | NW22: 31.64 | NX22: 31.64 | NY22: 23.66 | NZ22: 23.66 | OA22: 23.66 | OB22: 23.66 | OC22: 11.98 | OD22: 7.9 | OE22: 7.9 | OF22: 6.1 | OG22: 6.1 | OH22: 6.1 | OI22: 7.9 | OJ22: 11.98 | OK22: 15.63 | OL22: 11.98 | OM22: 11.33 | ON22: 7.9 | OO22: 7.9 | OP22: 6.1 | OQ22: 4.71 | OR22: 6.1 | OS22: 7.9 | OT22: 11.98 | OU22: 11.33 | OV22: 7.9 | OW22: 7.9 | OX22: 7.9 | OY22: 7.9 | OZ22: 7.9 | PA22: 7.9 | PB22: 11.33 | PC22: 11.98 | PD22: 11.98 | PE22: 11.33 | PF22: 11.98 | PG22: 15.63 | PH22: 15.63 | PI22: 23.66 | PJ22: 31.64 | PM22: 1.9 | PN22: 20 | PO22: 0 | PP22: 0 | PQ22: -7.98 | PR22: 0 | PS22: -7.98 | PT22: -7.98 | PU22: -3.65 | PV22: -3.43 | PW22: -3.43 | PX22: -1.8 | PY22: 6.1 | PZ22: 0 | QA22: 0 | QB22: -3.65 | QC22: -16.01 | QD22: -19.66 | QE22: -12.33 | QF22: -15.76 | QG22: -15.76 | QH22: -17.56 | QI22: -3.19 | QJ22: -5.23 | QK22: -7.73 | QL22: -19.66 | QM22: -20.31 | QN22: -15.76 | QO22: -23.74 | QP22: -23.74 | QQ22: -23.74 | QR22: -23.74 | QS22: -15.76 | QT22: -20.31 | QU22: -19.66 | QV22: -19.66 | QW22: -12.33 | QX22: -11.68 | QY22: -8.03 | QZ22: -8.03 | RA22: 0 | RB22: 0 | RE22: 1.9 | RF22: 20 | RG22: 0 | RH22: 0 | RI22: 0 | RJ22: 0 | RK22: 0 | RL22: 0 | RM22: 0 | RN22: 0 | RO22: 0 | RP22: 0 | RQ22: 0 | RR22: 0 | RS22: 0 | RT22: 0 | RU22: 0 | RV22: 0 | RW22: 0 | RX22: 0 | RY22: 0 | RZ22: 0 | SA22: 0 | SB22: 0 | SC22: 0 | SD22: 0 | SE22: 0 | SF22: 0 | SG22: 0 | SH22: 0 | SI22: 0 | SJ22: 0 | SK22: 0 | SL22: 0 | SM22: 0 | SN22: 0 | SO22: 0 | SP22: 0 | SQ22: 0 | SR22: 0 | SS22: 0 | ST22: 0 | SU22: 0 | SV22: 1.9 | SX22: 1.9 | SY22: 20 | SZ22: 0 | TA22: 0 | TB22: 0 | TC22: 0 | TD22: 0 | TE22: 0 | TF22: 0 | TG22: 0 | TH22: 0 | TI22: 0 | TJ22: 0 | TK22: 0 | TL22: 0 | TM22: 0 | TN22: 0 | TO22: 0 | TP22: 0 | TQ22: 0 | TR22: 0 | TS22: 0 | TT22: 0 | TU22: 0 | TV22: 0 | TW22: 0 | TX22: 0 | TY22: 0 | TZ22: 0 | UA22: 0 | UB22: 0 | UC22: 0 | UD22: 0 | UE22: 0 | UF22: 0 | UG22: 0 | UH22: 0 | UI22: 0 | UJ22: 0 | UK22: 0 | UL22: 0 | UM22: 0 | UN22: 0 | UO22: 1.9 | UQ22: 1.9 | UR22: 20 | US22: 1 | UT22: 0 | UU22: 0 | UV22: 0 | UW22: 0 | UX22: 0 | UY22: 0 | UZ22: 0 | VA22: 0 | VB22: 0 | VC22: 0 | VD22: 0 | VE22: 0 | VF22: 0 | VG22: 0 | VH22: 0 | VI22: 0 | VJ22: 0 | VK22: 0 | VL22: 0 | VM22: 1 | VN22: 0 | VO22: 0 | VP22: 0 | VQ22: 0 | VR22: 0 | VS22: 0 | VT22: 0 | VU22: 0 | VV22: 0 | VW22: 0 | VX22: 0 | VY22: 0 | VZ22: 0 | WA22: 0 | WB22: 0 | WC22: 0 | WD22: 0 | WE22: 0 | WF22: 0 | WG22: 1 | WH22: 1.9 | WJ22: 1.9 | WK22: 20 | WL22: 41.49 | WM22: 0 | WN22: 0 | WO22: 0 | WP22: 0 | WQ22: 0 | WR22: 0 | WS22: 0 | WT22: 0 | WU22: 0 | WV22: 0 | WW22: 0 | WX22: 0 | WY22: 0 | WZ22: 0 | XA22: 0 | XB22: 0 | XC22: 0 | XD22: 0 | XE22: 0 | XF22: 54.13 | XG22: 0 | XH22: 0 | XI22: 0 | XJ22: 0 | XK22: 0 | XL22: 0 | XM22: 0 | XN22: 0 | XO22: 0 | XP22: 0 | XQ22: 0 | XR22: 0 | XS22: 0 | XT22: 0 | XU22: 0 | XV22: 0 | XW22: 0 | XX22: 0 | XY22: 0 | XZ22: 72.54 | YA22: 1.9 | YC22: 1.8 | YD22: 19 | YE22: 1 | YF22: 1 | YG22: 1 | YH22: 1 | YI22: 1 | YJ22: 1 | YK22: 1 | YL22: 1 | YM22: 1 | YN22: 1 | YO22: 1 | YP22: 1 | YQ22: 1 | YR22: 1 | YS22: 1 | YT22: 1 | YU22: 1 | YV22: 1 | YW22: 1 | YX22: 1 | YY22: 1 | YZ22: 4 | ZA22: 4 | ZB22: 4 | ZC22: 4 | ZD22: 4 | ZE22: 4 | ZF22: 4 | ZG22: 4 | ZH22: 4 | ZI22: 4 | ZJ22: 4 | ZK22: 4 | ZL22: 4 | ZM22: 4 | ZN22: 4 | ZO22: 4 | ZP22: 4 | ZQ22: 4 | ZR22: 4 | ZS22: 4 | ZT22: 4 | ZU22: 1.8 | ZW22: 1.8 | ZX22: 19 | ZY22: 0 | ZZ22: 0 | AAA22: 0 | AAB22: 0 | AAC22: 0 | AAD22: 4 | AAE22: 4 | AAF22: 0 | AAG22: 0 | AAH22: 0 | AAI22: 0 | AAJ22: 0 | AAK22: 0 | AAL22: 0 | AAM22: 4 | AAN22: 4 | AAO22: 0 | AAP22: 0 | AAQ22: 0 | AAR22: 0 | AAS22: 0 | AAT22: 0 | AAU22: 0 | AAV22: 0 | AAW22: 4 | AAX22: 4 | AAY22: 0 | AAZ22: 0 | ABA22: 0 | ABB22: 0 | ABC22: 0 | ABD22: 0 | ABE22: 0 | ABF22: 4 | ABG22: 4 | ABH22: 0 | ABI22: 0 | ABJ22: 0 | ABK22: 0 | ABL22: 0 | ABM22: 0 | ABN22: 0 | ABO22: 1.8 | ABQ22: 1.8 | ABR22: 19 | ABS22: =RANK(#REF!,$ER$14:$FL$24,0) ->  | ACL22: 35 | ACN22: 58 | ACO22: 58 | ACP22: 58 | ACQ22: 58 | ACR22: 58 | ACS22: 58 | ACT22: 58 | ACU22: 58 | ACV22: 58 | ACW22: 58 | ACX22: 58 | ACY22: 58 | ACZ22: 58 | ADA22: 58 | ADB22: 58 | ADC22: 58 | ADD22: 58 | ADE22: 58 | ADF22: 58 | ADG22: 58 | ADH22: 58 | ADI22: 1.8
E23: AC | F23: =(F20-F18) -> -1900 | G23: =G20-G18 -> -600 | H23: =H20-H18 -> 0 | M23: 5 | N23: =ROUND('3D Interpolace'!M24,2) -> 41 | O23: =ROUND('3D Interpolace'!N24,2) -> 41.44 | P23: =ROUND('3D Interpolace'!O24,2) -> 41.76 | Q23: =ROUND('3D Interpolace'!P24,2) -> 41.96 | R23: =ROUND('3D Interpolace'!Q24,2) -> 42.04 | S23: =ROUND('3D Interpolace'!R24,2) -> 42 | T23: =ROUND('3D Interpolace'!S24,2) -> 41.57 | U23: =ROUND('3D Interpolace'!T24,2) -> 40.74 | V23: =ROUND('3D Interpolace'!U24,2) -> 39.94 | W23: =ROUND('3D Interpolace'!V24,2) -> 39.55 | X23: =ROUND('3D Interpolace'!W24,2) -> 40 | Y23: =ROUND('3D Interpolace'!X24,2) -> 41.68 | Z23: =ROUND('3D Interpolace'!Y24,2) -> 44.32 | AA23: =ROUND('3D Interpolace'!Z24,2) -> 47.32 | AB23: =ROUND('3D Interpolace'!AA24,2) -> 50.08 | AC23: =ROUND('3D Interpolace'!AB24,2) -> 52 | AD23: =ROUND('3D Interpolace'!AC24,2) -> 52.82 | AE23: =ROUND('3D Interpolace'!AD24,2) -> 52.95 | AF23: =ROUND('3D Interpolace'!AE24,2) -> 52.77 | AG23: =ROUND('3D Interpolace'!AF24,2) -> 52.66 | AH23: =ROUND('3D Interpolace'!AG24,2) -> 53 | AI23: =ROUND('3D Interpolace'!AH24,2) -> 53.98 | AJ23: =ROUND('3D Interpolace'!AI24,2) -> 55.33 | AK23: =ROUND('3D Interpolace'!AJ24,2) -> 56.79 | AL23: =ROUND('3D Interpolace'!AK24,2) -> 58.1 | AM23: =ROUND('3D Interpolace'!AL24,2) -> 59 | AN23: =ROUND('3D Interpolace'!AM24,2) -> 59.3 | AO23: =ROUND('3D Interpolace'!AN24,2) -> 59.19 | AP23: =ROUND('3D Interpolace'!AO24,2) -> 58.93 | AQ23: =ROUND('3D Interpolace'!AP24,2) -> 58.78 | AR23: =ROUND('3D Interpolace'!AQ24,2) -> 59 | AS23: =ROUND('3D Interpolace'!AR24,2) -> 59.62 | AT23: =ROUND('3D Interpolace'!AS24,2) -> 60.45 | AU23: =ROUND('3D Interpolace'!AT24,2) -> 61.47 | AV23: =ROUND('3D Interpolace'!AU24,2) -> 62.66 | AW23: =ROUND('3D Interpolace'!AV24,2) -> 64 | AX23: =ROUND('3D Interpolace'!AW24,2) -> 65.48 | AY23: =ROUND('3D Interpolace'!AX24,2) -> 67.12 | AZ23: =ROUND('3D Interpolace'!AY24,2) -> 68.92 | BA23: =ROUND('3D Interpolace'!AZ24,2) -> 70.88 | BB23: =ROUND('3D Interpolace'!BA24,2) -> 73 | BD23: 2 | BE23: 21 | BK23: 4 | BL23: 4 | BT23: 4 | BU23: 4 | CC23: 4 | CD23: 4 | CL23: 4 | CM23: 4 | CU23: 2 | CW23: 2 | CX23: 21 | CY23: 41 | CZ23: 41.44 | DA23: 41.76 | DB23: 41.96 | DC23: 42.04 | DD23: 46 | DE23: 45.57 | DF23: 40.74 | DG23: 39.94 | DH23: 39.55 | DI23: 40 | DJ23: 41.68 | DK23: 44.32 | DL23: 47.32 | DM23: 54.08 | DN23: 56 | DO23: 52.82 | DP23: 52.95 | DQ23: 52.77 | DR23: 52.66 | DS23: 53 | DT23: 53.98 | DU23: 55.33 | DV23: 60.79 | DW23: 62.1 | DX23: 59 | DY23: 59.3 | DZ23: 59.19 | EA23: 58.93 | EB23: 58.78 | EC23: 59 | ED23: 59.62 | EE23: 64.45 | EF23: 65.47 | EG23: 62.66 | EH23: 64 | EI23: 65.48 | EJ23: 67.12 | EK23: 68.92 | EL23: 70.88 | EM23: 73 | EN23: 2 | EP23: 1.9 | EQ23: 20 | ER23: =IF(ISNUMBER(INDEX(VstupniData,$EQ23,ER$2)),INDEX(VstupniData,$EQ23,ER$2),"") -> 41.49 | ES23: 41.94 | ET23: 42.3 | EU23: 42.55 | EV23: 42.7 | EW23: 46.74 | EX23: 46.45 | EY23: 41.82 | EZ23: 41.2 | FA23: 40.96 | FB23: =IF(ISNUMBER(INDEX(VstupniData,$EQ23,FB$2)),INDEX(VstupniData,$EQ23,FB$2),"") -> 41.46 | FC23: 43.04 | FD23: 45.47 | FE23: 48.22 | FF23: 54.76 | FG23: 56.57 | FH23: 53.42 | FI23: 53.67 | FJ23: 53.65 | FK23: 53.69 | FL23: =IF(ISNUMBER(INDEX(VstupniData,$EQ23,FL$2)),INDEX(VstupniData,$EQ23,FL$2),"") -> 54.13 | FM23: 54.13 | FN23: 55.14 | FO23: 56.49 | FP23: 61.93 | FQ23: 63.22 | FR23: 60.1 | FS23: 60.4 | FT23: 60.3 | FU23: 60.04 | FV23: =IF(ISNUMBER(INDEX(VstupniData,$EQ23,FV$2)),INDEX(VstupniData,$EQ23,FV$2),"") -> 59.87 | FW23: 60.04 | FX23: 60.54 | FY23: 65.22 | FZ23: 66.07 | GA23: 63.08 | GB23: 64.26 | GC23: 65.59 | GD23: 67.08 | GE23: 68.74 | GF23: =IF(ISNUMBER(INDEX(VstupniData,$EQ23,GF$2)),INDEX(VstupniData,$EQ23,GF$2),"") -> 70.56 | GG23: 72.54 | GK23: 1.9 | GL23: 20 | GM23: 0 | GN23: 0 | GO23: 0 | GP23: 0 | GQ23: 0 | GR23: 46.74 | GS23: 0 | GT23: 0 | GU23: 0 | GV23: 0 | GW23: 0 | GX23: 0 | GY23: 0 | GZ23: 0 | HA23: 0 | HB23: 56.57 | HC23: 0 | HD23: 0 | HE23: 0 | HF23: 0 | HG23: 0 | HH23: 0 | HI23: 0 | HJ23: 0 | HK23: 0 | HL23: 0 | HM23: 0 | HN23: 0 | HO23: 0 | HP23: 0 | HQ23: 0 | HR23: 0 | HS23: 0 | HT23: 0 | HU23: 0 | HV23: 0 | HW23: 0 | HX23: 0 | HY23: 0 | HZ23: 0 | IA23: 0 | IB23: 0 | IC23: 1.9 | IG23: 20 | IH23: 42 | II23: 43.26666667 | IJ23: 44.53333333 | IK23: 45.8 | IL23: 47.06666667 | IM23: 48.33333333 | IN23: 49.6 | IO23: 50.86666667 | IP23: 52.13333333 | IQ23: 53.4 | IR23: 54.66666667 | IS23: 55.93333333 | IT23: 57.2 | IU23: 58.46666667 | IV23: 59.73333333 | IW23: 61 | IX23: 62.26666667 | IY23: 63.53333333 | IZ23: 64.8 | JA23: 66.06666667 | JB23: 67.33333333 | JC23: 68.7 | JD23: 68.90833333 | JE23: 69.11666667 | JF23: 69.325 | JG23: 69.53333333 | JH23: 69.74166667 | JI23: 69.95 | JJ23: 70.15833333 | JK23: 70.36666667 | JL23: 70.575 | JM23: 70.78333333 | JN23: 70.99166667 | JO23: 71.2 | JP23: 71.40833333 | JQ23: 71.61666667 | JR23: 71.825 | JS23: 72.03333333 | JT23: 72.24166667 | JU23: 72.45 | JV23: 72.65833333 | JW23: 72.86666667 | JX23: 1.9 | KD23: 1.9 | KE23: 20 | KF23: 0.51 | KG23: 1.326666667 | KH23: 2.233333333 | KI23: 3.25 | KJ23: 4.366666667 | KK23: 1.593333333 | KL23: 3.15 | KM23: 9.046666667 | KN23: 10.93333333 | KO23: 12.44 | KP23: 13.20666667 | KQ23: 12.89333333 | KR23: 11.73 | KS23: 10.24666667 | KT23: 4.973333333 | KU23: 4.43 | KV23: 8.846666667 | KW23: 9.863333333 | KX23: 11.15 | KY23: 12.37666667 | KZ23: 13.20333333 | LA23: 14.57 | LB23: 13.76833333 | LC23: 12.62666667 | LD23: 7.395 | LE23: 6.313333333 | LF23: 9.641666667 | LG23: 9.55 | LH23: 9.858333333 | LI23: 10.32666667 | LJ23: 10.705 | LK23: 10.74333333 | LL23: 10.45166667 | LM23: 5.98 | LN23: 5.338333333 | LO23: 8.536666667 | LP23: 7.565 | LQ23: 6.443333333 | LR23: 5.161666667 | LS23: 3.71 | LT23: 2.098333333 | LU23: 0.3266666667 | MC23: 2 | MD23: 21 | ME23: =AVERAGE(KF25:KG26) -> 19.15 | MF23: =AVERAGE(KG25:KH26) -> 19.675 | MG23: 20.295 | MH23: 21.0075 | MI23: 19.81 | MJ23: 18.835 | MK23: 22.2125 | ML23: 25.745 | MM23: 27.0475 | MN23: 27.7325 | MO23: 27.4025 | MP23: 25.985 | MQ23: 23.9125 | MR23: 19.795 | MS23: 16.24 | MT23: 17.69 | MU23: 20.0725 | MV23: 20.9825 | MW23: 22.0225 | MX23: 22.7875 | MY23: 14.75 | MZ23: 6.33125 | NA23: 5.90625 | NB23: 3.23125 | NC23: 0.56375 | ND23: 2.16375 | NE23: 4.24625 | NF23: 4.80625 | NG23: 5.63125 | NH23: 6.47375 | NI23: 7.08125 | NJ23: 7.31875 | NK23: 5.26625 | NL23: 3.02125 | NM23: 4.59625 | NN23: 6.00875 | NO23: 5.27125 | NP23: 4.37875 | NQ23: 3.32375 | NR23: 2.10625 | NU23: 2 | NV23: 21 | NW23: 0 | NX23: 0 | NY23: 0 | NZ23: 0 | OA23: 0 | OB23: 0 | OC23: 0 | OD23: 0 | OE23: 0 | OF23: 0 | OG23: 0 | OH23: 0 | OI23: 0 | OJ23: 0 | OK23: 0 | OL23: 0 | OM23: 0 | ON23: 0 | OO23: 0 | OP23: 0 | OQ23: 4.71 | OR23: 11.98 | OS23: 15.63 | OT23: 23.66 | OU23: 31.64 | OV23: 23.66 | OW23: 15.63 | OX23: 15.63 | OY23: 15.63 | OZ23: 11.98 | PA23: 11.98 | PB23: 11.98 | PC23: 15.63 | PD23: 23.66 | PE23: 15.63 | PF23: 11.98 | PG23: 15.63 | PH23: 15.63 | PI23: 23.66 | PJ23: 23.66 | PM23: 2 | PN23: 21 | PO23: -23.66 | PP23: -23.66 | PQ23: -23.66 | PR23: -23.66 | PS23: -31.64 | PT23: -31.64 | PU23: -23.66 | PV23: -11.98 | PW23: -11.98 | PX23: -11.98 | PY23: 0 | PZ23: -4.71 | QA23: -6.1 | QB23: -11.98 | QC23: -31.64 | QD23: -31.64 | QE23: -23.66 | QF23: -23.66 | QG23: -31.64 | QH23: -31.64 | QI23: -6.62 | QJ23: 0 | QK23: 0 | QL23: -7.98 | QM23: 0 | QN23: 0 | QO23: -8.03 | QP23: -8.03 | QQ23: -8.03 | QR23: -11.68 | QS23: -11.68 | QT23: -19.66 | QU23: -16.01 | QV23: -7.98 | QW23: -8.03 | QX23: -11.68 | QY23: -8.03 | QZ23: -8.03 | RA23: -7.98 | RB23: -7.98 | RE23: 2 | RF23: 21 | RG23: 0 | RH23: 0 | RI23: 0 | RJ23: 0 | RK23: 0 | RL23: 0 | RM23: 0 | RN23: 0 | RO23: 0 | RP23: 0 | RQ23: 0 | RR23: 0 | RS23: 0 | RT23: 0 | RU23: 0 | RV23: 0 | RW23: 0 | RX23: 0 | RY23: 0 | RZ23: 0 | SA23: 0 | SB23: 0 | SC23: 0 | SD23: 0 | SE23: 0 | SF23: 0 | SG23: 0 | SH23: 0 | SI23: 0 | SJ23: 0 | SK23: 0 | SL23: 0 | SM23: 0 | SN23: 0 | SO23: 0 | SP23: 0 | SQ23: 0 | SR23: 0 | SS23: 0 | ST23: 0 | SU23: 0 | SV23: 2 | SX23: 2 | SY23: 21 | SZ23: 0 | TA23: 0 | TB23: 0 | TC23: 0 | TD23: 0 | TE23: 0 | TF23: 0 | TG23: 0 | TH23: 0 | TI23: 0 | TJ23: 0 | TK23: 0 | TL23: 0 | TM23: 0 | TN23: 0 | TO23: 0 | TP23: 0 | TQ23: 0 | TR23: 0 | TS23: 0 | TT23: 0 | TU23: 0 | TV23: 0 | TW23: 0 | TX23: 0 | TY23: 0 | TZ23: 0 | UA23: 0 | UB23: 0 | UC23: 0 | UD23: 0 | UE23: 0 | UF23: 0 | UG23: 0 | UH23: 0 | UI23: 0 | UJ23: 0 | UK23: 0 | UL23: 0 | UM23: 0 | UN23: 0 | UO23: 2 | UQ23: 2 | UR23: 21 | US23: 1 | UT23: 1 | UU23: 1 | UV23: 1 | UW23: 1 | UX23: 1 | UY23: 1 | UZ23: 1 | VA23: 1 | VB23: 1 | VC23: 1 | VD23: 1 | VE23: 1 | VF23: 1 | VG23: 1 | VH23: 1 | VI23: 1 | VJ23: 1 | VK23: 1 | VL23: 1 | VM23: 1 | VN23: 1 | VO23: 1 | VP23: 1 | VQ23: 1 | VR23: 1 | VS23: 1 | VT23: 1 | VU23: 1 | VV23: 1 | VW23: 1 | VX23: 1 | VY23: 1 | VZ23: 1 | WA23: 1 | WB23: 1 | WC23: 1 | WD23: 1 | WE23: 1 | WF23: 1 | WG23: 1 | WH23: 2 | WJ23: 2 | WK23: 21 | WL23: 41 | WM23: 41.44 | WN23: 41.76 | WO23: 41.96 | WP23: 42.04 | WQ23: 46 | WR23: 45.57 | WS23: 40.74 | WT23: 39.94 | WU23: 39.55 | WV23: 40 | WW23: 41.68 | WX23: 44.32 | WY23: 47.32 | WZ23: 54.08 | XA23: 56 | XB23: 52.82 | XC23: 52.95 | XD23: 52.77 | XE23: 52.66 | XF23: 53 | XG23: 53.98 | XH23: 55.33 | XI23: 60.79 | XJ23: 62.1 | XK23: 59 | XL23: 59.3 | XM23: 59.19 | XN23: 58.93 | XO23: 58.78 | XP23: 59 | XQ23: 59.62 | XR23: 64.45 | XS23: 65.47 | XT23: 62.66 | XU23: 64 | XV23: 65.48 | XW23: 67.12 | XX23: 68.92 | XY23: 70.88 | XZ23: 73 | YA23: 2 | YC23: 1.9 | YD23: 20 | YE23: 1 | YF23: 1 | YG23: 1 | YH23: 1 | YI23: 1 | YJ23: 1 | YK23: 1 | YL23: 1 | YM23: 1 | YN23: 1 | YO23: 1 | YP23: 1 | YQ23: 1 | YR23: 1 | YS23: 1 | YT23: 1 | YU23: 1 | YV23: 1 | YW23: 1 | YX23: 1 | YY23: 1 | YZ23: 4 | ZA23: 4 | ZB23: 4 | ZC23: 4 | ZD23: 4 | ZE23: 4 | ZF23: 4 | ZG23: 4 | ZH23: 4 | ZI23: 4 | ZJ23: 4 | ZK23: 4 | ZL23: 4 | ZM23: 4 | ZN23: 4 | ZO23: 4 | ZP23: 4 | ZQ23: 4 | ZR23: 4 | ZS23: 4 | ZT23: 4 | ZU23: 1.9 | ZW23: 1.9 | ZX23: 20 | ZY23: =IF(ISNUMBER(INDEX(Asfalt,$ZX23,ZY$2)),INDEX(Asfalt,$ZX23,ZY$2),0) -> 0 | ZZ23: 0 | AAA23: 0 | AAB23: 0 | AAC23: 0 | AAD23: 4 | AAE23: 4 | AAF23: 0 | AAG23: 0 | AAH23: 0 | AAI23: =IF(ISNUMBER(INDEX(Asfalt,$ZX23,AAI$2)),INDEX(Asfalt,$ZX23,AAI$2),0) -> 0 | AAJ23: 0 | AAK23: 0 | AAL23: 0 | AAM23: 4 | AAN23: 4 | AAO23: 0 | AAP23: 0 | AAQ23: 0 | AAR23: 0 | AAS23: =IF(ISNUMBER(INDEX(Asfalt,$ZX23,AAS$2)),INDEX(Asfalt,$ZX23,AAS$2),0) -> 0 | AAT23: 0 | AAU23: 0 | AAV23: 0 | AAW23: 4 | AAX23: 4 | AAY23: 0 | AAZ23: 0 | ABA23: 0 | ABB23: 0 | ABC23: =IF(ISNUMBER(INDEX(Asfalt,$ZX23,ABC$2)),INDEX(Asfalt,$ZX23,ABC$2),0) -> 0 | ABD23: 0 | ABE23: 0 | ABF23: 4 | ABG23: 4 | ABH23: 0 | ABI23: 0 | ABJ23: 0 | ABK23: 0 | ABL23: 0 | ABM23: 0 | ABN23: 0 | ABO23: 1.9 | ABQ23: 1.9 | ABR23: 20 | ABS23: =RANK(#REF!,$ER$14:$FL$24,0) ->  | ABZ23: 187 | ACN23: 58 | ACO23: 58 | ACP23: 58 | ACQ23: 58 | ACR23: 58 | ACS23: 58 | ACT23: 58 | ACU23: 58 | ACV23: 58 | ACW23: 58 | ACX23: 58 | ACY23: 58 | ACZ23: 58 | ADA23: 58 | ADB23: 58 | ADC23: 58 | ADD23: 58 | ADE23: 58 | ADF23: 58 | ADG23: 58 | ADH23: 58 | ADI23: 1.9
M24: 5A | N24: =ROUND('3D Interpolace'!M25,2) -> 41.18 | O24: =ROUND('3D Interpolace'!N25,2) -> 41.38 | P24: =ROUND('3D Interpolace'!O25,2) -> 41.52 | Q24: =ROUND('3D Interpolace'!P25,2) -> 41.58 | R24: =ROUND('3D Interpolace'!Q25,2) -> 41.59 | S24: =ROUND('3D Interpolace'!R25,2) -> 41.53 | T24: =ROUND('3D Interpolace'!S25,2) -> 41.16 | U24: =ROUND('3D Interpolace'!T25,2) -> 40.48 | V24: =ROUND('3D Interpolace'!U25,2) -> 39.86 | W24: =ROUND('3D Interpolace'!V25,2) -> 39.66 | X24: =ROUND('3D Interpolace'!W25,2) -> 40.26 | Y24: =ROUND('3D Interpolace'!X25,2) -> 42.05 | Z24: =ROUND('3D Interpolace'!Y25,2) -> 44.81 | AA24: =ROUND('3D Interpolace'!Z25,2) -> 47.9 | AB24: =ROUND('3D Interpolace'!AA25,2) -> 50.72 | AC24: =ROUND('3D Interpolace'!AB25,2) -> 52.64 | AD24: =ROUND('3D Interpolace'!AC25,2) -> 53.38 | AE24: =ROUND('3D Interpolace'!AD25,2) -> 53.36 | AF24: =ROUND('3D Interpolace'!AE25,2) -> 52.99 | AG24: =ROUND('3D Interpolace'!AF25,2) -> 52.69 | AH24: =ROUND('3D Interpolace'!AG25,2) -> 52.9 | AI24: =ROUND('3D Interpolace'!AH25,2) -> 53.77 | AJ24: =ROUND('3D Interpolace'!AI25,2) -> 55.02 | AK24: =ROUND('3D Interpolace'!AJ25,2) -> 56.41 | AL24: =ROUND('3D Interpolace'!AK25,2) -> 57.67 | AM24: =ROUND('3D Interpolace'!AL25,2) -> 58.55 | AN24: =ROUND('3D Interpolace'!AM25,2) -> 58.89 | AO24: =ROUND('3D Interpolace'!AN25,2) -> 58.87 | AP24: =ROUND('3D Interpolace'!AO25,2) -> 58.71 | AQ24: =ROUND('3D Interpolace'!AP25,2) -> 58.66 | AR24: =ROUND('3D Interpolace'!AQ25,2) -> 58.96 | AS24: =ROUND('3D Interpolace'!AR25,2) -> 59.62 | AT24: =ROUND('3D Interpolace'!AS25,2) -> 60.47 | AU24: =ROUND('3D Interpolace'!AT25,2) -> 61.5 | AV24: =ROUND('3D Interpolace'!AU25,2) -> 62.71 | AW24: =ROUND('3D Interpolace'!AV25,2) -> 64.07 | AX24: =ROUND('3D Interpolace'!AW25,2) -> 65.59 | AY24: =ROUND('3D Interpolace'!AX25,2) -> 67.27 | AZ24: =ROUND('3D Interpolace'!AY25,2) -> 69.12 | BA24: =ROUND('3D Interpolace'!AZ25,2) -> 71.13 | BB24: =ROUND('3D Interpolace'!BA25,2) -> 73.31 | BD24: 2.1 | BE24: 22 | BK24: 4 | BL24: 4 | BT24: 4 | BU24: 4 | CC24: 4 | CD24: 4 | CL24: 4 | CM24: 4 | CU24: 2.1 | CW24: 2.1 | CX24: 22 | CY24: 41.18 | CZ24: 41.38 | DA24: 41.52 | DB24: 41.58 | DC24: 41.59 | DD24: 45.53 | DE24: 45.16 | DF24: 40.48 | DG24: 39.86 | DH24: 39.66 | DI24: 40.26 | DJ24: 42.05 | DK24: 44.81 | DL24: 47.9 | DM24: 54.72 | DN24: 56.64 | DO24: 53.38 | DP24: 53.36 | DQ24: 52.99 | DR24: 52.69 | DS24: 52.9 | DT24: 53.77 | DU24: 55.02 | DV24: 60.41 | DW24: 61.67 | DX24: 58.55 | DY24: 58.89 | DZ24: 58.87 | EA24: 58.71 | EB24: 58.66 | EC24: 58.96 | ED24: 59.62 | EE24: 64.47 | EF24: 65.5 | EG24: 62.71 | EH24: 64.07 | EI24: 65.59 | EJ24: 67.27 | EK24: 69.12 | EL24: 71.13 | EM24: 73.31 | EN24: 2.1 | EP24: 2 | EQ24: 21 | ER24: 41 | ES24: 41.44 | ET24: 41.76 | EU24: 41.96 | EV24: 42.04 | EW24: 46 | EX24: 45.57 | EY24: 40.74 | EZ24: 39.94 | FA24: 39.55 | FB24: 40 | FC24: 41.68 | FD24: 44.32 | FE24: 47.32 | FF24: 54.08 | FG24: 56 | FH24: 52.82 | FI24: 52.95 | FJ24: 52.77 | FK24: 52.66 | FL24: 53 | FM24: 53 | FN24: 53.98 | FO24: 55.33 | FP24: 60.79 | FQ24: 62.1 | FR24: 59 | FS24: 59.3 | FT24: 59.19 | FU24: 58.93 | FV24: 58.78 | FW24: 59 | FX24: 59.62 | FY24: 64.45 | FZ24: 65.47 | GA24: 62.66 | GB24: 64 | GC24: 65.48 | GD24: 67.12 | GE24: 68.92 | GF24: 70.88 | GG24: 73 | GK24: 2 | GL24: 21 | GM24: 41 | GN24: 0 | GO24: 0 | GP24: 0 | GQ24: 0 | GR24: 46 | GS24: 45.57 | GT24: 0 | GU24: 0 | GV24: 0 | GW24: 40 | GX24: 0 | GY24: 0 | GZ24: 0 | HA24: 54.08 | HB24: 56 | HC24: 0 | HD24: 0 | HE24: 0 | HF24: 0 | HG24: 53 | HH24: 53 | HI24: 0 | HJ24: 0 | HK24: 60.79 | HL24: 62.1 | HM24: 59 | HN24: 0 | HO24: 0 | HP24: 0 | HQ24: 0 | HR24: 59 | HS24: 0 | HT24: 64.45 | HU24: 65.47 | HV24: 0 | HW24: 64 | HX24: 0 | HY24: 0 | HZ24: 0 | IA24: 0 | IB24: 73 | IC24: 2 | IG24: 21 | IH24: 41 | II24: 42.26666667 | IJ24: 43.53333333 | IK24: 44.8 | IL24: 46.06666667 | IM24: 47.33333333 | IN24: 48.6 | IO24: 49.86666667 | IP24: 51.13333333 | IQ24: 52.4 | IR24: 53.66666667 | IS24: 54.93333333 | IT24: 56.2 | IU24: 57.46666667 | IV24: 58.73333333 | IW24: 60 | IX24: 61.26666667 | IY24: 62.53333333 | IZ24: 63.8 | JA24: 65.06666667 | JB24: 66.33333333 | JC24: 68.83333333 | JD24: 69.04166667 | JE24: 69.25 | JF24: 69.45833333 | JG24: 69.66666667 | JH24: 69.875 | JI24: 70.08333333 | JJ24: 70.29166667 | JK24: 70.5 | JL24: 70.70833333 | JM24: 70.91666667 | JN24: 71.125 | JO24: 71.33333333 | JP24: 71.54166667 | JQ24: 71.75 | JR24: 71.95833333 | JS24: 72.16666667 | JT24: 72.375 | JU24: 72.58333333 | JV24: 72.79166667 | JW24: 73 | JX24: 2 | KD24: 2 | KE24: 21 | KF24: 0 | KG24: 0.8266666667 | KH24: 1.773333333 | KI24: 2.84 | KJ24: 4.026666667 | KK24: 1.333333333 | KL24: 3.03 | KM24: 9.126666667 | KN24: 11.19333333 | KO24: 12.85 | KP24: 13.66666667 | KQ24: 13.25333333 | KR24: 11.88 | KS24: 10.14666667 | KT24: 4.653333333 | KU24: 4 | KV24: 8.446666667 | KW24: 9.583333333 | KX24: 11.03 | KY24: 12.40666667 | KZ24: 13.33333333 | LA24: 15.83333333 | LB24: 15.06166667 | LC24: 13.92 | LD24: 8.668333333 | LE24: 7.566666667 | LF24: 10.875 | LG24: 10.78333333 | LH24: 11.10166667 | LI24: 11.57 | LJ24: 11.92833333 | LK24: 11.91666667 | LL24: 11.505 | LM24: 6.883333333 | LN24: 6.071666667 | LO24: 9.09 | LP24: 7.958333333 | LQ24: 6.686666667 | LR24: 5.255 | LS24: 3.663333333 | LT24: 1.911666667 | LU24: 0 | MC24: 2.1 | MD24: 22 | ME24: =AVERAGE(KF26:KG27) -> 16.86 | MF24: =AVERAGE(KG26:KH27) -> 17.6725 | MG24: =AVERAGE(KH26:KI27) -> 18.4975 | MH24: =AVERAGE(KI26:KJ27) -> 19.335 | MI24: =AVERAGE(KJ26:KK27) -> 18.18 | MJ24: =AVERAGE(KK26:KL27) -> 17.14 | MK24: =AVERAGE(KL26:KM27) -> 20.32 | ML24: =AVERAGE(KM26:KN27) -> 23.5625 | MM24: =AVERAGE(KN26:KO27) -> 24.555 | MN24: =AVERAGE(KO26:KP27) -> 24.9775 | MO24: =AVERAGE(KP26:KQ27) -> 24.47 | MP24: =AVERAGE(KQ26:KR27) -> 22.935 | MQ24: =AVERAGE(KR26:KS27) -> 20.7825 | MR24: =AVERAGE(KS26:KT27) -> 16.6275 | MS24: =AVERAGE(KT26:KU27) -> 13.0825 | MT24: =AVERAGE(KU26:KV27) -> 14.6025 | MU24: =AVERAGE(KV26:KW27) -> 17.1275 | MV24: =AVERAGE(KW26:KX27) -> 18.2325 | MW24: =AVERAGE(KX26:KY27) -> 19.4825 | MX24: =AVERAGE(KY26:KZ27) -> 20.4375 | MY24: =AVERAGE(LA26:LB27) -> 6.43875 | MZ24: =AVERAGE(LB26:LC27) -> 6.15625 | NA24: 3.61125 | NB24: =AVERAGE(LD26:LE27) -> 1.04375 | NC24: =AVERAGE(LE26:LF27) -> 2.69875 | ND24: =AVERAGE(LF26:LG27) -> 4.76875 | NE24: =AVERAGE(LG26:LH27) -> 5.24125 | NF24: =AVERAGE(LH26:LI27) -> 5.93125 | NG24: =AVERAGE(LI26:LJ27) -> 6.62875 | NH24: =AVERAGE(LJ26:LK27) -> 7.12375 | NI24: =AVERAGE(LK26:LL27) -> 7.31125 | NJ24: =AVERAGE(LL26:LM27) -> 5.26125 | NK24: =AVERAGE(LM26:LN27) -> 3.04625 | NL24: =AVERAGE(LN26:LO27) -> 4.66375 | NM24: =AVERAGE(LO26:LP27) -> 6.10875 | NN24: =AVERAGE(LP26:LQ27) -> 5.38375 | NO24: =AVERAGE(LQ26:LR27) -> 4.49125 | NP24: =AVERAGE(LR26:LS27) -> 3.42625 | NQ24: =AVERAGE(LS26:LT27) -> 2.19375 | NR24: =AVERAGE(LT26:LU27) -> 0.79125 | NU24: 2.1 | NV24: 22 | NW24: 0 | NX24: 0 | NY24: 0 | NZ24: 0 | OA24: 0 | OB24: 0 | OC24: 0 | OD24: 0 | OE24: 0 | OF24: 0 | OG24: 0 | OH24: 0 | OI24: 0 | OJ24: 0 | OK24: 6.1 | OL24: 4.71 | OM24: 0 | ON24: 0 | OO24: 0 | OP24: 0 | OQ24: 11.98 | OR24: 11.98 | OS24: 23.66 | OT24: 31.64 | OU24: 23.66 | OV24: 15.63 | OW24: 15.63 | OX24: 15.63 | OY24: 11.98 | OZ24: 11.98 | PA24: 11.98 | PB24: 15.63 | PC24: 23.66 | PD24: 15.63 | PE24: 11.98 | PF24: 15.63 | PG24: 15.63 | PH24: 23.66 | PI24: 23.66 | PJ24: 31.64 | PM24: 2.1 | PN24: 22 | PO24: -23.66 | PP24: -23.66 | PQ24: -23.66 | PR24: -23.66 | PS24: -23.66 | PT24: -31.64 | PU24: -23.66 | PV24: -15.63 | PW24: -11.98 | PX24: -11.98 | PY24: 0 | PZ24: 0 | QA24: -6.1 | QB24: -11.98 | QC24: -17.56 | QD24: -18.95 | QE24: -23.66 | QF24: -23.66 | QG24: -23.66 | QH24: -23.66 | QI24: 0.65 | QJ24: 0 | QK24: 8.03 | QL24: 0 | QM24: -7.98 | QN24: -8.03 | QO24: -8.03 | QP24: -8.03 | QQ24: -11.68 | QR24: -11.68 | QS24: -11.68 | QT24: -16.01 | QU24: -7.98 | QV24: -8.03 | QW24: -3.65 | QX24: -8.03 | QY24: -8.03 | QZ24: 0 | RA24: -7.98 | RB24: 0 | RE24: 2.1 | RF24: 22 | RG24: 0 | RH24: 0 | RI24: 0 | RJ24: 0 | RK24: 0 | RL24: 0 | RM24: 0 | RN24: 0 | RO24: 0 | RP24: 0 | RQ24: 0 | RR24: 0 | RS24: 0 | RT24: 0 | RU24: 0 | RV24: 0 | RW24: 0 | RX24: 0 | RY24: 0 | RZ24: 0 | SA24: 0 | SB24: 0 | SC24: 0 | SD24: 0 | SE24: 0 | SF24: 0 | SG24: 0 | SH24: 0 | SI24: 0 | SJ24: 0 | SK24: 0 | SL24: 0 | SM24: 0 | SN24: 0 | SO24: 0 | SP24: 0 | SQ24: 0 | SR24: 0 | SS24: 0 | ST24: 0 | SU24: 0 | SV24: 2.1 | SX24: 2.1 | SY24: 22 | SZ24: 0 | TA24: 0 | TB24: 0 | TC24: 0 | TD24: 0 | TE24: 0 | TF24: 0 | TG24: 0 | TH24: 0 | TI24: 0 | TJ24: 0 | TK24: 0 | TL24: 0 | TM24: 0 | TN24: 0 | TO24: 0 | TP24: 0 | TQ24: 0 | TR24: 0 | TS24: 0 | TT24: 0 | TU24: 0 | TV24: 0 | TW24: 0 | TX24: 0 | TY24: 0 | TZ24: 0 | UA24: 0 | UB24: 0 | UC24: 0 | UD24: 0 | UE24: 0 | UF24: 0 | UG24: 0 | UH24: 0 | UI24: 0 | UJ24: 0 | UK24: 0 | UL24: 0 | UM24: 0 | UN24: 70.88 | UO24: 2.1 | UQ24: 2.1 | UR24: 22 | US24: 1 | UT24: =IF(OR(INT(1000*UT$1/$B$18)-1000*UT$1/$B$18=0,INT(1000*$UQ24/$B$19)-1000*$UQ24/$B$19=0),1,0) -> 0 | UU24: 0 | UV24: 0 | UW24: 0 | UX24: 0 | UY24: 0 | UZ24: 0 | VA24: 0 | VB24: 0 | VC24: 0 | VD24: =IF(OR(INT(1000*VD$1/$B$18)-1000*VD$1/$B$18=0,INT(1000*$UQ24/$B$19)-1000*$UQ24/$B$19=0),1,0) -> 0 | VE24: 0 | VF24: 0 | VG24: 0 | VH24: 0 | VI24: 0 | VJ24: 0 | VK24: 0 | VL24: 0 | VM24: 1 | VN24: =IF(OR(INT(1000*VN$1/$B$18)-1000*VN$1/$B$18=0,INT(1000*$UQ24/$B$19)-1000*$UQ24/$B$19=0),1,0) -> 0 | VO24: 0 | VP24: 0 | VQ24: 0 | VR24: 0 | VS24: 0 | VT24: 0 | VU24: 0 | VV24: 0 | VW24: 0 | VX24: =IF(OR(INT(1000*VX$1/$B$18)-1000*VX$1/$B$18=0,INT(1000*$UQ24/$B$19)-1000*$UQ24/$B$19=0),1,0) -> 0 | VY24: 0 | VZ24: 0 | WA24: 0 | WB24: 0 | WC24: 0 | WD24: 0 | WE24: 0 | WF24: 0 | WG24: 1 | WH24: 2.1 | WJ24: 2.1 | WK24: 22 | WL24: 41.18 | WM24: 0 | WN24: 0 | WO24: 0 | WP24: 0 | WQ24: 0 | WR24: 0 | WS24: 0 | WT24: 0 | WU24: 0 | WV24: 0 | WW24: 0 | WX24: 0 | WY24: 0 | WZ24: 0 | XA24: 0 | XB24: 0 | XC24: 0 | XD24: 0 | XE24: 0 | XF24: 52.9 | XG24: 0 | XH24: 0 | XI24: 0 | XJ24: 0 | XK24: 0 | XL24: 0 | XM24: 0 | XN24: 0 | XO24: 0 | XP24: 0 | XQ24: 0 | XR24: 0 | XS24: 0 | XT24: 0 | XU24: 0 | XV24: 0 | XW24: 0 | XX24: 0 | XY24: 0 | XZ24: 73.31 | YA24: 2.1 | YC24: 2 | YD24: 21 | YE24: =YE23 -> 1 | YF24: =YF23 -> 1 | YG24: 1 | YH24: 1 | YI24: 1 | YJ24: 1 | YK24: 1 | YL24: 1 | YM24: 1 | YN24: 1 | YO24: 1 | YP24: 1 | YQ24: 1 | YR24: 1 | YS24: 1 | YT24: 1 | YU24: 1 | YV24: 1 | YW24: 1 | YX24: 1 | YY24: =YX24 -> 1 | YZ24: 4 | ZA24: =ZA23 -> 4 | ZB24: 4 | ZC24: 4 | ZD24: 4 | ZE24: 4 | ZF24: 4 | ZG24: 4 | ZH24: 4 | ZI24: 4 | ZJ24: 4 | ZK24: 4 | ZL24: 4 | ZM24: 4 | ZN24: 4 | ZO24: 4 | ZP24: 4 | ZQ24: 4 | ZR24: 4 | ZS24: 4 | ZT24: =ZS24 -> 4 | ZU24: 2 | ZW24: 2 | ZX24: 21 | ZY24: 0 | ZZ24: 0 | AAA24: 0 | AAB24: 0 | AAC24: 0 | AAD24: 4 | AAE24: 4 | AAF24: 0 | AAG24: 0 | AAH24: 0 | AAI24: 0 | AAJ24: 0 | AAK24: 0 | AAL24: 0 | AAM24: 4 | AAN24: 4 | AAO24: 0 | AAP24: 0 | AAQ24: 0 | AAR24: 0 | AAS24: 0 | AAT24: 0 | AAU24: 0 | AAV24: 0 | AAW24: 4 | AAX24: 4 | AAY24: 0 | AAZ24: 0 | ABA24: 0 | ABB24: 0 | ABC24: 0 | ABD24: 0 | ABE24: 0 | ABF24: 4 | ABG24: 4 | ABH24: 0 | ABI24: 0 | ABJ24: 0 | ABK24: 0 | ABL24: 0 | ABM24: 0 | ABN24: 0 | ABO24: 2 | ABQ24: 2 | ABR24: 21 | ABS24: =RANK(#REF!,$ER$14:$FL$24,0) ->  | ABW24: 226 | ACN24: 58 | ACO24: =ACO23 -> 58 | ACP24: 58 | ACQ24: 58 | ACR24: 58 | ACS24: 58 | ACT24: 58 | ACU24: 58 | ACV24: 58 | ACW24: 58 | ACX24: 58 | ACY24: 58 | ACZ24: 58 | ADA24: 58 | ADB24: 58 | ADC24: 58 | ADD24: 58 | ADE24: 58 | ADF24: 58 | ADG24: 58 | ADH24: =ADG24 -> 58 | ADI24: 2
E25: AB x AC | F25: =G22*H23-H22*G23 -> 0 | G25: =H22*F23-F22*H23 -> 0 | H25: =IF(F22*G23-G22*F23=0,0.0001,F22*G23-G22*F23) -> -1360000 | M25: 5B | N25: =ROUND('3D Interpolace'!M26,2) -> 41.91 | O25: =ROUND('3D Interpolace'!N26,2) -> 41.69 | P25: =ROUND('3D Interpolace'!O26,2) -> 41.52 | Q25: =ROUND('3D Interpolace'!P26,2) -> 41.39 | R25: =ROUND('3D Interpolace'!Q26,2) -> 41.3 | S25: =ROUND('3D Interpolace'!R26,2) -> 41.26 | T25: =ROUND('3D Interpolace'!S26,2) -> 41.09 | U25: =ROUND('3D Interpolace'!T26,2) -> 40.79 | V25: =ROUND('3D Interpolace'!U26,2) -> 40.62 | W25: =ROUND('3D Interpolace'!V26,2) -> 40.84 | X25: =ROUND('3D Interpolace'!W26,2) -> 41.73 | Y25: =ROUND('3D Interpolace'!X26,2) -> 43.68 | Z25: =ROUND('3D Interpolace'!Y26,2) -> 46.52 | AA25: =ROUND('3D Interpolace'!Z26,2) -> 49.64 | AB25: =ROUND('3D Interpolace'!AA26,2) -> 52.43 | AC25: =ROUND('3D Interpolace'!AB26,2) -> 54.28 | AD25: =ROUND('3D Interpolace'!AC26,2) -> 54.89 | AE25: =ROUND('3D Interpolace'!AD26,2) -> 54.66 | AF25: =ROUND('3D Interpolace'!AE26,2) -> 54.06 | AG25: =ROUND('3D Interpolace'!AF26,2) -> 53.53 | AH25: =ROUND('3D Interpolace'!AG26,2) -> 53.53 | AI25: =ROUND('3D Interpolace'!AH26,2) -> 54.22 | AJ25: =ROUND('3D Interpolace'!AI26,2) -> 55.29 | AK25: =ROUND('3D Interpolace'!AJ26,2) -> 56.51 | AL25: =ROUND('3D Interpolace'!AK26,2) -> 57.66 | AM25: =ROUND('3D Interpolace'!AL26,2) -> 58.5 | AN25: =ROUND('3D Interpolace'!AM26,2) -> 58.91 | AO25: =ROUND('3D Interpolace'!AN26,2) -> 59.04 | AP25: =ROUND('3D Interpolace'!AO26,2) -> 59.08 | AQ25: =ROUND('3D Interpolace'!AP26,2) -> 59.21 | AR25: =ROUND('3D Interpolace'!AQ26,2) -> 59.6 | AS25: =ROUND('3D Interpolace'!AR26,2) -> 60.25 | AT25: =ROUND('3D Interpolace'!AS26,2) -> 61.04 | AU25: =ROUND('3D Interpolace'!AT26,2) -> 61.98 | AV25: =ROUND('3D Interpolace'!AU26,2) -> 63.08 | AW25: =ROUND('3D Interpolace'!AV26,2) -> 64.38 | AX25: =ROUND('3D Interpolace'!AW26,2) -> 65.85 | AY25: =ROUND('3D Interpolace'!AX26,2) -> 67.5 | AZ25: =ROUND('3D Interpolace'!AY26,2) -> 69.33 | BA25: =ROUND('3D Interpolace'!AZ26,2) -> 71.32 | BB25: =ROUND('3D Interpolace'!BA26,2) -> 73.5 | BD25: 2.2 | BE25: 23 | BK25: 4 | BL25: 4 | BT25: 4 | BU25: 4 | CC25: 4 | CD25: 4 | CL25: 4 | CM25: 4 | CU25: 2.2 | CW25: 2.2 | CX25: 23 | CY25: 41.91 | CZ25: 41.69 | DA25: 41.52 | DB25: 41.39 | DC25: 41.3 | DD25: 45.26 | DE25: 45.09 | DF25: 40.79 | DG25: 40.62 | DH25: 40.84 | DI25: 41.73 | DJ25: 43.68 | DK25: 46.52 | DL25: 49.64 | DM25: 56.43 | DN25: 58.28 | DO25: 54.89 | DP25: 54.66 | DQ25: 54.06 | DR25: 53.53 | DS25: 53.53 | DT25: 54.22 | DU25: 55.29 | DV25: 60.51 | DW25: 61.66 | DX25: 58.5 | DY25: 58.91 | DZ25: 59.04 | EA25: 59.08 | EB25: 59.21 | EC25: 59.6 | ED25: 60.25 | EE25: 65.04 | EF25: 65.98 | EG25: 63.08 | EH25: 64.38 | EI25: 65.85 | EJ25: 67.5 | EK25: 69.33 | EL25: 71.32 | EM25: 73.5 | EN25: 2.2 | EP25: 2 | EQ25: 21 | ER25: 41 | ES25: 41.44 | ET25: 41.76 | EU25: 41.96 | EV25: 42.04 | EW25: 46 | EX25: 45.57 | EY25: 40.74 | EZ25: 39.94 | FA25: 39.55 | FB25: 40 | FC25: 41.68 | FD25: 44.32 | FE25: 47.32 | FF25: 54.08 | FG25: 56 | FH25: 52.82 | FI25: 52.95 | FJ25: 52.77 | FK25: 52.66 | FL25: 53 | FM25: 53 | FN25: 53.98 | FO25: 55.33 | FP25: 60.79 | FQ25: 62.1 | FR25: 59 | FS25: 59.3 | FT25: 59.19 | FU25: 58.93 | FV25: 58.78 | FW25: 59 | FX25: 59.62 | FY25: 64.45 | FZ25: 65.47 | GA25: 62.66 | GB25: 64 | GC25: 65.48 | GD25: 67.12 | GE25: 68.92 | GF25: 70.88 | GG25: 73 | GK25: 2 | GL25: 21 | GM25: 41 | GN25: 0 | GO25: 0 | GP25: 0 | GQ25: 0 | GR25: 46 | GS25: 45.57 | GT25: 0 | GU25: 0 | GV25: 0 | GW25: 40 | GX25: 0 | GY25: 0 | GZ25: 0 | HA25: 54.08 | HB25: 56 | HC25: 0 | HD25: 0 | HE25: 0 | HF25: 0 | HG25: 53 | HH25: 53 | HI25: 0 | HJ25: 0 | HK25: 60.79 | HL25: 62.1 | HM25: 59 | HN25: 0 | HO25: 0 | HP25: 0 | HQ25: 0 | HR25: 59 | HS25: 0 | HT25: 64.45 | HU25: 65.47 | HV25: 0 | HW25: 64 | HX25: 0 | HY25: 0 | HZ25: 0 | IA25: 0 | IB25: 73 | IC25: 2 | IG25: 21 | IH25: 61 | II25: 61.8 | IJ25: 62.6 | IK25: 63.4 | IL25: 64.2 | IM25: 65 | IN25: 65.8 | IO25: 66.6 | IP25: 67.4 | IQ25: 68.2 | IR25: 69 | IS25: 69.8 | IT25: 70.6 | IU25: 71.4 | IV25: 72.2 | IW25: 73 | IX25: 73.8 | IY25: 74.6 | IZ25: 75.4 | JA25: 76.2 | JB25: 77 | JC25: 59.25 | JD25: 59.9375 | JE25: 60.625 | JF25: 61.3125 | JG25: 62 | JH25: 62.6875 | JI25: 63.375 | JJ25: 64.0625 | JK25: 64.75 | JL25: 65.4375 | JM25: 66.125 | JN25: 66.8125 | JO25: 67.5 | JP25: 68.1875 | JQ25: 68.875 | JR25: 69.5625 | JS25: 70.25 | JT25: 70.9375 | JU25: 71.625 | JV25: 72.3125 | JW25: 73 | JX25: 2 | KD25: 2 | KE25: 21 | KF25: 20 | KG25: 20.36 | KH25: 20.84 | KI25: 21.44 | KJ25: 22.16 | KK25: 19 | KL25: 20.23 | KM25: 25.86 | KN25: 27.46 | KO25: 28.65 | KP25: 29 | KQ25: 28.12 | KR25: 26.28 | KS25: 24.08 | KT25: 18.12 | KU25: 17 | KV25: 20.98 | KW25: 21.65 | KX25: 22.63 | KY25: 23.54 | KZ25: 24 | LA25: 6.25 | LB25: 5.9575 | LC25: 5.295 | LD25: 0.5225 | LE25: -0.1 | LF25: 3.6875 | LG25: 4.075 | LH25: 4.8725 | LI25: 5.82 | LJ25: 6.6575 | LK25: 7.125 | LL25: 7.1925 | LM25: 3.05 | LN25: 2.7175 | LO25: 6.215 | LP25: 5.5625 | LQ25: 4.77 | LR25: 3.8175 | LS25: 2.705 | LT25: 1.4325 | LU25: 0 | MC25: 2.2 | MD25: 23 | ME25: 14.245 | MF25: 15.4425 | MG25: 16.5325 | MH25: 17.515 | MI25: 16.39 | MJ25: 15.225 | MK25: 18.0875 | ML25: 20.875 | MM25: 21.3875 | MN25: 21.425 | MO25: 20.6875 | MP25: 19.045 | MQ25: 16.865 | MR25: 12.74 | MS25: 9.2625 | MT25: 10.8875 | MU25: 13.575 | MV25: 14.89 | MW25: 16.365 | MX25: 17.5325 | MY25: 6.02875 | MZ25: 5.93875 | NA25: 3.58125 | NB25: 1.17125 | NC25: 2.91875 | ND25: 4.97625 | NE25: 5.32375 | NF25: 5.81875 | NG25: 6.31625 | NH25: 6.67125 | NI25: 6.82125 | NJ25: 4.82875 | NK25: 2.72375 | NL25: 4.46875 | NM25: 6.02625 | NN25: 5.37875 | NO25: 4.53875 | NP25: 3.51375 | NQ25: 2.31125 | NR25: 0.92875 | NU25: 2.2 | NV25: 23 | NW25: 4.71 | NX25: 4.71 | NY25: 0 | NZ25: 0 | OA25: 0 | OB25: 4.71 | OC25: 0 | OD25: 0 | OE25: 0 | OF25: 0 | OG25: 0 | OH25: 0 | OI25: 0 | OJ25: 6.1 | OK25: 11.33 | OL25: 7.9 | OM25: 6.1 | ON25: 4.71 | OO25: 0 | OP25: 0 | OQ25: 11.98 | OR25: 15.63 | OS25: 23.66 | OT25: 31.64 | OU25: 23.66 | OV25: 15.63 | OW25: 15.63 | OX25: 15.63 | OY25: 11.98 | OZ25: 11.98 | PA25: 11.98 | PB25: 15.63 | PC25: 23.66 | PD25: 15.63 | PE25: 11.98 | PF25: 15.63 | PG25: 15.63 | PH25: 23.66 | PI25: 23.66 | PJ25: 31.64 | PM25: 2.2 | PN25: 23 | PO25: -18.95 | PP25: -18.95 | PQ25: -23.66 | PR25: -23.66 | PS25: -23.66 | PT25: -26.93 | PU25: -23.66 | PV25: -15.63 | PW25: -15.63 | PX25: -15.63 | PY25: 0 | PZ25: -4.71 | QA25: -6.1 | QB25: -5.88 | QC25: -20.31 | QD25: -23.74 | QE25: -17.56 | QF25: -18.95 | QG25: -23.66 | QH25: -23.66 | QI25: 0 | QJ25: 3.65 | QK25: 0 | QL25: 0 | QM25: -7.98 | QN25: -8.03 | QO25: -8.03 | QP25: -8.03 | QQ25: -11.68 | QR25: -11.68 | QS25: -11.68 | QT25: -16.01 | QU25: -7.98 | QV25: -8.03 | QW25: -3.65 | QX25: 0 | QY25: -8.03 | QZ25: 0 | RA25: 0 | RB25: 0 | RE25: 2.2 | RF25: 23 | RG25: 0 | RH25: 0 | RI25: 0 | RJ25: 0 | RK25: 0 | RL25: 0 | RM25: 0 | RN25: 0 | RO25: 0 | RP25: 0 | RQ25: 0 | RR25: 0 | RS25: 0 | RT25: 0 | RU25: 0 | RV25: 0 | RW25: 0 | RX25: 0 | RY25: 0 | RZ25: 0 | SA25: 0 | SB25: 0 | SC25: 0 | SD25: 0 | SE25: 0 | SF25: 0 | SG25: 0 | SH25: 0 | SI25: 0 | SJ25: 0 | SK25: 0 | SL25: 0 | SM25: 0 | SN25: 0 | SO25: 0 | SP25: 0 | SQ25: 0 | SR25: 0 | SS25: 0 | ST25: 0 | SU25: 0 | SV25: 2.2 | SX25: 2.2 | SY25: 23 | SZ25: 0 | TA25: 0 | TB25: 0 | TC25: 0 | TD25: 0 | TE25: 46 | TF25: 0 | TG25: 0 | TH25: 0 | TI25: 0 | TJ25: 0 | TK25: 0 | TL25: 0 | TM25: 0 | TN25: 0 | TO25: 0 | TP25: 0 | TQ25: 0 | TR25: 0 | TS25: 0 | TT25: 53 | TU25: 0 | TV25: 0 | TW25: 0 | TX25: 0 | TY25: 62.1 | TZ25: 0 | UA25: 59.3 | UB25: 0 | UC25: 0 | UD25: 0 | UE25: 0 | UF25: 0 | UG25: 0 | UH25: 0 | UI25: 0 | UJ25: 0 | UK25: 0 | UL25: 0 | UM25: 0 | UN25: 0 | UO25: 2.2 | UQ25: 2.2 | UR25: 23 | US25: 1 | UT25: 0 | UU25: 0 | UV25: 0 | UW25: 0 | UX25: 0 | UY25: 0 | UZ25: 0 | VA25: 0 | VB25: 0 | VC25: 0 | VD25: 0 | VE25: 0 | VF25: 0 | VG25: 0 | VH25: 0 | VI25: 0 | VJ25: 0 | VK25: 0 | VL25: 0 | VM25: 1 | VN25: 0 | VO25: 0 | VP25: 0 | VQ25: 0 | VR25: 0 | VS25: 0 | VT25: 0 | VU25: 0 | VV25: 0 | VW25: 0 | VX25: 0 | VY25: 0 | VZ25: 0 | WA25: 0 | WB25: 0 | WC25: 0 | WD25: 0 | WE25: 0 | WF25: 0 | WG25: 1 | WH25: 2.2 | WJ25: 2.2 | WK25: 23 | WL25: 41.91 | WM25: 0 | WN25: 0 | WO25: 0 | WP25: 0 | WQ25: 0 | WR25: 0 | WS25: 0 | WT25: 0 | WU25: 0 | WV25: 0 | WW25: 0 | WX25: 0 | WY25: 0 | WZ25: 0 | XA25: 0 | XB25: 0 | XC25: 0 | XD25: 0 | XE25: 0 | XF25: 53.53 | XG25: 0 | XH25: 0 | XI25: 0 | XJ25: 0 | XK25: 0 | XL25: 0 | XM25: 0 | XN25: 0 | XO25: 0 | XP25: 0 | XQ25: 0 | XR25: 0 | XS25: 0 | XT25: 0 | XU25: 0 | XV25: 0 | XW25: 0 | XX25: 0 | XY25: 0 | XZ25: 73.5 | YA25: 2.2 | YC25: 2 | YD25: 21 | YE25: =COUNTIF(RG23:SA33,">0") -> 3 | YF25: =YE25 -> 3 | YG25: =YF25 -> 3 | YH25: 3 | YI25: 3 | YJ25: 3 | YK25: 3 | YL25: 3 | YM25: 3 | YN25: 3 | YO25: 3 | YP25: 3 | YQ25: 3 | YR25: 3 | YS25: 3 | YT25: 3 | YU25: 3 | YV25: 3 | YW25: 3 | YX25: 3 | YY25: =YX25 -> 3 | YZ25: =COUNTIF(SA23:SU33,">0") -> 2 | ZA25: =YZ25 -> 2 | ZB25: =ZA25 -> 2 | ZC25: 2 | ZD25: 2 | ZE25: 2 | ZF25: 2 | ZG25: 2 | ZH25: 2 | ZI25: 2 | ZJ25: 2 | ZK25: 2 | ZL25: 2 | ZM25: 2 | ZN25: 2 | ZO25: 2 | ZP25: 2 | ZQ25: 2 | ZR25: 2 | ZS25: 2 | ZT25: =ZS25 -> 2 | ZU25: 2 | ZW25: 2 | ZX25: 21 | ZY25: 0 | ZZ25: 0 | AAA25: 0 | AAB25: 0 | AAC25: 0 | AAD25: 4 | AAE25: 4 | AAF25: 0 | AAG25: 0 | AAH25: 0 | AAI25: 0 | AAJ25: 0 | AAK25: 0 | AAL25: 0 | AAM25: 4 | AAN25: 4 | AAO25: 0 | AAP25: 0 | AAQ25: 0 | AAR25: 0 | AAS25: 0 | AAT25: 0 | AAU25: 0 | AAV25: 0 | AAW25: 4 | AAX25: 4 | AAY25: 0 | AAZ25: 0 | ABA25: 0 | ABB25: 0 | ABC25: 0 | ABD25: 0 | ABE25: 0 | ABF25: 4 | ABG25: 4 | ABH25: 0 | ABI25: 0 | ABJ25: 0 | ABK25: 0 | ABL25: 0 | ABM25: 0 | ABN25: 0 | ABO25: 2 | ABQ25: 2 | ABR25: 21 | ABS25: =COUNTIF(UU23:VO33,">0") -> 51 | ABT25: =ABS25 -> 51 | ABU25: =ABT25 -> 51 | ABV25: 51 | ABW25: 51 | ABX25: 51 | ABY25: 51 | ABZ25: 51 | ACA25: 51 | ACB25: 51 | ACC25: 51 | ACD25: 51 | ACE25: 51 | ACF25: 51 | ACG25: 51 | ACH25: 51 | ACI25: 51 | ACJ25: 51 | ACK25: 51 | ACL25: 51 | ACM25: =ACL25 -> 51 | ACN25: =COUNTIF(VO23:WI33,">0") -> 58 | ACO25: =ACN25 -> 58 | ACP25: =ACO25 -> 58 | ACQ25: 58 | ACR25: 58 | ACS25: 58 | ACT25: 58 | ACU25: 58 | ACV25: 58 | ACW25: 58 | ACX25: 58 | ACY25: 58 | ACZ25: 58 | ADA25: 58 | ADB25: 58 | ADC25: 58 | ADD25: 58 | ADE25: 58 | ADF25: 58 | ADG25: 58 | ADH25: =ADG25 -> 58 | ADI25: 2
B26: Dělení nulou | H26: =F22*G23-G22*F23 -> -1360000 | M26: 5C | N26: =ROUND('3D Interpolace'!M27,2) -> 42.85 | O26: =ROUND('3D Interpolace'!N27,2) -> 42.17 | P26: =ROUND('3D Interpolace'!O27,2) -> 41.65 | Q26: =ROUND('3D Interpolace'!P27,2) -> 41.31 | R26: =ROUND('3D Interpolace'!Q27,2) -> 41.14 | S26: =ROUND('3D Interpolace'!R27,2) -> 41.14 | T26: =ROUND('3D Interpolace'!S27,2) -> 41.21 | U26: =ROUND('3D Interpolace'!T27,2) -> 41.36 | V26: =ROUND('3D Interpolace'!U27,2) -> 41.73 | W26: =ROUND('3D Interpolace'!V27,2) -> 42.46 | X26: =ROUND('3D Interpolace'!W27,2) -> 43.67 | Y26: =ROUND('3D Interpolace'!X27,2) -> 45.77 | Z26: =ROUND('3D Interpolace'!Y27,2) -> 48.65 | AA26: =ROUND('3D Interpolace'!Z27,2) -> 51.73 | AB26: =ROUND('3D Interpolace'!AA27,2) -> 54.44 | AC26: =ROUND('3D Interpolace'!AB27,2) -> 56.2 | AD26: =ROUND('3D Interpolace'!AC27,2) -> 56.68 | AE26: =ROUND('3D Interpolace'!AD27,2) -> 56.27 | AF26: =ROUND('3D Interpolace'!AE27,2) -> 55.45 | AG26: =ROUND('3D Interpolace'!AF27,2) -> 54.7 | AH26: =ROUND('3D Interpolace'!AG27,2) -> 54.51 | AI26: =ROUND('3D Interpolace'!AH27,2) -> 55 | AJ26: =ROUND('3D Interpolace'!AI27,2) -> 55.86 | AK26: =ROUND('3D Interpolace'!AJ27,2) -> 56.89 | AL26: =ROUND('3D Interpolace'!AK27,2) -> 57.88 | AM26: =ROUND('3D Interpolace'!AL27,2) -> 58.66 | AN26: =ROUND('3D Interpolace'!AM27,2) -> 59.15 | AO26: =ROUND('3D Interpolace'!AN27,2) -> 59.48 | AP26: =ROUND('3D Interpolace'!AO27,2) -> 59.75 | AQ26: =ROUND('3D Interpolace'!AP27,2) -> 60.07 | AR26: =ROUND('3D Interpolace'!AQ27,2) -> 60.56 | AS26: =ROUND('3D Interpolace'!AR27,2) -> 61.18 | AT26: =ROUND('3D Interpolace'!AS27,2) -> 61.84 | AU26: =ROUND('3D Interpolace'!AT27,2) -> 62.62 | AV26: =ROUND('3D Interpolace'!AU27,2) -> 63.57 | AW26: =ROUND('3D Interpolace'!AV27,2) -> 64.74 | AX26: =ROUND('3D Interpolace'!AW27,2) -> 66.14 | AY26: =ROUND('3D Interpolace'!AX27,2) -> 67.73 | AZ26: =ROUND('3D Interpolace'!AY27,2) -> 69.51 | BA26: =ROUND('3D Interpolace'!AZ27,2) -> 71.47 | BB26: =ROUND('3D Interpolace'!BA27,2) -> 73.62 | BD26: 2.3 | BE26: 24 | BK26: 4 | BL26: 4 | BT26: 4 | BU26: 4 | CC26: 4 | CD26: 4 | CL26: 4 | CM26: 4 | CU26: 2.3 | CW26: 2.3 | CX26: 24 | CY26: 42.85 | CZ26: 42.17 | DA26: 41.65 | DB26: 41.31 | DC26: 41.14 | DD26: 45.14 | DE26: 45.21 | DF26: 41.36 | DG26: 41.73 | DH26: 42.46 | DI26: 43.67 | DJ26: 45.77 | DK26: 48.65 | DL26: 51.73 | DM26: 58.44 | DN26: 60.2 | DO26: 56.68 | DP26: 56.27 | DQ26: 55.45 | DR26: 54.7 | DS26: 54.51 | DT26: 55 | DU26: 55.86 | DV26: 60.89 | DW26: 61.88 | DX26: 58.66 | DY26: 59.15 | DZ26: 59.48 | EA26: 59.75 | EB26: 60.07 | EC26: 60.56 | ED26: 61.18 | EE26: 65.84 | EF26: 66.62 | EG26: 63.57 | EH26: 64.74 | EI26: 66.14 | EJ26: 67.73 | EK26: 69.51 | EL26: 71.47 | EM26: 73.62 | EN26: 2.3 | EP26: 2.1 | EQ26: 22 | ER26: 41.18 | ES26: 41.38 | ET26: 41.52 | EU26: 41.58 | EV26: 41.59 | EW26: 45.53 | EX26: 45.16 | EY26: 40.48 | EZ26: 39.86 | FA26: 39.66 | FB26: 40.26 | FC26: 42.05 | FD26: 44.81 | FE26: 47.9 | FF26: 54.72 | FG26: 56.64 | FH26: 53.38 | FI26: 53.36 | FJ26: 52.99 | FK26: 52.69 | FL26: 52.9 | FM26: 52.9 | FN26: 53.77 | FO26: 55.02 | FP26: 60.41 | FQ26: 61.67 | FR26: 58.55 | FS26: 58.89 | FT26: 58.87 | FU26: 58.71 | FV26: 58.66 | FW26: 58.96 | FX26: 59.62 | FY26: 64.47 | FZ26: 65.5 | GA26: 62.71 | GB26: 64.07 | GC26: 65.59 | GD26: 67.27 | GE26: 69.12 | GF26: 71.13 | GG26: 73.31 | GK26: 2.1 | GL26: 22 | GM26: 0 | GN26: 0 | GO26: 0 | GP26: 0 | GQ26: 0 | GR26: 45.53 | GS26: 0 | GT26: 0 | GU26: 0 | GV26: 0 | GW26: 0 | GX26: 0 | GY26: 0 | GZ26: 0 | HA26: 0 | HB26: 56.64 | HC26: 0 | HD26: 0 | HE26: 0 | HF26: 0 | HG26: 0 | HH26: 0 | HI26: 0 | HJ26: 0 | HK26: 0 | HL26: 0 | HM26: 0 | HN26: 0 | HO26: 0 | HP26: 0 | HQ26: 0 | HR26: 0 | HS26: 0 | HT26: 0 | HU26: 0 | HV26: 0 | HW26: 0 | HX26: 0 | HY26: 0 | HZ26: 0 | IA26: 0 | IB26: 0 | IC26: 2.1 | IG26: 22 | IH26: 59 | II26: 59.8 | IJ26: 60.6 | IK26: 61.4 | IL26: 62.2 | IM26: 63 | IN26: 63.8 | IO26: 64.6 | IP26: 65.4 | IQ26: 66.2 | IR26: 67 | IS26: 67.8 | IT26: 68.6 | IU26: 69.4 | IV26: 70.2 | IW26: 71 | IX26: 71.8 | IY26: 72.6 | IZ26: 73.4 | JA26: 74.2 | JB26: 75 | JC26: 59.55 | JD26: 60.2375 | JE26: 60.925 | JF26: 61.6125 | JG26: 62.3 | JH26: 62.9875 | JI26: 63.675 | JJ26: 64.3625 | JK26: 65.05 | JL26: 65.7375 | JM26: 66.425 | JN26: 67.1125 | JO26: 67.8 | JP26: 68.4875 | JQ26: 69.175 | JR26: 69.8625 | JS26: 70.55 | JT26: 71.2375 | JU26: 71.925 | JV26: 72.6125 | JW26: 73.3 | JX26: 2.1 | KD26: 2.1 | KE26: 22 | KF26: 17.82 | KG26: 18.42 | KH26: 19.08 | KI26: 19.82 | KJ26: 20.61 | KK26: 17.47 | KL26: 18.64 | KM26: 24.12 | KN26: 25.54 | KO26: 26.54 | KP26: 26.74 | KQ26: 25.75 | KR26: 23.79 | KS26: 21.5 | KT26: 15.48 | KU26: 14.36 | KV26: 18.42 | KW26: 19.24 | KX26: 20.41 | KY26: 21.51 | KZ26: 22.1 | LA26: 6.65 | LB26: 6.4675 | LC26: 5.905 | LD26: 1.2025 | LE26: 0.63 | LF26: 4.4375 | LG26: 4.785 | LH26: 5.4925 | LI26: 6.34 | LJ26: 7.0775 | LK26: 7.465 | LL26: 7.4925 | LM26: 3.33 | LN26: 2.9875 | LO26: 6.465 | LP26: 5.7925 | LQ26: 4.96 | LR26: 3.9675 | LS26: 2.805 | LT26: 1.4825 | LU26: -0.01 | MC26: 2.3 | MD26: 24 | ME26: 11.5825 | MF26: 13.1475 | MG26: 14.49 | MH26: 15.6075 | MI26: 14.5025 | MJ26: 13.205 | MK26: 15.7425 | ML26: 18.07 | MM26: 18.105 | MN26: 17.7675 | MO26: 16.8225 | MP26: 15.1125 | MQ26: 12.9525 | MR26: 8.9 | MS26: 5.515 | MT26: 7.24 | MU26: 10.05 | MV26: 11.5175 | MW26: 13.1575 | MX26: 14.4875 | MY26: 5.45125 | MZ26: 5.54875 | NA26: 3.38625 | NB26: 1.14375 | NC26: 2.99375 | ND26: 5.04625 | NE26: 5.26625 | NF26: 5.55875 | NG26: 5.85375 | NH26: 6.07375 | NI26: 6.20375 | NJ26: 4.29875 | NK26: 2.34125 | NL26: 4.25125 | NM26: 5.95125 | NN26: 5.39875 | NO26: 4.62125 | NP26: 3.64125 | NQ26: 2.46375 | NR26: 1.09125 | NU26: 2.3 | NV26: 24 | NW26: 7.9 | NX26: 6.1 | NY26: 4.71 | NZ26: 4.71 | OA26: 4.71 | OB26: 6.1 | OC26: 4.71 | OD26: 0 | OE26: 0 | OF26: 0 | OG26: 0 | OH26: 4.71 | OI26: 6.1 | OJ26: 11.33 | OK26: 15.63 | OL26: 11.98 | OM26: 7.9 | ON26: 7.9 | OO26: 6.1 | OP26: 4.71 | OQ26: 15.63 | OR26: 15.63 | OS26: 23.66 | OT26: 31.64 | OU26: 23.66 | OV26: 15.63 | OW26: 15.63 | OX26: 15.63 | OY26: 15.63 | OZ26: 11.98 | PA26: 11.98 | PB26: 15.63 | PC26: 23.66 | PD26: 15.63 | PE26: 15.63 | PF26: 15.63 | PG26: 15.63 | PH26: 23.66 | PI26: 23.66 | PJ26: 31.64 | PM26: 2.3 | PN26: 24 | PO26: -23.74 | PP26: -17.56 | PQ26: -18.95 | PR26: -18.95 | PS26: -26.93 | PT26: -25.54 | PU26: -18.95 | PV26: -23.66 | PW26: -23.66 | PX26: -23.66 | PY26: 0 | PZ26: 0 | QA26: -1.8 | QB26: -0.65 | QC26: -16.01 | QD26: -19.66 | QE26: -15.76 | QF26: -15.76 | QG26: -17.56 | QH26: -18.95 | QI26: 3.65 | QJ26: 3.65 | QK26: 0 | QL26: 0 | QM26: -7.98 | QN26: -8.03 | QO26: -8.03 | QP26: -8.03 | QQ26: -16.01 | QR26: -19.66 | QS26: -11.68 | QT26: -16.01 | QU26: -7.98 | QV26: -8.03 | QW26: 0 | QX26: 0 | QY26: 0 | QZ26: 0 | RA26: 0 | RB26: 0 | RE26: 2.3 | RF26: 24 | RG26: 0 | RH26: 0 | RI26: 0 | RJ26: 0 | RK26: 0 | RL26: 0 | RM26: 0 | RN26: 0 | RO26: 0 | RP26: 0 | RQ26: 0 | RR26: 0 | RS26: 0 | RT26: 0 | RU26: 0 | RV26: 0 | RW26: 0 | RX26: 0 | RY26: 0 | RZ26: 0 | SA26: 0 | SB26: 0 | SC26: 0 | SD26: 0 | SE26: 0 | SF26: 0 | SG26: 0 | SH26: 0 | SI26: 0 | SJ26: 0 | SK26: 0 | SL26: 0 | SM26: 0 | SN26: 0 | SO26: 0 | SP26: 0 | SQ26: 0 | SR26: 0 | SS26: 0 | ST26: 0 | SU26: 0 | SV26: 2.3 | SX26: 2.3 | SY26: 24 | SZ26: 0 | TA26: 0 | TB26: 0 | TC26: 0 | TD26: 0 | TE26: 0 | TF26: 0 | TG26: 0 | TH26: 0 | TI26: 0 | TJ26: 0 | TK26: 0 | TL26: 0 | TM26: 0 | TN26: 0 | TO26: 0 | TP26: 0 | TQ26: 0 | TR26: 0 | TS26: 0 | TT26: 0 | TU26: 0 | TV26: 0 | TW26: 0 | TX26: 0 | TY26: 0 | TZ26: 0 | UA26: 0 | UB26: 0 | UC26: 0 | UD26: 0 | UE26: 0 | UF26: 0 | UG26: 0 | UH26: 0 | UI26: 0 | UJ26: 0 | UK26: 0 | UL26: 0 | UM26: 0 | UN26: 0 | UO26: 2.3 | UQ26: 2.3 | UR26: 24 | US26: 1 | UT26: 0 | UU26: 0 | UV26: 0 | UW26: 0 | UX26: 0 | UY26: 0 | UZ26: 0 | VA26: 0 | VB26: 0 | VC26: 0 | VD26: 0 | VE26: 0 | VF26: 0 | VG26: 0 | VH26: 0 | VI26: 0 | VJ26: 0 | VK26: 0 | VL26: 0 | VM26: 1 | VN26: 0 | VO26: 0 | VP26: 0 | VQ26: 0 | VR26: 0 | VS26: 0 | VT26: 0 | VU26: 0 | VV26: 0 | VW26: 0 | VX26: 0 | VY26: 0 | VZ26: 0 | WA26: 0 | WB26: 0 | WC26: 0 | WD26: 0 | WE26: 0 | WF26: 0 | WG26: 1 | WH26: 2.3 | WJ26: 2.3 | WK26: 24 | WL26: 42.85 | WM26: 0 | WN26: 0 | WO26: 0 | WP26: 0 | WQ26: 0 | WR26: 0 | WS26: 0 | WT26: 0 | WU26: 0 | WV26: 0 | WW26: 0 | WX26: 0 | WY26: 0 | WZ26: 0 | XA26: 0 | XB26: 0 | XC26: 0 | XD26: 0 | XE26: 0 | XF26: 54.51 | XG26: 0 | XH26: 0 | XI26: 0 | XJ26: 0 | XK26: 0 | XL26: 0 | XM26: 0 | XN26: 0 | XO26: 0 | XP26: 0 | XQ26: 0 | XR26: 0 | XS26: 0 | XT26: 0 | XU26: 0 | XV26: 0 | XW26: 0 | XX26: 0 | XY26: 0 | XZ26: 73.62 | YA26: 2.3 | YC26: 2.1 | YD26: 22 | YE26: =YE25 -> 3 | YF26: =YF25 -> 3 | YG26: =YG25 -> 3 | YH26: =YH25 -> 3 | YI26: =YI25 -> 3 | YJ26: =YJ25 -> 3 | YK26: =YK25 -> 3 | YL26: =YL25 -> 3 | YM26: =YM25 -> 3 | YN26: =YN25 -> 3 | YO26: =YO25 -> 3 | YP26: =YP25 -> 3 | YQ26: =YQ25 -> 3 | YR26: =YR25 -> 3 | YS26: =YS25 -> 3 | YT26: =YT25 -> 3 | YU26: =YU25 -> 3 | YV26: =YV25 -> 3 | YW26: =YW25 -> 3 | YX26: =YX25 -> 3 | YY26: =YX26 -> 3 | YZ26: =ZA26 -> 2 | ZA26: =ZA25 -> 2 | ZB26: =ZB25 -> 2 | ZC26: =ZC25 -> 2 | ZD26: =ZD25 -> 2 | ZE26: =ZE25 -> 2 | ZF26: =ZF25 -> 2 | ZG26: =ZG25 -> 2 | ZH26: =ZH25 -> 2 | ZI26: =ZI25 -> 2 | ZJ26: =ZJ25 -> 2 | ZK26: =ZK25 -> 2 | ZL26: =ZL25 -> 2 | ZM26: =ZM25 -> 2 | ZN26: =ZN25 -> 2 | ZO26: =ZO25 -> 2 | ZP26: =ZP25 -> 2 | ZQ26: =ZQ25 -> 2 | ZR26: =ZR25 -> 2 | ZS26: =ZS25 -> 2 | ZT26: =ZS26 -> 2 | ZU26: 2.1 | ZW26: 2.1 | ZX26: 22 | ZY26: 0 | ZZ26: 0 | AAA26: 0 | AAB26: 0 | AAC26: 0 | AAD26: 4 | AAE26: 4 | AAF26: 0 | AAG26: 0 | AAH26: 0 | AAI26: 0 | AAJ26: 0 | AAK26: 0 | AAL26: 0 | AAM26: 4 | AAN26: 4 | AAO26: 0 | AAP26: 0 | AAQ26: 0 | AAR26: 0 | AAS26: 0 | AAT26: 0 | AAU26: 0 | AAV26: 0 | AAW26: 4 | AAX26: 4 | AAY26: 0 | AAZ26: 0 | ABA26: 0 | ABB26: 0 | ABC26: 0 | ABD26: 0 | ABE26: 0 | ABF26: 4 | ABG26: 4 | ABH26: 0 | ABI26: 0 | ABJ26: 0 | ABK26: 0 | ABL26: 0 | ABM26: 0 | ABN26: 0 | ABO26: 2.1 | ABQ26: 2.1 | ABR26: 22 | ABS26: =ABS25 -> 51 | ABT26: =ABT25 -> 51 | ABU26: =ABU25 -> 51 | ABV26: =ABV25 -> 51 | ABW26: =ABW25 -> 51 | ABX26: =ABX25 -> 51 | ABY26: =ABY25 -> 51 | ABZ26: =ABZ25 -> 51 | ACA26: =ACA25 -> 51 | ACB26: =ACB25 -> 51 | ACC26: =ACC25 -> 51 | ACD26: =ACD25 -> 51 | ACE26: =ACE25 -> 51 | ACF26: =ACF25 -> 51 | ACG26: =ACG25 -> 51 | ACH26: =ACH25 -> 51 | ACI26: =ACI25 -> 51 | ACJ26: =ACJ25 -> 51 | ACK26: =ACK25 -> 51 | ACL26: =ACL25 -> 51 | ACM26: =ACL26 -> 51 | ACN26: =ACO26 -> 58 | ACO26: =ACO25 -> 58 | ACP26: =ACP25 -> 58 | ACQ26: =ACQ25 -> 58 | ACR26: =ACR25 -> 58 | ACS26: =ACS25 -> 58 | ACT26: =ACT25 -> 58 | ACU26: =ACU25 -> 58 | ACV26: =ACV25 -> 58 | ACW26: =ACW25 -> 58 | ACX26: =ACX25 -> 58 | ACY26: =ACY25 -> 58 | ACZ26: =ACZ25 -> 58 | ADA26: =ADA25 -> 58 | ADB26: =ADB25 -> 58 | ADC26: =ADC25 -> 58 | ADD26: =ADD25 -> 58 | ADE26: =ADE25 -> 58 | ADF26: =ADF25 -> 58 | ADG26: =ADG25 -> 58 | ADH26: =ADG26 -> 58 | ADI26: 2.1
B27: =F22*G23-G22*F23 -> -1360000 | E27: d | F27: =-1*(F25*F18+G25*G18+H25*H18) -> 136000000 | M27: 5D | N27: =ROUND('3D Interpolace'!M28,2) -> 43.66 | O27: =ROUND('3D Interpolace'!N28,2) -> 42.59 | P27: =ROUND('3D Interpolace'!O28,2) -> 41.8 | Q27: =ROUND('3D Interpolace'!P28,2) -> 41.28 | R27: =ROUND('3D Interpolace'!Q28,2) -> 41.04 | S27: =ROUND('3D Interpolace'!R28,2) -> 41.07 | T27: =ROUND('3D Interpolace'!S28,2) -> 41.36 | U27: =ROUND('3D Interpolace'!T28,2) -> 41.9 | V27: =ROUND('3D Interpolace'!U28,2) -> 42.73 | W27: =ROUND('3D Interpolace'!V28,2) -> 43.86 | X27: =ROUND('3D Interpolace'!W28,2) -> 45.34 | Y27: =ROUND('3D Interpolace'!X28,2) -> 47.53 | Z27: =ROUND('3D Interpolace'!Y28,2) -> 50.4 | AA27: =ROUND('3D Interpolace'!Z28,2) -> 53.41 | AB27: =ROUND('3D Interpolace'!AA28,2) -> 56.02 | AC27: =ROUND('3D Interpolace'!AB28,2) -> 57.68 | AD27: =ROUND('3D Interpolace'!AC28,2) -> 58.08 | AE27: =ROUND('3D Interpolace'!AD28,2) -> 57.57 | AF27: =ROUND('3D Interpolace'!AE28,2) -> 56.64 | AG27: =ROUND('3D Interpolace'!AF28,2) -> 55.78 | AH27: =ROUND('3D Interpolace'!AG28,2) -> 55.46 | AI27: =ROUND('3D Interpolace'!AH28,2) -> 55.8 | AJ27: =ROUND('3D Interpolace'!AI28,2) -> 56.47 | AK27: =ROUND('3D Interpolace'!AJ28,2) -> 57.31 | AL27: =ROUND('3D Interpolace'!AK28,2) -> 58.17 | AM27: =ROUND('3D Interpolace'!AL28,2) -> 58.89 | AN27: =ROUND('3D Interpolace'!AM28,2) -> 59.44 | AO27: =ROUND('3D Interpolace'!AN28,2) -> 59.94 | AP27: =ROUND('3D Interpolace'!AO28,2) -> 60.42 | AQ27: =ROUND('3D Interpolace'!AP28,2) -> 60.92 | AR27: =ROUND('3D Interpolace'!AQ28,2) -> 61.48 | AS27: =ROUND('3D Interpolace'!AR28,2) -> 62.04 | AT27: =ROUND('3D Interpolace'!AS28,2) -> 62.57 | AU27: =ROUND('3D Interpolace'!AT28,2) -> 63.18 | AV27: =ROUND('3D Interpolace'!AU28,2) -> 63.95 | AW27: =ROUND('3D Interpolace'!AV28,2) -> 65.01 | AX27: =ROUND('3D Interpolace'!AW28,2) -> 66.34 | AY27: =ROUND('3D Interpolace'!AX28,2) -> 67.88 | AZ27: =ROUND('3D Interpolace'!AY28,2) -> 69.64 | BA27: =ROUND('3D Interpolace'!AZ28,2) -> 71.6 | BB27: =ROUND('3D Interpolace'!BA28,2) -> 73.77 | BD27: 2.4 | BE27: 25 | BK27: 4 | BL27: 4 | BT27: 4 | BU27: 4 | CC27: 4 | CD27: 4 | CL27: 4 | CM27: 4 | CU27: 2.4 | CW27: 2.4 | CX27: 25 | CY27: 43.66 | CZ27: 42.59 | DA27: 41.8 | DB27: 41.28 | DC27: 41.04 | DD27: 45.07 | DE27: 45.36 | DF27: 41.9 | DG27: 42.73 | DH27: 43.86 | DI27: 45.34 | DJ27: 47.53 | DK27: 50.4 | DL27: 53.41 | DM27: 60.02 | DN27: 61.68 | DO27: 58.08 | DP27: 57.57 | DQ27: 56.64 | DR27: 55.78 | DS27: 55.46 | DT27: 55.8 | DU27: 56.47 | DV27: 61.31 | DW27: 62.17 | DX27: 58.89 | DY27: 59.44 | DZ27: 59.94 | EA27: 60.42 | EB27: 60.92 | EC27: 61.48 | ED27: 62.04 | EE27: 66.57 | EF27: 67.18 | EG27: 63.95 | EH27: 65.01 | EI27: 66.34 | EJ27: 67.88 | EK27: 69.64 | EL27: 71.6 | EM27: 73.77 | EN27: 2.4 | EP27: 2.2 | EQ27: 23 | ER27: 41.91 | ES27: 41.69 | ET27: 41.52 | EU27: 41.39 | EV27: 41.3 | EW27: 45.26 | EX27: 45.09 | EY27: 40.79 | EZ27: 40.62 | FA27: 40.84 | FB27: 41.73 | FC27: 43.68 | FD27: 46.52 | FE27: 49.64 | FF27: 56.43 | FG27: 58.28 | FH27: 54.89 | FI27: 54.66 | FJ27: 54.06 | FK27: 53.53 | FL27: 53.53 | FM27: 53.53 | FN27: 54.22 | FO27: 55.29 | FP27: 60.51 | FQ27: 61.66 | FR27: 58.5 | FS27: 58.91 | FT27: 59.04 | FU27: 59.08 | FV27: 59.21 | FW27: 59.6 | FX27: 60.25 | FY27: 65.04 | FZ27: 65.98 | GA27: 63.08 | GB27: 64.38 | GC27: 65.85 | GD27: 67.5 | GE27: 69.33 | GF27: 71.32 | GG27: 73.5 | GK27: 2.2 | GL27: 23 | GM27: 0 | GN27: 0 | GO27: 0 | GP27: 0 | GQ27: 0 | GR27: 45.26 | GS27: 0 | GT27: 0 | GU27: 0 | GV27: 0 | GW27: 0 | GX27: 0 | GY27: 0 | GZ27: 0 | HA27: 0 | HB27: 58.28 | HC27: 0 | HD27: 0 | HE27: 0 | HF27: 0 | HG27: 0 | HH27: 0 | HI27: 0 | HJ27: 0 | HK27: 0 | HL27: 0 | HM27: 0 | HN27: 0 | HO27: 0 | HP27: 0 | HQ27: 0 | HR27: 0 | HS27: 0 | HT27: 0 | HU27: 0 | HV27: 0 | HW27: 0 | HX27: 0 | HY27: 0 | HZ27: 0 | IA27: 0 | IB27: 0 | IC27: 2.2 | IG27: 23 | IH27: 57 | II27: 57.8 | IJ27: 58.6 | IK27: 59.4 | IL27: 60.2 | IM27: 61 | IN27: 61.8 | IO27: 62.6 | IP27: 63.4 | IQ27: 64.2 | IR27: 65 | IS27: 65.8 | IT27: 66.6 | IU27: 67.4 | IV27: 68.2 | IW27: 69 | IX27: 69.8 | IY27: 70.6 | IZ27: 71.4 | JA27: 72.2 | JB27: 73 | JC27: 59.85 | JD27: 60.5375 | JE27: 61.225 | JF27: 61.9125 | JG27: 62.6 | JH27: 63.2875 | JI27: 63.975 | JJ27: 64.6625 | JK27: 65.35 | JL27: 66.0375 | JM27: 66.725 | JN27: 67.4125 | JO27: 68.1 | JP27: 68.7875 | JQ27: 69.475 | JR27: 70.1625 | JS27: 70.85 | JT27: 71.5375 | JU27: 72.225 | JV27: 72.9125 | JW27: 73.6 | JX27: 2.2 | KD27: 2.2 | KE27: 23 | KF27: 15.09 | KG27: 16.11 | KH27: 17.08 | KI27: 18.01 | KJ27: 18.9 | KK27: 15.74 | KL27: 16.71 | KM27: 21.81 | KN27: 22.78 | KO27: 23.36 | KP27: 23.27 | KQ27: 22.12 | KR27: 20.08 | KS27: 17.76 | KT27: 11.77 | KU27: 10.72 | KV27: 14.91 | KW27: 15.94 | KX27: 17.34 | KY27: 18.67 | KZ27: 19.47 | LA27: 6.32 | LB27: 6.3175 | LC27: 5.935 | LD27: 1.4025 | LE27: 0.94 | LF27: 4.7875 | LG27: 5.065 | LH27: 5.6225 | LI27: 6.27 | LJ27: 6.8275 | LK27: 7.125 | LL27: 7.1625 | LM27: 3.06 | LN27: 2.8075 | LO27: 6.395 | LP27: 5.7825 | LQ27: 5 | LR27: 4.0375 | LS27: 2.895 | LT27: 1.5925 | LU27: 0.1 | MC27: 2.4 | MD27: 25 | ME27: 9.1475 | MF27: 10.9525 | MG27: 12.46 | MH27: 13.67 | MI27: 12.5825 | MJ27: 11.1975 | MK27: 13.5175 | ML27: 15.5425 | MM27: 15.27 | MN27: 14.695 | MO27: 13.6375 | MP27: 11.93 | MQ27: 9.8375 | MR27: 5.88 | MS27: 2.58 | MT27: 4.355 | MU27: 7.19 | MV27: 8.6775 | MW27: 10.3425 | MX27: 11.715 | MY27: 5.05875 | MZ27: 5.28375 | NA27: 3.27375 | NB27: 1.16625 | NC27: 3.09875 | ND27: 5.14875 | NE27: 5.27375 | NF27: 5.41625 | NG27: 5.55875 | NH27: 5.68125 | NI27: 5.81375 | NJ27: 4.00125 | NK27: 2.18625 | NL27: 4.25125 | NM27: 6.07375 | NN27: 5.58875 | NO27: 4.83875 | NP27: 3.86125 | NQ27: 2.65875 | NR27: 1.23375 | NU27: 2.4 | NV27: 25 | NW27: 11.33 | NX27: 7.9 | NY27: 6.1 | NZ27: 6.1 | OA27: 6.1 | OB27: 7.9 | OC27: 6.1 | OD27: 4.71 | OE27: 4.71 | OF27: 4.71 | OG27: 6.1 | OH27: 7.9 | OI27: 11.33 | OJ27: 15.63 | OK27: 23.66 | OL27: 15.63 | OM27: 11.98 | ON27: 11.33 | OO27: 7.9 | OP27: 7.9 | OQ27: 15.63 | OR27: 15.63 | OS27: 23.66 | OT27: 31.64 | OU27: 23.66 | OV27: 15.63 | OW27: 15.63 | OX27: 15.63 | OY27: 15.63 | OZ27: 15.63 | PA27: 15.63 | PB27: 15.63 | PC27: 23.66 | PD27: 15.63 | PE27: 11.98 | PF27: 15.63 | PG27: 15.63 | PH27: 23.66 | PI27: 23.66 | PJ27: 31.64 | PM27: 2.4 | PN27: 25 | PO27: -20.31 | PP27: -23.74 | PQ27: -17.56 | PR27: -17.56 | PS27: -25.54 | PT27: -23.74 | PU27: -25.54 | PV27: -18.95 | PW27: -18.95 | PX27: -26.93 | PY27: 6.1 | PZ27: 3.19 | QA27: 5.23 | QB27: 3.65 | QC27: 0 | QD27: -8.03 | QE27: -11.68 | QF27: -12.33 | QG27: -7.73 | QH27: -7.73 | QI27: 3.65 | QJ27: 0 | QK27: 0 | QL27: 0 | QM27: -7.98 | QN27: -8.03 | QO27: -8.03 | QP27: -16.01 | QQ27: -16.01 | QR27: -16.01 | QS27: -8.03 | QT27: -16.01 | QU27: -7.98 | QV27: -8.03 | QW27: -3.65 | QX27: 0 | QY27: 0 | QZ27: 8.03 | RA27: 0 | RB27: 7.98 | RE27: 2.4 | RF27: 25 | RG27: 0 | RH27: 0 | RI27: 0 | RJ27: 0 | RK27: 0 | RL27: 0 | RM27: 0 | RN27: 0 | RO27: 0 | RP27: 0 | RQ27: 0 | RR27: 0 | RS27: 0 | RT27: 0 | RU27: 0 | RV27: 0 | RW27: 0 | RX27: 0 | RY27: 0 | RZ27: 0 | SA27: 0 | SB27: 0 | SC27: 0 | SD27: 0 | SE27: 0 | SF27: 0 | SG27: 0 | SH27: 0 | SI27: 0 | SJ27: 0 | SK27: 0 | SL27: 0 | SM27: 0 | SN27: 0 | SO27: 0 | SP27: 0 | SQ27: 0 | SR27: 0 | SS27: 0 | ST27: 0 | SU27: 0 | SV27: 2.4 | SX27: 2.4 | SY27: 25 | SZ27: 0 | TA27: 0 | TB27: 0 | TC27: 0 | TD27: 0 | TE27: 0 | TF27: 0 | TG27: 0 | TH27: 0 | TI27: 0 | TJ27: 0 | TK27: 0 | TL27: 0 | TM27: 0 | TN27: 0 | TO27: 0 | TP27: 0 | TQ27: 0 | TR27: 0 | TS27: 0 | TT27: 0 | TU27: 0 | TV27: 0 | TW27: 0 | TX27: 0 | TY27: 0 | TZ27: 0 | UA27: 0 | UB27: 0 | UC27: 0 | UD27: 0 | UE27: 0 | UF27: 0 | UG27: 0 | UH27: 0 | UI27: 0 | UJ27: 0 | UK27: 0 | UL27: 0 | UM27: 0 | UN27: 0 | UO27: 2.4 | UQ27: 2.4 | UR27: 25 | US27: 1 | UT27: 0 | UU27: 0 | UV27: 0 | UW27: 0 | UX27: 0 | UY27: 0 | UZ27: 0 | VA27: 0 | VB27: 0 | VC27: 0 | VD27: 0 | VE27: 0 | VF27: 0 | VG27: 0 | VH27: 0 | VI27: 0 | VJ27: 0 | VK27: 0 | VL27: 0 | VM27: 1 | VN27: 0 | VO27: 0 | VP27: 0 | VQ27: 0 | VR27: 0 | VS27: 0 | VT27: 0 | VU27: 0 | VV27: 0 | VW27: 0 | VX27: 0 | VY27: 0 | VZ27: 0 | WA27: 0 | WB27: 0 | WC27: 0 | WD27: 0 | WE27: 0 | WF27: 0 | WG27: 1 | WH27: 2.4 | WJ27: 2.4 | WK27: 25 | WL27: 43.66 | WM27: 0 | WN27: 0 | WO27: 0 | WP27: 0 | WQ27: 0 | WR27: 0 | WS27: 0 | WT27: 0 | WU27: 0 | WV27: 0 | WW27: 0 | WX27: 0 | WY27: 0 | WZ27: 0 | XA27: 0 | XB27: 0 | XC27: 0 | XD27: 0 | XE27: 0 | XF27: 55.46 | XG27: 0 | XH27: 0 | XI27: 0 | XJ27: 0 | XK27: 0 | XL27: 0 | XM27: 0 | XN27: 0 | XO27: 0 | XP27: 0 | XQ27: 0 | XR27: 0 | XS27: 0 | XT27: 0 | XU27: 0 | XV27: 0 | XW27: 0 | XX27: 0 | XY27: 0 | XZ27: 73.77 | YA27: 2.4 | YC27: 2.2 | YD27: 23 | YE27: =YE26 -> 3 | YF27: =YF26 -> 3 | YG27: 3 | YH27: 3 | YI27: 3 | YJ27: 3 | YK27: 3 | YL27: 3 | YM27: 3 | YN27: 3 | YO27: 3 | YP27: 3 | YQ27: 3 | YR27: 3 | YS27: 3 | YT27: 3 | YU27: 3 | YV27: 3 | YW27: 3 | YX27: 3 | YY27: =YX27 -> 3 | YZ27: 2 | ZA27: =ZA26 -> 2 | ZB27: 2 | ZC27: 2 | ZD27: 2 | ZE27: 2 | ZF27: 2 | ZG27: 2 | ZH27: 2 | ZI27: 2 | ZJ27: 2 | ZK27: 2 | ZL27: 2 | ZM27: 2 | ZN27: 2 | ZO27: 2 | ZP27: 2 | ZQ27: 2 | ZR27: 2 | ZS27: 2 | ZT27: =ZS27 -> 2 | ZU27: 2.2 | ZW27: 2.2 | ZX27: 23 | ZY27: 0 | ZZ27: 0 | AAA27: 0 | AAB27: 0 | AAC27: 0 | AAD27: 4 | AAE27: 4 | AAF27: 0 | AAG27: 0 | AAH27: 0 | AAI27: 0 | AAJ27: 0 | AAK27: 0 | AAL27: 0 | AAM27: 4 | AAN27: 4 | AAO27: 0 | AAP27: 0 | AAQ27: 0 | AAR27: 0 | AAS27: 0 | AAT27: 0 | AAU27: 0 | AAV27: 0 | AAW27: 4 | AAX27: 4 | AAY27: 0 | AAZ27: 0 | ABA27: 0 | ABB27: 0 | ABC27: 0 | ABD27: 0 | ABE27: 0 | ABF27: 4 | ABG27: 4 | ABH27: 0 | ABI27: 0 | ABJ27: 0 | ABK27: 0 | ABL27: 0 | ABM27: 0 | ABN27: 0 | ABO27: 2.2 | ABQ27: 2.2 | ABR27: 23 | ABS27: =ABS26 -> 51 | ABT27: =ABT26 -> 51 | ABU27: 51 | ABV27: 51 | ABW27: 51 | ABX27: 51 | ABY27: 51 | ABZ27: 51 | ACA27: 51 | ACB27: 51 | ACC27: 51 | ACD27: 51 | ACE27: 51 | ACF27: 51 | ACG27: 51 | ACH27: 51 | ACI27: 51 | ACJ27: 51 | ACK27: 51 | ACL27: 51 | ACM27: =ACL27 -> 51 | ACN27: 58 | ACO27: =ACO26 -> 58 | ACP27: 58 | ACQ27: 58 | ACR27: 58 | ACS27: 58 | ACT27: 58 | ACU27: 58 | ACV27: 58 | ACW27: 58 | ACX27: 58 | ACY27: 58 | ACZ27: 58 | ADA27: 58 | ADB27: 58 | ADC27: 58 | ADD27: 58 | ADE27: 58 | ADF27: 58 | ADG27: 58 | ADH27: =ADG27 -> 58 | ADI27: 2.2
